Workbook

Sheet Title
O3: Institute of Agriculture and Natural Resources
O4: EC872
O5: (Revised November 2019)
E45: The following individuals contributed to these budgets in their specialty area:
F46: Jessica Groskopf | I46: Extension Educator - Agricultural Economics
F47: Robert Harveson | I47: Extension Entomologist
F48: Tamra Jackson-Ziems | I48: Plant Pathologist - Corn and Sorghum
F49: Jim Jansen | I49: Extension Educator - Agricultural Economics
F50: Paul Jasa | I50: Extension Biological Systems Engineer
F51: Jay Parsons | I51: Associate Professor - Agricultural Economics
F52: Chris Proctor | I52: Extension Educator - Weed Management
F53: Robert Tigner | I53: Extension Educator - Agricultural Economics
F54: Stephen Wegulo | I54: Plant Pathologist - Wheat and Ornamental
F55: Robert Wright | I55: Extension Entomologist

Sheet General Variables
A1: Farm Wide Inputs
P2: Region
A3: Year | B3: 2020 | E3: Real Estate Values
A4: Wage Rate | B4: 25 | C4: / Hr | E4: Description | F4: Value | P4: Eastern Nebraska
A5: Diesel Price | B5: 2.27 | C5: / gal | E5: Dryland (State) | F5: 3040
A6: Lube Factor | B6: 1.15 | E6: Dryland (Panhandle) | F6: 645
A7: Diesel & Lube | B7: =B5*B6 -> 2.6105 | C7: / gal | E7: Gravity (State) | F7: 5690
A8: Elect. Price | B8: 0.1074 | C8: / kWh | E8: Gravity (Panhandle) | F8: 2245 | P8: Tillage System
A9: Taxes, Ins., Housing Factor | B9: 0.02 | E9: Pivot (State) | F9: 5970
A10: Investment Interest Rate | B10: 0.03 | E10: Pivot (Panhandle) | F10: 2565 | P10: Conventional Tillage
A11: Operations Borrowing Rate | B11: 0.055 | E11: Dryland (Southwest) | F11: 1585 | P11: No Till
A12: Operations Borrowing Time | B12: 6 | C12: months | E12: Fall Establishment | F12: 0 | P12: Ridge Till
A13: Real Estate Tax Rate | B13: 0.0135 | E13: Pivot (Marginal Land) | F13: =F9*0.7 -> 4179 | P13: Strip Till
A14: Overhead Cost per Acre | B14: 20 | E14: Dryland (Eastern) | F14: 5765 | P14: Stubble Mulch Fallow
P15: Clean Till Fallow
P16: Ecofallow
P17: Reduced Till
B18: See crop insurance tab for insurance premiums per crop. | P18: Tilled Seed Bed
P19: No Till Drilled 7.5-inch Rows
P20: One Pass Zone-Tillage
P21: Cropping System
P23: Continuous
P24: Following Corn
P25: Following Beans
P26: Ecofallow Follows Wheat (2 crops in 3 years)
P27: Ecofallow Before Corn (2 crops in 3 years)
P28: 1 crop in 2 years
P29: Fall Establishment
P31: Water Source
P32: Pivot Irrigated Diesel
P33: Pivot Irrigated Electric
P34: Gravity Irrigated, fed by a well
P35: Pivot Irrigated, fed by canal
P36: Gravity Irrigated, fed by canal
P37: Dryland

Sheet Power Units
A1: Name | B1: Repair Category | C1: Depreciation Category | D1: List Price | E1: Beg Yr Value | F1: Age | G1: Tach Hours | H1: Est. Hours per Year | I1: Calculated List Price | J1: Repairs per Hour | K1: Calculated Beg Yr. Value | L1: Calculated End Yr. Value | M1: Depreciation per Hour | N1: TIH per Hour | O1: Opportunity Cost per Hour | P1: Ownership Cost per Hour | R1: Machine | S1: Catogory | T1: RF1 | U1: RF2 | V1: Estimated Life | X1: Equipment type | Y1: Machine | Z1: C1 | AA1: C2 | AB1: C3
A2: Large Tractor | B2: 4 wheel drive & crawler | C2: Farm tractors (>150hp) | D2: 415582 | F2: 10 | G2: 2500 | H2: 250 | I2: =IF(PowerUnits[[#This Row],[List Price]]>1,PowerUnits[[#This Row],[List Price]],IF(C2="",0,PowerUnits[[#This Row],[Beg Yr Value]]/(VLOOKUP(PowerUnits[[#This Row],[Depreciation Category]],PwrDepreciation,2,FALSE)-VLOOKUP(PowerUnits[[#This Row],[Depreciation Category]],PwrDepreciation,3,FALSE)*PowerUnits[[#This Row],[Age]]^0.5-VLOOKUP(PowerUnits[[#This Row],[Depreciation Category]],PwrDepreciation,4,FALSE)*PowerUnits[[#This Row],[Tach Hours]]^0.5)^2)) -> 415582 | J2: =IF(PowerUnits[[#This Row],[Est. Hours per Year]]=0,0,IF(PowerUnits[[#This Row],[Repair Category]]=0,0,(VLOOKUP(PowerUnits[[#This Row],[Repair Category]],PwrRepairs[],3,FALSE)*PowerUnits[[#This Row],[Calculated List Price]]*((PowerUnits[[#This Row],[Tach Hours]]+PowerUnits[[#This Row],[Est. Hours per Year]])/1000)^VLOOKUP(PowerUnits[[#This Row],[Repair Category]],PwrRepairs[],4,FALSE)-VLOOKUP(PowerUnits[[#This Row],[Repair Category]],PwrRepairs[],3,FALSE)*PowerUnits[[#This Row],[Calculated List Price]]*(PowerUnits[[#This Row],[Tach Hours]]/1000)^VLOOKUP(PowerUnits[[#This Row],[Repair Category]],PwrRepairs[],4,FALSE))/PowerUnits[[#This Row],[Est. Hours per Year]])) -> 6.5454165 | K2: =IF(PowerUnits[[#This Row],[Depreciation Category]]=0,0,PowerUnits[[#This Row],[Calculated List Price]]*(VLOOKUP(PowerUnits[[#This Row],[Depreciation Category]],PwrDepreciation,2,FALSE)-VLOOKUP(PowerUnits[[#This Row],[Depreciation Category]],PwrDepreciation,3,FALSE)*PowerUnits[[#This Row],[Age]]^0.5-VLOOKUP(PowerUnits[[#This Row],[Depreciation Category]],PwrDepreciation,4,FALSE)*PowerUnits[[#This Row],[Tach Hours]]^0.5)^2) -> 105853.2838 | L2: =IF(PowerUnits[[#This Row],[Depreciation Category]]=0,0,PowerUnits[[#This Row],[Calculated List Price]]*(VLOOKUP(PowerUnits[[#This Row],[Depreciation Category]],PwrDepreciation,2,FALSE)-VLOOKUP(PowerUnits[[#This Row],[Depreciation Category]],PwrDepreciation,3,FALSE)*(PowerUnits[[#This Row],[Age]]+1)^0.5-VLOOKUP(PowerUnits[[#This Row],[Depreciation Category]],PwrDepreciation,4,FALSE)*(PowerUnits[[#This Row],[Tach Hours]]+PowerUnits[[#This Row],[Est. Hours per Year]])^0.5)^2) -> 96423.44185 | M2: =IF(PowerUnits[[#This Row],[Est. Hours per Year]]=0,0,(PowerUnits[[#This Row],[Calculated Beg Yr. Value]]-PowerUnits[[#This Row],[Calculated End Yr. Value]])/PowerUnits[[#This Row],[Est. Hours per Year]]) -> 37.71936798 | N2: =IF(PowerUnits[[#This Row],[Est. Hours per Year]]=0,0,PowerUnits[[#This Row],[Calculated Beg Yr. Value]]*'General Variables'!$B$9/PowerUnits[[#This Row],[Est. Hours per Year]]) -> 8.468262708 | O2: =IF(PowerUnits[[#This Row],[Est. Hours per Year]]=0,0,PowerUnits[[#This Row],[Calculated Beg Yr. Value]]*'General Variables'!$B$10/PowerUnits[[#This Row],[Est. Hours per Year]]) -> 12.70239406 | P2: =SUM(PowerUnits[[#This Row],[Depreciation per Hour]:[Opportunity Cost per Hour]]) -> 58.89002475 | R2: 2 wheel drive & stationary tractor | S2: TRACTORS | T2: 0.007 | U2: 2.0 | V2: 12000 | X2: Farm tractors | Y2: Farm tractors (<80hp) | Z2: 0.981 | AA2: 0.093 | AB2: 0.0058
A3: Medium Tractor | B3: 2 wheel drive & stationary tractor | C3: Farm tractors (>150hp) | D3: 246134 | F3: 5 | G3: 2500 | H3: 500 | I3: =IF(PowerUnits[[#This Row],[List Price]]>1,PowerUnits[[#This Row],[List Price]],IF(C3="",0,PowerUnits[[#This Row],[Beg Yr Value]]/(VLOOKUP(PowerUnits[[#This Row],[Depreciation Category]],PwrDepreciation,2,FALSE)-VLOOKUP(PowerUnits[[#This Row],[Depreciation Category]],PwrDepreciation,3,FALSE)*PowerUnits[[#This Row],[Age]]^0.5-VLOOKUP(PowerUnits[[#This Row],[Depreciation Category]],PwrDepreciation,4,FALSE)*PowerUnits[[#This Row],[Tach Hours]]^0.5)^2)) -> 246134 | J3: =IF(PowerUnits[[#This Row],[Est. Hours per Year]]=0,0,IF(PowerUnits[[#This Row],[Repair Category]]=0,0,(VLOOKUP(PowerUnits[[#This Row],[Repair Category]],PwrRepairs[],3,FALSE)*PowerUnits[[#This Row],[Calculated List Price]]*((PowerUnits[[#This Row],[Tach Hours]]+PowerUnits[[#This Row],[Est. Hours per Year]])/1000)^VLOOKUP(PowerUnits[[#This Row],[Repair Category]],PwrRepairs[],4,FALSE)-VLOOKUP(PowerUnits[[#This Row],[Repair Category]],PwrRepairs[],3,FALSE)*PowerUnits[[#This Row],[Calculated List Price]]*(PowerUnits[[#This Row],[Tach Hours]]/1000)^VLOOKUP(PowerUnits[[#This Row],[Repair Category]],PwrRepairs[],4,FALSE))/PowerUnits[[#This Row],[Est. Hours per Year]])) -> 9.476159 | K3: =IF(PowerUnits[[#This Row],[Depreciation Category]]=0,0,PowerUnits[[#This Row],[Calculated List Price]]*(VLOOKUP(PowerUnits[[#This Row],[Depreciation Category]],PwrDepreciation,2,FALSE)-VLOOKUP(PowerUnits[[#This Row],[Depreciation Category]],PwrDepreciation,3,FALSE)*PowerUnits[[#This Row],[Age]]^0.5-VLOOKUP(PowerUnits[[#This Row],[Depreciation Category]],PwrDepreciation,4,FALSE)*PowerUnits[[#This Row],[Tach Hours]]^0.5)^2) -> 93066.15467 | L3: =IF(PowerUnits[[#This Row],[Depreciation Category]]=0,0,PowerUnits[[#This Row],[Calculated List Price]]*(VLOOKUP(PowerUnits[[#This Row],[Depreciation Category]],PwrDepreciation,2,FALSE)-VLOOKUP(PowerUnits[[#This Row],[Depreciation Category]],PwrDepreciation,3,FALSE)*(PowerUnits[[#This Row],[Age]]+1)^0.5-VLOOKUP(PowerUnits[[#This Row],[Depreciation Category]],PwrDepreciation,4,FALSE)*(PowerUnits[[#This Row],[Tach Hours]]+PowerUnits[[#This Row],[Est. Hours per Year]])^0.5)^2) -> 82926.13345 | M3: =IF(PowerUnits[[#This Row],[Est. Hours per Year]]=0,0,(PowerUnits[[#This Row],[Calculated Beg Yr. Value]]-PowerUnits[[#This Row],[Calculated End Yr. Value]])/PowerUnits[[#This Row],[Est. Hours per Year]]) -> 20.28004245 | N3: =IF(PowerUnits[[#This Row],[Est. Hours per Year]]=0,0,PowerUnits[[#This Row],[Calculated Beg Yr. Value]]*'General Variables'!$B$9/PowerUnits[[#This Row],[Est. Hours per Year]]) -> 3.722646187 | O3: =IF(PowerUnits[[#This Row],[Est. Hours per Year]]=0,0,PowerUnits[[#This Row],[Calculated Beg Yr. Value]]*'General Variables'!$B$10/PowerUnits[[#This Row],[Est. Hours per Year]]) -> 5.58396928 | P3: =SUM(PowerUnits[[#This Row],[Depreciation per Hour]:[Opportunity Cost per Hour]]) -> 29.58665792 | R3: 4 wheel drive & crawler | S3: TRACTORS | T3: 0.003 | U3: 2.0 | V3: 16000 | X3: Farm tractors | Y3: Farm tractors (80-150hp) | Z3: 0.942 | AA3: 0.100 | AB3: 0.0008
A4: Combine | B4: Combine(SP) | C4: Combines | D4: 429579 | F4: 10 | G4: 1500 | H4: 200 | I4: =IF(PowerUnits[[#This Row],[List Price]]>1,PowerUnits[[#This Row],[List Price]],IF(C4="",0,PowerUnits[[#This Row],[Beg Yr Value]]/(VLOOKUP(PowerUnits[[#This Row],[Depreciation Category]],PwrDepreciation,2,FALSE)-VLOOKUP(PowerUnits[[#This Row],[Depreciation Category]],PwrDepreciation,3,FALSE)*PowerUnits[[#This Row],[Age]]^0.5-VLOOKUP(PowerUnits[[#This Row],[Depreciation Category]],PwrDepreciation,4,FALSE)*PowerUnits[[#This Row],[Tach Hours]]^0.5)^2)) -> 429579 | J4: =IF(PowerUnits[[#This Row],[Est. Hours per Year]]=0,0,IF(PowerUnits[[#This Row],[Repair Category]]=0,0,(VLOOKUP(PowerUnits[[#This Row],[Repair Category]],PwrRepairs[],3,FALSE)*PowerUnits[[#This Row],[Calculated List Price]]*((PowerUnits[[#This Row],[Tach Hours]]+PowerUnits[[#This Row],[Est. Hours per Year]])/1000)^VLOOKUP(PowerUnits[[#This Row],[Repair Category]],PwrRepairs[],4,FALSE)-VLOOKUP(PowerUnits[[#This Row],[Repair Category]],PwrRepairs[],3,FALSE)*PowerUnits[[#This Row],[Calculated List Price]]*(PowerUnits[[#This Row],[Tach Hours]]/1000)^VLOOKUP(PowerUnits[[#This Row],[Repair Category]],PwrRepairs[],4,FALSE))/PowerUnits[[#This Row],[Est. Hours per Year]])) -> 60.51811897 | K4: =IF(PowerUnits[[#This Row],[Depreciation Category]]=0,0,PowerUnits[[#This Row],[Calculated List Price]]*(VLOOKUP(PowerUnits[[#This Row],[Depreciation Category]],PwrDepreciation,2,FALSE)-VLOOKUP(PowerUnits[[#This Row],[Depreciation Category]],PwrDepreciation,3,FALSE)*PowerUnits[[#This Row],[Age]]^0.5-VLOOKUP(PowerUnits[[#This Row],[Depreciation Category]],PwrDepreciation,4,FALSE)*PowerUnits[[#This Row],[Tach Hours]]^0.5)^2) -> 39767.51809 | L4: =IF(PowerUnits[[#This Row],[Depreciation Category]]=0,0,PowerUnits[[#This Row],[Calculated List Price]]*(VLOOKUP(PowerUnits[[#This Row],[Depreciation Category]],PwrDepreciation,2,FALSE)-VLOOKUP(PowerUnits[[#This Row],[Depreciation Category]],PwrDepreciation,3,FALSE)*(PowerUnits[[#This Row],[Age]]+1)^0.5-VLOOKUP(PowerUnits[[#This Row],[Depreciation Category]],PwrDepreciation,4,FALSE)*(PowerUnits[[#This Row],[Tach Hours]]+PowerUnits[[#This Row],[Est. Hours per Year]])^0.5)^2) -> 28823.61327 | M4: =IF(PowerUnits[[#This Row],[Est. Hours per Year]]=0,0,(PowerUnits[[#This Row],[Calculated Beg Yr. Value]]-PowerUnits[[#This Row],[Calculated End Yr. Value]])/PowerUnits[[#This Row],[Est. Hours per Year]]) -> 54.71952412 | N4: =IF(PowerUnits[[#This Row],[Est. Hours per Year]]=0,0,PowerUnits[[#This Row],[Calculated Beg Yr. Value]]*'General Variables'!$B$9/PowerUnits[[#This Row],[Est. Hours per Year]]) -> 3.976751809 | O4: =IF(PowerUnits[[#This Row],[Est. Hours per Year]]=0,0,PowerUnits[[#This Row],[Calculated Beg Yr. Value]]*'General Variables'!$B$10/PowerUnits[[#This Row],[Est. Hours per Year]]) -> 5.965127714 | P4: =SUM(PowerUnits[[#This Row],[Depreciation per Hour]:[Opportunity Cost per Hour]]) -> 64.66140364 | R4: Combine(SP) | S4: HARVESTING | T4: 0.04 | U4: 2.1 | V4: 3000 | X4: Farm tractors | Y4: Farm tractors (>150hp) | Z4: 0.976 | AA4: 0.119 | AB4: 0.0019
A5: Diesel Pump | B5: 2 wheel drive & stationary tractor | C5: Farm tractors (80-150hp) | D5: 15750 | F5: 5 | G5: 2400 | H5: 800 | I5: =IF(PowerUnits[[#This Row],[List Price]]>1,PowerUnits[[#This Row],[List Price]],IF(C5="",0,PowerUnits[[#This Row],[Beg Yr Value]]/(VLOOKUP(PowerUnits[[#This Row],[Depreciation Category]],PwrDepreciation,2,FALSE)-VLOOKUP(PowerUnits[[#This Row],[Depreciation Category]],PwrDepreciation,3,FALSE)*PowerUnits[[#This Row],[Age]]^0.5-VLOOKUP(PowerUnits[[#This Row],[Depreciation Category]],PwrDepreciation,4,FALSE)*PowerUnits[[#This Row],[Tach Hours]]^0.5)^2)) -> 15750 | J5: =IF(PowerUnits[[#This Row],[Est. Hours per Year]]=0,0,IF(PowerUnits[[#This Row],[Repair Category]]=0,0,(VLOOKUP(PowerUnits[[#This Row],[Repair Category]],PwrRepairs[],3,FALSE)*PowerUnits[[#This Row],[Calculated List Price]]*((PowerUnits[[#This Row],[Tach Hours]]+PowerUnits[[#This Row],[Est. Hours per Year]])/1000)^VLOOKUP(PowerUnits[[#This Row],[Repair Category]],PwrRepairs[],4,FALSE)-VLOOKUP(PowerUnits[[#This Row],[Repair Category]],PwrRepairs[],3,FALSE)*PowerUnits[[#This Row],[Calculated List Price]]*(PowerUnits[[#This Row],[Tach Hours]]/1000)^VLOOKUP(PowerUnits[[#This Row],[Repair Category]],PwrRepairs[],4,FALSE))/PowerUnits[[#This Row],[Est. Hours per Year]])) -> 0.6174 | K5: =IF(PowerUnits[[#This Row],[Depreciation Category]]=0,0,PowerUnits[[#This Row],[Calculated List Price]]*(VLOOKUP(PowerUnits[[#This Row],[Depreciation Category]],PwrDepreciation,2,FALSE)-VLOOKUP(PowerUnits[[#This Row],[Depreciation Category]],PwrDepreciation,3,FALSE)*PowerUnits[[#This Row],[Age]]^0.5-VLOOKUP(PowerUnits[[#This Row],[Depreciation Category]],PwrDepreciation,4,FALSE)*PowerUnits[[#This Row],[Tach Hours]]^0.5)^2) -> 7265.703313 | L5: =IF(PowerUnits[[#This Row],[Depreciation Category]]=0,0,PowerUnits[[#This Row],[Calculated List Price]]*(VLOOKUP(PowerUnits[[#This Row],[Depreciation Category]],PwrDepreciation,2,FALSE)-VLOOKUP(PowerUnits[[#This Row],[Depreciation Category]],PwrDepreciation,3,FALSE)*(PowerUnits[[#This Row],[Age]]+1)^0.5-VLOOKUP(PowerUnits[[#This Row],[Depreciation Category]],PwrDepreciation,4,FALSE)*(PowerUnits[[#This Row],[Tach Hours]]+PowerUnits[[#This Row],[Est. Hours per Year]])^0.5)^2) -> 6691.20284 | M5: =IF(PowerUnits[[#This Row],[Est. Hours per Year]]=0,0,(PowerUnits[[#This Row],[Calculated Beg Yr. Value]]-PowerUnits[[#This Row],[Calculated End Yr. Value]])/PowerUnits[[#This Row],[Est. Hours per Year]]) -> 0.7181255916 | N5: =IF(PowerUnits[[#This Row],[Est. Hours per Year]]=0,0,PowerUnits[[#This Row],[Calculated Beg Yr. Value]]*'General Variables'!$B$9/PowerUnits[[#This Row],[Est. Hours per Year]]) -> 0.1816425828 | O5: =IF(PowerUnits[[#This Row],[Est. Hours per Year]]=0,0,PowerUnits[[#This Row],[Calculated Beg Yr. Value]]*'General Variables'!$B$10/PowerUnits[[#This Row],[Est. Hours per Year]]) -> 0.2724638742 | P5: =SUM(PowerUnits[[#This Row],[Depreciation per Hour]:[Opportunity Cost per Hour]]) -> 1.172232049 | R5: Cotton picker(SP) | S5: HARVESTING | T5: 0.11 | U5: 1.8 | V5: 3000 | X5: Harvest equipment | Y5: Combines | Z5: 1.132 | AA5: 0.165 | AB5: 0.0079
A6: Electric Pump | B6: Electric Motor | C6: Farm tractors (<80hp) | D6: 10500 | F6: 5 | G6: 2400 | H6: 800 | I6: =IF(PowerUnits[[#This Row],[List Price]]>1,PowerUnits[[#This Row],[List Price]],IF(C6="",0,PowerUnits[[#This Row],[Beg Yr Value]]/(VLOOKUP(PowerUnits[[#This Row],[Depreciation Category]],PwrDepreciation,2,FALSE)-VLOOKUP(PowerUnits[[#This Row],[Depreciation Category]],PwrDepreciation,3,FALSE)*PowerUnits[[#This Row],[Age]]^0.5-VLOOKUP(PowerUnits[[#This Row],[Depreciation Category]],PwrDepreciation,4,FALSE)*PowerUnits[[#This Row],[Tach Hours]]^0.5)^2)) -> 10500 | J6: =IF(PowerUnits[[#This Row],[Est. Hours per Year]]=0,0,IF(PowerUnits[[#This Row],[Repair Category]]=0,0,(VLOOKUP(PowerUnits[[#This Row],[Repair Category]],PwrRepairs[],3,FALSE)*PowerUnits[[#This Row],[Calculated List Price]]*((PowerUnits[[#This Row],[Tach Hours]]+PowerUnits[[#This Row],[Est. Hours per Year]])/1000)^VLOOKUP(PowerUnits[[#This Row],[Repair Category]],PwrRepairs[],4,FALSE)-VLOOKUP(PowerUnits[[#This Row],[Repair Category]],PwrRepairs[],3,FALSE)*PowerUnits[[#This Row],[Calculated List Price]]*(PowerUnits[[#This Row],[Tach Hours]]/1000)^VLOOKUP(PowerUnits[[#This Row],[Repair Category]],PwrRepairs[],4,FALSE))/PowerUnits[[#This Row],[Est. Hours per Year]])) -> 0.5266458776 | K6: =IF(PowerUnits[[#This Row],[Depreciation Category]]=0,0,PowerUnits[[#This Row],[Calculated List Price]]*(VLOOKUP(PowerUnits[[#This Row],[Depreciation Category]],PwrDepreciation,2,FALSE)-VLOOKUP(PowerUnits[[#This Row],[Depreciation Category]],PwrDepreciation,3,FALSE)*PowerUnits[[#This Row],[Age]]^0.5-VLOOKUP(PowerUnits[[#This Row],[Depreciation Category]],PwrDepreciation,4,FALSE)*PowerUnits[[#This Row],[Tach Hours]]^0.5)^2) -> 2509.793684 | L6: =IF(PowerUnits[[#This Row],[Depreciation Category]]=0,0,PowerUnits[[#This Row],[Calculated List Price]]*(VLOOKUP(PowerUnits[[#This Row],[Depreciation Category]],PwrDepreciation,2,FALSE)-VLOOKUP(PowerUnits[[#This Row],[Depreciation Category]],PwrDepreciation,3,FALSE)*(PowerUnits[[#This Row],[Age]]+1)^0.5-VLOOKUP(PowerUnits[[#This Row],[Depreciation Category]],PwrDepreciation,4,FALSE)*(PowerUnits[[#This Row],[Tach Hours]]+PowerUnits[[#This Row],[Est. Hours per Year]])^0.5)^2) -> 1897.454279 | M6: =IF(PowerUnits[[#This Row],[Est. Hours per Year]]=0,0,(PowerUnits[[#This Row],[Calculated Beg Yr. Value]]-PowerUnits[[#This Row],[Calculated End Yr. Value]])/PowerUnits[[#This Row],[Est. Hours per Year]]) -> 0.7654242562 | N6: =IF(PowerUnits[[#This Row],[Est. Hours per Year]]=0,0,PowerUnits[[#This Row],[Calculated Beg Yr. Value]]*'General Variables'!$B$9/PowerUnits[[#This Row],[Est. Hours per Year]]) -> 0.06274484209 | O6: =IF(PowerUnits[[#This Row],[Est. Hours per Year]]=0,0,PowerUnits[[#This Row],[Calculated Beg Yr. Value]]*'General Variables'!$B$10/PowerUnits[[#This Row],[Est. Hours per Year]]) -> 0.09411726314 | P6: =SUM(PowerUnits[[#This Row],[Depreciation per Hour]:[Opportunity Cost per Hour]]) -> 0.9222863615 | R6: Forage harvester(SP) | S6: HARVESTING | T6: 0.03 | U6: 2.0 | V6: 4000 | X6: Harvest equipment | Y6: Swathers and all other harvest equipment | Z6: 0.791 | AA6: 0.091
A7: Diesel Pump for Pipe | B7: 2 wheel drive & stationary tractor | C7: Farm tractors (<80hp) | D7: 15750 | F7: 5 | G7: 2400 | H7: 800 | I7: =IF(PowerUnits[[#This Row],[List Price]]>1,PowerUnits[[#This Row],[List Price]],IF(C7="",0,PowerUnits[[#This Row],[Beg Yr Value]]/(VLOOKUP(PowerUnits[[#This Row],[Depreciation Category]],PwrDepreciation,2,FALSE)-VLOOKUP(PowerUnits[[#This Row],[Depreciation Category]],PwrDepreciation,3,FALSE)*PowerUnits[[#This Row],[Age]]^0.5-VLOOKUP(PowerUnits[[#This Row],[Depreciation Category]],PwrDepreciation,4,FALSE)*PowerUnits[[#This Row],[Tach Hours]]^0.5)^2)) -> 15750 | J7: =IF(PowerUnits[[#This Row],[Est. Hours per Year]]=0,0,IF(PowerUnits[[#This Row],[Repair Category]]=0,0,(VLOOKUP(PowerUnits[[#This Row],[Repair Category]],PwrRepairs[],3,FALSE)*PowerUnits[[#This Row],[Calculated List Price]]*((PowerUnits[[#This Row],[Tach Hours]]+PowerUnits[[#This Row],[Est. Hours per Year]])/1000)^VLOOKUP(PowerUnits[[#This Row],[Repair Category]],PwrRepairs[],4,FALSE)-VLOOKUP(PowerUnits[[#This Row],[Repair Category]],PwrRepairs[],3,FALSE)*PowerUnits[[#This Row],[Calculated List Price]]*(PowerUnits[[#This Row],[Tach Hours]]/1000)^VLOOKUP(PowerUnits[[#This Row],[Repair Category]],PwrRepairs[],4,FALSE))/PowerUnits[[#This Row],[Est. Hours per Year]])) -> 0.6174 | K7: =IF(PowerUnits[[#This Row],[Depreciation Category]]=0,0,PowerUnits[[#This Row],[Calculated List Price]]*(VLOOKUP(PowerUnits[[#This Row],[Depreciation Category]],PwrDepreciation,2,FALSE)-VLOOKUP(PowerUnits[[#This Row],[Depreciation Category]],PwrDepreciation,3,FALSE)*PowerUnits[[#This Row],[Age]]^0.5-VLOOKUP(PowerUnits[[#This Row],[Depreciation Category]],PwrDepreciation,4,FALSE)*PowerUnits[[#This Row],[Tach Hours]]^0.5)^2) -> 3764.690526 | L7: =IF(PowerUnits[[#This Row],[Depreciation Category]]=0,0,PowerUnits[[#This Row],[Calculated List Price]]*(VLOOKUP(PowerUnits[[#This Row],[Depreciation Category]],PwrDepreciation,2,FALSE)-VLOOKUP(PowerUnits[[#This Row],[Depreciation Category]],PwrDepreciation,3,FALSE)*(PowerUnits[[#This Row],[Age]]+1)^0.5-VLOOKUP(PowerUnits[[#This Row],[Depreciation Category]],PwrDepreciation,4,FALSE)*(PowerUnits[[#This Row],[Tach Hours]]+PowerUnits[[#This Row],[Est. Hours per Year]])^0.5)^2) -> 2846.181418 | M7: =IF(PowerUnits[[#This Row],[Est. Hours per Year]]=0,0,(PowerUnits[[#This Row],[Calculated Beg Yr. Value]]-PowerUnits[[#This Row],[Calculated End Yr. Value]])/PowerUnits[[#This Row],[Est. Hours per Year]]) -> 1.148136384 | N7: =IF(PowerUnits[[#This Row],[Est. Hours per Year]]=0,0,PowerUnits[[#This Row],[Calculated Beg Yr. Value]]*'General Variables'!$B$9/PowerUnits[[#This Row],[Est. Hours per Year]]) -> 0.09411726314 | O7: =IF(PowerUnits[[#This Row],[Est. Hours per Year]]=0,0,PowerUnits[[#This Row],[Calculated Beg Yr. Value]]*'General Variables'!$B$10/PowerUnits[[#This Row],[Est. Hours per Year]]) -> 0.1411758947 | P7: =SUM(PowerUnits[[#This Row],[Depreciation per Hour]:[Opportunity Cost per Hour]]) -> 1.383429542 | R7: Windrower(SP) | S7: HARVESTING | T7: 0.06 | U7: 2.0 | V7: 3000 | X7: Miscellaneousequipment | Y7: Skid-steerloaders and all other vechicles | Z7: 0.786 | AA7: 0.063 | AB7: 0.0033
A8: Windrower | B8: Forage harvester(SP) | C8: Swathers and all other harvest equipment | D8: 167486 | F8: 10 | G8: 2500 | H8: 200 | I8: =IF(PowerUnits[[#This Row],[List Price]]>1,PowerUnits[[#This Row],[List Price]],IF(C8="",0,PowerUnits[[#This Row],[Beg Yr Value]]/(VLOOKUP(PowerUnits[[#This Row],[Depreciation Category]],PwrDepreciation,2,FALSE)-VLOOKUP(PowerUnits[[#This Row],[Depreciation Category]],PwrDepreciation,3,FALSE)*PowerUnits[[#This Row],[Age]]^0.5-VLOOKUP(PowerUnits[[#This Row],[Depreciation Category]],PwrDepreciation,4,FALSE)*PowerUnits[[#This Row],[Tach Hours]]^0.5)^2)) -> 167486 | J8: =IF(PowerUnits[[#This Row],[Est. Hours per Year]]=0,0,IF(PowerUnits[[#This Row],[Repair Category]]=0,0,(VLOOKUP(PowerUnits[[#This Row],[Repair Category]],PwrRepairs[],3,FALSE)*PowerUnits[[#This Row],[Calculated List Price]]*((PowerUnits[[#This Row],[Tach Hours]]+PowerUnits[[#This Row],[Est. Hours per Year]])/1000)^VLOOKUP(PowerUnits[[#This Row],[Repair Category]],PwrRepairs[],4,FALSE)-VLOOKUP(PowerUnits[[#This Row],[Repair Category]],PwrRepairs[],3,FALSE)*PowerUnits[[#This Row],[Calculated List Price]]*(PowerUnits[[#This Row],[Tach Hours]]/1000)^VLOOKUP(PowerUnits[[#This Row],[Repair Category]],PwrRepairs[],4,FALSE))/PowerUnits[[#This Row],[Est. Hours per Year]])) -> 26.127816 | K8: =IF(PowerUnits[[#This Row],[Depreciation Category]]=0,0,PowerUnits[[#This Row],[Calculated List Price]]*(VLOOKUP(PowerUnits[[#This Row],[Depreciation Category]],PwrDepreciation,2,FALSE)-VLOOKUP(PowerUnits[[#This Row],[Depreciation Category]],PwrDepreciation,3,FALSE)*PowerUnits[[#This Row],[Age]]^0.5-VLOOKUP(PowerUnits[[#This Row],[Depreciation Category]],PwrDepreciation,4,FALSE)*PowerUnits[[#This Row],[Tach Hours]]^0.5)^2) -> 42414.68783 | L8: =IF(PowerUnits[[#This Row],[Depreciation Category]]=0,0,PowerUnits[[#This Row],[Calculated List Price]]*(VLOOKUP(PowerUnits[[#This Row],[Depreciation Category]],PwrDepreciation,2,FALSE)-VLOOKUP(PowerUnits[[#This Row],[Depreciation Category]],PwrDepreciation,3,FALSE)*(PowerUnits[[#This Row],[Age]]+1)^0.5-VLOOKUP(PowerUnits[[#This Row],[Depreciation Category]],PwrDepreciation,4,FALSE)*(PowerUnits[[#This Row],[Tach Hours]]+PowerUnits[[#This Row],[Est. Hours per Year]])^0.5)^2) -> 40080.08012 | M8: =IF(PowerUnits[[#This Row],[Est. Hours per Year]]=0,0,(PowerUnits[[#This Row],[Calculated Beg Yr. Value]]-PowerUnits[[#This Row],[Calculated End Yr. Value]])/PowerUnits[[#This Row],[Est. Hours per Year]]) -> 11.67303856 | N8: =IF(PowerUnits[[#This Row],[Est. Hours per Year]]=0,0,PowerUnits[[#This Row],[Calculated Beg Yr. Value]]*'General Variables'!$B$9/PowerUnits[[#This Row],[Est. Hours per Year]]) -> 4.241468783 | O8: =IF(PowerUnits[[#This Row],[Est. Hours per Year]]=0,0,PowerUnits[[#This Row],[Calculated Beg Yr. Value]]*'General Variables'!$B$10/PowerUnits[[#This Row],[Est. Hours per Year]]) -> 6.362203174 | P8: =SUM(PowerUnits[[#This Row],[Depreciation per Hour]:[Opportunity Cost per Hour]]) -> 22.27671052 | R8: Electric Motor | S8: See Table 5-5* | T8: 0.02 | U8: 1.5
A9: Self-propelled sprayer | B9: Combine(SP) | C9: Combines | D9: 489315 | F9: 7 | G9: 1500 | H9: 200 | I9: =IF(PowerUnits[[#This Row],[List Price]]>1,PowerUnits[[#This Row],[List Price]],IF(C9="",0,PowerUnits[[#This Row],[Beg Yr Value]]/(VLOOKUP(PowerUnits[[#This Row],[Depreciation Category]],PwrDepreciation,2,FALSE)-VLOOKUP(PowerUnits[[#This Row],[Depreciation Category]],PwrDepreciation,3,FALSE)*PowerUnits[[#This Row],[Age]]^0.5-VLOOKUP(PowerUnits[[#This Row],[Depreciation Category]],PwrDepreciation,4,FALSE)*PowerUnits[[#This Row],[Tach Hours]]^0.5)^2)) -> 489315 | J9: =IF(PowerUnits[[#This Row],[Est. Hours per Year]]=0,0,IF(PowerUnits[[#This Row],[Repair Category]]=0,0,(VLOOKUP(PowerUnits[[#This Row],[Repair Category]],PwrRepairs[],3,FALSE)*PowerUnits[[#This Row],[Calculated List Price]]*((PowerUnits[[#This Row],[Tach Hours]]+PowerUnits[[#This Row],[Est. Hours per Year]])/1000)^VLOOKUP(PowerUnits[[#This Row],[Repair Category]],PwrRepairs[],4,FALSE)-VLOOKUP(PowerUnits[[#This Row],[Repair Category]],PwrRepairs[],3,FALSE)*PowerUnits[[#This Row],[Calculated List Price]]*(PowerUnits[[#This Row],[Tach Hours]]/1000)^VLOOKUP(PowerUnits[[#This Row],[Repair Category]],PwrRepairs[],4,FALSE))/PowerUnits[[#This Row],[Est. Hours per Year]])) -> 68.93359169 | K9: =IF(PowerUnits[[#This Row],[Depreciation Category]]=0,0,PowerUnits[[#This Row],[Calculated List Price]]*(VLOOKUP(PowerUnits[[#This Row],[Depreciation Category]],PwrDepreciation,2,FALSE)-VLOOKUP(PowerUnits[[#This Row],[Depreciation Category]],PwrDepreciation,3,FALSE)*PowerUnits[[#This Row],[Age]]^0.5-VLOOKUP(PowerUnits[[#This Row],[Depreciation Category]],PwrDepreciation,4,FALSE)*PowerUnits[[#This Row],[Tach Hours]]^0.5)^2) -> 74228.51659 | L9: =IF(PowerUnits[[#This Row],[Depreciation Category]]=0,0,PowerUnits[[#This Row],[Calculated List Price]]*(VLOOKUP(PowerUnits[[#This Row],[Depreciation Category]],PwrDepreciation,2,FALSE)-VLOOKUP(PowerUnits[[#This Row],[Depreciation Category]],PwrDepreciation,3,FALSE)*(PowerUnits[[#This Row],[Age]]+1)^0.5-VLOOKUP(PowerUnits[[#This Row],[Depreciation Category]],PwrDepreciation,4,FALSE)*(PowerUnits[[#This Row],[Tach Hours]]+PowerUnits[[#This Row],[Est. Hours per Year]])^0.5)^2) -> 56426.54107 | M9: =IF(PowerUnits[[#This Row],[Est. Hours per Year]]=0,0,(PowerUnits[[#This Row],[Calculated Beg Yr. Value]]-PowerUnits[[#This Row],[Calculated End Yr. Value]])/PowerUnits[[#This Row],[Est. Hours per Year]]) -> 89.00987762 | N9: =IF(PowerUnits[[#This Row],[Est. Hours per Year]]=0,0,PowerUnits[[#This Row],[Calculated Beg Yr. Value]]*'General Variables'!$B$9/PowerUnits[[#This Row],[Est. Hours per Year]]) -> 7.422851659 | O9: =IF(PowerUnits[[#This Row],[Est. Hours per Year]]=0,0,PowerUnits[[#This Row],[Calculated Beg Yr. Value]]*'General Variables'!$B$10/PowerUnits[[#This Row],[Est. Hours per Year]]) -> 11.13427749 | P9: =SUM(PowerUnits[[#This Row],[Depreciation per Hour]:[Opportunity Cost per Hour]]) -> 107.5670068

Sheet Materials
A1: Index | B1: Material | C1: Category | D1: Purchase Price | E1: Purchase Unit | F1: Applied Unit | G1: Applied Units / Purchased Units | H1: Applied Price
A2: 1 | B2: 21-0-0-24S | C2: Additive | D2: 0.35 | E2: pound | F2: pound | G2: 1 | H2: =IF(G2=0,0,D2/G2) -> 0.35
A3: 2 | B3: AMS | C3: Additive | D3: 0.35 | E3: pound | F3: ounce | G3: 16 | H3: 0.021875
A4: 3 | B4: Approved adjuvant | C4: Additive | D4: 3 | E4: acre | F4: acre | G4: 1 | H4: 3
A5: 4 | B5: Crop Oil Concentrate | C5: Additive | D5: 10 | E5: gallon | F5: pint | G5: 8 | H5: 1.25
A6: 5 | B6: MSO | C6: Additive | D6: 22.5 | E6: gallon | F6: ounce | G6: 128 | H6: 0.17578125
A7: 6 | B7: NIS | C7: Additive | D7: 22 | E7: gallon | F7: ounce | G7: 128 | H7: 0.171875
A8: 7 | B8: UAN | C8: Additive | D8: 1.5 | E8: gallon | F8: pint | G8: 8 | H8: 0.1875
A9: 8 | B9: Aerial Spray | C9: Custom | D9: 10 | E9: acre | F9: acre | G9: 1 | H9: 10
A10: 9 | B10: Bale Lg Sq 1360 lb | C10: Custom | D10: 15 | E10: bale | F10: ton | G10: =1360/2000 -> 0.68 | H10: =IF(G10=0,0,D10/G10) -> 22.05882353
A11: 10 | B11: Broadcast Seed | C11: Custom | D11: 5 | E11: acre | F11: acre | G11: 1 | H11: 5
A12: 11 | B12: Chop, Haul, Pack | C12: Custom | D12: 10.75 | E12: ton | F12: ton | G12: 1 | H12: 10.75
A13: 12 | B13: Dry 2 Points Removed | C13: Custom | D13: 0.08 | E13: bushel | F13: bushel | G13: 1 | H13: 0.08
A14: 13 | B14: Haul & Apply Manure | C14: Custom | D14: 6 | E14: ton | F14: ton | G14: 1 | H14: 6
A15: 14 | B15: Haul Beets | C15: Custom | D15: 5 | E15: ton | F15: ton | G15: 1 | H15: 5
A16: 15 | B16: Haul Grain (Dry Beans) | C16: Custom | D16: 0.28 | E16: cwt | F16: cwt | G16: 1 | H16: 0.28
A17: 16 | B17: Haul Grain (Millet) | C17: Custom | D17: 0.24 | E17: cwt | F17: cwt | G17: 1 | H17: 0.24
A18: 17 | B18: Haul Grain (Sunflower) | C18: Custom | D18: 0.3 | E18: cwt | F18: cwt | G18: 1 | H18: 0.3
A19: 18 | B19: Haul Grain Bushels | C19: Custom | D19: 0.11 | E19: bushel | F19: bushel | G19: 1 | H19: 0.11
A20: 19 | B20: Load Large Square Bales | C20: Custom | D20: 2 | E20: bale | F20: ton | G20: =1362/2000 -> 0.681 | H20: 2.936857562
A21: 20 | B21: Spray | C21: Custom | D21: 7 | E21: acre | F21: acre | G21: 1 | H21: 7
A22: 21 | B22: 10-34-0 | C22: Fertilizer | D22: 2.45 | E22: gallon | F22: gallon | G22: 1 | H22: 2.45
A23: 22 | B23: 10-34-0-1Zn | C23: Fertilizer | D23: 2.5 | E23: gallon | F23: gallon | G23: 1 | H23: 2.5
A24: 23 | B24: 11-52-0 | C24: Fertilizer | D24: 0.23 | E24: pound | F24: pound | G24: 1 | H24: 0.23
A25: 24 | B25: 28-0-0 | C25: Fertilizer | D25: 1.3 | E25: gallon | F25: lbs N | G25: 3 | H25: 0.4333333333
A26: 25 | B26: 32-0-0 | C26: Fertilizer | D26: 0.4 | E26: lbs N | F26: lbs N | G26: 1 | H26: 0.4
A27: 26 | B27: 32-0-0 (Applied by Pivot) | C27: Fertilizer | D27: 0.4 | E27: lbs N | F27: lbs N | G27: 1 | H27: 0.4
A28: 27 | B28: 32-0-0 (Applied by R2) | C28: Fertilizer | D28: 0.4 | E28: lbs N | F28: lbs N | G28: 1 | H28: 0.4
A29: 28 | B29: 46-0-0 | C29: Fertilizer | D29: 0.43 | E29: lbs N | F29: lbs N | G29: 1 | H29: 0.43
A30: 29 | B30: 82-0-0 | C30: Fertilizer | D30: 0.32 | E30: lbs N | F30: lbs N | G30: 1 | H30: 0.32
A31: 30 | B31: Uncomposted manure | C31: Fertilizer | D31: 1 | E31: ton | F31: ton | G31: 1 | H31: 1
A32: 31 | B32: Copper | C32: Fungicide | D32: 4 | E32: pint | F32: pint | G32: 1 | H32: 4
A33: 32 | B33: Headline AMP | C33: Fungicide | D33: 330 | E33: gallon | F33: ounce | G33: 128 | H33: 2.578125
A34: 33 | B34: Pea Seed Innoculent | C34: Fungicide | D34: 0.06 | E34: pound | F34: pound | G34: 1 | H34: 0.06
A35: 34 | B35: Priaxor | C35: Fungicide | D35: 700 | E35: gallon | F35: ounce | G35: 128 | H35: 5.46875
A36: 35 | B36: Prosaro 421 SC | C36: Fungicide | D36: 340 | E36: gallon | F36: ounce | G36: 128 | H36: 2.65625
A37: 36 | B37: Quadris | C37: Fungicide | D37: 230 | E37: gallon | F37: ounce | G37: 128 | H37: 1.796875
A38: 37 | B38: Quilt Xcel | C38: Fungicide | D38: 220 | E38: gallon | F38: ounce | G38: 128 | H38: 1.71875
A39: 38 | B39: Stratego YLD | C39: Fungicide | D39: 580 | E39: gallon | F39: ounce | G39: 128 | H39: 4.53125
A40: 39 | B40: Tilt | C40: Fungicide | D40: 100 | E40: gallon | F40: ounce | G40: 128 | H40: 0.78125
A41: 40 | B41: 2,4-D Amine | C41: Herbicide | D41: 13 | E41: gallon | F41: pint | G41: 8 | H41: 1.625
A42: 41 | B42: 2,4-D Ester LV4 | C42: Herbicide | D42: 16 | E42: gallon | F42: pint | G42: 8 | H42: =IF(G42=0,0,D42/G42) -> 2
A43: 42 | B43: AAtrex 4L | C43: Herbicide | D43: 18 | E43: gallon | F43: quart | G43: 4 | H43: 4.5
A44: 43 | B44: Acuron | C44: Herbicide | D44: 70 | E44: gallon | F44: quart | G44: 4 | H44: 17.5
A45: 44 | B45: Aim 2EC | C45: Herbicide | D45: 200 | E45: quart | F45: ounce | G45: 32 | H45: 6.25
A46: 45 | B46: Ally Extra SGW/TOTSOL | C46: Herbicide | D46: 9 | E46: ounce | F46: ounce | G46: 1 | H46: 9
A47: 46 | B47: Armezon | C47: Herbicide | D47: 21 | E47: ounce | F47: ounce | G47: 1 | H47: 21
A48: 47 | B48: Armezon Pro | C48: Herbicide | D48: 170 | E48: gallon | F48: ounce | G48: 128 | H48: 1.328125
A49: 48 | B49: Atrazine 4L | C49: Herbicide | D49: 14 | E49: gallon | F49: quart | G49: 4 | H49: 3.5
A50: 49 | B50: Atrazine 90 DF | C50: Herbicide | D50: 3 | E50: pound | F50: pound | G50: 1 | H50: 3
A51: 50 | B51: Authority First DF | C51: Herbicide | D51: 95 | E51: pound | F51: ounce | G51: 16 | H51: 5.9375
A52: 51 | B52: Authority MTZ | C52: Herbicide | D52: 40 | E52: pound | F52: ounce | G52: 16 | H52: 2.5
A53: 52 | B53: Authority Supreme | C53: Herbicide | D53: 530 | E53: gallon | F53: ounce | G53: 128 | H53: 4.140625
A54: 53 | B54: Balance Flexx | C54: Herbicide | D54: 5 | E54: ounce | F54: ounce | G54: 1 | H54: 5
A55: 54 | B55: Basagran 5L | C55: Herbicide | D55: 80 | E55: gallon | F55: pint | G55: 8 | H55: 10
A56: 55 | B56: Beyond | C56: Herbicide | D56: 610 | E56: gallon | F56: ounce | G56: 128 | H56: 4.765625
A57: 56 | B57: Bicep II Magnum | C57: Herbicide | D57: 55 | E57: gallon | F57: quart | G57: 4 | H57: 13.75
A58: 57 | B58: Brox 2EC | C58: Herbicide | D58: 40 | E58: gallon | F58: pint | G58: 8 | H58: 5
A59: 58 | B59: Callisto 4SC | C59: Herbicide | D59: 350 | E59: gallon | F59: ounce | G59: 128 | H59: 2.734375
A60: 59 | B60: Dicamba | C60: Herbicide | D60: 50 | E60: gallon | F60: ounce | G60: 128 | H60: 0.390625
A61: 60 | B61: DiFlexx | C61: Herbicide | D61: 230 | E61: gallon | F61: ounce | G61: 128 | H61: 1.796875
A62: 61 | B62: DiFlexx DUO | C62: Herbicide | D62: 105 | E62: gallon | F62: ounce | G62: 128 | H62: 0.8203125
A63: 62 | B63: Distinct | C63: Herbicide | D63: 40 | E63: gallon | F63: ounce | G63: 128 | H63: 0.3125
A64: 63 | B64: Engenia | C64: Herbicide | D64: 120 | E64: gallon | F64: ounce | G64: 128 | H64: 0.9375
A65: 64 | B65: Enlist DUO | C65: Herbicide | D65: 30 | E65: gallon | F65: ounce | G65: 128 | H65: 0.234375
A66: 65 | B66: Enlist One | C66: Herbicide | D66: 40 | E66: gallon | F66: pint | G66: 8 | H66: 5
A67: 66 | B67: Extreme | C67: Herbicide | D67: 28 | E67: gallon | F67: pint | G67: 8 | H67: 3.5
A68: 67 | B68: FeXapan | C68: Herbicide | D68: 63 | E68: gallon | F68: ounce | G68: 128 | H68: 0.4921875
A69: 68 | B69: Fierce | C69: Herbicide | D69: 130 | E69: pound | F69: ounce | G69: 16 | H69: 8.125
A70: 69 | B70: FlexStar GT | C70: Herbicide | D70: 40 | E70: gallon | F70: pint | G70: 8 | H70: 5
A71: 70 | B71: Glyphosate 5# w/Surfactant | C71: Herbicide | D71: 15 | E71: gallon | F71: ounce | G71: 128 | H71: 0.1171875
A72: 71 | B72: Gramoxone SL 2.0 | C72: Herbicide | D72: 27 | E72: gallon | F72: pint | G72: 8 | H72: 3.375
A73: 72 | B73: Huskie | C73: Herbicide | D73: 120 | E73: gallon | F73: ounce | G73: 128 | H73: 0.9375
A74: 73 | B74: Landmaster BW | C74: Herbicide | D74: 17 | E74: gallon | F74: ounce | G74: 128 | H74: =IF(G74=0,0,D74/G74) -> 0.1328125
A75: 74 | B75: Laudis | C75: Herbicide | D75: 610 | E75: gallon | F75: ounce | G75: 128 | H75: 4.765625
A76: 75 | B76: Liberty | C76: Herbicide | D76: 80 | E76: gallon | F76: ounce | G76: 128 | H76: 0.625
A77: 76 | B77: Lumax EZ | C77: Herbicide | D77: 80 | E77: gallon | F77: quart | G77: 4 | H77: 20
A78: 77 | B78: Outlook | C78: Herbicide | D78: 160 | E78: gallon | F78: ounce | G78: 128 | H78: 1.25
A79: 78 | B79: Peak | C79: Herbicide | D79: 18 | E79: ounce | F79: ounce | G79: 1 | H79: 18
A80: 79 | B80: Proline 480 SC | C80: Herbicide | D80: 690 | E80: gallon | F80: ounce | G80: 128 | H80: 5.390625
A81: 80 | B81: Prowl H2O | C81: Herbicide | D81: 52 | E81: gallon | F81: pint | G81: 8 | H81: 6.5
A82: 81 | B82: Pursuit | C82: Herbicide | D82: 480 | E82: gallon | F82: ounce | G82: 128 | H82: 3.75
A83: 82 | B83: Raptor | C83: Herbicide | D83: 610 | E83: gallon | F83: ounce | G83: 128 | H83: 4.765625
A84: 83 | B84: Roundup WeatherMax | C84: Herbicide | D84: 33 | E84: gallon | F84: ounce | G84: 128 | H84: 0.2578125
A85: 84 | B85: Rugged | C85: Herbicide | D85: 35 | E85: gallon | F85: quart | G85: 4 | H85: 8.75
A86: 85 | B86: Select Max | C86: Herbicide | D86: 115 | E86: gallon | F86: ounce | G86: 128 | H86: 0.8984375
A87: 86 | B87: Sharpen | C87: Herbicide | D87: 900 | E87: gallon | F87: ounce | G87: 128 | H87: 7.03125
A88: 87 | B88: Spartan 4F | C88: Herbicide | D88: 280 | E88: gallon | F88: ounce | G88: 128 | H88: 2.1875
A89: 88 | B89: Spirit | C89: Herbicide | D89: 14 | E89: ounce | F89: ounce | G89: 1 | H89: 14
A90: 89 | B90: Status | C90: Herbicide | D90: 5 | E90: ounce | F90: ounce | G90: 1 | H90: 5
A91: 90 | B91: Ultra Blazer | C91: Herbicide | D91: 60 | E91: gallon | F91: ounce | G91: 128 | H91: 0.46875
A92: 91 | B92: Valor XLT | C92: Herbicide | D92: 96 | E92: pound | F92: ounce | G92: 16 | H92: 6
A93: 92 | B93: Velpar 75DF | C93: Herbicide | D93: 36 | E93: pound | F93: pound | G93: 1 | H93: 36
A94: 93 | B94: Vida | C94: Herbicide | D94: 60 | E94: pound | F94: ounce | G94: 128 | H94: 0.46875
A95: 94 | B95: Warrant Ultra | C95: Herbicide | D95: 60 | E95: gallon | F95: pint | G95: 8 | H95: 7.5
A96: 95 | B96: XtenviMax | C96: Herbicide | D96: 63 | E96: gallon | F96: ounce | G96: 128 | H96: 0.4921875
A97: 96 | B97: Zidua Pro | C97: Herbicide | D97: 500 | E97: gallon | F97: ounce | G97: 128 | H97: 3.90625
A98: 97 | B98: Zidua SC | C98: Herbicide | D98: 750 | E98: gallon | F98: ounce | G98: 128 | H98: 5.859375
A99: 98 | B99: Asana XL | C99: Insecticide | D99: 75 | E99: gallon | F99: ounce | G99: 128 | H99: 0.5859375
A100: 99 | B100: Brigade 2EC | C100: Insecticide | D100: 125 | E100: gallon | F100: ounce | G100: 128 | H100: 0.9765625
A101: 100 | B101: Capture LFR | C101: Insecticide | D101: 340 | E101: gallon | F101: ounce | G101: 128 | H101: 2.65625
A102: 101 | B102: Lorsban 15 G | C102: Insecticide | D102: 2.25 | E102: pound | F102: pound | G102: 1 | H102: 2.25
A103: 102 | B103: Lorsban 4 E | C103: Insecticide | D103: 60 | E103: gallon | F103: pint | G103: 8 | H103: 7.5
A104: 103 | B104: Lorsban Advanced | C104: Insecticide | D104: 55 | E104: gallon | F104: pint | G104: 8 | H104: 6.875
A105: 104 | B105: Mustang Maxx | C105: Insecticide | D105: 180 | E105: gallon | F105: ounce | G105: 128 | H105: 1.40625
A106: 105 | B106: Regent 4 SC | C106: Insecticide | D106: 10 | E106: ounce | F106: ounce | G106: 1 | H106: =IF(G106=0,0,D106/G106) -> 10
A107: 106 | B107: Warrior II/Zeon | C107: Insecticide | D107: 380 | E107: gallon | F107: ounce | G107: 128 | H107: 2.96875
A108: 107 | B108: Electricity Fixed | C108: Other | D108: 30 | E108: acre | F108: acre | G108: 1 | H108: 30
A109: 108 | B109: Electricity Usage | C109: Other | D109: 0.1074 | E109: kw | F109: kw | G109: 1 | H109: 0.1074
A110: 109 | B110: Fence/Water Repairs | C110: Other | D110: 260 | E110: circle | F110: acre | G110: 130 | H110: 2
A111: 110 | B111: Irrigation District O&M Charge | C111: Other | D111: 30 | E111: acre | F111: acre | G111: 1 | H111: 30
A112: 111 | B112: Move Cattle | C112: Other | D112: 25 | E112: hour | F112: hour | G112: 1 | H112: 25
A113: 112 | B113: Twine Large Round | C113: Other | D113: 0.7 | E113: bale | F113: ton | G113: =1539/2000 -> 0.7695 | H113: 0.9096816114
A114: 113 | B114: Twine Large Square | C114: Other | D114: 1.23 | E114: bale | F114: ton | G114: =1362/2000 -> 0.681 | H114: 1.806167401
A115: 114 | B115: Twine Small Square | C115: Other | D115: 0.07 | E115: bale | F115: ton | G115: =60/2000 -> 0.03 | H115: 2.333333333
A116: 115 | B116: Grass Drill | C116: Rental | D116: 18 | E116: acre | F116: acre | G116: 1 | H116: 18
A117: 116 | B117: Seeder/Packer | C117: Rental | D117: 15 | E117: acre | F117: acre | G117: 1 | H117: 15
A118: 117 | B118: Scouting Dry Beans | C118: Scouting | D118: 10 | E118: acre | F118: acre | G118: 1 | H118: 10
A119: 118 | B119: Scouting Dryland Corn | C119: Scouting | D119: 7 | E119: acre | F119: acre | G119: 1 | H119: 7
A120: 119 | B120: Scouting Dryland Soybeans | C120: Scouting | D120: 7 | E120: acre | F120: acre | G120: 1 | H120: 7
A121: 120 | B121: Scouting Dryland Wheat | C121: Scouting | D121: 7 | E121: acre | F121: acre | G121: 1 | H121: 7
A122: 121 | B122: Scouting Grain Sorghum | C122: Scouting | D122: 7 | E122: acre | F122: acre | G122: 1 | H122: 7
A123: 122 | B123: Scouting Irrigated Corn | C123: Scouting | D123: 12 | E123: acre | F123: acre | G123: 1 | H123: 12
A124: 123 | B124: Scouting Irrigated Soybeans | C124: Scouting | D124: 12 | E124: acre | F124: acre | G124: 1 | H124: 12
A125: 124 | B125: Scouting Irrigated Wheat | C125: Scouting | D125: 12 | E125: acre | F125: acre | G125: 2 | H125: 6
A126: 125 | B126: Scouting Sugar Beets | C126: Scouting | D126: 16 | E126: acre | F126: acre | G126: 1 | H126: 16
A127: 126 | B127: Alfalfa RR w/Inoculant | C127: Seed | D127: 9 | E127: pound | F127: pound | G127: 1 | H127: 9
A128: 127 | B128: Alfalfa w/Inoculant | C128: Seed | D128: 6 | E128: pound | F128: pound | G128: 1 | H128: 6
A129: 128 | B129: Corn | C129: Seed | D129: 220 | E129: bag | F129: k seed | G129: 80 | H129: 2.75
A130: 129 | B130: Corn Bt, ECB, & RIB | C130: Seed | D130: 250 | E130: bag | F130: k seed | G130: 80 | H130: 3.125
A131: 130 | B131: Corn Bt, ECB, RR2, LL, & RIB | C131: Seed | D131: 250 | E131: bag | F131: k seed | G131: 80 | H131: 3.125
A132: 133 | B132: Corn Bt, ECB, RW, & RIB | C132: Seed | D132: 280 | E132: bag | F132: k seed | G132: 80 | H132: 3.5
A133: 134 | B133: Corn Bt, ECB, RW, RR2, LL, & RIB | C133: Seed | D133: 280 | E133: bag | F133: k seed | G133: 80 | H133: 3.5
A134: 135 | B134: Corn Enlist, Bt, ECB, & RIB | C134: Seed | D134: 260 | E134: bag | F134: k seed | G134: 80 | H134: 3.25
A135: 136 | B135: Corn RR2, LL | C135: Seed | D135: 220 | E135: bag | F135: k seed | G135: 80 | H135: 2.75
A136: 137 | B136: Corn SmartStax RIB Complete | C136: Seed | D136: 290 | E136: bag | F136: k seed | G136: 80 | H136: 3.625
A137: 138 | B137: Cover Crop | C137: Seed | D137: 15 | E137: acre | F137: acre | G137: 1 | H137: 15
A138: 139 | B138: Cover Crop Grazing Mix | C138: Seed | D138: 25 | E138: acre | F138: acre | G138: 1 | H138: =IF(G138=0,0,D138/G138) -> 25
A139: 140 | B139: Cover Crop Legume | C139: Seed | D139: 30 | E139: acre | F139: acre | G139: 1 | H139: 30
A140: 141 | B140: Edible Beans | C140: Seed | D140: 90 | E140: cwt | F140: cwt | G140: 1 | H140: 90
A141: 142 | B141: Grass Seed | C141: Seed | D141: 75 | E141: acre | F141: acre | G141: 1 | H141: 75
A142: 143 | B142: Millet | C142: Seed | D142: 0.45 | E142: pound | F142: pound | G142: 1 | H142: 0.45
A143: 144 | B143: Oats | C143: Seed | D143: 9 | E143: bushel | F143: bushel | G143: 1 | H143: 9
A144: 145 | B144: Peas | C144: Seed | D144: 18 | E144: bushel | F144: bushel | G144: 1 | H144: 18
A145: 146 | B145: RR2 Soybeans | C145: Seed | D145: 58 | E145: bag | F145: bag | G145: 1 | H145: 58
A146: 147 | B146: RR2 Soybeans Treated | C146: Seed | D146: 62 | E146: bag | F146: bag | G146: 1 | H146: 62
A147: 148 | B147: RR2 Soybeans Xtend | C147: Seed | D147: 60 | E147: bag | F147: bag | G147: 1 | H147: 60
A148: 149 | B148: RR2 Soybeans Xtend Treated | C148: Seed | D148: 64 | E148: bag | F148: bag | G148: 1 | H148: 64
A149: 150 | B149: Sorghum Safened/Insect | C149: Seed | D149: 3.5 | E149: pound | F149: pound | G149: 1 | H149: 3.5
A150: 151 | B150: Sorghum Sudan | C150: Seed | D150: 0.9 | E150: pound | F150: pound | G150: 1 | H150: 0.9
A151: 152 | B151: Sorghum Sudan (Treated) | C151: Seed | D151: 1.1 | E151: pound | F151: pound | G151: 1 | H151: 1.1
A152: 153 | B152: Sorghum Sudan Brown (Treated) | C152: Seed | D152: 1.5 | E152: pound | F152: pound | G152: 1 | H152: 1.5
A153: 154 | B153: Sorghum Sudan Brown Midrib | C153: Seed | D153: 1.3 | E153: pound | F153: pound | G153: 1 | H153: 1.3
A154: 155 | B154: Soybeans - LiberyLink Treated | C154: Seed | D154: 62 | E154: bag | F154: k seed | G154: 1 | H154: 62
A155: 156 | B155: Soybeans Enlist E3 | C155: Seed | D155: 58 | E155: bag | F155: k seed | G155: 1 | H155: 58
A156: 157 | B156: Soybeans Enlist E3 Treated | C156: Seed | D156: 62 | E156: bag | F156: k seed | G156: 1 | H156: 62
A157: 158 | B157: Sugar Beets RR Poncho | C157: Seed | D157: 180 | E157: acre | F157: acre | G157: 1 | H157: 180
A158: 159 | B158: Sunflower Clearfield | C158: Seed | D158: 360 | E158: bag | F158: k seed | G158: 250 | H158: 1.44
A159: 160 | B159: Wheat | C159: Seed | D159: 0.08 | E159: pound | F159: pound | G159: 1 | H159: 0.08
A160: 161 | B160: Wheat (Certified and Treated) | C160: Seed | D160: 0.23 | E160: pound | F160: pound | G160: 1 | H160: 0.23
A161: 162 | B161: Wheat Cover Crop | C161: Seed | D161: 0.08 | E161: pound | F161: pound | G161: 1 | H161: 0.08

Sheet Operations
A1: Op Name | B1: Unit | C1: Repair Category | D1: Depreciation Category | E1: List Price | F1: Begin Yr. Value | G1: Age | H1: Annual Use | I1: Units per Hour | J1: Labor Factor | K1: Power Source | L1: Diesel Use per Hour | M1: Kw Use per Hour | N1: Calc List Price | O1: Repairs per Unit | P1: Calc Beg Yr. Value | Q1: Calc End Yr. Value | R1: Depreciation per Unit | S1: TIH per Unit | T1: Opportunity Cost per Unit | U1: Ownership Cost per Unit | W1: Machine | X1: Catogory | Y1: RF1 | Z1: RF2 | AA1: Estimated Life | AD1: Equipment type | AE1: Machine | AF1: C1 | AG1: C2 | AH1: C3 | AK1: Table 5-5. Average Annual Maintenance Costs for Sprinkler Irrigation Systems | AO1: Power Unit
A2: Aerial Spray | B2: Custom | N2: =IF(Operations!$E2>1,Operations!$E2,IF(Operations!$D2=0,0,Operations!$F2/(VLOOKUP(Operations!$D2,ImpDepLookup,2,FALSE)-VLOOKUP(Operations!$D2,ImpDepLookup,3,FALSE)*Operations!$G2^0.5-VLOOKUP(Operations!$D2,ImpDepLookup,4,FALSE)*(Operations!$G2*(Operations!$G2*Operations!$H2/Operations!$I2)^0.5))^2)) -> 0 | O2: =IF(Operations!$C2="",0,(((Operations!$G2+1)*Operations!$H2/Operations!$I2/1000)^VLOOKUP(Operations!$C2,ImpRepairFac[],4,FALSE)-(Operations!$G2*Operations!$H2/Operations!$I2/1000)^VLOOKUP(Operations!$C2,ImpRepairFac[],4,FALSE))*Operations!$N2*VLOOKUP(Operations!$C2,ImpRepairFac[],3,FALSE)/Operations!$H2) -> 0 | P2: =IF(Operations!$N2=0,0,Operations!$N2*(VLOOKUP(Operations!$D2,ImpDepLookup,2,FALSE)-VLOOKUP(Operations!$D2,ImpDepLookup,3,FALSE)*Operations!$G2^0.5-VLOOKUP(Operations!$D2,ImpDepLookup,4,FALSE)*(Operations!$G2*Operations!$H2/Operations!$I2)^0.5)^2) -> 0 | Q2: =IF(Operations!$N2=0,0,Operations!$N2*(VLOOKUP(Operations!$D2,ImpDepLookup,2,FALSE)-VLOOKUP(Operations!$D2,ImpDepLookup,3,FALSE)*(Operations!$G2+1)^0.5-VLOOKUP(Operations!$D2,ImpDepLookup,4,FALSE)*(Operations!$G2*Operations!$H2/Operations!$I2)^0.5)^2) -> 0 | R2: =IF(Operations!$N2=0,0,IF(Operations!$I2*Operations!$H2=0,0,(Operations!$P2-Operations!$Q2)/(Operations!$H2))) -> 0 | S2: =IF(Operations!$H2=0,0,Operations!$P2*'General Variables'!$B$9/Operations!$H2) -> 0 | T2: =IF(Operations!$H2=0,0,Operations!$P2*'General Variables'!$B$10/Operations!$H2) -> 0 | U2: =SUM(Table3[[#This Row],[Depreciation per Unit]:[Opportunity Cost per Unit]]) -> 0 | W2: Baler - Large rectangular | X2: HARVESTING | Y2: 0.10 | Z2: 1.8 | AA2: 3000 | AD2: Harvest equipment | AE2: Combines | AF2: 1.132 | AG2: 0.165 | AH2: 0 | AO2: =IF(PowerUnits[[#This Row],[Name]]=0,"",PowerUnits[[#This Row],[Name]]) -> Large Tractor
A3: Anhydrous Application | B3: acre | C3: Chisel plow (Coulter) | D3: Manure spreaders and all other miscellaneous equipment | F3: 15500 | G3: 5 | H3: 500 | I3: 12 | J3: 1.1 | K3: Medium Tractor | L3: 6.364285714 | N3: =IF(Operations!$E3>1,Operations!$E3,IF(Operations!$D3=0,0,Operations!$F3/(VLOOKUP(Operations!$D3,ImpDepLookup,2,FALSE)-VLOOKUP(Operations!$D3,ImpDepLookup,3,FALSE)*Operations!$G3^0.5-VLOOKUP(Operations!$D3,ImpDepLookup,4,FALSE)*(Operations!$G3*(Operations!$G3*Operations!$H3/Operations!$I3)^0.5))^2)) -> 32108.24077 | O3: =IF(Operations!$C3="",0,(((Operations!$G3+1)*Operations!$H3/Operations!$I3/1000)^VLOOKUP(Operations!$C3,ImpRepairFac[],4,FALSE)-(Operations!$G3*Operations!$H3/Operations!$I3/1000)^VLOOKUP(Operations!$C3,ImpRepairFac[],4,FALSE))*Operations!$N3*VLOOKUP(Operations!$C3,ImpRepairFac[],3,FALSE)/Operations!$H3) -> 0.5816183114 | P3: =IF(Operations!$N3=0,0,Operations!$N3*(VLOOKUP(Operations!$D3,ImpDepLookup,2,FALSE)-VLOOKUP(Operations!$D3,ImpDepLookup,3,FALSE)*Operations!$G3^0.5-VLOOKUP(Operations!$D3,ImpDepLookup,4,FALSE)*(Operations!$G3*Operations!$H3/Operations!$I3)^0.5)^2) -> 15500 | Q3: =IF(Operations!$N3=0,0,Operations!$N3*(VLOOKUP(Operations!$D3,ImpDepLookup,2,FALSE)-VLOOKUP(Operations!$D3,ImpDepLookup,3,FALSE)*(Operations!$G3+1)^0.5-VLOOKUP(Operations!$D3,ImpDepLookup,4,FALSE)*(Operations!$G3*Operations!$H3/Operations!$I3)^0.5)^2) -> 14461.04177 | R3: =IF(Operations!$N3=0,0,IF(Operations!$I3*Operations!$H3=0,0,(Operations!$P3-Operations!$Q3)/(Operations!$H3))) -> 2.077916452 | S3: =IF(Operations!$H3=0,0,Operations!$P3*'General Variables'!$B$9/Operations!$H3) -> 0.62 | T3: =IF(Operations!$H3=0,0,Operations!$P3*'General Variables'!$B$10/Operations!$H3) -> 0.93 | U3: =SUM(Table3[[#This Row],[Depreciation per Unit]:[Opportunity Cost per Unit]]) -> 3.627916452 | W3: Baler - Large round | X3: HARVESTING | Y3: 0.43 | Z3: 1.8 | AA3: 1500 | AD3: Harvest equipment | AE3: Mowers | AF3: 0.756 | AG3: 0.067 | AK3: System Type | AL3: Life-yrs | AM3: Maintenance, % of capital cost | AO3: =IF(PowerUnits[[#This Row],[Name]]=0,"",PowerUnits[[#This Row],[Name]]) -> Medium Tractor
A4: Bale Large Round | B4: ton | C4: Baler - Large round | D4: Balers | E4: 25899 | G4: 5 | H4: 1000 | I4: 12 | J4: 1.1 | K4: Medium Tractor | L4: 2.876146789 | N4: =IF(Operations!$E4>1,Operations!$E4,IF(Operations!$D4=0,0,Operations!$F4/(VLOOKUP(Operations!$D4,ImpDepLookup,2,FALSE)-VLOOKUP(Operations!$D4,ImpDepLookup,3,FALSE)*Operations!$G4^0.5-VLOOKUP(Operations!$D4,ImpDepLookup,4,FALSE)*(Operations!$G4*(Operations!$G4*Operations!$H4/Operations!$I4)^0.5))^2)) -> 25899 | O4: =IF(Operations!$C4="",0,(((Operations!$G4+1)*Operations!$H4/Operations!$I4/1000)^VLOOKUP(Operations!$C4,ImpRepairFac[],4,FALSE)-(Operations!$G4*Operations!$H4/Operations!$I4/1000)^VLOOKUP(Operations!$C4,ImpRepairFac[],4,FALSE))*Operations!$N4*VLOOKUP(Operations!$C4,ImpRepairFac[],3,FALSE)/Operations!$H4) -> 0.8947300786 | P4: =IF(Operations!$N4=0,0,Operations!$N4*(VLOOKUP(Operations!$D4,ImpDepLookup,2,FALSE)-VLOOKUP(Operations!$D4,ImpDepLookup,3,FALSE)*Operations!$G4^0.5-VLOOKUP(Operations!$D4,ImpDepLookup,4,FALSE)*(Operations!$G4*Operations!$H4/Operations!$I4)^0.5)^2) -> 10154.29233 | Q4: =IF(Operations!$N4=0,0,Operations!$N4*(VLOOKUP(Operations!$D4,ImpDepLookup,2,FALSE)-VLOOKUP(Operations!$D4,ImpDepLookup,3,FALSE)*(Operations!$G4+1)^0.5-VLOOKUP(Operations!$D4,ImpDepLookup,4,FALSE)*(Operations!$G4*Operations!$H4/Operations!$I4)^0.5)^2) -> 9467.198605 | R4: =IF(Operations!$N4=0,0,IF(Operations!$I4*Operations!$H4=0,0,(Operations!$P4-Operations!$Q4)/(Operations!$H4))) -> 0.6870937231 | S4: =IF(Operations!$H4=0,0,Operations!$P4*'General Variables'!$B$9/Operations!$H4) -> 0.2030858466 | T4: =IF(Operations!$H4=0,0,Operations!$P4*'General Variables'!$B$10/Operations!$H4) -> 0.3046287699 | U4: =SUM(Table3[[#This Row],[Depreciation per Unit]:[Opportunity Cost per Unit]]) -> 1.19480834 | W4: Baler - Rectangular | X4: HARVESTING | Y4: 0.23 | Z4: 1.8 | AA4: 2000 | AD4: Harvest equipment | AE4: Balers | AF4: 0.852 | AG4: 0.101 | AK4: Hand move lateral | AL4: 15 | AM4: 2 | AO4: =IF(PowerUnits[[#This Row],[Name]]=0,"",PowerUnits[[#This Row],[Name]]) -> Combine
A5: Bale Large Square | B5: ton | C5: Baler - Large rectangular | D5: Balers | E5: 149514 | G5: 5 | H5: 1000 | I5: 17 | J5: 1.1 | K5: Medium Tractor | L5: 6.18597786 | N5: =IF(Operations!$E5>1,Operations!$E5,IF(Operations!$D5=0,0,Operations!$F5/(VLOOKUP(Operations!$D5,ImpDepLookup,2,FALSE)-VLOOKUP(Operations!$D5,ImpDepLookup,3,FALSE)*Operations!$G5^0.5-VLOOKUP(Operations!$D5,ImpDepLookup,4,FALSE)*(Operations!$G5*(Operations!$G5*Operations!$H5/Operations!$I5)^0.5))^2)) -> 149514 | O5: =IF(Operations!$C5="",0,(((Operations!$G5+1)*Operations!$H5/Operations!$I5/1000)^VLOOKUP(Operations!$C5,ImpRepairFac[],4,FALSE)-(Operations!$G5*Operations!$H5/Operations!$I5/1000)^VLOOKUP(Operations!$C5,ImpRepairFac[],4,FALSE))*Operations!$N5*VLOOKUP(Operations!$C5,ImpRepairFac[],3,FALSE)/Operations!$H5) -> 0.6417126952 | P5: =IF(Operations!$N5=0,0,Operations!$N5*(VLOOKUP(Operations!$D5,ImpDepLookup,2,FALSE)-VLOOKUP(Operations!$D5,ImpDepLookup,3,FALSE)*Operations!$G5^0.5-VLOOKUP(Operations!$D5,ImpDepLookup,4,FALSE)*(Operations!$G5*Operations!$H5/Operations!$I5)^0.5)^2) -> 58620.36616 | Q5: =IF(Operations!$N5=0,0,Operations!$N5*(VLOOKUP(Operations!$D5,ImpDepLookup,2,FALSE)-VLOOKUP(Operations!$D5,ImpDepLookup,3,FALSE)*(Operations!$G5+1)^0.5-VLOOKUP(Operations!$D5,ImpDepLookup,4,FALSE)*(Operations!$G5*Operations!$H5/Operations!$I5)^0.5)^2) -> 54653.79869 | R5: =IF(Operations!$N5=0,0,IF(Operations!$I5*Operations!$H5=0,0,(Operations!$P5-Operations!$Q5)/(Operations!$H5))) -> 3.96656747 | S5: =IF(Operations!$H5=0,0,Operations!$P5*'General Variables'!$B$9/Operations!$H5) -> 1.172407323 | T5: =IF(Operations!$H5=0,0,Operations!$P5*'General Variables'!$B$10/Operations!$H5) -> 1.758610985 | U5: =SUM(Table3[[#This Row],[Depreciation per Unit]:[Opportunity Cost per Unit]]) -> 6.897585778 | W5: Bean puller-windrower | X5: MISCELLANEOUS | Y5: 0.20 | Z5: 1.6 | AA5: 2000 | AD5: Harvest equipment | AE5: Swathers and all other harvest equipment | AF5: 0.791 | AG5: 0.091 | AK5: End tow lateral | AL5: 10 | AM5: 3 | AO5: =IF(PowerUnits[[#This Row],[Name]]=0,"",PowerUnits[[#This Row],[Name]]) -> Diesel Pump
A6: Bale Small Square | B6: Ton | C6: Baler - Rectangular | D6: Balers | E6: 28000 | G6: 5 | H6: 1250 | I6: 4 | J6: 1.1 | K6: Medium Tractor | L6: 3.5 | N6: =IF(Operations!$E6>1,Operations!$E6,IF(Operations!$D6=0,0,Operations!$F6/(VLOOKUP(Operations!$D6,ImpDepLookup,2,FALSE)-VLOOKUP(Operations!$D6,ImpDepLookup,3,FALSE)*Operations!$G6^0.5-VLOOKUP(Operations!$D6,ImpDepLookup,4,FALSE)*(Operations!$G6*(Operations!$G6*Operations!$H6/Operations!$I6)^0.5))^2)) -> 28000 | O6: =IF(Operations!$C6="",0,(((Operations!$G6+1)*Operations!$H6/Operations!$I6/1000)^VLOOKUP(Operations!$C6,ImpRepairFac[],4,FALSE)-(Operations!$G6*Operations!$H6/Operations!$I6/1000)^VLOOKUP(Operations!$C6,ImpRepairFac[],4,FALSE))*Operations!$N6*VLOOKUP(Operations!$C6,ImpRepairFac[],3,FALSE)/Operations!$H6) -> 4.468612773 | P6: =IF(Operations!$N6=0,0,Operations!$N6*(VLOOKUP(Operations!$D6,ImpDepLookup,2,FALSE)-VLOOKUP(Operations!$D6,ImpDepLookup,3,FALSE)*Operations!$G6^0.5-VLOOKUP(Operations!$D6,ImpDepLookup,4,FALSE)*(Operations!$G6*Operations!$H6/Operations!$I6)^0.5)^2) -> 10978.03719 | Q6: =IF(Operations!$N6=0,0,Operations!$N6*(VLOOKUP(Operations!$D6,ImpDepLookup,2,FALSE)-VLOOKUP(Operations!$D6,ImpDepLookup,3,FALSE)*(Operations!$G6+1)^0.5-VLOOKUP(Operations!$D6,ImpDepLookup,4,FALSE)*(Operations!$G6*Operations!$H6/Operations!$I6)^0.5)^2) -> 10235.20448 | R6: =IF(Operations!$N6=0,0,IF(Operations!$I6*Operations!$H6=0,0,(Operations!$P6-Operations!$Q6)/(Operations!$H6))) -> 0.5942661646 | S6: =IF(Operations!$H6=0,0,Operations!$P6*'General Variables'!$B$9/Operations!$H6) -> 0.175648595 | T6: =IF(Operations!$H6=0,0,Operations!$P6*'General Variables'!$B$10/Operations!$H6) -> 0.2634728926 | U6: =SUM(Table3[[#This Row],[Depreciation per Unit]:[Opportunity Cost per Unit]]) -> 1.033387652 | W6: Beet topper | X6: MISCELLANEOUS | Y6: 0.28 | Z6: 1.4 | AA6: 1200 | AD6: Tillage equipment | AE6: Plows | AF6: 0.738 | AG6: 0.051 | AK6: Side roll lateral | AL6: 15 | AM6: 2 | AO6: =IF(PowerUnits[[#This Row],[Name]]=0,"",PowerUnits[[#This Row],[Name]]) -> Electric Pump
A7: Cart | B7: bushel | C7: Wagon - Forage | D7: Manure spreaders and all other miscellaneous equipment | E7: 42000 | G7: 5 | H7: =2000*220 -> 440000 | I7: =7*220 -> 1540 | J7: 1.1 | K7: Medium Tractor | L7: 3 | N7: =IF(Operations!$E7>1,Operations!$E7,IF(Operations!$D7=0,0,Operations!$F7/(VLOOKUP(Operations!$D7,ImpDepLookup,2,FALSE)-VLOOKUP(Operations!$D7,ImpDepLookup,3,FALSE)*Operations!$G7^0.5-VLOOKUP(Operations!$D7,ImpDepLookup,4,FALSE)*(Operations!$G7*(Operations!$G7*Operations!$H7/Operations!$I7)^0.5))^2)) -> 42000 | O7: =IF(Operations!$C7="",0,(((Operations!$G7+1)*Operations!$H7/Operations!$I7/1000)^VLOOKUP(Operations!$C7,ImpRepairFac[],4,FALSE)-(Operations!$G7*Operations!$H7/Operations!$I7/1000)^VLOOKUP(Operations!$C7,ImpRepairFac[],4,FALSE))*Operations!$N7*VLOOKUP(Operations!$C7,ImpRepairFac[],3,FALSE)/Operations!$H7) -> 0.009153802328 | P7: =IF(Operations!$N7=0,0,Operations!$N7*(VLOOKUP(Operations!$D7,ImpDepLookup,2,FALSE)-VLOOKUP(Operations!$D7,ImpDepLookup,3,FALSE)*Operations!$G7^0.5-VLOOKUP(Operations!$D7,ImpDepLookup,4,FALSE)*(Operations!$G7*Operations!$H7/Operations!$I7)^0.5)^2) -> 20275.16875 | Q7: =IF(Operations!$N7=0,0,Operations!$N7*(VLOOKUP(Operations!$D7,ImpDepLookup,2,FALSE)-VLOOKUP(Operations!$D7,ImpDepLookup,3,FALSE)*(Operations!$G7+1)^0.5-VLOOKUP(Operations!$D7,ImpDepLookup,4,FALSE)*(Operations!$G7*Operations!$H7/Operations!$I7)^0.5)^2) -> 18916.13305 | R7: =IF(Operations!$N7=0,0,IF(Operations!$I7*Operations!$H7=0,0,(Operations!$P7-Operations!$Q7)/(Operations!$H7))) -> 0.003088717502 | S7: =IF(Operations!$H7=0,0,Operations!$P7*'General Variables'!$B$9/Operations!$H7) -> 0.0009215985797 | T7: =IF(Operations!$H7=0,0,Operations!$P7*'General Variables'!$B$10/Operations!$H7) -> 0.00138239787 | U7: =SUM(Table3[[#This Row],[Depreciation per Unit]:[Opportunity Cost per Unit]]) -> 0.005392713951 | W7: Chisel plow (Coulter) | X7: TILLAGE&PLANTING | Y7: 0.28 | Z7: 1.4 | AA7: 2000 | AD7: Tillage equipment | AE7: Disks and all other tillage equipment | AF7: 0.891 | AG7: 0.110 | AK7: Lateral | AL7: 10 | AM7: 6 | AO7: =IF(PowerUnits[[#This Row],[Name]]=0,"",PowerUnits[[#This Row],[Name]]) -> Diesel Pump for Pipe
A8: Chisel | B8: acre | C8: Chisel plow (Coulter) | D8: Disks and all other tillage equipment | E8: 59465 | G8: 5 | H8: 2000 | I8: 11.09243697 | J8: 1.1 | K8: Medium Tractor | L8: 8.263865546 | N8: =IF(Operations!$E8>1,Operations!$E8,IF(Operations!$D8=0,0,Operations!$F8/(VLOOKUP(Operations!$D8,ImpDepLookup,2,FALSE)-VLOOKUP(Operations!$D8,ImpDepLookup,3,FALSE)*Operations!$G8^0.5-VLOOKUP(Operations!$D8,ImpDepLookup,4,FALSE)*(Operations!$G8*(Operations!$G8*Operations!$H8/Operations!$I8)^0.5))^2)) -> 59465 | O8: =IF(Operations!$C8="",0,(((Operations!$G8+1)*Operations!$H8/Operations!$I8/1000)^VLOOKUP(Operations!$C8,ImpRepairFac[],4,FALSE)-(Operations!$G8*Operations!$H8/Operations!$I8/1000)^VLOOKUP(Operations!$C8,ImpRepairFac[],4,FALSE))*Operations!$N8*VLOOKUP(Operations!$C8,ImpRepairFac[],3,FALSE)/Operations!$H8) -> 2.093741044 | P8: =IF(Operations!$N8=0,0,Operations!$N8*(VLOOKUP(Operations!$D8,ImpDepLookup,2,FALSE)-VLOOKUP(Operations!$D8,ImpDepLookup,3,FALSE)*Operations!$G8^0.5-VLOOKUP(Operations!$D8,ImpDepLookup,4,FALSE)*(Operations!$G8*Operations!$H8/Operations!$I8)^0.5)^2) -> 24741.42148 | Q8: =IF(Operations!$N8=0,0,Operations!$N8*(VLOOKUP(Operations!$D8,ImpDepLookup,2,FALSE)-VLOOKUP(Operations!$D8,ImpDepLookup,3,FALSE)*(Operations!$G8+1)^0.5-VLOOKUP(Operations!$D8,ImpDepLookup,4,FALSE)*(Operations!$G8*Operations!$H8/Operations!$I8)^0.5)^2) -> 22973.23361 | R8: =IF(Operations!$N8=0,0,IF(Operations!$I8*Operations!$H8=0,0,(Operations!$P8-Operations!$Q8)/(Operations!$H8))) -> 0.884093938 | S8: =IF(Operations!$H8=0,0,Operations!$P8*'General Variables'!$B$9/Operations!$H8) -> 0.2474142148 | T8: =IF(Operations!$H8=0,0,Operations!$P8*'General Variables'!$B$10/Operations!$H8) -> 0.3711213222 | U8: =SUM(Table3[[#This Row],[Depreciation per Unit]:[Opportunity Cost per Unit]]) -> 1.502629475 | W8: Combine | X8: HARVESTING | Y8: 0.12 | Z8: 2.3 | AA8: 2000 | AD8: Miscellaneousequipment | AE8: Skid-steerloaders and all other vehicles | AF8: 0.786 | AG8: 0.063 | AH8: 0 | AK8: Traveling gun | AL8: 15 | AM8: 6 | AO8: =IF(PowerUnits[[#This Row],[Name]]=0,"",PowerUnits[[#This Row],[Name]]) -> Windrower
A9: Chop Silage | B9: Custom | N9: =IF(Operations!$E9>1,Operations!$E9,IF(Operations!$D9=0,0,Operations!$F9/(VLOOKUP(Operations!$D9,ImpDepLookup,2,FALSE)-VLOOKUP(Operations!$D9,ImpDepLookup,3,FALSE)*Operations!$G9^0.5-VLOOKUP(Operations!$D9,ImpDepLookup,4,FALSE)*(Operations!$G9*(Operations!$G9*Operations!$H9/Operations!$I9)^0.5))^2)) -> 0 | O9: =IF(Operations!$C9="",0,(((Operations!$G9+1)*Operations!$H9/Operations!$I9/1000)^VLOOKUP(Operations!$C9,ImpRepairFac[],4,FALSE)-(Operations!$G9*Operations!$H9/Operations!$I9/1000)^VLOOKUP(Operations!$C9,ImpRepairFac[],4,FALSE))*Operations!$N9*VLOOKUP(Operations!$C9,ImpRepairFac[],3,FALSE)/Operations!$H9) -> 0 | P9: =IF(Operations!$N9=0,0,Operations!$N9*(VLOOKUP(Operations!$D9,ImpDepLookup,2,FALSE)-VLOOKUP(Operations!$D9,ImpDepLookup,3,FALSE)*Operations!$G9^0.5-VLOOKUP(Operations!$D9,ImpDepLookup,4,FALSE)*(Operations!$G9*Operations!$H9/Operations!$I9)^0.5)^2) -> 0 | Q9: =IF(Operations!$N9=0,0,Operations!$N9*(VLOOKUP(Operations!$D9,ImpDepLookup,2,FALSE)-VLOOKUP(Operations!$D9,ImpDepLookup,3,FALSE)*(Operations!$G9+1)^0.5-VLOOKUP(Operations!$D9,ImpDepLookup,4,FALSE)*(Operations!$G9*Operations!$H9/Operations!$I9)^0.5)^2) -> 0 | R9: =IF(Operations!$N9=0,0,IF(Operations!$I9*Operations!$H9=0,0,(Operations!$P9-Operations!$Q9)/(Operations!$H9))) -> 0 | S9: =IF(Operations!$H9=0,0,Operations!$P9*'General Variables'!$B$9/Operations!$H9) -> 0 | T9: =IF(Operations!$H9=0,0,Operations!$P9*'General Variables'!$B$10/Operations!$H9) -> 0 | U9: =SUM(Table3[[#This Row],[Depreciation per Unit]:[Opportunity Cost per Unit]]) -> 0 | W9: Corn picker-sheller | X9: HARVESTING | Y9: 0.14 | Z9: 2.3 | AA9: 2000 | AD9: Miscellaneousequipment | AE9: Planters | AF9: 0.883 | AG9: 0.078 | AK9: Center Pivot | AL9: 15 | AM9: 6 | AO9: =IF(PowerUnits[[#This Row],[Name]]=0,"",PowerUnits[[#This Row],[Name]]) -> Self-propelled sprayer
A10: Chop Stalks | B10: acre | C10: Stalk chopper | D10: Swathers and all other harvest equipment | E10: 19971 | G10: 5 | H10: 500 | I10: 12.3364486 | J10: 1.1 | K10: Medium Tractor | L10: 5.736448598 | N10: =IF(Operations!$E10>1,Operations!$E10,IF(Operations!$D10=0,0,Operations!$F10/(VLOOKUP(Operations!$D10,ImpDepLookup,2,FALSE)-VLOOKUP(Operations!$D10,ImpDepLookup,3,FALSE)*Operations!$G10^0.5-VLOOKUP(Operations!$D10,ImpDepLookup,4,FALSE)*(Operations!$G10*(Operations!$G10*Operations!$H10/Operations!$I10)^0.5))^2)) -> 19971 | O10: =IF(Operations!$C10="",0,(((Operations!$G10+1)*Operations!$H10/Operations!$I10/1000)^VLOOKUP(Operations!$C10,ImpRepairFac[],4,FALSE)-(Operations!$G10*Operations!$H10/Operations!$I10/1000)^VLOOKUP(Operations!$C10,ImpRepairFac[],4,FALSE))*Operations!$N10*VLOOKUP(Operations!$C10,ImpRepairFac[],3,FALSE)/Operations!$H10) -> 0.3480237654 | P10: =IF(Operations!$N10=0,0,Operations!$N10*(VLOOKUP(Operations!$D10,ImpDepLookup,2,FALSE)-VLOOKUP(Operations!$D10,ImpDepLookup,3,FALSE)*Operations!$G10^0.5-VLOOKUP(Operations!$D10,ImpDepLookup,4,FALSE)*(Operations!$G10*Operations!$H10/Operations!$I10)^0.5)^2) -> 6893.533498 | Q10: =IF(Operations!$N10=0,0,Operations!$N10*(VLOOKUP(Operations!$D10,ImpDepLookup,2,FALSE)-VLOOKUP(Operations!$D10,ImpDepLookup,3,FALSE)*(Operations!$G10+1)^0.5-VLOOKUP(Operations!$D10,ImpDepLookup,4,FALSE)*(Operations!$G10*Operations!$H10/Operations!$I10)^0.5)^2) -> 6445.31188 | R10: =IF(Operations!$N10=0,0,IF(Operations!$I10*Operations!$H10=0,0,(Operations!$P10-Operations!$Q10)/(Operations!$H10))) -> 0.8964432367 | S10: =IF(Operations!$H10=0,0,Operations!$P10*'General Variables'!$B$9/Operations!$H10) -> 0.2757413399 | T10: =IF(Operations!$H10=0,0,Operations!$P10*'General Variables'!$B$10/Operations!$H10) -> 0.4136120099 | U10: =SUM(Table3[[#This Row],[Depreciation per Unit]:[Opportunity Cost per Unit]]) -> 1.585796587 | W10: Cultivator - Field | X10: TILLAGE&PLANTING | Y10: 0.27 | Z10: 1.4 | AA10: 2000 | AD10: Miscellaneous equipment | AE10: Manure spreaders and all other miscellaneous equipment | AF10: 0.943 | AG10: 0.111 | AK10: Center Pivot w/corner | AL10: 15 | AM10: 6 | AO10: =IF(PowerUnits[[#This Row],[Name]]=0,"",PowerUnits[[#This Row],[Name]]) -> 
A11: Combine Dryland Corn | B11: acre | C11: Combine | D11: Combines | E11: 56787 | G11: 5 | H11: 1000 | I11: 8 | J11: 1.1 | K11: Combine | L11: 10.5 | N11: =IF(Operations!$E11>1,Operations!$E11,IF(Operations!$D11=0,0,Operations!$F11/(VLOOKUP(Operations!$D11,ImpDepLookup,2,FALSE)-VLOOKUP(Operations!$D11,ImpDepLookup,3,FALSE)*Operations!$G11^0.5-VLOOKUP(Operations!$D11,ImpDepLookup,4,FALSE)*(Operations!$G11*(Operations!$G11*Operations!$H11/Operations!$I11)^0.5))^2)) -> 56787 | O11: =IF(Operations!$C11="",0,(((Operations!$G11+1)*Operations!$H11/Operations!$I11/1000)^VLOOKUP(Operations!$C11,ImpRepairFac[],4,FALSE)-(Operations!$G11*Operations!$H11/Operations!$I11/1000)^VLOOKUP(Operations!$C11,ImpRepairFac[],4,FALSE))*Operations!$N11*VLOOKUP(Operations!$C11,ImpRepairFac[],3,FALSE)/Operations!$H11) -> 1.204358786 | P11: =IF(Operations!$N11=0,0,Operations!$N11*(VLOOKUP(Operations!$D11,ImpDepLookup,2,FALSE)-VLOOKUP(Operations!$D11,ImpDepLookup,3,FALSE)*Operations!$G11^0.5-VLOOKUP(Operations!$D11,ImpDepLookup,4,FALSE)*(Operations!$G11*Operations!$H11/Operations!$I11)^0.5)^2) -> 33063.85859 | Q11: =IF(Operations!$N11=0,0,Operations!$N11*(VLOOKUP(Operations!$D11,ImpDepLookup,2,FALSE)-VLOOKUP(Operations!$D11,ImpDepLookup,3,FALSE)*(Operations!$G11+1)^0.5-VLOOKUP(Operations!$D11,ImpDepLookup,4,FALSE)*(Operations!$G11*Operations!$H11/Operations!$I11)^0.5)^2) -> 30082.49369 | R11: =IF(Operations!$N11=0,0,IF(Operations!$I11*Operations!$H11=0,0,(Operations!$P11-Operations!$Q11)/(Operations!$H11))) -> 2.981364897 | S11: =IF(Operations!$H11=0,0,Operations!$P11*'General Variables'!$B$9/Operations!$H11) -> 0.6612771717 | T11: =IF(Operations!$H11=0,0,Operations!$P11*'General Variables'!$B$10/Operations!$H11) -> 0.9919157576 | U11: =SUM(Table3[[#This Row],[Depreciation per Unit]:[Opportunity Cost per Unit]]) -> 4.634557826 | W11: Cultivator - Row crop | X11: TILLAGE&PLANTING | Y11: 0.17 | Z11: 2.2 | AA11: 2000 | AD11: Center Pivot | AE11: Pivots | AF11: 0.891 | AG11: 0.110 | AK11: Linear move with ditch | AL11: 15 | AM11: 6 | AO11: =IF(PowerUnits[[#This Row],[Name]]=0,"",PowerUnits[[#This Row],[Name]]) -> 
A12: Combine Dryland SB | B12: acre | C12: Combine | D12: Combines | E12: 44957 | G12: 5 | H12: 1000 | I12: 7 | J12: 1.1 | K12: Combine | L12: 10.5 | N12: =IF(Operations!$E12>1,Operations!$E12,IF(Operations!$D12=0,0,Operations!$F12/(VLOOKUP(Operations!$D12,ImpDepLookup,2,FALSE)-VLOOKUP(Operations!$D12,ImpDepLookup,3,FALSE)*Operations!$G12^0.5-VLOOKUP(Operations!$D12,ImpDepLookup,4,FALSE)*(Operations!$G12*(Operations!$G12*Operations!$H12/Operations!$I12)^0.5))^2)) -> 44957 | O12: =IF(Operations!$C12="",0,(((Operations!$G12+1)*Operations!$H12/Operations!$I12/1000)^VLOOKUP(Operations!$C12,ImpRepairFac[],4,FALSE)-(Operations!$G12*Operations!$H12/Operations!$I12/1000)^VLOOKUP(Operations!$C12,ImpRepairFac[],4,FALSE))*Operations!$N12*VLOOKUP(Operations!$C12,ImpRepairFac[],3,FALSE)/Operations!$H12) -> 1.296241018 | P12: =IF(Operations!$N12=0,0,Operations!$N12*(VLOOKUP(Operations!$D12,ImpDepLookup,2,FALSE)-VLOOKUP(Operations!$D12,ImpDepLookup,3,FALSE)*Operations!$G12^0.5-VLOOKUP(Operations!$D12,ImpDepLookup,4,FALSE)*(Operations!$G12*Operations!$H12/Operations!$I12)^0.5)^2) -> 26175.91862 | Q12: =IF(Operations!$N12=0,0,Operations!$N12*(VLOOKUP(Operations!$D12,ImpDepLookup,2,FALSE)-VLOOKUP(Operations!$D12,ImpDepLookup,3,FALSE)*(Operations!$G12+1)^0.5-VLOOKUP(Operations!$D12,ImpDepLookup,4,FALSE)*(Operations!$G12*Operations!$H12/Operations!$I12)^0.5)^2) -> 23815.63859 | R12: =IF(Operations!$N12=0,0,IF(Operations!$I12*Operations!$H12=0,0,(Operations!$P12-Operations!$Q12)/(Operations!$H12))) -> 2.360280023 | S12: =IF(Operations!$H12=0,0,Operations!$P12*'General Variables'!$B$9/Operations!$H12) -> 0.5235183723 | T12: =IF(Operations!$H12=0,0,Operations!$P12*'General Variables'!$B$10/Operations!$H12) -> 0.7852775585 | U12: =SUM(Table3[[#This Row],[Depreciation per Unit]:[Opportunity Cost per Unit]]) -> 3.669075954 | W12: Disk - Heavy-duty | X12: TILLAGE&PLANTING | Y12: 0.18 | Z12: 1.7 | AA12: 2000 | AK12: Linear move with pipe | AL12: 15 | AM12: 6
A13: Combine Dryland SG | B13: acre | C13: Combine | D13: Combines | E13: 44957 | G13: 5 | H13: 1000 | I13: 7 | J13: 1.1 | K13: Combine | L13: 10.5 | N13: =IF(Operations!$E13>1,Operations!$E13,IF(Operations!$D13=0,0,Operations!$F13/(VLOOKUP(Operations!$D13,ImpDepLookup,2,FALSE)-VLOOKUP(Operations!$D13,ImpDepLookup,3,FALSE)*Operations!$G13^0.5-VLOOKUP(Operations!$D13,ImpDepLookup,4,FALSE)*(Operations!$G13*(Operations!$G13*Operations!$H13/Operations!$I13)^0.5))^2)) -> 44957 | O13: =IF(Operations!$C13="",0,(((Operations!$G13+1)*Operations!$H13/Operations!$I13/1000)^VLOOKUP(Operations!$C13,ImpRepairFac[],4,FALSE)-(Operations!$G13*Operations!$H13/Operations!$I13/1000)^VLOOKUP(Operations!$C13,ImpRepairFac[],4,FALSE))*Operations!$N13*VLOOKUP(Operations!$C13,ImpRepairFac[],3,FALSE)/Operations!$H13) -> 1.296241018 | P13: =IF(Operations!$N13=0,0,Operations!$N13*(VLOOKUP(Operations!$D13,ImpDepLookup,2,FALSE)-VLOOKUP(Operations!$D13,ImpDepLookup,3,FALSE)*Operations!$G13^0.5-VLOOKUP(Operations!$D13,ImpDepLookup,4,FALSE)*(Operations!$G13*Operations!$H13/Operations!$I13)^0.5)^2) -> 26175.91862 | Q13: =IF(Operations!$N13=0,0,Operations!$N13*(VLOOKUP(Operations!$D13,ImpDepLookup,2,FALSE)-VLOOKUP(Operations!$D13,ImpDepLookup,3,FALSE)*(Operations!$G13+1)^0.5-VLOOKUP(Operations!$D13,ImpDepLookup,4,FALSE)*(Operations!$G13*Operations!$H13/Operations!$I13)^0.5)^2) -> 23815.63859 | R13: =IF(Operations!$N13=0,0,IF(Operations!$I13*Operations!$H13=0,0,(Operations!$P13-Operations!$Q13)/(Operations!$H13))) -> 2.360280023 | S13: =IF(Operations!$H13=0,0,Operations!$P13*'General Variables'!$B$9/Operations!$H13) -> 0.5235183723 | T13: =IF(Operations!$H13=0,0,Operations!$P13*'General Variables'!$B$10/Operations!$H13) -> 0.7852775585 | U13: =SUM(Table3[[#This Row],[Depreciation per Unit]:[Opportunity Cost per Unit]]) -> 3.669075954 | W13: Diskharrow - Tandem | X13: TILLAGE&PLANTING | Y13: 0.18 | Z13: 1.7 | AA13: 2000 | AK13: Portable solid set | AL13: 15 | AM13: 2
A14: Combine Irr Corn | B14: acre | C14: Combine | D14: Combines | E14: 56787 | G14: 5 | H14: 1000 | I14: 6.5 | J14: 1.1 | K14: Combine | L14: 10.5 | N14: =IF(Operations!$E14>1,Operations!$E14,IF(Operations!$D14=0,0,Operations!$F14/(VLOOKUP(Operations!$D14,ImpDepLookup,2,FALSE)-VLOOKUP(Operations!$D14,ImpDepLookup,3,FALSE)*Operations!$G14^0.5-VLOOKUP(Operations!$D14,ImpDepLookup,4,FALSE)*(Operations!$G14*(Operations!$G14*Operations!$H14/Operations!$I14)^0.5))^2)) -> 56787 | O14: =IF(Operations!$C14="",0,(((Operations!$G14+1)*Operations!$H14/Operations!$I14/1000)^VLOOKUP(Operations!$C14,ImpRepairFac[],4,FALSE)-(Operations!$G14*Operations!$H14/Operations!$I14/1000)^VLOOKUP(Operations!$C14,ImpRepairFac[],4,FALSE))*Operations!$N14*VLOOKUP(Operations!$C14,ImpRepairFac[],3,FALSE)/Operations!$H14) -> 1.941610603 | P14: =IF(Operations!$N14=0,0,Operations!$N14*(VLOOKUP(Operations!$D14,ImpDepLookup,2,FALSE)-VLOOKUP(Operations!$D14,ImpDepLookup,3,FALSE)*Operations!$G14^0.5-VLOOKUP(Operations!$D14,ImpDepLookup,4,FALSE)*(Operations!$G14*Operations!$H14/Operations!$I14)^0.5)^2) -> 33063.85859 | Q14: =IF(Operations!$N14=0,0,Operations!$N14*(VLOOKUP(Operations!$D14,ImpDepLookup,2,FALSE)-VLOOKUP(Operations!$D14,ImpDepLookup,3,FALSE)*(Operations!$G14+1)^0.5-VLOOKUP(Operations!$D14,ImpDepLookup,4,FALSE)*(Operations!$G14*Operations!$H14/Operations!$I14)^0.5)^2) -> 30082.49369 | R14: =IF(Operations!$N14=0,0,IF(Operations!$I14*Operations!$H14=0,0,(Operations!$P14-Operations!$Q14)/(Operations!$H14))) -> 2.981364897 | S14: =IF(Operations!$H14=0,0,Operations!$P14*'General Variables'!$B$9/Operations!$H14) -> 0.6612771717 | T14: =IF(Operations!$H14=0,0,Operations!$P14*'General Variables'!$B$10/Operations!$H14) -> 0.9919157576 | U14: =SUM(Table3[[#This Row],[Depreciation per Unit]:[Opportunity Cost per Unit]]) -> 4.634557826 | W14: Drill - Grain | X14: TILLAGE&PLANTING | Y14: 0.32 | Z14: 2.1 | AA14: 1500 | AK14: Permanent solid set | AL14: 20 | AM14: 1
A15: Combine Irr Dry Beans | B15: acre | C15: Combine | D15: Combines | E15: 44957 | G15: 5 | H15: 1000 | I15: 5.5 | J15: 1.1 | K15: Combine | L15: 10.5 | N15: =IF(Operations!$E15>1,Operations!$E15,IF(Operations!$D15=0,0,Operations!$F15/(VLOOKUP(Operations!$D15,ImpDepLookup,2,FALSE)-VLOOKUP(Operations!$D15,ImpDepLookup,3,FALSE)*Operations!$G15^0.5-VLOOKUP(Operations!$D15,ImpDepLookup,4,FALSE)*(Operations!$G15*(Operations!$G15*Operations!$H15/Operations!$I15)^0.5))^2)) -> 44957 | O15: =IF(Operations!$C15="",0,(((Operations!$G15+1)*Operations!$H15/Operations!$I15/1000)^VLOOKUP(Operations!$C15,ImpRepairFac[],4,FALSE)-(Operations!$G15*Operations!$H15/Operations!$I15/1000)^VLOOKUP(Operations!$C15,ImpRepairFac[],4,FALSE))*Operations!$N15*VLOOKUP(Operations!$C15,ImpRepairFac[],3,FALSE)/Operations!$H15) -> 2.257236511 | P15: =IF(Operations!$N15=0,0,Operations!$N15*(VLOOKUP(Operations!$D15,ImpDepLookup,2,FALSE)-VLOOKUP(Operations!$D15,ImpDepLookup,3,FALSE)*Operations!$G15^0.5-VLOOKUP(Operations!$D15,ImpDepLookup,4,FALSE)*(Operations!$G15*Operations!$H15/Operations!$I15)^0.5)^2) -> 26175.91862 | Q15: =IF(Operations!$N15=0,0,Operations!$N15*(VLOOKUP(Operations!$D15,ImpDepLookup,2,FALSE)-VLOOKUP(Operations!$D15,ImpDepLookup,3,FALSE)*(Operations!$G15+1)^0.5-VLOOKUP(Operations!$D15,ImpDepLookup,4,FALSE)*(Operations!$G15*Operations!$H15/Operations!$I15)^0.5)^2) -> 23815.63859 | R15: =IF(Operations!$N15=0,0,IF(Operations!$I15*Operations!$H15=0,0,(Operations!$P15-Operations!$Q15)/(Operations!$H15))) -> 2.360280023 | S15: =IF(Operations!$H15=0,0,Operations!$P15*'General Variables'!$B$9/Operations!$H15) -> 0.5235183723 | T15: =IF(Operations!$H15=0,0,Operations!$P15*'General Variables'!$B$10/Operations!$H15) -> 0.7852775585 | U15: =SUM(Table3[[#This Row],[Depreciation per Unit]:[Opportunity Cost per Unit]]) -> 3.669075954 | W15: Fertilizer spreader | X15: MISCELLANEOUS | Y15: 0.63 | Z15: 1.3 | AA15: 1200 | AK15: Orchard hose-pull | AL15: 15 | AM15: 3
A16: Combine Irr SB | B16: acre | C16: Combine | D16: Combines | E16: 44957 | G16: 5 | H16: 1000 | I16: 6 | J16: 1.1 | K16: Combine | L16: 10.5 | N16: =IF(Operations!$E16>1,Operations!$E16,IF(Operations!$D16=0,0,Operations!$F16/(VLOOKUP(Operations!$D16,ImpDepLookup,2,FALSE)-VLOOKUP(Operations!$D16,ImpDepLookup,3,FALSE)*Operations!$G16^0.5-VLOOKUP(Operations!$D16,ImpDepLookup,4,FALSE)*(Operations!$G16*(Operations!$G16*Operations!$H16/Operations!$I16)^0.5))^2)) -> 44957 | O16: =IF(Operations!$C16="",0,(((Operations!$G16+1)*Operations!$H16/Operations!$I16/1000)^VLOOKUP(Operations!$C16,ImpRepairFac[],4,FALSE)-(Operations!$G16*Operations!$H16/Operations!$I16/1000)^VLOOKUP(Operations!$C16,ImpRepairFac[],4,FALSE))*Operations!$N16*VLOOKUP(Operations!$C16,ImpRepairFac[],3,FALSE)/Operations!$H16) -> 1.847835798 | P16: =IF(Operations!$N16=0,0,Operations!$N16*(VLOOKUP(Operations!$D16,ImpDepLookup,2,FALSE)-VLOOKUP(Operations!$D16,ImpDepLookup,3,FALSE)*Operations!$G16^0.5-VLOOKUP(Operations!$D16,ImpDepLookup,4,FALSE)*(Operations!$G16*Operations!$H16/Operations!$I16)^0.5)^2) -> 26175.91862 | Q16: =IF(Operations!$N16=0,0,Operations!$N16*(VLOOKUP(Operations!$D16,ImpDepLookup,2,FALSE)-VLOOKUP(Operations!$D16,ImpDepLookup,3,FALSE)*(Operations!$G16+1)^0.5-VLOOKUP(Operations!$D16,ImpDepLookup,4,FALSE)*(Operations!$G16*Operations!$H16/Operations!$I16)^0.5)^2) -> 23815.63859 | R16: =IF(Operations!$N16=0,0,IF(Operations!$I16*Operations!$H16=0,0,(Operations!$P16-Operations!$Q16)/(Operations!$H16))) -> 2.360280023 | S16: =IF(Operations!$H16=0,0,Operations!$P16*'General Variables'!$B$9/Operations!$H16) -> 0.5235183723 | T16: =IF(Operations!$H16=0,0,Operations!$P16*'General Variables'!$B$10/Operations!$H16) -> 0.7852775585 | U16: =SUM(Table3[[#This Row],[Depreciation per Unit]:[Opportunity Cost per Unit]]) -> 3.669075954 | W16: Forage blower | X16: MISCELLANEOUS | Y16: 0.22 | Z16: 1.8 | AA16: 1500 | AK16: From "Selection of Irrigation Methods for Agriculture" by C.M. Burt, A.J. Clemmens, R.Bliesner, J.L. Merriam, and L. Hardy. ©2000 by American Society of Civil Engineers, 1801 Alexander Bell Drive, Reston, Virginia, 20191-4400. page 112
A17: Combine Irr SG | B17: acre | C17: Combine | D17: Combines | E17: 44957 | G17: 5 | H17: 1000 | I17: 7 | J17: 1.1 | K17: Combine | L17: 10.5 | N17: =IF(Operations!$E17>1,Operations!$E17,IF(Operations!$D17=0,0,Operations!$F17/(VLOOKUP(Operations!$D17,ImpDepLookup,2,FALSE)-VLOOKUP(Operations!$D17,ImpDepLookup,3,FALSE)*Operations!$G17^0.5-VLOOKUP(Operations!$D17,ImpDepLookup,4,FALSE)*(Operations!$G17*(Operations!$G17*Operations!$H17/Operations!$I17)^0.5))^2)) -> 44957 | O17: =IF(Operations!$C17="",0,(((Operations!$G17+1)*Operations!$H17/Operations!$I17/1000)^VLOOKUP(Operations!$C17,ImpRepairFac[],4,FALSE)-(Operations!$G17*Operations!$H17/Operations!$I17/1000)^VLOOKUP(Operations!$C17,ImpRepairFac[],4,FALSE))*Operations!$N17*VLOOKUP(Operations!$C17,ImpRepairFac[],3,FALSE)/Operations!$H17) -> 1.296241018 | P17: =IF(Operations!$N17=0,0,Operations!$N17*(VLOOKUP(Operations!$D17,ImpDepLookup,2,FALSE)-VLOOKUP(Operations!$D17,ImpDepLookup,3,FALSE)*Operations!$G17^0.5-VLOOKUP(Operations!$D17,ImpDepLookup,4,FALSE)*(Operations!$G17*Operations!$H17/Operations!$I17)^0.5)^2) -> 26175.91862 | Q17: =IF(Operations!$N17=0,0,Operations!$N17*(VLOOKUP(Operations!$D17,ImpDepLookup,2,FALSE)-VLOOKUP(Operations!$D17,ImpDepLookup,3,FALSE)*(Operations!$G17+1)^0.5-VLOOKUP(Operations!$D17,ImpDepLookup,4,FALSE)*(Operations!$G17*Operations!$H17/Operations!$I17)^0.5)^2) -> 23815.63859 | R17: =IF(Operations!$N17=0,0,IF(Operations!$I17*Operations!$H17=0,0,(Operations!$P17-Operations!$Q17)/(Operations!$H17))) -> 2.360280023 | S17: =IF(Operations!$H17=0,0,Operations!$P17*'General Variables'!$B$9/Operations!$H17) -> 0.5235183723 | T17: =IF(Operations!$H17=0,0,Operations!$P17*'General Variables'!$B$10/Operations!$H17) -> 0.7852775585 | U17: =SUM(Table3[[#This Row],[Depreciation per Unit]:[Opportunity Cost per Unit]]) -> 3.669075954 | W17: Forage harvester | X17: HARVESTING | Y17: 0.15 | Z17: 1.6 | AA17: 2500
A18: Combine Irrigated Dry Beans with Draper Flex Platform | B18: acre | C18: Combine | D18: Combines | E18: 44957 | G18: 5 | H18: 1000 | I18: 5.5 | J18: 1.1 | K18: Combine | L18: 10.5 | N18: =IF(Operations!$E18>1,Operations!$E18,IF(Operations!$D18=0,0,Operations!$F18/(VLOOKUP(Operations!$D18,ImpDepLookup,2,FALSE)-VLOOKUP(Operations!$D18,ImpDepLookup,3,FALSE)*Operations!$G18^0.5-VLOOKUP(Operations!$D18,ImpDepLookup,4,FALSE)*(Operations!$G18*(Operations!$G18*Operations!$H18/Operations!$I18)^0.5))^2)) -> 44957 | O18: =IF(Operations!$C18="",0,(((Operations!$G18+1)*Operations!$H18/Operations!$I18/1000)^VLOOKUP(Operations!$C18,ImpRepairFac[],4,FALSE)-(Operations!$G18*Operations!$H18/Operations!$I18/1000)^VLOOKUP(Operations!$C18,ImpRepairFac[],4,FALSE))*Operations!$N18*VLOOKUP(Operations!$C18,ImpRepairFac[],3,FALSE)/Operations!$H18) -> 2.257236511 | P18: =IF(Operations!$N18=0,0,Operations!$N18*(VLOOKUP(Operations!$D18,ImpDepLookup,2,FALSE)-VLOOKUP(Operations!$D18,ImpDepLookup,3,FALSE)*Operations!$G18^0.5-VLOOKUP(Operations!$D18,ImpDepLookup,4,FALSE)*(Operations!$G18*Operations!$H18/Operations!$I18)^0.5)^2) -> 26175.91862 | Q18: =IF(Operations!$N18=0,0,Operations!$N18*(VLOOKUP(Operations!$D18,ImpDepLookup,2,FALSE)-VLOOKUP(Operations!$D18,ImpDepLookup,3,FALSE)*(Operations!$G18+1)^0.5-VLOOKUP(Operations!$D18,ImpDepLookup,4,FALSE)*(Operations!$G18*Operations!$H18/Operations!$I18)^0.5)^2) -> 23815.63859 | R18: =IF(Operations!$N18=0,0,IF(Operations!$I18*Operations!$H18=0,0,(Operations!$P18-Operations!$Q18)/(Operations!$H18))) -> 2.360280023 | S18: =IF(Operations!$H18=0,0,Operations!$P18*'General Variables'!$B$9/Operations!$H18) -> 0.5235183723 | T18: =IF(Operations!$H18=0,0,Operations!$P18*'General Variables'!$B$10/Operations!$H18) -> 0.7852775585 | U18: =SUM(Table3[[#This Row],[Depreciation per Unit]:[Opportunity Cost per Unit]]) -> 3.669075954 | W18: Harrow - Spring tooth | X18: TILLAGE&PLANTING | Y18: 0.27 | Z18: 1.4 | AA18: 2000
A19: Combine Small Grain | B19: acre | C19: Combine | D19: Combines | E19: 44957 | F19: 15000 | G19: 5 | H19: 1000 | I19: 8 | J19: 1.1 | K19: Combine | L19: 10.46803279 | N19: =IF(Operations!$E19>1,Operations!$E19,IF(Operations!$D19=0,0,Operations!$F19/(VLOOKUP(Operations!$D19,ImpDepLookup,2,FALSE)-VLOOKUP(Operations!$D19,ImpDepLookup,3,FALSE)*Operations!$G19^0.5-VLOOKUP(Operations!$D19,ImpDepLookup,4,FALSE)*(Operations!$G19*(Operations!$G19*Operations!$H19/Operations!$I19)^0.5))^2)) -> 44957 | O19: =IF(Operations!$C19="",0,(((Operations!$G19+1)*Operations!$H19/Operations!$I19/1000)^VLOOKUP(Operations!$C19,ImpRepairFac[],4,FALSE)-(Operations!$G19*Operations!$H19/Operations!$I19/1000)^VLOOKUP(Operations!$C19,ImpRepairFac[],4,FALSE))*Operations!$N19*VLOOKUP(Operations!$C19,ImpRepairFac[],3,FALSE)/Operations!$H19) -> 0.9534639608 | P19: =IF(Operations!$N19=0,0,Operations!$N19*(VLOOKUP(Operations!$D19,ImpDepLookup,2,FALSE)-VLOOKUP(Operations!$D19,ImpDepLookup,3,FALSE)*Operations!$G19^0.5-VLOOKUP(Operations!$D19,ImpDepLookup,4,FALSE)*(Operations!$G19*Operations!$H19/Operations!$I19)^0.5)^2) -> 26175.91862 | Q19: =IF(Operations!$N19=0,0,Operations!$N19*(VLOOKUP(Operations!$D19,ImpDepLookup,2,FALSE)-VLOOKUP(Operations!$D19,ImpDepLookup,3,FALSE)*(Operations!$G19+1)^0.5-VLOOKUP(Operations!$D19,ImpDepLookup,4,FALSE)*(Operations!$G19*Operations!$H19/Operations!$I19)^0.5)^2) -> 23815.63859 | R19: =IF(Operations!$N19=0,0,IF(Operations!$I19*Operations!$H19=0,0,(Operations!$P19-Operations!$Q19)/(Operations!$H19))) -> 2.360280023 | S19: =IF(Operations!$H19=0,0,Operations!$P19*'General Variables'!$B$9/Operations!$H19) -> 0.5235183723 | T19: =IF(Operations!$H19=0,0,Operations!$P19*'General Variables'!$B$10/Operations!$H19) -> 0.7852775585 | U19: =SUM(Table3[[#This Row],[Depreciation per Unit]:[Opportunity Cost per Unit]]) -> 3.669075954 | W19: Mower | X19: HARVESTING | Y19: 0.46 | Z19: 1.7 | AA19: 2000
A20: Combine Sunflowers | B20: acre | C20: Combine | D20: Combines | E20: 56787 | G20: 5 | H20: 1000 | I20: 8 | J20: 1.1 | K20: Combine | L20: 10.5 | N20: =IF(Operations!$E20>1,Operations!$E20,IF(Operations!$D20=0,0,Operations!$F20/(VLOOKUP(Operations!$D20,ImpDepLookup,2,FALSE)-VLOOKUP(Operations!$D20,ImpDepLookup,3,FALSE)*Operations!$G20^0.5-VLOOKUP(Operations!$D20,ImpDepLookup,4,FALSE)*(Operations!$G20*(Operations!$G20*Operations!$H20/Operations!$I20)^0.5))^2)) -> 56787 | O20: =IF(Operations!$C20="",0,(((Operations!$G20+1)*Operations!$H20/Operations!$I20/1000)^VLOOKUP(Operations!$C20,ImpRepairFac[],4,FALSE)-(Operations!$G20*Operations!$H20/Operations!$I20/1000)^VLOOKUP(Operations!$C20,ImpRepairFac[],4,FALSE))*Operations!$N20*VLOOKUP(Operations!$C20,ImpRepairFac[],3,FALSE)/Operations!$H20) -> 1.204358786 | P20: =IF(Operations!$N20=0,0,Operations!$N20*(VLOOKUP(Operations!$D20,ImpDepLookup,2,FALSE)-VLOOKUP(Operations!$D20,ImpDepLookup,3,FALSE)*Operations!$G20^0.5-VLOOKUP(Operations!$D20,ImpDepLookup,4,FALSE)*(Operations!$G20*Operations!$H20/Operations!$I20)^0.5)^2) -> 33063.85859 | Q20: =IF(Operations!$N20=0,0,Operations!$N20*(VLOOKUP(Operations!$D20,ImpDepLookup,2,FALSE)-VLOOKUP(Operations!$D20,ImpDepLookup,3,FALSE)*(Operations!$G20+1)^0.5-VLOOKUP(Operations!$D20,ImpDepLookup,4,FALSE)*(Operations!$G20*Operations!$H20/Operations!$I20)^0.5)^2) -> 30082.49369 | R20: =IF(Operations!$N20=0,0,IF(Operations!$I20*Operations!$H20=0,0,(Operations!$P20-Operations!$Q20)/(Operations!$H20))) -> 2.981364897 | S20: =IF(Operations!$H20=0,0,Operations!$P20*'General Variables'!$B$9/Operations!$H20) -> 0.6612771717 | T20: =IF(Operations!$H20=0,0,Operations!$P20*'General Variables'!$B$10/Operations!$H20) -> 0.9919157576 | U20: =SUM(Table3[[#This Row],[Depreciation per Unit]:[Opportunity Cost per Unit]]) -> 4.634557826 | W20: Mower(rotary) | X20: HARVESTING | Y20: 0.44 | Z20: 2.0 | AA20: 2000
A21: Corrugate | B21: acre | C21: Cultivator - Field | D21: Disks and all other tillage equipment | E21: 30000 | G21: 5 | H21: 300 | I21: 7.021276596 | J21: 1.1 | K21: Medium Tractor | L21: 4.388297872 | N21: =IF(Operations!$E21>1,Operations!$E21,IF(Operations!$D21=0,0,Operations!$F21/(VLOOKUP(Operations!$D21,ImpDepLookup,2,FALSE)-VLOOKUP(Operations!$D21,ImpDepLookup,3,FALSE)*Operations!$G21^0.5-VLOOKUP(Operations!$D21,ImpDepLookup,4,FALSE)*(Operations!$G21*(Operations!$G21*Operations!$H21/Operations!$I21)^0.5))^2)) -> 30000 | O21: =IF(Operations!$C21="",0,(((Operations!$G21+1)*Operations!$H21/Operations!$I21/1000)^VLOOKUP(Operations!$C21,ImpRepairFac[],4,FALSE)-(Operations!$G21*Operations!$H21/Operations!$I21/1000)^VLOOKUP(Operations!$C21,ImpRepairFac[],4,FALSE))*Operations!$N21*VLOOKUP(Operations!$C21,ImpRepairFac[],3,FALSE)/Operations!$H21) -> 0.9046493546 | P21: =IF(Operations!$N21=0,0,Operations!$N21*(VLOOKUP(Operations!$D21,ImpDepLookup,2,FALSE)-VLOOKUP(Operations!$D21,ImpDepLookup,3,FALSE)*Operations!$G21^0.5-VLOOKUP(Operations!$D21,ImpDepLookup,4,FALSE)*(Operations!$G21*Operations!$H21/Operations!$I21)^0.5)^2) -> 12482.00865 | Q21: =IF(Operations!$N21=0,0,Operations!$N21*(VLOOKUP(Operations!$D21,ImpDepLookup,2,FALSE)-VLOOKUP(Operations!$D21,ImpDepLookup,3,FALSE)*(Operations!$G21+1)^0.5-VLOOKUP(Operations!$D21,ImpDepLookup,4,FALSE)*(Operations!$G21*Operations!$H21/Operations!$I21)^0.5)^2) -> 11589.96062 | R21: =IF(Operations!$N21=0,0,IF(Operations!$I21*Operations!$H21=0,0,(Operations!$P21-Operations!$Q21)/(Operations!$H21))) -> 2.973493443 | S21: =IF(Operations!$H21=0,0,Operations!$P21*'General Variables'!$B$9/Operations!$H21) -> 0.8321339101 | T21: =IF(Operations!$H21=0,0,Operations!$P21*'General Variables'!$B$10/Operations!$H21) -> 1.248200865 | U21: =SUM(Table3[[#This Row],[Depreciation per Unit]:[Opportunity Cost per Unit]]) -> 5.053828218 | W21: Mower-conditioner | X21: HARVESTING | Y21: 0.18 | Z21: 1.6 | AA21: 2500
A22: Disk | B22: acre | C22: Disk - Heavy-duty | D22: Disks and all other tillage equipment | E22: 48182 | G22: 5 | H22: 2000 | I22: 10.90909091 | J22: 1.1 | K22: Large Tractor | L22: 8.290909091 | N22: =IF(Operations!$E22>1,Operations!$E22,IF(Operations!$D22=0,0,Operations!$F22/(VLOOKUP(Operations!$D22,ImpDepLookup,2,FALSE)-VLOOKUP(Operations!$D22,ImpDepLookup,3,FALSE)*Operations!$G22^0.5-VLOOKUP(Operations!$D22,ImpDepLookup,4,FALSE)*(Operations!$G22*(Operations!$G22*Operations!$H22/Operations!$I22)^0.5))^2)) -> 48182 | O22: =IF(Operations!$C22="",0,(((Operations!$G22+1)*Operations!$H22/Operations!$I22/1000)^VLOOKUP(Operations!$C22,ImpRepairFac[],4,FALSE)-(Operations!$G22*Operations!$H22/Operations!$I22/1000)^VLOOKUP(Operations!$C22,ImpRepairFac[],4,FALSE))*Operations!$N22*VLOOKUP(Operations!$C22,ImpRepairFac[],3,FALSE)/Operations!$H22) -> 1.358985364 | P22: =IF(Operations!$N22=0,0,Operations!$N22*(VLOOKUP(Operations!$D22,ImpDepLookup,2,FALSE)-VLOOKUP(Operations!$D22,ImpDepLookup,3,FALSE)*Operations!$G22^0.5-VLOOKUP(Operations!$D22,ImpDepLookup,4,FALSE)*(Operations!$G22*Operations!$H22/Operations!$I22)^0.5)^2) -> 20046.93803 | Q22: =IF(Operations!$N22=0,0,Operations!$N22*(VLOOKUP(Operations!$D22,ImpDepLookup,2,FALSE)-VLOOKUP(Operations!$D22,ImpDepLookup,3,FALSE)*(Operations!$G22+1)^0.5-VLOOKUP(Operations!$D22,ImpDepLookup,4,FALSE)*(Operations!$G22*Operations!$H22/Operations!$I22)^0.5)^2) -> 18614.24942 | R22: =IF(Operations!$N22=0,0,IF(Operations!$I22*Operations!$H22=0,0,(Operations!$P22-Operations!$Q22)/(Operations!$H22))) -> 0.7163443054 | S22: =IF(Operations!$H22=0,0,Operations!$P22*'General Variables'!$B$9/Operations!$H22) -> 0.2004693803 | T22: =IF(Operations!$H22=0,0,Operations!$P22*'General Variables'!$B$10/Operations!$H22) -> 0.3007040704 | U22: =SUM(Table3[[#This Row],[Depreciation per Unit]:[Opportunity Cost per Unit]]) -> 1.217517756 | W22: Mower-conditioner(rotary) | X22: HARVESTING | Y22: 0.16 | Z22: 2.0 | AA22: 2500
A23: Ditch Irrigation | B23: acre-inch | G23: 5 | H23: 1000 | I23: 1.8 | J23: 0.1 | K23: Diesel Pump for Pipe | L23: 0 | N23: =IF(Operations!$E23>1,Operations!$E23,IF(Operations!$D23=0,0,Operations!$F23/(VLOOKUP(Operations!$D23,ImpDepLookup,2,FALSE)-VLOOKUP(Operations!$D23,ImpDepLookup,3,FALSE)*Operations!$G23^0.5-VLOOKUP(Operations!$D23,ImpDepLookup,4,FALSE)*(Operations!$G23*(Operations!$G23*Operations!$H23/Operations!$I23)^0.5))^2)) -> 0 | O23: =IF(Operations!$C23="",0,(((Operations!$G23+1)*Operations!$H23/Operations!$I23/1000)^VLOOKUP(Operations!$C23,ImpRepairFac[],4,FALSE)-(Operations!$G23*Operations!$H23/Operations!$I23/1000)^VLOOKUP(Operations!$C23,ImpRepairFac[],4,FALSE))*Operations!$N23*VLOOKUP(Operations!$C23,ImpRepairFac[],3,FALSE)/Operations!$H23) -> 0 | P23: =IF(Operations!$N23=0,0,Operations!$N23*(VLOOKUP(Operations!$D23,ImpDepLookup,2,FALSE)-VLOOKUP(Operations!$D23,ImpDepLookup,3,FALSE)*Operations!$G23^0.5-VLOOKUP(Operations!$D23,ImpDepLookup,4,FALSE)*(Operations!$G23*Operations!$H23/Operations!$I23)^0.5)^2) -> 0 | Q23: =IF(Operations!$N23=0,0,Operations!$N23*(VLOOKUP(Operations!$D23,ImpDepLookup,2,FALSE)-VLOOKUP(Operations!$D23,ImpDepLookup,3,FALSE)*(Operations!$G23+1)^0.5-VLOOKUP(Operations!$D23,ImpDepLookup,4,FALSE)*(Operations!$G23*Operations!$H23/Operations!$I23)^0.5)^2) -> 0 | R23: =IF(Operations!$N23=0,0,IF(Operations!$I23*Operations!$H23=0,0,(Operations!$P23-Operations!$Q23)/(Operations!$H23))) -> 0 | S23: =IF(Operations!$H23=0,0,Operations!$P23*'General Variables'!$B$9/Operations!$H23) -> 0 | T23: =IF(Operations!$H23=0,0,Operations!$P23*'General Variables'!$B$10/Operations!$H23) -> 0 | U23: =SUM(Table3[[#This Row],[Depreciation per Unit]:[Opportunity Cost per Unit]]) -> 0 | W23: Mulcher-packer | X23: TILLAGE&PLANTING | Y23: 0.16 | Z23: 1.3 | AA23: 2000
A24: Double Windrows | B24: acre | C24: Rake - Side delivery | D24: Swathers and all other harvest equipment | E24: 7403 | G24: 20 | H24: 300 | I24: 20 | J24: 1.1 | K24: Medium Tractor | L24: 2.107042254 | N24: =IF(Operations!$E24>1,Operations!$E24,IF(Operations!$D24=0,0,Operations!$F24/(VLOOKUP(Operations!$D24,ImpDepLookup,2,FALSE)-VLOOKUP(Operations!$D24,ImpDepLookup,3,FALSE)*Operations!$G24^0.5-VLOOKUP(Operations!$D24,ImpDepLookup,4,FALSE)*(Operations!$G24*(Operations!$G24*Operations!$H24/Operations!$I24)^0.5))^2)) -> 7403 | O24: =IF(Operations!$C24="",0,(((Operations!$G24+1)*Operations!$H24/Operations!$I24/1000)^VLOOKUP(Operations!$C24,ImpRepairFac[],4,FALSE)-(Operations!$G24*Operations!$H24/Operations!$I24/1000)^VLOOKUP(Operations!$C24,ImpRepairFac[],4,FALSE))*Operations!$N24*VLOOKUP(Operations!$C24,ImpRepairFac[],3,FALSE)/Operations!$H24) -> 0.05496451792 | P24: =IF(Operations!$N24=0,0,Operations!$N24*(VLOOKUP(Operations!$D24,ImpDepLookup,2,FALSE)-VLOOKUP(Operations!$D24,ImpDepLookup,3,FALSE)*Operations!$G24^0.5-VLOOKUP(Operations!$D24,ImpDepLookup,4,FALSE)*(Operations!$G24*Operations!$H24/Operations!$I24)^0.5)^2) -> 1091.819341 | Q24: =IF(Operations!$N24=0,0,Operations!$N24*(VLOOKUP(Operations!$D24,ImpDepLookup,2,FALSE)-VLOOKUP(Operations!$D24,ImpDepLookup,3,FALSE)*(Operations!$G24+1)^0.5-VLOOKUP(Operations!$D24,ImpDepLookup,4,FALSE)*(Operations!$G24*Operations!$H24/Operations!$I24)^0.5)^2) -> 1035.422355 | R24: =IF(Operations!$N24=0,0,IF(Operations!$I24*Operations!$H24=0,0,(Operations!$P24-Operations!$Q24)/(Operations!$H24))) -> 0.1879899521 | S24: =IF(Operations!$H24=0,0,Operations!$P24*'General Variables'!$B$9/Operations!$H24) -> 0.07278795607 | T24: =IF(Operations!$H24=0,0,Operations!$P24*'General Variables'!$B$10/Operations!$H24) -> 0.1091819341 | U24: =SUM(Table3[[#This Row],[Depreciation per Unit]:[Opportunity Cost per Unit]]) -> 0.3699598422 | W24: Planter - Row crop | X24: TILLAGE&PLANTING | Y24: 0.32 | Z24: 2.1 | AA24: 1500
A25: Drill | B25: acre | C25: Drill - Grain | D25: Planters | E25: 74203 | G25: 10 | H25: 1000 | I25: 12.5 | J25: 1.1 | K25: Medium Tractor | L25: 4.986666667 | N25: =IF(Operations!$E25>1,Operations!$E25,IF(Operations!$D25=0,0,Operations!$F25/(VLOOKUP(Operations!$D25,ImpDepLookup,2,FALSE)-VLOOKUP(Operations!$D25,ImpDepLookup,3,FALSE)*Operations!$G25^0.5-VLOOKUP(Operations!$D25,ImpDepLookup,4,FALSE)*(Operations!$G25*(Operations!$G25*Operations!$H25/Operations!$I25)^0.5))^2)) -> 74203 | O25: =IF(Operations!$C25="",0,(((Operations!$G25+1)*Operations!$H25/Operations!$I25/1000)^VLOOKUP(Operations!$C25,ImpRepairFac[],4,FALSE)-(Operations!$G25*Operations!$H25/Operations!$I25/1000)^VLOOKUP(Operations!$C25,ImpRepairFac[],4,FALSE))*Operations!$N25*VLOOKUP(Operations!$C25,ImpRepairFac[],3,FALSE)/Operations!$H25) -> 3.29310817 | P25: =IF(Operations!$N25=0,0,Operations!$N25*(VLOOKUP(Operations!$D25,ImpDepLookup,2,FALSE)-VLOOKUP(Operations!$D25,ImpDepLookup,3,FALSE)*Operations!$G25^0.5-VLOOKUP(Operations!$D25,ImpDepLookup,4,FALSE)*(Operations!$G25*Operations!$H25/Operations!$I25)^0.5)^2) -> 30047.1378 | Q25: =IF(Operations!$N25=0,0,Operations!$N25*(VLOOKUP(Operations!$D25,ImpDepLookup,2,FALSE)-VLOOKUP(Operations!$D25,ImpDepLookup,3,FALSE)*(Operations!$G25+1)^0.5-VLOOKUP(Operations!$D25,ImpDepLookup,4,FALSE)*(Operations!$G25*Operations!$H25/Operations!$I25)^0.5)^2) -> 28920.95824 | R25: =IF(Operations!$N25=0,0,IF(Operations!$I25*Operations!$H25=0,0,(Operations!$P25-Operations!$Q25)/(Operations!$H25))) -> 1.126179561 | S25: =IF(Operations!$H25=0,0,Operations!$P25*'General Variables'!$B$9/Operations!$H25) -> 0.600942756 | T25: =IF(Operations!$H25=0,0,Operations!$P25*'General Variables'!$B$10/Operations!$H25) -> 0.9014141339 | U25: =SUM(Table3[[#This Row],[Depreciation per Unit]:[Opportunity Cost per Unit]]) -> 2.628536451 | W25: Plow - Moldboard | X25: TILLAGE&PLANTING | Y25: 0.29 | Z25: 1.8 | AA25: 2000
A26: Drill w/ Fertilizer | B26: acre | C26: Drill - Grain | D26: Planters | E26: 74203 | G26: 10 | H26: 1000 | I26: 11 | J26: 1.2 | K26: Medium Tractor | L26: 5 | N26: =IF(Operations!$E26>1,Operations!$E26,IF(Operations!$D26=0,0,Operations!$F26/(VLOOKUP(Operations!$D26,ImpDepLookup,2,FALSE)-VLOOKUP(Operations!$D26,ImpDepLookup,3,FALSE)*Operations!$G26^0.5-VLOOKUP(Operations!$D26,ImpDepLookup,4,FALSE)*(Operations!$G26*(Operations!$G26*Operations!$H26/Operations!$I26)^0.5))^2)) -> 74203 | O26: =IF(Operations!$C26="",0,(((Operations!$G26+1)*Operations!$H26/Operations!$I26/1000)^VLOOKUP(Operations!$C26,ImpRepairFac[],4,FALSE)-(Operations!$G26*Operations!$H26/Operations!$I26/1000)^VLOOKUP(Operations!$C26,ImpRepairFac[],4,FALSE))*Operations!$N26*VLOOKUP(Operations!$C26,ImpRepairFac[],3,FALSE)/Operations!$H26) -> 4.307173685 | P26: =IF(Operations!$N26=0,0,Operations!$N26*(VLOOKUP(Operations!$D26,ImpDepLookup,2,FALSE)-VLOOKUP(Operations!$D26,ImpDepLookup,3,FALSE)*Operations!$G26^0.5-VLOOKUP(Operations!$D26,ImpDepLookup,4,FALSE)*(Operations!$G26*Operations!$H26/Operations!$I26)^0.5)^2) -> 30047.1378 | Q26: =IF(Operations!$N26=0,0,Operations!$N26*(VLOOKUP(Operations!$D26,ImpDepLookup,2,FALSE)-VLOOKUP(Operations!$D26,ImpDepLookup,3,FALSE)*(Operations!$G26+1)^0.5-VLOOKUP(Operations!$D26,ImpDepLookup,4,FALSE)*(Operations!$G26*Operations!$H26/Operations!$I26)^0.5)^2) -> 28920.95824 | R26: =IF(Operations!$N26=0,0,IF(Operations!$I26*Operations!$H26=0,0,(Operations!$P26-Operations!$Q26)/(Operations!$H26))) -> 1.126179561 | S26: =IF(Operations!$H26=0,0,Operations!$P26*'General Variables'!$B$9/Operations!$H26) -> 0.600942756 | T26: =IF(Operations!$H26=0,0,Operations!$P26*'General Variables'!$B$10/Operations!$H26) -> 0.9014141339 | U26: =SUM(Table3[[#This Row],[Depreciation per Unit]:[Opportunity Cost per Unit]]) -> 2.628536451 | W26: Potato harvester | X26: HARVESTING | Y26: 0.19 | Z26: 1.4 | AA26: 2500
A27: Dry Grain | B27: bushel | N27: =IF(Operations!$E27>1,Operations!$E27,IF(Operations!$D27=0,0,Operations!$F27/(VLOOKUP(Operations!$D27,ImpDepLookup,2,FALSE)-VLOOKUP(Operations!$D27,ImpDepLookup,3,FALSE)*Operations!$G27^0.5-VLOOKUP(Operations!$D27,ImpDepLookup,4,FALSE)*(Operations!$G27*(Operations!$G27*Operations!$H27/Operations!$I27)^0.5))^2)) -> 0 | O27: =IF(Operations!$C27="",0,(((Operations!$G27+1)*Operations!$H27/Operations!$I27/1000)^VLOOKUP(Operations!$C27,ImpRepairFac[],4,FALSE)-(Operations!$G27*Operations!$H27/Operations!$I27/1000)^VLOOKUP(Operations!$C27,ImpRepairFac[],4,FALSE))*Operations!$N27*VLOOKUP(Operations!$C27,ImpRepairFac[],3,FALSE)/Operations!$H27) -> 0 | P27: =IF(Operations!$N27=0,0,Operations!$N27*(VLOOKUP(Operations!$D27,ImpDepLookup,2,FALSE)-VLOOKUP(Operations!$D27,ImpDepLookup,3,FALSE)*Operations!$G27^0.5-VLOOKUP(Operations!$D27,ImpDepLookup,4,FALSE)*(Operations!$G27*Operations!$H27/Operations!$I27)^0.5)^2) -> 0 | Q27: =IF(Operations!$N27=0,0,Operations!$N27*(VLOOKUP(Operations!$D27,ImpDepLookup,2,FALSE)-VLOOKUP(Operations!$D27,ImpDepLookup,3,FALSE)*(Operations!$G27+1)^0.5-VLOOKUP(Operations!$D27,ImpDepLookup,4,FALSE)*(Operations!$G27*Operations!$H27/Operations!$I27)^0.5)^2) -> 0 | R27: =IF(Operations!$N27=0,0,IF(Operations!$I27*Operations!$H27=0,0,(Operations!$P27-Operations!$Q27)/(Operations!$H27))) -> 0 | S27: =IF(Operations!$H27=0,0,Operations!$P27*'General Variables'!$B$9/Operations!$H27) -> 0 | T27: =IF(Operations!$H27=0,0,Operations!$P27*'General Variables'!$B$10/Operations!$H27) -> 0 | U27: =SUM(Table3[[#This Row],[Depreciation per Unit]:[Opportunity Cost per Unit]]) -> 0 | W27: Rake - Side delivery | X27: HARVESTING | Y27: 0.17 | Z27: 1.4 | AA27: 2500
A28: Field Cultivation | B28: acre | C28: Cultivator - Field | D28: Disks and all other tillage equipment | E28: 64048 | G28: 5 | H28: 2000 | I28: 15 | J28: 1.1 | K28: Medium Tractor | L28: 8.196774194 | N28: =IF(Operations!$E28>1,Operations!$E28,IF(Operations!$D28=0,0,Operations!$F28/(VLOOKUP(Operations!$D28,ImpDepLookup,2,FALSE)-VLOOKUP(Operations!$D28,ImpDepLookup,3,FALSE)*Operations!$G28^0.5-VLOOKUP(Operations!$D28,ImpDepLookup,4,FALSE)*(Operations!$G28*(Operations!$G28*Operations!$H28/Operations!$I28)^0.5))^2)) -> 64048 | O28: =IF(Operations!$C28="",0,(((Operations!$G28+1)*Operations!$H28/Operations!$I28/1000)^VLOOKUP(Operations!$C28,ImpRepairFac[],4,FALSE)-(Operations!$G28*Operations!$H28/Operations!$I28/1000)^VLOOKUP(Operations!$C28,ImpRepairFac[],4,FALSE))*Operations!$N28*VLOOKUP(Operations!$C28,ImpRepairFac[],3,FALSE)/Operations!$H28) -> 1.425223072 | P28: =IF(Operations!$N28=0,0,Operations!$N28*(VLOOKUP(Operations!$D28,ImpDepLookup,2,FALSE)-VLOOKUP(Operations!$D28,ImpDepLookup,3,FALSE)*Operations!$G28^0.5-VLOOKUP(Operations!$D28,ImpDepLookup,4,FALSE)*(Operations!$G28*Operations!$H28/Operations!$I28)^0.5)^2) -> 26648.25634 | Q28: =IF(Operations!$N28=0,0,Operations!$N28*(VLOOKUP(Operations!$D28,ImpDepLookup,2,FALSE)-VLOOKUP(Operations!$D28,ImpDepLookup,3,FALSE)*(Operations!$G28+1)^0.5-VLOOKUP(Operations!$D28,ImpDepLookup,4,FALSE)*(Operations!$G28*Operations!$H28/Operations!$I28)^0.5)^2) -> 24743.79326 | R28: =IF(Operations!$N28=0,0,IF(Operations!$I28*Operations!$H28=0,0,(Operations!$P28-Operations!$Q28)/(Operations!$H28))) -> 0.9522315402 | S28: =IF(Operations!$H28=0,0,Operations!$P28*'General Variables'!$B$9/Operations!$H28) -> 0.2664825634 | T28: =IF(Operations!$H28=0,0,Operations!$P28*'General Variables'!$B$10/Operations!$H28) -> 0.3997238451 | U28: =SUM(Table3[[#This Row],[Depreciation per Unit]:[Opportunity Cost per Unit]]) -> 1.618437949 | W28: Roller-packer | X28: TILLAGE&PLANTING | Y28: 0.16 | Z28: 1.3 | AA28: 2000
A29: Grass Drill | B29: acre | C29: Drill - Grain | D29: Planters | E29: 74203 | G29: 10 | H29: 1000 | I29: 9 | J29: 1.1 | K29: Medium Tractor | L29: 4.293680297 | N29: =IF(Operations!$E29>1,Operations!$E29,IF(Operations!$D29=0,0,Operations!$F29/(VLOOKUP(Operations!$D29,ImpDepLookup,2,FALSE)-VLOOKUP(Operations!$D29,ImpDepLookup,3,FALSE)*Operations!$G29^0.5-VLOOKUP(Operations!$D29,ImpDepLookup,4,FALSE)*(Operations!$G29*(Operations!$G29*Operations!$H29/Operations!$I29)^0.5))^2)) -> 74203 | O29: =IF(Operations!$C29="",0,(((Operations!$G29+1)*Operations!$H29/Operations!$I29/1000)^VLOOKUP(Operations!$C29,ImpRepairFac[],4,FALSE)-(Operations!$G29*Operations!$H29/Operations!$I29/1000)^VLOOKUP(Operations!$C29,ImpRepairFac[],4,FALSE))*Operations!$N29*VLOOKUP(Operations!$C29,ImpRepairFac[],3,FALSE)/Operations!$H29) -> 6.564592223 | P29: =IF(Operations!$N29=0,0,Operations!$N29*(VLOOKUP(Operations!$D29,ImpDepLookup,2,FALSE)-VLOOKUP(Operations!$D29,ImpDepLookup,3,FALSE)*Operations!$G29^0.5-VLOOKUP(Operations!$D29,ImpDepLookup,4,FALSE)*(Operations!$G29*Operations!$H29/Operations!$I29)^0.5)^2) -> 30047.1378 | Q29: =IF(Operations!$N29=0,0,Operations!$N29*(VLOOKUP(Operations!$D29,ImpDepLookup,2,FALSE)-VLOOKUP(Operations!$D29,ImpDepLookup,3,FALSE)*(Operations!$G29+1)^0.5-VLOOKUP(Operations!$D29,ImpDepLookup,4,FALSE)*(Operations!$G29*Operations!$H29/Operations!$I29)^0.5)^2) -> 28920.95824 | R29: =IF(Operations!$N29=0,0,IF(Operations!$I29*Operations!$H29=0,0,(Operations!$P29-Operations!$Q29)/(Operations!$H29))) -> 1.126179561 | S29: =IF(Operations!$H29=0,0,Operations!$P29*'General Variables'!$B$9/Operations!$H29) -> 0.600942756 | T29: =IF(Operations!$H29=0,0,Operations!$P29*'General Variables'!$B$10/Operations!$H29) -> 0.9014141339 | U29: =SUM(Table3[[#This Row],[Depreciation per Unit]:[Opportunity Cost per Unit]]) -> 2.628536451 | W29: Rotary hoe | X29: TILLAGE&PLANTING | Y29: 0.23 | Z29: 1.4 | AA29: 2000
A30: Harrow | B30: acre | C30: Harrow - Spring tooth | D30: Disks and all other tillage equipment | G30: 5 | H30: 1000 | I30: 18.5915493 | J30: 1.1 | K30: Medium Tractor | L30: 2.045070423 | N30: =IF(Operations!$E30>1,Operations!$E30,IF(Operations!$D30=0,0,Operations!$F30/(VLOOKUP(Operations!$D30,ImpDepLookup,2,FALSE)-VLOOKUP(Operations!$D30,ImpDepLookup,3,FALSE)*Operations!$G30^0.5-VLOOKUP(Operations!$D30,ImpDepLookup,4,FALSE)*(Operations!$G30*(Operations!$G30*Operations!$H30/Operations!$I30)^0.5))^2)) -> 0 | O30: =IF(Operations!$C30="",0,(((Operations!$G30+1)*Operations!$H30/Operations!$I30/1000)^VLOOKUP(Operations!$C30,ImpRepairFac[],4,FALSE)-(Operations!$G30*Operations!$H30/Operations!$I30/1000)^VLOOKUP(Operations!$C30,ImpRepairFac[],4,FALSE))*Operations!$N30*VLOOKUP(Operations!$C30,ImpRepairFac[],3,FALSE)/Operations!$H30) -> 0 | P30: =IF(Operations!$N30=0,0,Operations!$N30*(VLOOKUP(Operations!$D30,ImpDepLookup,2,FALSE)-VLOOKUP(Operations!$D30,ImpDepLookup,3,FALSE)*Operations!$G30^0.5-VLOOKUP(Operations!$D30,ImpDepLookup,4,FALSE)*(Operations!$G30*Operations!$H30/Operations!$I30)^0.5)^2) -> 0 | Q30: =IF(Operations!$N30=0,0,Operations!$N30*(VLOOKUP(Operations!$D30,ImpDepLookup,2,FALSE)-VLOOKUP(Operations!$D30,ImpDepLookup,3,FALSE)*(Operations!$G30+1)^0.5-VLOOKUP(Operations!$D30,ImpDepLookup,4,FALSE)*(Operations!$G30*Operations!$H30/Operations!$I30)^0.5)^2) -> 0 | R30: =IF(Operations!$N30=0,0,IF(Operations!$I30*Operations!$H30=0,0,(Operations!$P30-Operations!$Q30)/(Operations!$H30))) -> 0 | S30: =IF(Operations!$H30=0,0,Operations!$P30*'General Variables'!$B$9/Operations!$H30) -> 0 | T30: =IF(Operations!$H30=0,0,Operations!$P30*'General Variables'!$B$10/Operations!$H30) -> 0 | U30: =SUM(Table3[[#This Row],[Depreciation per Unit]:[Opportunity Cost per Unit]]) -> 0 | W30: Rotary tiller | X30: TILLAGE&PLANTING | Y30: 0.36 | Z30: 2.0 | AA30: 1500
A31: Lift Beets | B31: acre | C31: Sugar beet harvester | D31: Balers | E31: 125000 | G31: 5 | H31: 1000 | I31: 6 | J31: 1.1 | K31: Large Tractor | L31: 6.190697674 | N31: =IF(Operations!$E31>1,Operations!$E31,IF(Operations!$D31=0,0,Operations!$F31/(VLOOKUP(Operations!$D31,ImpDepLookup,2,FALSE)-VLOOKUP(Operations!$D31,ImpDepLookup,3,FALSE)*Operations!$G31^0.5-VLOOKUP(Operations!$D31,ImpDepLookup,4,FALSE)*(Operations!$G31*(Operations!$G31*Operations!$H31/Operations!$I31)^0.5))^2)) -> 125000 | O31: =IF(Operations!$C31="",0,(((Operations!$G31+1)*Operations!$H31/Operations!$I31/1000)^VLOOKUP(Operations!$C31,ImpRepairFac[],4,FALSE)-(Operations!$G31*Operations!$H31/Operations!$I31/1000)^VLOOKUP(Operations!$C31,ImpRepairFac[],4,FALSE))*Operations!$N31*VLOOKUP(Operations!$C31,ImpRepairFac[],3,FALSE)/Operations!$H31) -> 15.56294127 | P31: =IF(Operations!$N31=0,0,Operations!$N31*(VLOOKUP(Operations!$D31,ImpDepLookup,2,FALSE)-VLOOKUP(Operations!$D31,ImpDepLookup,3,FALSE)*Operations!$G31^0.5-VLOOKUP(Operations!$D31,ImpDepLookup,4,FALSE)*(Operations!$G31*Operations!$H31/Operations!$I31)^0.5)^2) -> 49009.0946 | Q31: =IF(Operations!$N31=0,0,Operations!$N31*(VLOOKUP(Operations!$D31,ImpDepLookup,2,FALSE)-VLOOKUP(Operations!$D31,ImpDepLookup,3,FALSE)*(Operations!$G31+1)^0.5-VLOOKUP(Operations!$D31,ImpDepLookup,4,FALSE)*(Operations!$G31*Operations!$H31/Operations!$I31)^0.5)^2) -> 45692.87716 | R31: =IF(Operations!$N31=0,0,IF(Operations!$I31*Operations!$H31=0,0,(Operations!$P31-Operations!$Q31)/(Operations!$H31))) -> 3.316217437 | S31: =IF(Operations!$H31=0,0,Operations!$P31*'General Variables'!$B$9/Operations!$H31) -> 0.980181892 | T31: =IF(Operations!$H31=0,0,Operations!$P31*'General Variables'!$B$10/Operations!$H31) -> 1.470272838 | U31: =SUM(Table3[[#This Row],[Depreciation per Unit]:[Opportunity Cost per Unit]]) -> 5.766672167 | W31: Sprayer - Air-carrier | X31: MISCELLANEOUS | Y31: 0.20 | Z31: 1.6 | AA31: 2000
A32: Load Large Square | B32: ton | C32: Wagon - Forage | D32: Swathers and all other harvest equipment | E32: 4213 | G32: 5 | H32: 3000 | I32: 20 | J32: 1.1 | K32: Medium Tractor | L32: 4 | N32: =IF(Operations!$E32>1,Operations!$E32,IF(Operations!$D32=0,0,Operations!$F32/(VLOOKUP(Operations!$D32,ImpDepLookup,2,FALSE)-VLOOKUP(Operations!$D32,ImpDepLookup,3,FALSE)*Operations!$G32^0.5-VLOOKUP(Operations!$D32,ImpDepLookup,4,FALSE)*(Operations!$G32*(Operations!$G32*Operations!$H32/Operations!$I32)^0.5))^2)) -> 4213 | O32: =IF(Operations!$C32="",0,(((Operations!$G32+1)*Operations!$H32/Operations!$I32/1000)^VLOOKUP(Operations!$C32,ImpRepairFac[],4,FALSE)-(Operations!$G32*Operations!$H32/Operations!$I32/1000)^VLOOKUP(Operations!$C32,ImpRepairFac[],4,FALSE))*Operations!$N32*VLOOKUP(Operations!$C32,ImpRepairFac[],3,FALSE)/Operations!$H32) -> 0.04803192647 | P32: =IF(Operations!$N32=0,0,Operations!$N32*(VLOOKUP(Operations!$D32,ImpDepLookup,2,FALSE)-VLOOKUP(Operations!$D32,ImpDepLookup,3,FALSE)*Operations!$G32^0.5-VLOOKUP(Operations!$D32,ImpDepLookup,4,FALSE)*(Operations!$G32*Operations!$H32/Operations!$I32)^0.5)^2) -> 1454.231467 | Q32: =IF(Operations!$N32=0,0,Operations!$N32*(VLOOKUP(Operations!$D32,ImpDepLookup,2,FALSE)-VLOOKUP(Operations!$D32,ImpDepLookup,3,FALSE)*(Operations!$G32+1)^0.5-VLOOKUP(Operations!$D32,ImpDepLookup,4,FALSE)*(Operations!$G32*Operations!$H32/Operations!$I32)^0.5)^2) -> 1359.676478 | R32: =IF(Operations!$N32=0,0,IF(Operations!$I32*Operations!$H32=0,0,(Operations!$P32-Operations!$Q32)/(Operations!$H32))) -> 0.03151832955 | S32: =IF(Operations!$H32=0,0,Operations!$P32*'General Variables'!$B$9/Operations!$H32) -> 0.009694876447 | T32: =IF(Operations!$H32=0,0,Operations!$P32*'General Variables'!$B$10/Operations!$H32) -> 0.01454231467 | U32: =SUM(Table3[[#This Row],[Depreciation per Unit]:[Opportunity Cost per Unit]]) -> 0.05575552066 | W32: Sprayer - Boom-type | X32: MISCELLANEOUS | Y32: 0.41 | Z32: 1.3 | AA32: 2500
A33: Load Small Square | B33: ton | C33: Wagon | D33: Swathers and all other harvest equipment | E33: 13000 | G33: 5 | H33: 1250 | I33: 10 | J33: 1 | K33: Medium Tractor | L33: 2 | N33: =IF(Operations!$E33>1,Operations!$E33,IF(Operations!$D33=0,0,Operations!$F33/(VLOOKUP(Operations!$D33,ImpDepLookup,2,FALSE)-VLOOKUP(Operations!$D33,ImpDepLookup,3,FALSE)*Operations!$G33^0.5-VLOOKUP(Operations!$D33,ImpDepLookup,4,FALSE)*(Operations!$G33*(Operations!$G33*Operations!$H33/Operations!$I33)^0.5))^2)) -> 13000 | O33: =IF(Operations!$C33="",0,(((Operations!$G33+1)*Operations!$H33/Operations!$I33/1000)^VLOOKUP(Operations!$C33,ImpRepairFac[],4,FALSE)-(Operations!$G33*Operations!$H33/Operations!$I33/1000)^VLOOKUP(Operations!$C33,ImpRepairFac[],4,FALSE))*Operations!$N33*VLOOKUP(Operations!$C33,ImpRepairFac[],3,FALSE)/Operations!$H33) -> 0.2868773342 | P33: =IF(Operations!$N33=0,0,Operations!$N33*(VLOOKUP(Operations!$D33,ImpDepLookup,2,FALSE)-VLOOKUP(Operations!$D33,ImpDepLookup,3,FALSE)*Operations!$G33^0.5-VLOOKUP(Operations!$D33,ImpDepLookup,4,FALSE)*(Operations!$G33*Operations!$H33/Operations!$I33)^0.5)^2) -> 4487.303364 | Q33: =IF(Operations!$N33=0,0,Operations!$N33*(VLOOKUP(Operations!$D33,ImpDepLookup,2,FALSE)-VLOOKUP(Operations!$D33,ImpDepLookup,3,FALSE)*(Operations!$G33+1)^0.5-VLOOKUP(Operations!$D33,ImpDepLookup,4,FALSE)*(Operations!$G33*Operations!$H33/Operations!$I33)^0.5)^2) -> 4195.536249 | R33: =IF(Operations!$N33=0,0,IF(Operations!$I33*Operations!$H33=0,0,(Operations!$P33-Operations!$Q33)/(Operations!$H33))) -> 0.2334136914 | S33: =IF(Operations!$H33=0,0,Operations!$P33*'General Variables'!$B$9/Operations!$H33) -> 0.07179685382 | T33: =IF(Operations!$H33=0,0,Operations!$P33*'General Variables'!$B$10/Operations!$H33) -> 0.1076952807 | U33: =SUM(Table3[[#This Row],[Depreciation per Unit]:[Opportunity Cost per Unit]]) -> 0.412905826 | W33: Stalk chopper | X33: MISCELLANEOUS | Y33: 0.28 | Z33: 1.4 | AA33: 1200
A34: Move Large Round | B34: ton | D34: Swathers and all other harvest equipment | E34: 4213 | G34: 5 | H34: 3000 | I34: 21 | J34: 1.1 | K34: Medium Tractor | L34: 4 | N34: =IF(Operations!$E34>1,Operations!$E34,IF(Operations!$D34=0,0,Operations!$F34/(VLOOKUP(Operations!$D34,ImpDepLookup,2,FALSE)-VLOOKUP(Operations!$D34,ImpDepLookup,3,FALSE)*Operations!$G34^0.5-VLOOKUP(Operations!$D34,ImpDepLookup,4,FALSE)*(Operations!$G34*(Operations!$G34*Operations!$H34/Operations!$I34)^0.5))^2)) -> 4213 | O34: =IF(Operations!$C34="",0,(((Operations!$G34+1)*Operations!$H34/Operations!$I34/1000)^VLOOKUP(Operations!$C34,ImpRepairFac[],4,FALSE)-(Operations!$G34*Operations!$H34/Operations!$I34/1000)^VLOOKUP(Operations!$C34,ImpRepairFac[],4,FALSE))*Operations!$N34*VLOOKUP(Operations!$C34,ImpRepairFac[],3,FALSE)/Operations!$H34) -> 0 | P34: =IF(Operations!$N34=0,0,Operations!$N34*(VLOOKUP(Operations!$D34,ImpDepLookup,2,FALSE)-VLOOKUP(Operations!$D34,ImpDepLookup,3,FALSE)*Operations!$G34^0.5-VLOOKUP(Operations!$D34,ImpDepLookup,4,FALSE)*(Operations!$G34*Operations!$H34/Operations!$I34)^0.5)^2) -> 1454.231467 | Q34: =IF(Operations!$N34=0,0,Operations!$N34*(VLOOKUP(Operations!$D34,ImpDepLookup,2,FALSE)-VLOOKUP(Operations!$D34,ImpDepLookup,3,FALSE)*(Operations!$G34+1)^0.5-VLOOKUP(Operations!$D34,ImpDepLookup,4,FALSE)*(Operations!$G34*Operations!$H34/Operations!$I34)^0.5)^2) -> 1359.676478 | R34: =IF(Operations!$N34=0,0,IF(Operations!$I34*Operations!$H34=0,0,(Operations!$P34-Operations!$Q34)/(Operations!$H34))) -> 0.03151832955 | S34: =IF(Operations!$H34=0,0,Operations!$P34*'General Variables'!$B$9/Operations!$H34) -> 0.009694876447 | T34: =IF(Operations!$H34=0,0,Operations!$P34*'General Variables'!$B$10/Operations!$H34) -> 0.01454231467 | U34: =SUM(Table3[[#This Row],[Depreciation per Unit]:[Opportunity Cost per Unit]]) -> 0.05575552066 | W34: Sugar beet harvester | X34: HARVESTING | Y34: 0.59 | Z34: 1.3 | AA34: 1500
A35: No-Till Drill | B35: acre | C35: Drill - Grain | D35: Planters | E35: 66251 | G35: 5 | H35: 1000 | I35: 12 | J35: 1.1 | K35: Medium Tractor | L35: 6.069948187 | N35: =IF(Operations!$E35>1,Operations!$E35,IF(Operations!$D35=0,0,Operations!$F35/(VLOOKUP(Operations!$D35,ImpDepLookup,2,FALSE)-VLOOKUP(Operations!$D35,ImpDepLookup,3,FALSE)*Operations!$G35^0.5-VLOOKUP(Operations!$D35,ImpDepLookup,4,FALSE)*(Operations!$G35*(Operations!$G35*Operations!$H35/Operations!$I35)^0.5))^2)) -> 66251 | O35: =IF(Operations!$C35="",0,(((Operations!$G35+1)*Operations!$H35/Operations!$I35/1000)^VLOOKUP(Operations!$C35,ImpRepairFac[],4,FALSE)-(Operations!$G35*Operations!$H35/Operations!$I35/1000)^VLOOKUP(Operations!$C35,ImpRepairFac[],4,FALSE))*Operations!$N35*VLOOKUP(Operations!$C35,ImpRepairFac[],3,FALSE)/Operations!$H35) -> 1.573062205 | P35: =IF(Operations!$N35=0,0,Operations!$N35*(VLOOKUP(Operations!$D35,ImpDepLookup,2,FALSE)-VLOOKUP(Operations!$D35,ImpDepLookup,3,FALSE)*Operations!$G35^0.5-VLOOKUP(Operations!$D35,ImpDepLookup,4,FALSE)*(Operations!$G35*Operations!$H35/Operations!$I35)^0.5)^2) -> 33264.30302 | Q35: =IF(Operations!$N35=0,0,Operations!$N35*(VLOOKUP(Operations!$D35,ImpDepLookup,2,FALSE)-VLOOKUP(Operations!$D35,ImpDepLookup,3,FALSE)*(Operations!$G35+1)^0.5-VLOOKUP(Operations!$D35,ImpDepLookup,4,FALSE)*(Operations!$G35*Operations!$H35/Operations!$I35)^0.5)^2) -> 31719.69929 | R35: =IF(Operations!$N35=0,0,IF(Operations!$I35*Operations!$H35=0,0,(Operations!$P35-Operations!$Q35)/(Operations!$H35))) -> 1.544603727 | S35: =IF(Operations!$H35=0,0,Operations!$P35*'General Variables'!$B$9/Operations!$H35) -> 0.6652860603 | T35: =IF(Operations!$H35=0,0,Operations!$P35*'General Variables'!$B$10/Operations!$H35) -> 0.9979290905 | U35: =SUM(Table3[[#This Row],[Depreciation per Unit]:[Opportunity Cost per Unit]]) -> 3.207818878 | W35: Wagon | X35: MISCELLANEOUS | Y35: 0.19 | Z35: 1.3 | AA35: 3000
A36: Pickett Windrowers | B36: acre | C36: Bean puller-windrower | D36: Swathers and all other harvest equipment | E36: 32000 | G36: 5 | H36: 1000 | I36: 10 | J36: 1.1 | K36: Medium Tractor | L36: 6.073404255 | N36: =IF(Operations!$E36>1,Operations!$E36,IF(Operations!$D36=0,0,Operations!$F36/(VLOOKUP(Operations!$D36,ImpDepLookup,2,FALSE)-VLOOKUP(Operations!$D36,ImpDepLookup,3,FALSE)*Operations!$G36^0.5-VLOOKUP(Operations!$D36,ImpDepLookup,4,FALSE)*(Operations!$G36*(Operations!$G36*Operations!$H36/Operations!$I36)^0.5))^2)) -> 32000 | O36: =IF(Operations!$C36="",0,(((Operations!$G36+1)*Operations!$H36/Operations!$I36/1000)^VLOOKUP(Operations!$C36,ImpRepairFac[],4,FALSE)-(Operations!$G36*Operations!$H36/Operations!$I36/1000)^VLOOKUP(Operations!$C36,ImpRepairFac[],4,FALSE))*Operations!$N36*VLOOKUP(Operations!$C36,ImpRepairFac[],3,FALSE)/Operations!$H36) -> 0.7151115264 | P36: =IF(Operations!$N36=0,0,Operations!$N36*(VLOOKUP(Operations!$D36,ImpDepLookup,2,FALSE)-VLOOKUP(Operations!$D36,ImpDepLookup,3,FALSE)*Operations!$G36^0.5-VLOOKUP(Operations!$D36,ImpDepLookup,4,FALSE)*(Operations!$G36*Operations!$H36/Operations!$I36)^0.5)^2) -> 11045.66982 | Q36: =IF(Operations!$N36=0,0,Operations!$N36*(VLOOKUP(Operations!$D36,ImpDepLookup,2,FALSE)-VLOOKUP(Operations!$D36,ImpDepLookup,3,FALSE)*(Operations!$G36+1)^0.5-VLOOKUP(Operations!$D36,ImpDepLookup,4,FALSE)*(Operations!$G36*Operations!$H36/Operations!$I36)^0.5)^2) -> 10327.47384 | R36: =IF(Operations!$N36=0,0,IF(Operations!$I36*Operations!$H36=0,0,(Operations!$P36-Operations!$Q36)/(Operations!$H36))) -> 0.7181959736 | S36: =IF(Operations!$H36=0,0,Operations!$P36*'General Variables'!$B$9/Operations!$H36) -> 0.2209133964 | T36: =IF(Operations!$H36=0,0,Operations!$P36*'General Variables'!$B$10/Operations!$H36) -> 0.3313700946 | U36: =SUM(Table3[[#This Row],[Depreciation per Unit]:[Opportunity Cost per Unit]]) -> 1.270479464 | W36: Wagon - Forage | X36: MISCELLANEOUS | Y36: 0.16 | Z36: 1.6 | AA36: 2000
A37: Pipe D 125' Lift | B37: acre-inch | C37: Hand move lateral | D37: Manure spreaders and all other miscellaneous equipment | F37: 7500 | G37: 10 | H37: 2600 | I37: 2.25 | J37: =5/24 -> 0.2083333333 | K37: Diesel Pump for Pipe | L37: 3.03 | N37: =IF(Operations!$E37>1,Operations!$E37,IF(Operations!$D37=0,0,Operations!$F37/(VLOOKUP(Operations!$D37,ImpDepLookup,2,FALSE)-VLOOKUP(Operations!$D37,ImpDepLookup,3,FALSE)*Operations!$G37^0.5-VLOOKUP(Operations!$D37,ImpDepLookup,4,FALSE)*(Operations!$G37*(Operations!$G37*Operations!$H37/Operations!$I37)^0.5))^2)) -> 21401.12779 | O37: =IF(Operations!$C37="",0,(((Operations!$G37+1)*Operations!$H37/Operations!$I37/1000)^VLOOKUP(Operations!$C37,ImpRepairFac[],4,FALSE)-(Operations!$G37*Operations!$H37/Operations!$I37/1000)^VLOOKUP(Operations!$C37,ImpRepairFac[],4,FALSE))*Operations!$N37*VLOOKUP(Operations!$C37,ImpRepairFac[],3,FALSE)/Operations!$H37) -> 0.190232247 | P37: =IF(Operations!$N37=0,0,Operations!$N37*(VLOOKUP(Operations!$D37,ImpDepLookup,2,FALSE)-VLOOKUP(Operations!$D37,ImpDepLookup,3,FALSE)*Operations!$G37^0.5-VLOOKUP(Operations!$D37,ImpDepLookup,4,FALSE)*(Operations!$G37*Operations!$H37/Operations!$I37)^0.5)^2) -> 7500 | Q37: =IF(Operations!$N37=0,0,Operations!$N37*(VLOOKUP(Operations!$D37,ImpDepLookup,2,FALSE)-VLOOKUP(Operations!$D37,ImpDepLookup,3,FALSE)*(Operations!$G37+1)^0.5-VLOOKUP(Operations!$D37,ImpDepLookup,4,FALSE)*(Operations!$G37*Operations!$H37/Operations!$I37)^0.5)^2) -> 7072.171032 | R37: =IF(Operations!$N37=0,0,IF(Operations!$I37*Operations!$H37=0,0,(Operations!$P37-Operations!$Q37)/(Operations!$H37))) -> 0.164549603 | S37: =IF(Operations!$H37=0,0,Operations!$P37*'General Variables'!$B$9/Operations!$H37) -> 0.05769230769 | T37: =IF(Operations!$H37=0,0,Operations!$P37*'General Variables'!$B$10/Operations!$H37) -> 0.08653846154 | U37: =SUM(Table3[[#This Row],[Depreciation per Unit]:[Opportunity Cost per Unit]]) -> 0.3087803723 | W37: Hand move lateral | X37: See Table 5-5* | Y37: 0.02 | Z37: 1
A38: Pivot D 125' Lift | B38: acre-inch | C38: Center Pivot | D38: Pivots | E38: 75000 | G38: 10 | H38: =130*20 -> 2600 | I38: 1.8 | J38: =1.5/24 -> 0.0625 | K38: Diesel Pump | L38: 3.34 | N38: =IF(Operations!$E38>1,Operations!$E38,IF(Operations!$D38=0,0,Operations!$F38/(VLOOKUP(Operations!$D38,ImpDepLookup,2,FALSE)-VLOOKUP(Operations!$D38,ImpDepLookup,3,FALSE)*Operations!$G38^0.5-VLOOKUP(Operations!$D38,ImpDepLookup,4,FALSE)*(Operations!$G38*(Operations!$G38*Operations!$H38/Operations!$I38)^0.5))^2)) -> 75000 | O38: =IF(Operations!$C38="",0,(((Operations!$G38+1)*Operations!$H38/Operations!$I38/1000)^VLOOKUP(Operations!$C38,ImpRepairFac[],4,FALSE)-(Operations!$G38*Operations!$H38/Operations!$I38/1000)^VLOOKUP(Operations!$C38,ImpRepairFac[],4,FALSE))*Operations!$N38*VLOOKUP(Operations!$C38,ImpRepairFac[],3,FALSE)/Operations!$H38) -> 1.729166667 | P38: =IF(Operations!$N38=0,0,Operations!$N38*(VLOOKUP(Operations!$D38,ImpDepLookup,2,FALSE)-VLOOKUP(Operations!$D38,ImpDepLookup,3,FALSE)*Operations!$G38^0.5-VLOOKUP(Operations!$D38,ImpDepLookup,4,FALSE)*(Operations!$G38*Operations!$H38/Operations!$I38)^0.5)^2) -> 22125.84998 | Q38: =IF(Operations!$N38=0,0,Operations!$N38*(VLOOKUP(Operations!$D38,ImpDepLookup,2,FALSE)-VLOOKUP(Operations!$D38,ImpDepLookup,3,FALSE)*(Operations!$G38+1)^0.5-VLOOKUP(Operations!$D38,ImpDepLookup,4,FALSE)*(Operations!$G38*Operations!$H38/Operations!$I38)^0.5)^2) -> 20764.21564 | R38: =IF(Operations!$N38=0,0,IF(Operations!$I38*Operations!$H38=0,0,(Operations!$P38-Operations!$Q38)/(Operations!$H38))) -> 0.5237055132 | S38: =IF(Operations!$H38=0,0,Operations!$P38*'General Variables'!$B$9/Operations!$H38) -> 0.170198846 | T38: =IF(Operations!$H38=0,0,Operations!$P38*'General Variables'!$B$10/Operations!$H38) -> 0.255298269 | U38: =SUM(Table3[[#This Row],[Depreciation per Unit]:[Opportunity Cost per Unit]]) -> 0.9492026282 | W38: End tow lateral | X38: See Table 5-5* | Y38: 0.03 | Z38: 1
A39: Pivot D 125' Lift w/fertigation | B39: acre-inch | C39: Center Pivot | D39: Pivots | E39: 78000 | G39: 10 | H39: =130*20 -> 2600 | I39: 1.8 | J39: =2/24 -> 0.08333333333 | K39: Diesel Pump | L39: 3.34 | N39: =IF(Operations!$E39>1,Operations!$E39,IF(Operations!$D39=0,0,Operations!$F39/(VLOOKUP(Operations!$D39,ImpDepLookup,2,FALSE)-VLOOKUP(Operations!$D39,ImpDepLookup,3,FALSE)*Operations!$G39^0.5-VLOOKUP(Operations!$D39,ImpDepLookup,4,FALSE)*(Operations!$G39*(Operations!$G39*Operations!$H39/Operations!$I39)^0.5))^2)) -> 78000 | O39: =IF(Operations!$C39="",0,(((Operations!$G39+1)*Operations!$H39/Operations!$I39/1000)^VLOOKUP(Operations!$C39,ImpRepairFac[],4,FALSE)-(Operations!$G39*Operations!$H39/Operations!$I39/1000)^VLOOKUP(Operations!$C39,ImpRepairFac[],4,FALSE))*Operations!$N39*VLOOKUP(Operations!$C39,ImpRepairFac[],3,FALSE)/Operations!$H39) -> 1.798333333 | P39: =IF(Operations!$N39=0,0,Operations!$N39*(VLOOKUP(Operations!$D39,ImpDepLookup,2,FALSE)-VLOOKUP(Operations!$D39,ImpDepLookup,3,FALSE)*Operations!$G39^0.5-VLOOKUP(Operations!$D39,ImpDepLookup,4,FALSE)*(Operations!$G39*Operations!$H39/Operations!$I39)^0.5)^2) -> 23010.88398 | Q39: =IF(Operations!$N39=0,0,Operations!$N39*(VLOOKUP(Operations!$D39,ImpDepLookup,2,FALSE)-VLOOKUP(Operations!$D39,ImpDepLookup,3,FALSE)*(Operations!$G39+1)^0.5-VLOOKUP(Operations!$D39,ImpDepLookup,4,FALSE)*(Operations!$G39*Operations!$H39/Operations!$I39)^0.5)^2) -> 21594.78427 | R39: =IF(Operations!$N39=0,0,IF(Operations!$I39*Operations!$H39=0,0,(Operations!$P39-Operations!$Q39)/(Operations!$H39))) -> 0.5446537338 | S39: =IF(Operations!$H39=0,0,Operations!$P39*'General Variables'!$B$9/Operations!$H39) -> 0.1770067998 | T39: =IF(Operations!$H39=0,0,Operations!$P39*'General Variables'!$B$10/Operations!$H39) -> 0.2655101997 | U39: =SUM(Table3[[#This Row],[Depreciation per Unit]:[Opportunity Cost per Unit]]) -> 0.9871707334 | W39: Side roll lateral | X39: See Table 5-5* | Y39: 0.02 | Z39: 1
A40: Pivot E 125' Lift | B40: acre-inch | C40: Center Pivot | D40: Pivots | E40: 75000 | G40: 10 | H40: =130*20 -> 2600 | I40: 1.8 | J40: =1.5/24 -> 0.0625 | K40: Electric Pump | M40: 47.78 | N40: =IF(Operations!$E40>1,Operations!$E40,IF(Operations!$D40=0,0,Operations!$F40/(VLOOKUP(Operations!$D40,ImpDepLookup,2,FALSE)-VLOOKUP(Operations!$D40,ImpDepLookup,3,FALSE)*Operations!$G40^0.5-VLOOKUP(Operations!$D40,ImpDepLookup,4,FALSE)*(Operations!$G40*(Operations!$G40*Operations!$H40/Operations!$I40)^0.5))^2)) -> 75000 | O40: =IF(Operations!$C40="",0,(((Operations!$G40+1)*Operations!$H40/Operations!$I40/1000)^VLOOKUP(Operations!$C40,ImpRepairFac[],4,FALSE)-(Operations!$G40*Operations!$H40/Operations!$I40/1000)^VLOOKUP(Operations!$C40,ImpRepairFac[],4,FALSE))*Operations!$N40*VLOOKUP(Operations!$C40,ImpRepairFac[],3,FALSE)/Operations!$H40) -> 1.729166667 | P40: =IF(Operations!$N40=0,0,Operations!$N40*(VLOOKUP(Operations!$D40,ImpDepLookup,2,FALSE)-VLOOKUP(Operations!$D40,ImpDepLookup,3,FALSE)*Operations!$G40^0.5-VLOOKUP(Operations!$D40,ImpDepLookup,4,FALSE)*(Operations!$G40*Operations!$H40/Operations!$I40)^0.5)^2) -> 22125.84998 | Q40: =IF(Operations!$N40=0,0,Operations!$N40*(VLOOKUP(Operations!$D40,ImpDepLookup,2,FALSE)-VLOOKUP(Operations!$D40,ImpDepLookup,3,FALSE)*(Operations!$G40+1)^0.5-VLOOKUP(Operations!$D40,ImpDepLookup,4,FALSE)*(Operations!$G40*Operations!$H40/Operations!$I40)^0.5)^2) -> 20764.21564 | R40: =IF(Operations!$N40=0,0,IF(Operations!$I40*Operations!$H40=0,0,(Operations!$P40-Operations!$Q40)/(Operations!$H40))) -> 0.5237055132 | S40: =IF(Operations!$H40=0,0,Operations!$P40*'General Variables'!$B$9/Operations!$H40) -> 0.170198846 | T40: =IF(Operations!$H40=0,0,Operations!$P40*'General Variables'!$B$10/Operations!$H40) -> 0.255298269 | U40: =SUM(Table3[[#This Row],[Depreciation per Unit]:[Opportunity Cost per Unit]]) -> 0.9492026282 | W40: Lateral | X40: See Table 5-5* | Y40: 0.06 | Z40: 1
A41: Pivot E 125' Lift w/fertigation | B41: acre-inch | C41: Center Pivot | D41: Pivots | E41: 78000 | G41: 10 | H41: =130*20 -> 2600 | I41: 1.8 | J41: =2/24 -> 0.08333333333 | K41: Electric Pump | M41: 47.78 | N41: =IF(Operations!$E41>1,Operations!$E41,IF(Operations!$D41=0,0,Operations!$F41/(VLOOKUP(Operations!$D41,ImpDepLookup,2,FALSE)-VLOOKUP(Operations!$D41,ImpDepLookup,3,FALSE)*Operations!$G41^0.5-VLOOKUP(Operations!$D41,ImpDepLookup,4,FALSE)*(Operations!$G41*(Operations!$G41*Operations!$H41/Operations!$I41)^0.5))^2)) -> 78000 | O41: =IF(Operations!$C41="",0,(((Operations!$G41+1)*Operations!$H41/Operations!$I41/1000)^VLOOKUP(Operations!$C41,ImpRepairFac[],4,FALSE)-(Operations!$G41*Operations!$H41/Operations!$I41/1000)^VLOOKUP(Operations!$C41,ImpRepairFac[],4,FALSE))*Operations!$N41*VLOOKUP(Operations!$C41,ImpRepairFac[],3,FALSE)/Operations!$H41) -> 1.798333333 | P41: =IF(Operations!$N41=0,0,Operations!$N41*(VLOOKUP(Operations!$D41,ImpDepLookup,2,FALSE)-VLOOKUP(Operations!$D41,ImpDepLookup,3,FALSE)*Operations!$G41^0.5-VLOOKUP(Operations!$D41,ImpDepLookup,4,FALSE)*(Operations!$G41*Operations!$H41/Operations!$I41)^0.5)^2) -> 23010.88398 | Q41: =IF(Operations!$N41=0,0,Operations!$N41*(VLOOKUP(Operations!$D41,ImpDepLookup,2,FALSE)-VLOOKUP(Operations!$D41,ImpDepLookup,3,FALSE)*(Operations!$G41+1)^0.5-VLOOKUP(Operations!$D41,ImpDepLookup,4,FALSE)*(Operations!$G41*Operations!$H41/Operations!$I41)^0.5)^2) -> 21594.78427 | R41: =IF(Operations!$N41=0,0,IF(Operations!$I41*Operations!$H41=0,0,(Operations!$P41-Operations!$Q41)/(Operations!$H41))) -> 0.5446537338 | S41: =IF(Operations!$H41=0,0,Operations!$P41*'General Variables'!$B$9/Operations!$H41) -> 0.1770067998 | T41: =IF(Operations!$H41=0,0,Operations!$P41*'General Variables'!$B$10/Operations!$H41) -> 0.2655101997 | U41: =SUM(Table3[[#This Row],[Depreciation per Unit]:[Opportunity Cost per Unit]]) -> 0.9871707334 | W41: Traveling gun | X41: See Table 5-5* | Y41: 0.06 | Z41: 1
A42: Plant | B42: acre | C42: Planter - Row crop | D42: Planters | E42: 83593 | G42: 5 | H42: 1000 | I42: 10 | J42: 1.2 | K42: Medium Tractor | L42: 2.73 | N42: =IF(Operations!$E42>1,Operations!$E42,IF(Operations!$D42=0,0,Operations!$F42/(VLOOKUP(Operations!$D42,ImpDepLookup,2,FALSE)-VLOOKUP(Operations!$D42,ImpDepLookup,3,FALSE)*Operations!$G42^0.5-VLOOKUP(Operations!$D42,ImpDepLookup,4,FALSE)*(Operations!$G42*(Operations!$G42*Operations!$H42/Operations!$I42)^0.5))^2)) -> 83593 | O42: =IF(Operations!$C42="",0,(((Operations!$G42+1)*Operations!$H42/Operations!$I42/1000)^VLOOKUP(Operations!$C42,ImpRepairFac[],4,FALSE)-(Operations!$G42*Operations!$H42/Operations!$I42/1000)^VLOOKUP(Operations!$C42,ImpRepairFac[],4,FALSE))*Operations!$N42*VLOOKUP(Operations!$C42,ImpRepairFac[],3,FALSE)/Operations!$H42) -> 2.910743839 | P42: =IF(Operations!$N42=0,0,Operations!$N42*(VLOOKUP(Operations!$D42,ImpDepLookup,2,FALSE)-VLOOKUP(Operations!$D42,ImpDepLookup,3,FALSE)*Operations!$G42^0.5-VLOOKUP(Operations!$D42,ImpDepLookup,4,FALSE)*(Operations!$G42*Operations!$H42/Operations!$I42)^0.5)^2) -> 41971.63638 | Q42: =IF(Operations!$N42=0,0,Operations!$N42*(VLOOKUP(Operations!$D42,ImpDepLookup,2,FALSE)-VLOOKUP(Operations!$D42,ImpDepLookup,3,FALSE)*(Operations!$G42+1)^0.5-VLOOKUP(Operations!$D42,ImpDepLookup,4,FALSE)*(Operations!$G42*Operations!$H42/Operations!$I42)^0.5)^2) -> 40022.71396 | R42: =IF(Operations!$N42=0,0,IF(Operations!$I42*Operations!$H42=0,0,(Operations!$P42-Operations!$Q42)/(Operations!$H42))) -> 1.948922422 | S42: =IF(Operations!$H42=0,0,Operations!$P42*'General Variables'!$B$9/Operations!$H42) -> 0.8394327277 | T42: =IF(Operations!$H42=0,0,Operations!$P42*'General Variables'!$B$10/Operations!$H42) -> 1.259149091 | U42: =SUM(Table3[[#This Row],[Depreciation per Unit]:[Opportunity Cost per Unit]]) -> 4.047504241 | W42: Center Pivot | X42: See Table 5-5* | Y42: 0.0415 | Z42: 1
A43: Plant Narrow Row | B43: acre | C43: Planter - Row crop | D43: Planters | E43: 83593 | G43: 5 | H43: 1000 | I43: 10 | J43: 1.2 | K43: Medium Tractor | L43: 2.580373832 | N43: =IF(Operations!$E43>1,Operations!$E43,IF(Operations!$D43=0,0,Operations!$F43/(VLOOKUP(Operations!$D43,ImpDepLookup,2,FALSE)-VLOOKUP(Operations!$D43,ImpDepLookup,3,FALSE)*Operations!$G43^0.5-VLOOKUP(Operations!$D43,ImpDepLookup,4,FALSE)*(Operations!$G43*(Operations!$G43*Operations!$H43/Operations!$I43)^0.5))^2)) -> 83593 | O43: =IF(Operations!$C43="",0,(((Operations!$G43+1)*Operations!$H43/Operations!$I43/1000)^VLOOKUP(Operations!$C43,ImpRepairFac[],4,FALSE)-(Operations!$G43*Operations!$H43/Operations!$I43/1000)^VLOOKUP(Operations!$C43,ImpRepairFac[],4,FALSE))*Operations!$N43*VLOOKUP(Operations!$C43,ImpRepairFac[],3,FALSE)/Operations!$H43) -> 2.910743839 | P43: =IF(Operations!$N43=0,0,Operations!$N43*(VLOOKUP(Operations!$D43,ImpDepLookup,2,FALSE)-VLOOKUP(Operations!$D43,ImpDepLookup,3,FALSE)*Operations!$G43^0.5-VLOOKUP(Operations!$D43,ImpDepLookup,4,FALSE)*(Operations!$G43*Operations!$H43/Operations!$I43)^0.5)^2) -> 41971.63638 | Q43: =IF(Operations!$N43=0,0,Operations!$N43*(VLOOKUP(Operations!$D43,ImpDepLookup,2,FALSE)-VLOOKUP(Operations!$D43,ImpDepLookup,3,FALSE)*(Operations!$G43+1)^0.5-VLOOKUP(Operations!$D43,ImpDepLookup,4,FALSE)*(Operations!$G43*Operations!$H43/Operations!$I43)^0.5)^2) -> 40022.71396 | R43: =IF(Operations!$N43=0,0,IF(Operations!$I43*Operations!$H43=0,0,(Operations!$P43-Operations!$Q43)/(Operations!$H43))) -> 1.948922422 | S43: =IF(Operations!$H43=0,0,Operations!$P43*'General Variables'!$B$9/Operations!$H43) -> 0.8394327277 | T43: =IF(Operations!$H43=0,0,Operations!$P43*'General Variables'!$B$10/Operations!$H43) -> 1.259149091 | U43: =SUM(Table3[[#This Row],[Depreciation per Unit]:[Opportunity Cost per Unit]]) -> 4.047504241 | W43: Center Pivot w/corner | X43: See Table 5-5* | Y43: 0.06 | Z43: 1
A44: Plant No-Till | B44: acre | C44: Planter - Row crop | D44: Planters | E44: 93593 | G44: 5 | H44: 1000 | I44: 10 | J44: 1.2 | K44: Medium Tractor | L44: 3.38 | N44: =IF(Operations!$E44>1,Operations!$E44,IF(Operations!$D44=0,0,Operations!$F44/(VLOOKUP(Operations!$D44,ImpDepLookup,2,FALSE)-VLOOKUP(Operations!$D44,ImpDepLookup,3,FALSE)*Operations!$G44^0.5-VLOOKUP(Operations!$D44,ImpDepLookup,4,FALSE)*(Operations!$G44*(Operations!$G44*Operations!$H44/Operations!$I44)^0.5))^2)) -> 93593 | O44: =IF(Operations!$C44="",0,(((Operations!$G44+1)*Operations!$H44/Operations!$I44/1000)^VLOOKUP(Operations!$C44,ImpRepairFac[],4,FALSE)-(Operations!$G44*Operations!$H44/Operations!$I44/1000)^VLOOKUP(Operations!$C44,ImpRepairFac[],4,FALSE))*Operations!$N44*VLOOKUP(Operations!$C44,ImpRepairFac[],3,FALSE)/Operations!$H44) -> 3.258948095 | P44: =IF(Operations!$N44=0,0,Operations!$N44*(VLOOKUP(Operations!$D44,ImpDepLookup,2,FALSE)-VLOOKUP(Operations!$D44,ImpDepLookup,3,FALSE)*Operations!$G44^0.5-VLOOKUP(Operations!$D44,ImpDepLookup,4,FALSE)*(Operations!$G44*Operations!$H44/Operations!$I44)^0.5)^2) -> 46992.58747 | Q44: =IF(Operations!$N44=0,0,Operations!$N44*(VLOOKUP(Operations!$D44,ImpDepLookup,2,FALSE)-VLOOKUP(Operations!$D44,ImpDepLookup,3,FALSE)*(Operations!$G44+1)^0.5-VLOOKUP(Operations!$D44,ImpDepLookup,4,FALSE)*(Operations!$G44*Operations!$H44/Operations!$I44)^0.5)^2) -> 44810.52083 | R44: =IF(Operations!$N44=0,0,IF(Operations!$I44*Operations!$H44=0,0,(Operations!$P44-Operations!$Q44)/(Operations!$H44))) -> 2.182066635 | S44: =IF(Operations!$H44=0,0,Operations!$P44*'General Variables'!$B$9/Operations!$H44) -> 0.9398517493 | T44: =IF(Operations!$H44=0,0,Operations!$P44*'General Variables'!$B$10/Operations!$H44) -> 1.409777624 | U44: =SUM(Table3[[#This Row],[Depreciation per Unit]:[Opportunity Cost per Unit]]) -> 4.531696008 | W44: Linear move with ditch | X44: See Table 5-5* | Y44: 0.06 | Z44: 1
A45: Plow | B45: acre | C45: Plow - Moldboard | D45: Plows | E45: 16771 | G45: 5 | H45: 1000 | I45: 7.5 | J45: 1.1 | K45: Large Tractor | L45: 6 | N45: =IF(Operations!$E45>1,Operations!$E45,IF(Operations!$D45=0,0,Operations!$F45/(VLOOKUP(Operations!$D45,ImpDepLookup,2,FALSE)-VLOOKUP(Operations!$D45,ImpDepLookup,3,FALSE)*Operations!$G45^0.5-VLOOKUP(Operations!$D45,ImpDepLookup,4,FALSE)*(Operations!$G45*(Operations!$G45*Operations!$H45/Operations!$I45)^0.5))^2)) -> 16771 | O45: =IF(Operations!$C45="",0,(((Operations!$G45+1)*Operations!$H45/Operations!$I45/1000)^VLOOKUP(Operations!$C45,ImpRepairFac[],4,FALSE)-(Operations!$G45*Operations!$H45/Operations!$I45/1000)^VLOOKUP(Operations!$C45,ImpRepairFac[],4,FALSE))*Operations!$N45*VLOOKUP(Operations!$C45,ImpRepairFac[],3,FALSE)/Operations!$H45) -> 0.9105703651 | P45: =IF(Operations!$N45=0,0,Operations!$N45*(VLOOKUP(Operations!$D45,ImpDepLookup,2,FALSE)-VLOOKUP(Operations!$D45,ImpDepLookup,3,FALSE)*Operations!$G45^0.5-VLOOKUP(Operations!$D45,ImpDepLookup,4,FALSE)*(Operations!$G45*Operations!$H45/Operations!$I45)^0.5)^2) -> 6529.398873 | Q45: =IF(Operations!$N45=0,0,Operations!$N45*(VLOOKUP(Operations!$D45,ImpDepLookup,2,FALSE)-VLOOKUP(Operations!$D45,ImpDepLookup,3,FALSE)*(Operations!$G45+1)^0.5-VLOOKUP(Operations!$D45,ImpDepLookup,4,FALSE)*(Operations!$G45*Operations!$H45/Operations!$I45)^0.5)^2) -> 6303.585126 | R45: =IF(Operations!$N45=0,0,IF(Operations!$I45*Operations!$H45=0,0,(Operations!$P45-Operations!$Q45)/(Operations!$H45))) -> 0.2258137467 | S45: =IF(Operations!$H45=0,0,Operations!$P45*'General Variables'!$B$9/Operations!$H45) -> 0.1305879775 | T45: =IF(Operations!$H45=0,0,Operations!$P45*'General Variables'!$B$10/Operations!$H45) -> 0.1958819662 | U45: =SUM(Table3[[#This Row],[Depreciation per Unit]:[Opportunity Cost per Unit]]) -> 0.5522836904 | W45: Linear move with pipe | X45: See Table 5-5* | Y45: 0.06 | Z45: 1
A46: Ridge Cultivate/Ditch | B46: acre | C46: Cultivator - Row crop | D46: Disks and all other tillage equipment | E46: 30000 | F46: 4500 | G46: 5 | H46: 1000 | I46: 12 | J46: 1.1 | K46: Medium Tractor | L46: 5.332019704 | N46: =IF(Operations!$E46>1,Operations!$E46,IF(Operations!$D46=0,0,Operations!$F46/(VLOOKUP(Operations!$D46,ImpDepLookup,2,FALSE)-VLOOKUP(Operations!$D46,ImpDepLookup,3,FALSE)*Operations!$G46^0.5-VLOOKUP(Operations!$D46,ImpDepLookup,4,FALSE)*(Operations!$G46*(Operations!$G46*Operations!$H46/Operations!$I46)^0.5))^2)) -> 30000 | O46: =IF(Operations!$C46="",0,(((Operations!$G46+1)*Operations!$H46/Operations!$I46/1000)^VLOOKUP(Operations!$C46,ImpRepairFac[],4,FALSE)-(Operations!$G46*Operations!$H46/Operations!$I46/1000)^VLOOKUP(Operations!$C46,ImpRepairFac[],4,FALSE))*Operations!$N46*VLOOKUP(Operations!$C46,ImpRepairFac[],3,FALSE)/Operations!$H46) -> 0.3667524074 | P46: =IF(Operations!$N46=0,0,Operations!$N46*(VLOOKUP(Operations!$D46,ImpDepLookup,2,FALSE)-VLOOKUP(Operations!$D46,ImpDepLookup,3,FALSE)*Operations!$G46^0.5-VLOOKUP(Operations!$D46,ImpDepLookup,4,FALSE)*(Operations!$G46*Operations!$H46/Operations!$I46)^0.5)^2) -> 12482.00865 | Q46: =IF(Operations!$N46=0,0,Operations!$N46*(VLOOKUP(Operations!$D46,ImpDepLookup,2,FALSE)-VLOOKUP(Operations!$D46,ImpDepLookup,3,FALSE)*(Operations!$G46+1)^0.5-VLOOKUP(Operations!$D46,ImpDepLookup,4,FALSE)*(Operations!$G46*Operations!$H46/Operations!$I46)^0.5)^2) -> 11589.96062 | R46: =IF(Operations!$N46=0,0,IF(Operations!$I46*Operations!$H46=0,0,(Operations!$P46-Operations!$Q46)/(Operations!$H46))) -> 0.8920480329 | S46: =IF(Operations!$H46=0,0,Operations!$P46*'General Variables'!$B$9/Operations!$H46) -> 0.249640173 | T46: =IF(Operations!$H46=0,0,Operations!$P46*'General Variables'!$B$10/Operations!$H46) -> 0.3744602595 | U46: =SUM(Table3[[#This Row],[Depreciation per Unit]:[Opportunity Cost per Unit]]) -> 1.516148466 | W46: Portable solid set | X46: See Table 5-5* | Y46: 0.02 | Z46: 1
A47: Ridge Cultivation | B47: acre | C47: Cultivator - Row crop | D47: Disks and all other tillage equipment | E47: 30000 | G47: 5 | H47: 1500 | I47: 10 | J47: 1 | K47: Medium Tractor | L47: 5.332019704 | N47: =IF(Operations!$E47>1,Operations!$E47,IF(Operations!$D47=0,0,Operations!$F47/(VLOOKUP(Operations!$D47,ImpDepLookup,2,FALSE)-VLOOKUP(Operations!$D47,ImpDepLookup,3,FALSE)*Operations!$G47^0.5-VLOOKUP(Operations!$D47,ImpDepLookup,4,FALSE)*(Operations!$G47*(Operations!$G47*Operations!$H47/Operations!$I47)^0.5))^2)) -> 30000 | O47: =IF(Operations!$C47="",0,(((Operations!$G47+1)*Operations!$H47/Operations!$I47/1000)^VLOOKUP(Operations!$C47,ImpRepairFac[],4,FALSE)-(Operations!$G47*Operations!$H47/Operations!$I47/1000)^VLOOKUP(Operations!$C47,ImpRepairFac[],4,FALSE))*Operations!$N47*VLOOKUP(Operations!$C47,ImpRepairFac[],3,FALSE)/Operations!$H47) -> 0.8910072246 | P47: =IF(Operations!$N47=0,0,Operations!$N47*(VLOOKUP(Operations!$D47,ImpDepLookup,2,FALSE)-VLOOKUP(Operations!$D47,ImpDepLookup,3,FALSE)*Operations!$G47^0.5-VLOOKUP(Operations!$D47,ImpDepLookup,4,FALSE)*(Operations!$G47*Operations!$H47/Operations!$I47)^0.5)^2) -> 12482.00865 | Q47: =IF(Operations!$N47=0,0,Operations!$N47*(VLOOKUP(Operations!$D47,ImpDepLookup,2,FALSE)-VLOOKUP(Operations!$D47,ImpDepLookup,3,FALSE)*(Operations!$G47+1)^0.5-VLOOKUP(Operations!$D47,ImpDepLookup,4,FALSE)*(Operations!$G47*Operations!$H47/Operations!$I47)^0.5)^2) -> 11589.96062 | R47: =IF(Operations!$N47=0,0,IF(Operations!$I47*Operations!$H47=0,0,(Operations!$P47-Operations!$Q47)/(Operations!$H47))) -> 0.5946986886 | S47: =IF(Operations!$H47=0,0,Operations!$P47*'General Variables'!$B$9/Operations!$H47) -> 0.166426782 | T47: =IF(Operations!$H47=0,0,Operations!$P47*'General Variables'!$B$10/Operations!$H47) -> 0.249640173 | U47: =SUM(Table3[[#This Row],[Depreciation per Unit]:[Opportunity Cost per Unit]]) -> 1.010765644 | W47: Permanent solid set | X47: See Table 5-5* | Y47: 0.01 | Z47: 1
A48: Ridge Plant and Band Herbicide | B48: acre | C48: Planter - Row crop | D48: Disks and all other tillage equipment | E48: 103593 | G48: 5 | H48: 1500 | I48: 10 | J48: 1.2 | K48: Medium Tractor | L48: 3.41 | N48: =IF(Operations!$E48>1,Operations!$E48,IF(Operations!$D48=0,0,Operations!$F48/(VLOOKUP(Operations!$D48,ImpDepLookup,2,FALSE)-VLOOKUP(Operations!$D48,ImpDepLookup,3,FALSE)*Operations!$G48^0.5-VLOOKUP(Operations!$D48,ImpDepLookup,4,FALSE)*(Operations!$G48*(Operations!$G48*Operations!$H48/Operations!$I48)^0.5))^2)) -> 103593 | O48: =IF(Operations!$C48="",0,(((Operations!$G48+1)*Operations!$H48/Operations!$I48/1000)^VLOOKUP(Operations!$C48,ImpRepairFac[],4,FALSE)-(Operations!$G48*Operations!$H48/Operations!$I48/1000)^VLOOKUP(Operations!$C48,ImpRepairFac[],4,FALSE))*Operations!$N48*VLOOKUP(Operations!$C48,ImpRepairFac[],3,FALSE)/Operations!$H48) -> 5.634623088 | P48: =IF(Operations!$N48=0,0,Operations!$N48*(VLOOKUP(Operations!$D48,ImpDepLookup,2,FALSE)-VLOOKUP(Operations!$D48,ImpDepLookup,3,FALSE)*Operations!$G48^0.5-VLOOKUP(Operations!$D48,ImpDepLookup,4,FALSE)*(Operations!$G48*Operations!$H48/Operations!$I48)^0.5)^2) -> 43101.62407 | Q48: =IF(Operations!$N48=0,0,Operations!$N48*(VLOOKUP(Operations!$D48,ImpDepLookup,2,FALSE)-VLOOKUP(Operations!$D48,ImpDepLookup,3,FALSE)*(Operations!$G48+1)^0.5-VLOOKUP(Operations!$D48,ImpDepLookup,4,FALSE)*(Operations!$G48*Operations!$H48/Operations!$I48)^0.5)^2) -> 40021.29301 | R48: =IF(Operations!$N48=0,0,IF(Operations!$I48*Operations!$H48=0,0,(Operations!$P48-Operations!$Q48)/(Operations!$H48))) -> 2.053554042 | S48: =IF(Operations!$H48=0,0,Operations!$P48*'General Variables'!$B$9/Operations!$H48) -> 0.574688321 | T48: =IF(Operations!$H48=0,0,Operations!$P48*'General Variables'!$B$10/Operations!$H48) -> 0.8620324815 | U48: =SUM(Table3[[#This Row],[Depreciation per Unit]:[Opportunity Cost per Unit]]) -> 3.490274844 | W48: Orchard hose-pull | X48: See Table 5-5* | Y48: 0.03 | Z48: 1
A49: Rod Weeder | B49: acre | C49: Diskharrow - Tandem | D49: Disks and all other tillage equipment | F49: 7500 | G49: 5 | H49: 1000 | I49: 13.2 | J49: 1 | K49: Medium Tractor | L49: 5.346 | N49: =IF(Operations!$E49>1,Operations!$E49,IF(Operations!$D49=0,0,Operations!$F49/(VLOOKUP(Operations!$D49,ImpDepLookup,2,FALSE)-VLOOKUP(Operations!$D49,ImpDepLookup,3,FALSE)*Operations!$G49^0.5-VLOOKUP(Operations!$D49,ImpDepLookup,4,FALSE)*(Operations!$G49*(Operations!$G49*Operations!$H49/Operations!$I49)^0.5))^2)) -> 18025.94488 | O49: =IF(Operations!$C49="",0,(((Operations!$G49+1)*Operations!$H49/Operations!$I49/1000)^VLOOKUP(Operations!$C49,ImpRepairFac[],4,FALSE)-(Operations!$G49*Operations!$H49/Operations!$I49/1000)^VLOOKUP(Operations!$C49,ImpRepairFac[],4,FALSE))*Operations!$N49*VLOOKUP(Operations!$C49,ImpRepairFac[],3,FALSE)/Operations!$H49) -> 0.2263455021 | P49: =IF(Operations!$N49=0,0,Operations!$N49*(VLOOKUP(Operations!$D49,ImpDepLookup,2,FALSE)-VLOOKUP(Operations!$D49,ImpDepLookup,3,FALSE)*Operations!$G49^0.5-VLOOKUP(Operations!$D49,ImpDepLookup,4,FALSE)*(Operations!$G49*Operations!$H49/Operations!$I49)^0.5)^2) -> 7500 | Q49: =IF(Operations!$N49=0,0,Operations!$N49*(VLOOKUP(Operations!$D49,ImpDepLookup,2,FALSE)-VLOOKUP(Operations!$D49,ImpDepLookup,3,FALSE)*(Operations!$G49+1)^0.5-VLOOKUP(Operations!$D49,ImpDepLookup,4,FALSE)*(Operations!$G49*Operations!$H49/Operations!$I49)^0.5)^2) -> 6963.999711 | R49: =IF(Operations!$N49=0,0,IF(Operations!$I49*Operations!$H49=0,0,(Operations!$P49-Operations!$Q49)/(Operations!$H49))) -> 0.5360002892 | S49: =IF(Operations!$H49=0,0,Operations!$P49*'General Variables'!$B$9/Operations!$H49) -> 0.15 | T49: =IF(Operations!$H49=0,0,Operations!$P49*'General Variables'!$B$10/Operations!$H49) -> 0.225 | U49: =SUM(Table3[[#This Row],[Depreciation per Unit]:[Opportunity Cost per Unit]]) -> 0.9110002892
A50: Rod Weeder & Fertilizer | B50: acre | C50: Diskharrow - Tandem | D50: Disks and all other tillage equipment | F50: 7500 | G50: 5 | H50: 1000 | I50: 13.2 | J50: 1.2 | K50: Medium Tractor | L50: 5.346 | N50: =IF(Operations!$E50>1,Operations!$E50,IF(Operations!$D50=0,0,Operations!$F50/(VLOOKUP(Operations!$D50,ImpDepLookup,2,FALSE)-VLOOKUP(Operations!$D50,ImpDepLookup,3,FALSE)*Operations!$G50^0.5-VLOOKUP(Operations!$D50,ImpDepLookup,4,FALSE)*(Operations!$G50*(Operations!$G50*Operations!$H50/Operations!$I50)^0.5))^2)) -> 18025.94488 | O50: =IF(Operations!$C50="",0,(((Operations!$G50+1)*Operations!$H50/Operations!$I50/1000)^VLOOKUP(Operations!$C50,ImpRepairFac[],4,FALSE)-(Operations!$G50*Operations!$H50/Operations!$I50/1000)^VLOOKUP(Operations!$C50,ImpRepairFac[],4,FALSE))*Operations!$N50*VLOOKUP(Operations!$C50,ImpRepairFac[],3,FALSE)/Operations!$H50) -> 0.2263455021 | P50: =IF(Operations!$N50=0,0,Operations!$N50*(VLOOKUP(Operations!$D50,ImpDepLookup,2,FALSE)-VLOOKUP(Operations!$D50,ImpDepLookup,3,FALSE)*Operations!$G50^0.5-VLOOKUP(Operations!$D50,ImpDepLookup,4,FALSE)*(Operations!$G50*Operations!$H50/Operations!$I50)^0.5)^2) -> 7500 | Q50: =IF(Operations!$N50=0,0,Operations!$N50*(VLOOKUP(Operations!$D50,ImpDepLookup,2,FALSE)-VLOOKUP(Operations!$D50,ImpDepLookup,3,FALSE)*(Operations!$G50+1)^0.5-VLOOKUP(Operations!$D50,ImpDepLookup,4,FALSE)*(Operations!$G50*Operations!$H50/Operations!$I50)^0.5)^2) -> 6963.999711 | R50: =IF(Operations!$N50=0,0,IF(Operations!$I50*Operations!$H50=0,0,(Operations!$P50-Operations!$Q50)/(Operations!$H50))) -> 0.5360002892 | S50: =IF(Operations!$H50=0,0,Operations!$P50*'General Variables'!$B$9/Operations!$H50) -> 0.15 | T50: =IF(Operations!$H50=0,0,Operations!$P50*'General Variables'!$B$10/Operations!$H50) -> 0.225 | U50: =SUM(Table3[[#This Row],[Depreciation per Unit]:[Opportunity Cost per Unit]]) -> 0.9110002892
A51: Roll | B51: acre | C51: Mulcher-packer | D51: Disks and all other tillage equipment | G51: 5 | H51: 300 | I51: 9 | J51: 1 | K51: Medium Tractor | L51: 5.458646617 | N51: =IF(Operations!$E51>1,Operations!$E51,IF(Operations!$D51=0,0,Operations!$F51/(VLOOKUP(Operations!$D51,ImpDepLookup,2,FALSE)-VLOOKUP(Operations!$D51,ImpDepLookup,3,FALSE)*Operations!$G51^0.5-VLOOKUP(Operations!$D51,ImpDepLookup,4,FALSE)*(Operations!$G51*(Operations!$G51*Operations!$H51/Operations!$I51)^0.5))^2)) -> 0 | O51: =IF(Operations!$C51="",0,(((Operations!$G51+1)*Operations!$H51/Operations!$I51/1000)^VLOOKUP(Operations!$C51,ImpRepairFac[],4,FALSE)-(Operations!$G51*Operations!$H51/Operations!$I51/1000)^VLOOKUP(Operations!$C51,ImpRepairFac[],4,FALSE))*Operations!$N51*VLOOKUP(Operations!$C51,ImpRepairFac[],3,FALSE)/Operations!$H51) -> 0 | P51: =IF(Operations!$N51=0,0,Operations!$N51*(VLOOKUP(Operations!$D51,ImpDepLookup,2,FALSE)-VLOOKUP(Operations!$D51,ImpDepLookup,3,FALSE)*Operations!$G51^0.5-VLOOKUP(Operations!$D51,ImpDepLookup,4,FALSE)*(Operations!$G51*Operations!$H51/Operations!$I51)^0.5)^2) -> 0 | Q51: =IF(Operations!$N51=0,0,Operations!$N51*(VLOOKUP(Operations!$D51,ImpDepLookup,2,FALSE)-VLOOKUP(Operations!$D51,ImpDepLookup,3,FALSE)*(Operations!$G51+1)^0.5-VLOOKUP(Operations!$D51,ImpDepLookup,4,FALSE)*(Operations!$G51*Operations!$H51/Operations!$I51)^0.5)^2) -> 0 | R51: =IF(Operations!$N51=0,0,IF(Operations!$I51*Operations!$H51=0,0,(Operations!$P51-Operations!$Q51)/(Operations!$H51))) -> 0 | S51: =IF(Operations!$H51=0,0,Operations!$P51*'General Variables'!$B$9/Operations!$H51) -> 0 | T51: =IF(Operations!$H51=0,0,Operations!$P51*'General Variables'!$B$10/Operations!$H51) -> 0 | U51: =SUM(Table3[[#This Row],[Depreciation per Unit]:[Opportunity Cost per Unit]]) -> 0
A52: Roller Harrow | B52: acre | C52: Mulcher-packer | D52: Disks and all other tillage equipment | E52: 33000 | G52: 5 | H52: 1000 | I52: 10 | J52: 1 | K52: Medium Tractor | L52: 5 | N52: =IF(Operations!$E52>1,Operations!$E52,IF(Operations!$D52=0,0,Operations!$F52/(VLOOKUP(Operations!$D52,ImpDepLookup,2,FALSE)-VLOOKUP(Operations!$D52,ImpDepLookup,3,FALSE)*Operations!$G52^0.5-VLOOKUP(Operations!$D52,ImpDepLookup,4,FALSE)*(Operations!$G52*(Operations!$G52*Operations!$H52/Operations!$I52)^0.5))^2)) -> 33000 | O52: =IF(Operations!$C52="",0,(((Operations!$G52+1)*Operations!$H52/Operations!$I52/1000)^VLOOKUP(Operations!$C52,ImpRepairFac[],4,FALSE)-(Operations!$G52*Operations!$H52/Operations!$I52/1000)^VLOOKUP(Operations!$C52,ImpRepairFac[],4,FALSE))*Operations!$N52*VLOOKUP(Operations!$C52,ImpRepairFac[],3,FALSE)/Operations!$H52) -> 0.5735353646 | P52: =IF(Operations!$N52=0,0,Operations!$N52*(VLOOKUP(Operations!$D52,ImpDepLookup,2,FALSE)-VLOOKUP(Operations!$D52,ImpDepLookup,3,FALSE)*Operations!$G52^0.5-VLOOKUP(Operations!$D52,ImpDepLookup,4,FALSE)*(Operations!$G52*Operations!$H52/Operations!$I52)^0.5)^2) -> 13730.20952 | Q52: =IF(Operations!$N52=0,0,Operations!$N52*(VLOOKUP(Operations!$D52,ImpDepLookup,2,FALSE)-VLOOKUP(Operations!$D52,ImpDepLookup,3,FALSE)*(Operations!$G52+1)^0.5-VLOOKUP(Operations!$D52,ImpDepLookup,4,FALSE)*(Operations!$G52*Operations!$H52/Operations!$I52)^0.5)^2) -> 12748.95668 | R52: =IF(Operations!$N52=0,0,IF(Operations!$I52*Operations!$H52=0,0,(Operations!$P52-Operations!$Q52)/(Operations!$H52))) -> 0.9812528362 | S52: =IF(Operations!$H52=0,0,Operations!$P52*'General Variables'!$B$9/Operations!$H52) -> 0.2746041903 | T52: =IF(Operations!$H52=0,0,Operations!$P52*'General Variables'!$B$10/Operations!$H52) -> 0.4119062855 | U52: =SUM(Table3[[#This Row],[Depreciation per Unit]:[Opportunity Cost per Unit]]) -> 1.667763312
A53: Rotary Hoe | B53: acre | C53: Rotary hoe | D53: Disks and all other tillage equipment | E53: 25000 | F53: 3000 | G53: 5 | H53: 1000 | I53: 14.66666667 | J53: 1.1 | K53: Medium Tractor | L53: 3.666666667 | N53: =IF(Operations!$E53>1,Operations!$E53,IF(Operations!$D53=0,0,Operations!$F53/(VLOOKUP(Operations!$D53,ImpDepLookup,2,FALSE)-VLOOKUP(Operations!$D53,ImpDepLookup,3,FALSE)*Operations!$G53^0.5-VLOOKUP(Operations!$D53,ImpDepLookup,4,FALSE)*(Operations!$G53*(Operations!$G53*Operations!$H53/Operations!$I53)^0.5))^2)) -> 25000 | O53: =IF(Operations!$C53="",0,(((Operations!$G53+1)*Operations!$H53/Operations!$I53/1000)^VLOOKUP(Operations!$C53,ImpRepairFac[],4,FALSE)-(Operations!$G53*Operations!$H53/Operations!$I53/1000)^VLOOKUP(Operations!$C53,ImpRepairFac[],4,FALSE))*Operations!$N53*VLOOKUP(Operations!$C53,ImpRepairFac[],3,FALSE)/Operations!$H53) -> 0.3706236475 | P53: =IF(Operations!$N53=0,0,Operations!$N53*(VLOOKUP(Operations!$D53,ImpDepLookup,2,FALSE)-VLOOKUP(Operations!$D53,ImpDepLookup,3,FALSE)*Operations!$G53^0.5-VLOOKUP(Operations!$D53,ImpDepLookup,4,FALSE)*(Operations!$G53*Operations!$H53/Operations!$I53)^0.5)^2) -> 10401.67388 | Q53: =IF(Operations!$N53=0,0,Operations!$N53*(VLOOKUP(Operations!$D53,ImpDepLookup,2,FALSE)-VLOOKUP(Operations!$D53,ImpDepLookup,3,FALSE)*(Operations!$G53+1)^0.5-VLOOKUP(Operations!$D53,ImpDepLookup,4,FALSE)*(Operations!$G53*Operations!$H53/Operations!$I53)^0.5)^2) -> 9658.300515 | R53: =IF(Operations!$N53=0,0,IF(Operations!$I53*Operations!$H53=0,0,(Operations!$P53-Operations!$Q53)/(Operations!$H53))) -> 0.7433733608 | S53: =IF(Operations!$H53=0,0,Operations!$P53*'General Variables'!$B$9/Operations!$H53) -> 0.2080334775 | T53: =IF(Operations!$H53=0,0,Operations!$P53*'General Variables'!$B$10/Operations!$H53) -> 0.3120502163 | U53: =SUM(Table3[[#This Row],[Depreciation per Unit]:[Opportunity Cost per Unit]]) -> 1.263457055
A54: Row Crop Cultivation | B54: acre | C54: Cultivator - Row crop | D54: Disks and all other tillage equipment | E54: 30000 | G54: 5 | H54: 1000 | I54: 11 | J54: 1.1 | K54: Medium Tractor | L54: 3.5 | N54: =IF(Operations!$E54>1,Operations!$E54,IF(Operations!$D54=0,0,Operations!$F54/(VLOOKUP(Operations!$D54,ImpDepLookup,2,FALSE)-VLOOKUP(Operations!$D54,ImpDepLookup,3,FALSE)*Operations!$G54^0.5-VLOOKUP(Operations!$D54,ImpDepLookup,4,FALSE)*(Operations!$G54*(Operations!$G54*Operations!$H54/Operations!$I54)^0.5))^2)) -> 30000 | O54: =IF(Operations!$C54="",0,(((Operations!$G54+1)*Operations!$H54/Operations!$I54/1000)^VLOOKUP(Operations!$C54,ImpRepairFac[],4,FALSE)-(Operations!$G54*Operations!$H54/Operations!$I54/1000)^VLOOKUP(Operations!$C54,ImpRepairFac[],4,FALSE))*Operations!$N54*VLOOKUP(Operations!$C54,ImpRepairFac[],3,FALSE)/Operations!$H54) -> 0.4441276453 | P54: =IF(Operations!$N54=0,0,Operations!$N54*(VLOOKUP(Operations!$D54,ImpDepLookup,2,FALSE)-VLOOKUP(Operations!$D54,ImpDepLookup,3,FALSE)*Operations!$G54^0.5-VLOOKUP(Operations!$D54,ImpDepLookup,4,FALSE)*(Operations!$G54*Operations!$H54/Operations!$I54)^0.5)^2) -> 12482.00865 | Q54: =IF(Operations!$N54=0,0,Operations!$N54*(VLOOKUP(Operations!$D54,ImpDepLookup,2,FALSE)-VLOOKUP(Operations!$D54,ImpDepLookup,3,FALSE)*(Operations!$G54+1)^0.5-VLOOKUP(Operations!$D54,ImpDepLookup,4,FALSE)*(Operations!$G54*Operations!$H54/Operations!$I54)^0.5)^2) -> 11589.96062 | R54: =IF(Operations!$N54=0,0,IF(Operations!$I54*Operations!$H54=0,0,(Operations!$P54-Operations!$Q54)/(Operations!$H54))) -> 0.8920480329 | S54: =IF(Operations!$H54=0,0,Operations!$P54*'General Variables'!$B$9/Operations!$H54) -> 0.249640173 | T54: =IF(Operations!$H54=0,0,Operations!$P54*'General Variables'!$B$10/Operations!$H54) -> 0.3744602595 | U54: =SUM(Table3[[#This Row],[Depreciation per Unit]:[Opportunity Cost per Unit]]) -> 1.516148466
A55: Seeder/Packer | B55: acre | C55: Drill - Grain | D55: Planters | E55: 62545 | G55: 5 | H55: 1000 | I55: 8 | J55: 1.2 | K55: Medium Tractor | L55: 4.293680297 | N55: =IF(Operations!$E55>1,Operations!$E55,IF(Operations!$D55=0,0,Operations!$F55/(VLOOKUP(Operations!$D55,ImpDepLookup,2,FALSE)-VLOOKUP(Operations!$D55,ImpDepLookup,3,FALSE)*Operations!$G55^0.5-VLOOKUP(Operations!$D55,ImpDepLookup,4,FALSE)*(Operations!$G55*(Operations!$G55*Operations!$H55/Operations!$I55)^0.5))^2)) -> 62545 | O55: =IF(Operations!$C55="",0,(((Operations!$G55+1)*Operations!$H55/Operations!$I55/1000)^VLOOKUP(Operations!$C55,ImpRepairFac[],4,FALSE)-(Operations!$G55*Operations!$H55/Operations!$I55/1000)^VLOOKUP(Operations!$C55,ImpRepairFac[],4,FALSE))*Operations!$N55*VLOOKUP(Operations!$C55,ImpRepairFac[],3,FALSE)/Operations!$H55) -> 3.47966712 | P55: =IF(Operations!$N55=0,0,Operations!$N55*(VLOOKUP(Operations!$D55,ImpDepLookup,2,FALSE)-VLOOKUP(Operations!$D55,ImpDepLookup,3,FALSE)*Operations!$G55^0.5-VLOOKUP(Operations!$D55,ImpDepLookup,4,FALSE)*(Operations!$G55*Operations!$H55/Operations!$I55)^0.5)^2) -> 31403.53854 | Q55: =IF(Operations!$N55=0,0,Operations!$N55*(VLOOKUP(Operations!$D55,ImpDepLookup,2,FALSE)-VLOOKUP(Operations!$D55,ImpDepLookup,3,FALSE)*(Operations!$G55+1)^0.5-VLOOKUP(Operations!$D55,ImpDepLookup,4,FALSE)*(Operations!$G55*Operations!$H55/Operations!$I55)^0.5)^2) -> 29945.33806 | R55: =IF(Operations!$N55=0,0,IF(Operations!$I55*Operations!$H55=0,0,(Operations!$P55-Operations!$Q55)/(Operations!$H55))) -> 1.458200482 | S55: =IF(Operations!$H55=0,0,Operations!$P55*'General Variables'!$B$9/Operations!$H55) -> 0.6280707709 | T55: =IF(Operations!$H55=0,0,Operations!$P55*'General Variables'!$B$10/Operations!$H55) -> 0.9421061563 | U55: =SUM(Table3[[#This Row],[Depreciation per Unit]:[Opportunity Cost per Unit]]) -> 3.028377409
A56: Spray (Prior Year Stubble) | B56: acre | C56: Sprayer - Boom-type | D56: Manure spreaders and all other miscellaneous equipment | E56: 48000 | G56: 5 | H56: 2500 | I56: 33 | J56: 1.25 | K56: Medium Tractor | L56: 2.64 | N56: =IF(Operations!$E56>1,Operations!$E56,IF(Operations!$D56=0,0,Operations!$F56/(VLOOKUP(Operations!$D56,ImpDepLookup,2,FALSE)-VLOOKUP(Operations!$D56,ImpDepLookup,3,FALSE)*Operations!$G56^0.5-VLOOKUP(Operations!$D56,ImpDepLookup,4,FALSE)*(Operations!$G56*(Operations!$G56*Operations!$H56/Operations!$I56)^0.5))^2)) -> 48000 | O56: =IF(Operations!$C56="",0,(((Operations!$G56+1)*Operations!$H56/Operations!$I56/1000)^VLOOKUP(Operations!$C56,ImpRepairFac[],4,FALSE)-(Operations!$G56*Operations!$H56/Operations!$I56/1000)^VLOOKUP(Operations!$C56,ImpRepairFac[],4,FALSE))*Operations!$N56*VLOOKUP(Operations!$C56,ImpRepairFac[],3,FALSE)/Operations!$H56) -> 0.5960260676 | P56: =IF(Operations!$N56=0,0,Operations!$N56*(VLOOKUP(Operations!$D56,ImpDepLookup,2,FALSE)-VLOOKUP(Operations!$D56,ImpDepLookup,3,FALSE)*Operations!$G56^0.5-VLOOKUP(Operations!$D56,ImpDepLookup,4,FALSE)*(Operations!$G56*Operations!$H56/Operations!$I56)^0.5)^2) -> 23171.62143 | Q56: =IF(Operations!$N56=0,0,Operations!$N56*(VLOOKUP(Operations!$D56,ImpDepLookup,2,FALSE)-VLOOKUP(Operations!$D56,ImpDepLookup,3,FALSE)*(Operations!$G56+1)^0.5-VLOOKUP(Operations!$D56,ImpDepLookup,4,FALSE)*(Operations!$G56*Operations!$H56/Operations!$I56)^0.5)^2) -> 21618.43777 | R56: =IF(Operations!$N56=0,0,IF(Operations!$I56*Operations!$H56=0,0,(Operations!$P56-Operations!$Q56)/(Operations!$H56))) -> 0.6212734632 | S56: =IF(Operations!$H56=0,0,Operations!$P56*'General Variables'!$B$9/Operations!$H56) -> 0.1853729715 | T56: =IF(Operations!$H56=0,0,Operations!$P56*'General Variables'!$B$10/Operations!$H56) -> 0.2780594572 | U56: =SUM(Table3[[#This Row],[Depreciation per Unit]:[Opportunity Cost per Unit]]) -> 1.084705892
A57: Spray Fertilizer | B57: acre | C57: Sprayer - Air-carrier | D57: Manure spreaders and all other miscellaneous equipment | E57: 48000 | G57: 5 | H57: 1000 | I57: 33 | J57: 1.25 | K57: Medium Tractor | L57: 2.64 | N57: =IF(Operations!$E57>1,Operations!$E57,IF(Operations!$D57=0,0,Operations!$F57/(VLOOKUP(Operations!$D57,ImpDepLookup,2,FALSE)-VLOOKUP(Operations!$D57,ImpDepLookup,3,FALSE)*Operations!$G57^0.5-VLOOKUP(Operations!$D57,ImpDepLookup,4,FALSE)*(Operations!$G57*(Operations!$G57*Operations!$H57/Operations!$I57)^0.5))^2)) -> 48000 | O57: =IF(Operations!$C57="",0,(((Operations!$G57+1)*Operations!$H57/Operations!$I57/1000)^VLOOKUP(Operations!$C57,ImpRepairFac[],4,FALSE)-(Operations!$G57*Operations!$H57/Operations!$I57/1000)^VLOOKUP(Operations!$C57,ImpRepairFac[],4,FALSE))*Operations!$N57*VLOOKUP(Operations!$C57,ImpRepairFac[],3,FALSE)/Operations!$H57) -> 0.1587971609 | P57: =IF(Operations!$N57=0,0,Operations!$N57*(VLOOKUP(Operations!$D57,ImpDepLookup,2,FALSE)-VLOOKUP(Operations!$D57,ImpDepLookup,3,FALSE)*Operations!$G57^0.5-VLOOKUP(Operations!$D57,ImpDepLookup,4,FALSE)*(Operations!$G57*Operations!$H57/Operations!$I57)^0.5)^2) -> 23171.62143 | Q57: =IF(Operations!$N57=0,0,Operations!$N57*(VLOOKUP(Operations!$D57,ImpDepLookup,2,FALSE)-VLOOKUP(Operations!$D57,ImpDepLookup,3,FALSE)*(Operations!$G57+1)^0.5-VLOOKUP(Operations!$D57,ImpDepLookup,4,FALSE)*(Operations!$G57*Operations!$H57/Operations!$I57)^0.5)^2) -> 21618.43777 | R57: =IF(Operations!$N57=0,0,IF(Operations!$I57*Operations!$H57=0,0,(Operations!$P57-Operations!$Q57)/(Operations!$H57))) -> 1.553183658 | S57: =IF(Operations!$H57=0,0,Operations!$P57*'General Variables'!$B$9/Operations!$H57) -> 0.4634324287 | T57: =IF(Operations!$H57=0,0,Operations!$P57*'General Variables'!$B$10/Operations!$H57) -> 0.695148643 | U57: =SUM(Table3[[#This Row],[Depreciation per Unit]:[Opportunity Cost per Unit]]) -> 2.71176473
A58: Spray Fertilizer and Herbicide | B58: acre | C58: Sprayer - Air-carrier | D58: Manure spreaders and all other miscellaneous equipment | E58: 48000 | G58: 5 | H58: 1000 | I58: 33 | J58: 1.25 | K58: Medium Tractor | L58: 2.64 | N58: =IF(Operations!$E58>1,Operations!$E58,IF(Operations!$D58=0,0,Operations!$F58/(VLOOKUP(Operations!$D58,ImpDepLookup,2,FALSE)-VLOOKUP(Operations!$D58,ImpDepLookup,3,FALSE)*Operations!$G58^0.5-VLOOKUP(Operations!$D58,ImpDepLookup,4,FALSE)*(Operations!$G58*(Operations!$G58*Operations!$H58/Operations!$I58)^0.5))^2)) -> 48000 | O58: =IF(Operations!$C58="",0,(((Operations!$G58+1)*Operations!$H58/Operations!$I58/1000)^VLOOKUP(Operations!$C58,ImpRepairFac[],4,FALSE)-(Operations!$G58*Operations!$H58/Operations!$I58/1000)^VLOOKUP(Operations!$C58,ImpRepairFac[],4,FALSE))*Operations!$N58*VLOOKUP(Operations!$C58,ImpRepairFac[],3,FALSE)/Operations!$H58) -> 0.1587971609 | P58: =IF(Operations!$N58=0,0,Operations!$N58*(VLOOKUP(Operations!$D58,ImpDepLookup,2,FALSE)-VLOOKUP(Operations!$D58,ImpDepLookup,3,FALSE)*Operations!$G58^0.5-VLOOKUP(Operations!$D58,ImpDepLookup,4,FALSE)*(Operations!$G58*Operations!$H58/Operations!$I58)^0.5)^2) -> 23171.62143 | Q58: =IF(Operations!$N58=0,0,Operations!$N58*(VLOOKUP(Operations!$D58,ImpDepLookup,2,FALSE)-VLOOKUP(Operations!$D58,ImpDepLookup,3,FALSE)*(Operations!$G58+1)^0.5-VLOOKUP(Operations!$D58,ImpDepLookup,4,FALSE)*(Operations!$G58*Operations!$H58/Operations!$I58)^0.5)^2) -> 21618.43777 | R58: =IF(Operations!$N58=0,0,IF(Operations!$I58*Operations!$H58=0,0,(Operations!$P58-Operations!$Q58)/(Operations!$H58))) -> 1.553183658 | S58: =IF(Operations!$H58=0,0,Operations!$P58*'General Variables'!$B$9/Operations!$H58) -> 0.4634324287 | T58: =IF(Operations!$H58=0,0,Operations!$P58*'General Variables'!$B$10/Operations!$H58) -> 0.695148643 | U58: =SUM(Table3[[#This Row],[Depreciation per Unit]:[Opportunity Cost per Unit]]) -> 2.71176473
A59: Spray Herbicide | B59: acre | C59: Sprayer - Boom-type | D59: Manure spreaders and all other miscellaneous equipment | E59: 48000 | G59: 5 | H59: 2500 | I59: 33 | J59: 1.25 | K59: Medium Tractor | L59: 2.64 | N59: =IF(Operations!$E59>1,Operations!$E59,IF(Operations!$D59=0,0,Operations!$F59/(VLOOKUP(Operations!$D59,ImpDepLookup,2,FALSE)-VLOOKUP(Operations!$D59,ImpDepLookup,3,FALSE)*Operations!$G59^0.5-VLOOKUP(Operations!$D59,ImpDepLookup,4,FALSE)*(Operations!$G59*(Operations!$G59*Operations!$H59/Operations!$I59)^0.5))^2)) -> 48000 | O59: =IF(Operations!$C59="",0,(((Operations!$G59+1)*Operations!$H59/Operations!$I59/1000)^VLOOKUP(Operations!$C59,ImpRepairFac[],4,FALSE)-(Operations!$G59*Operations!$H59/Operations!$I59/1000)^VLOOKUP(Operations!$C59,ImpRepairFac[],4,FALSE))*Operations!$N59*VLOOKUP(Operations!$C59,ImpRepairFac[],3,FALSE)/Operations!$H59) -> 0.5960260676 | P59: =IF(Operations!$N59=0,0,Operations!$N59*(VLOOKUP(Operations!$D59,ImpDepLookup,2,FALSE)-VLOOKUP(Operations!$D59,ImpDepLookup,3,FALSE)*Operations!$G59^0.5-VLOOKUP(Operations!$D59,ImpDepLookup,4,FALSE)*(Operations!$G59*Operations!$H59/Operations!$I59)^0.5)^2) -> 23171.62143 | Q59: =IF(Operations!$N59=0,0,Operations!$N59*(VLOOKUP(Operations!$D59,ImpDepLookup,2,FALSE)-VLOOKUP(Operations!$D59,ImpDepLookup,3,FALSE)*(Operations!$G59+1)^0.5-VLOOKUP(Operations!$D59,ImpDepLookup,4,FALSE)*(Operations!$G59*Operations!$H59/Operations!$I59)^0.5)^2) -> 21618.43777 | R59: =IF(Operations!$N59=0,0,IF(Operations!$I59*Operations!$H59=0,0,(Operations!$P59-Operations!$Q59)/(Operations!$H59))) -> 0.6212734632 | S59: =IF(Operations!$H59=0,0,Operations!$P59*'General Variables'!$B$9/Operations!$H59) -> 0.1853729715 | T59: =IF(Operations!$H59=0,0,Operations!$P59*'General Variables'!$B$10/Operations!$H59) -> 0.2780594572 | U59: =SUM(Table3[[#This Row],[Depreciation per Unit]:[Opportunity Cost per Unit]]) -> 1.084705892
A60: Spray Insecticide | B60: acre | C60: Sprayer - Boom-type | D60: Manure spreaders and all other miscellaneous equipment | E60: 48000 | G60: 5 | H60: 2500 | I60: 33 | J60: 1.25 | K60: Medium Tractor | L60: 2.64 | N60: =IF(Operations!$E60>1,Operations!$E60,IF(Operations!$D60=0,0,Operations!$F60/(VLOOKUP(Operations!$D60,ImpDepLookup,2,FALSE)-VLOOKUP(Operations!$D60,ImpDepLookup,3,FALSE)*Operations!$G60^0.5-VLOOKUP(Operations!$D60,ImpDepLookup,4,FALSE)*(Operations!$G60*(Operations!$G60*Operations!$H60/Operations!$I60)^0.5))^2)) -> 48000 | O60: =IF(Operations!$C60="",0,(((Operations!$G60+1)*Operations!$H60/Operations!$I60/1000)^VLOOKUP(Operations!$C60,ImpRepairFac[],4,FALSE)-(Operations!$G60*Operations!$H60/Operations!$I60/1000)^VLOOKUP(Operations!$C60,ImpRepairFac[],4,FALSE))*Operations!$N60*VLOOKUP(Operations!$C60,ImpRepairFac[],3,FALSE)/Operations!$H60) -> 0.5960260676 | P60: =IF(Operations!$N60=0,0,Operations!$N60*(VLOOKUP(Operations!$D60,ImpDepLookup,2,FALSE)-VLOOKUP(Operations!$D60,ImpDepLookup,3,FALSE)*Operations!$G60^0.5-VLOOKUP(Operations!$D60,ImpDepLookup,4,FALSE)*(Operations!$G60*Operations!$H60/Operations!$I60)^0.5)^2) -> 23171.62143 | Q60: =IF(Operations!$N60=0,0,Operations!$N60*(VLOOKUP(Operations!$D60,ImpDepLookup,2,FALSE)-VLOOKUP(Operations!$D60,ImpDepLookup,3,FALSE)*(Operations!$G60+1)^0.5-VLOOKUP(Operations!$D60,ImpDepLookup,4,FALSE)*(Operations!$G60*Operations!$H60/Operations!$I60)^0.5)^2) -> 21618.43777 | R60: =IF(Operations!$N60=0,0,IF(Operations!$I60*Operations!$H60=0,0,(Operations!$P60-Operations!$Q60)/(Operations!$H60))) -> 0.6212734632 | S60: =IF(Operations!$H60=0,0,Operations!$P60*'General Variables'!$B$9/Operations!$H60) -> 0.1853729715 | T60: =IF(Operations!$H60=0,0,Operations!$P60*'General Variables'!$B$10/Operations!$H60) -> 0.2780594572 | U60: =SUM(Table3[[#This Row],[Depreciation per Unit]:[Opportunity Cost per Unit]]) -> 1.084705892
A61: Spray Spring Burndown Herbicide | B61: acre | C61: Sprayer - Boom-type | D61: Manure spreaders and all other miscellaneous equipment | E61: 48000 | G61: 5 | H61: 2500 | I61: 33 | J61: 1.25 | K61: Medium Tractor | L61: 2.64 | N61: =IF(Operations!$E61>1,Operations!$E61,IF(Operations!$D61=0,0,Operations!$F61/(VLOOKUP(Operations!$D61,ImpDepLookup,2,FALSE)-VLOOKUP(Operations!$D61,ImpDepLookup,3,FALSE)*Operations!$G61^0.5-VLOOKUP(Operations!$D61,ImpDepLookup,4,FALSE)*(Operations!$G61*(Operations!$G61*Operations!$H61/Operations!$I61)^0.5))^2)) -> 48000 | O61: =IF(Operations!$C61="",0,(((Operations!$G61+1)*Operations!$H61/Operations!$I61/1000)^VLOOKUP(Operations!$C61,ImpRepairFac[],4,FALSE)-(Operations!$G61*Operations!$H61/Operations!$I61/1000)^VLOOKUP(Operations!$C61,ImpRepairFac[],4,FALSE))*Operations!$N61*VLOOKUP(Operations!$C61,ImpRepairFac[],3,FALSE)/Operations!$H61) -> 0.5960260676 | P61: =IF(Operations!$N61=0,0,Operations!$N61*(VLOOKUP(Operations!$D61,ImpDepLookup,2,FALSE)-VLOOKUP(Operations!$D61,ImpDepLookup,3,FALSE)*Operations!$G61^0.5-VLOOKUP(Operations!$D61,ImpDepLookup,4,FALSE)*(Operations!$G61*Operations!$H61/Operations!$I61)^0.5)^2) -> 23171.62143 | Q61: =IF(Operations!$N61=0,0,Operations!$N61*(VLOOKUP(Operations!$D61,ImpDepLookup,2,FALSE)-VLOOKUP(Operations!$D61,ImpDepLookup,3,FALSE)*(Operations!$G61+1)^0.5-VLOOKUP(Operations!$D61,ImpDepLookup,4,FALSE)*(Operations!$G61*Operations!$H61/Operations!$I61)^0.5)^2) -> 21618.43777 | R61: =IF(Operations!$N61=0,0,IF(Operations!$I61*Operations!$H61=0,0,(Operations!$P61-Operations!$Q61)/(Operations!$H61))) -> 0.6212734632 | S61: =IF(Operations!$H61=0,0,Operations!$P61*'General Variables'!$B$9/Operations!$H61) -> 0.1853729715 | T61: =IF(Operations!$H61=0,0,Operations!$P61*'General Variables'!$B$10/Operations!$H61) -> 0.2780594572 | U61: =SUM(Table3[[#This Row],[Depreciation per Unit]:[Opportunity Cost per Unit]]) -> 1.084705892
A62: Spread Fertilizer | B62: acre | D62: Manure spreaders and all other miscellaneous equipment | G62: 5 | H62: 1000 | I62: 12.7 | J62: 1 | K62: Medium Tractor | L62: 3.861702128 | N62: =IF(Operations!$E62>1,Operations!$E62,IF(Operations!$D62=0,0,Operations!$F62/(VLOOKUP(Operations!$D62,ImpDepLookup,2,FALSE)-VLOOKUP(Operations!$D62,ImpDepLookup,3,FALSE)*Operations!$G62^0.5-VLOOKUP(Operations!$D62,ImpDepLookup,4,FALSE)*(Operations!$G62*(Operations!$G62*Operations!$H62/Operations!$I62)^0.5))^2)) -> 0 | O62: =IF(Operations!$C62="",0,(((Operations!$G62+1)*Operations!$H62/Operations!$I62/1000)^VLOOKUP(Operations!$C62,ImpRepairFac[],4,FALSE)-(Operations!$G62*Operations!$H62/Operations!$I62/1000)^VLOOKUP(Operations!$C62,ImpRepairFac[],4,FALSE))*Operations!$N62*VLOOKUP(Operations!$C62,ImpRepairFac[],3,FALSE)/Operations!$H62) -> 0 | P62: =IF(Operations!$N62=0,0,Operations!$N62*(VLOOKUP(Operations!$D62,ImpDepLookup,2,FALSE)-VLOOKUP(Operations!$D62,ImpDepLookup,3,FALSE)*Operations!$G62^0.5-VLOOKUP(Operations!$D62,ImpDepLookup,4,FALSE)*(Operations!$G62*Operations!$H62/Operations!$I62)^0.5)^2) -> 0 | Q62: =IF(Operations!$N62=0,0,Operations!$N62*(VLOOKUP(Operations!$D62,ImpDepLookup,2,FALSE)-VLOOKUP(Operations!$D62,ImpDepLookup,3,FALSE)*(Operations!$G62+1)^0.5-VLOOKUP(Operations!$D62,ImpDepLookup,4,FALSE)*(Operations!$G62*Operations!$H62/Operations!$I62)^0.5)^2) -> 0 | R62: =IF(Operations!$N62=0,0,IF(Operations!$I62*Operations!$H62=0,0,(Operations!$P62-Operations!$Q62)/(Operations!$H62))) -> 0 | S62: =IF(Operations!$H62=0,0,Operations!$P62*'General Variables'!$B$9/Operations!$H62) -> 0 | T62: =IF(Operations!$H62=0,0,Operations!$P62*'General Variables'!$B$10/Operations!$H62) -> 0 | U62: =SUM(Table3[[#This Row],[Depreciation per Unit]:[Opportunity Cost per Unit]]) -> 0
A63: Spread Manure | B63: Custom | N63: =IF(Operations!$E63>1,Operations!$E63,IF(Operations!$D63=0,0,Operations!$F63/(VLOOKUP(Operations!$D63,ImpDepLookup,2,FALSE)-VLOOKUP(Operations!$D63,ImpDepLookup,3,FALSE)*Operations!$G63^0.5-VLOOKUP(Operations!$D63,ImpDepLookup,4,FALSE)*(Operations!$G63*(Operations!$G63*Operations!$H63/Operations!$I63)^0.5))^2)) -> 0 | O63: =IF(Operations!$C63="",0,(((Operations!$G63+1)*Operations!$H63/Operations!$I63/1000)^VLOOKUP(Operations!$C63,ImpRepairFac[],4,FALSE)-(Operations!$G63*Operations!$H63/Operations!$I63/1000)^VLOOKUP(Operations!$C63,ImpRepairFac[],4,FALSE))*Operations!$N63*VLOOKUP(Operations!$C63,ImpRepairFac[],3,FALSE)/Operations!$H63) -> 0 | P63: =IF(Operations!$N63=0,0,Operations!$N63*(VLOOKUP(Operations!$D63,ImpDepLookup,2,FALSE)-VLOOKUP(Operations!$D63,ImpDepLookup,3,FALSE)*Operations!$G63^0.5-VLOOKUP(Operations!$D63,ImpDepLookup,4,FALSE)*(Operations!$G63*Operations!$H63/Operations!$I63)^0.5)^2) -> 0 | Q63: =IF(Operations!$N63=0,0,Operations!$N63*(VLOOKUP(Operations!$D63,ImpDepLookup,2,FALSE)-VLOOKUP(Operations!$D63,ImpDepLookup,3,FALSE)*(Operations!$G63+1)^0.5-VLOOKUP(Operations!$D63,ImpDepLookup,4,FALSE)*(Operations!$G63*Operations!$H63/Operations!$I63)^0.5)^2) -> 0 | R63: =IF(Operations!$N63=0,0,IF(Operations!$I63*Operations!$H63=0,0,(Operations!$P63-Operations!$Q63)/(Operations!$H63))) -> 0 | S63: =IF(Operations!$H63=0,0,Operations!$P63*'General Variables'!$B$9/Operations!$H63) -> 0 | T63: =IF(Operations!$H63=0,0,Operations!$P63*'General Variables'!$B$10/Operations!$H63) -> 0 | U63: =SUM(Table3[[#This Row],[Depreciation per Unit]:[Opportunity Cost per Unit]]) -> 0
A64: Subsoil | B64: acre | C64: Chisel plow (Coulter) | D64: Disks and all other tillage equipment | E64: 59465 | G64: 5 | H64: 500 | I64: 9 | J64: 1 | K64: Large Tractor | L64: 8.25 | N64: =IF(Operations!$E64>1,Operations!$E64,IF(Operations!$D64=0,0,Operations!$F64/(VLOOKUP(Operations!$D64,ImpDepLookup,2,FALSE)-VLOOKUP(Operations!$D64,ImpDepLookup,3,FALSE)*Operations!$G64^0.5-VLOOKUP(Operations!$D64,ImpDepLookup,4,FALSE)*(Operations!$G64*(Operations!$G64*Operations!$H64/Operations!$I64)^0.5))^2)) -> 59465 | O64: =IF(Operations!$C64="",0,(((Operations!$G64+1)*Operations!$H64/Operations!$I64/1000)^VLOOKUP(Operations!$C64,ImpRepairFac[],4,FALSE)-(Operations!$G64*Operations!$H64/Operations!$I64/1000)^VLOOKUP(Operations!$C64,ImpRepairFac[],4,FALSE))*Operations!$N64*VLOOKUP(Operations!$C64,ImpRepairFac[],3,FALSE)/Operations!$H64) -> 1.611377201 | P64: =IF(Operations!$N64=0,0,Operations!$N64*(VLOOKUP(Operations!$D64,ImpDepLookup,2,FALSE)-VLOOKUP(Operations!$D64,ImpDepLookup,3,FALSE)*Operations!$G64^0.5-VLOOKUP(Operations!$D64,ImpDepLookup,4,FALSE)*(Operations!$G64*Operations!$H64/Operations!$I64)^0.5)^2) -> 24741.42148 | Q64: =IF(Operations!$N64=0,0,Operations!$N64*(VLOOKUP(Operations!$D64,ImpDepLookup,2,FALSE)-VLOOKUP(Operations!$D64,ImpDepLookup,3,FALSE)*(Operations!$G64+1)^0.5-VLOOKUP(Operations!$D64,ImpDepLookup,4,FALSE)*(Operations!$G64*Operations!$H64/Operations!$I64)^0.5)^2) -> 22973.23361 | R64: =IF(Operations!$N64=0,0,IF(Operations!$I64*Operations!$H64=0,0,(Operations!$P64-Operations!$Q64)/(Operations!$H64))) -> 3.536375752 | S64: =IF(Operations!$H64=0,0,Operations!$P64*'General Variables'!$B$9/Operations!$H64) -> 0.9896568593 | T64: =IF(Operations!$H64=0,0,Operations!$P64*'General Variables'!$B$10/Operations!$H64) -> 1.484485289 | U64: =SUM(Table3[[#This Row],[Depreciation per Unit]:[Opportunity Cost per Unit]]) -> 6.0105179
A65: Swath/Condition Hay | B65: acre | C65: Mower-conditioner | D65: Swathers and all other harvest equipment | E65: 0 | G65: 5 | H65: 2000 | I65: 10 | J65: 1 | K65: Windrower | L65: 5 | N65: =IF(Operations!$E65>1,Operations!$E65,IF(Operations!$D65=0,0,Operations!$F65/(VLOOKUP(Operations!$D65,ImpDepLookup,2,FALSE)-VLOOKUP(Operations!$D65,ImpDepLookup,3,FALSE)*Operations!$G65^0.5-VLOOKUP(Operations!$D65,ImpDepLookup,4,FALSE)*(Operations!$G65*(Operations!$G65*Operations!$H65/Operations!$I65)^0.5))^2)) -> 0 | O65: =IF(Operations!$C65="",0,(((Operations!$G65+1)*Operations!$H65/Operations!$I65/1000)^VLOOKUP(Operations!$C65,ImpRepairFac[],4,FALSE)-(Operations!$G65*Operations!$H65/Operations!$I65/1000)^VLOOKUP(Operations!$C65,ImpRepairFac[],4,FALSE))*Operations!$N65*VLOOKUP(Operations!$C65,ImpRepairFac[],3,FALSE)/Operations!$H65) -> 0 | P65: =IF(Operations!$N65=0,0,Operations!$N65*(VLOOKUP(Operations!$D65,ImpDepLookup,2,FALSE)-VLOOKUP(Operations!$D65,ImpDepLookup,3,FALSE)*Operations!$G65^0.5-VLOOKUP(Operations!$D65,ImpDepLookup,4,FALSE)*(Operations!$G65*Operations!$H65/Operations!$I65)^0.5)^2) -> 0 | Q65: =IF(Operations!$N65=0,0,Operations!$N65*(VLOOKUP(Operations!$D65,ImpDepLookup,2,FALSE)-VLOOKUP(Operations!$D65,ImpDepLookup,3,FALSE)*(Operations!$G65+1)^0.5-VLOOKUP(Operations!$D65,ImpDepLookup,4,FALSE)*(Operations!$G65*Operations!$H65/Operations!$I65)^0.5)^2) -> 0 | R65: =IF(Operations!$N65=0,0,IF(Operations!$I65*Operations!$H65=0,0,(Operations!$P65-Operations!$Q65)/(Operations!$H65))) -> 0 | S65: =IF(Operations!$H65=0,0,Operations!$P65*'General Variables'!$B$9/Operations!$H65) -> 0 | T65: =IF(Operations!$H65=0,0,Operations!$P65*'General Variables'!$B$10/Operations!$H65) -> 0 | U65: =SUM(Table3[[#This Row],[Depreciation per Unit]:[Opportunity Cost per Unit]]) -> 0
A66: Sweep Plow | B66: acre | C66: Mulcher-packer | D66: Disks and all other tillage equipment | E66: 59791 | G66: 5 | H66: 2000 | I66: 12.5 | J66: 1.1 | K66: Large Tractor | L66: 8.622580645 | N66: =IF(Operations!$E66>1,Operations!$E66,IF(Operations!$D66=0,0,Operations!$F66/(VLOOKUP(Operations!$D66,ImpDepLookup,2,FALSE)-VLOOKUP(Operations!$D66,ImpDepLookup,3,FALSE)*Operations!$G66^0.5-VLOOKUP(Operations!$D66,ImpDepLookup,4,FALSE)*(Operations!$G66*(Operations!$G66*Operations!$H66/Operations!$I66)^0.5))^2)) -> 59791 | O66: =IF(Operations!$C66="",0,(((Operations!$G66+1)*Operations!$H66/Operations!$I66/1000)^VLOOKUP(Operations!$C66,ImpRepairFac[],4,FALSE)-(Operations!$G66*Operations!$H66/Operations!$I66/1000)^VLOOKUP(Operations!$C66,ImpRepairFac[],4,FALSE))*Operations!$N66*VLOOKUP(Operations!$C66,ImpRepairFac[],3,FALSE)/Operations!$H66) -> 0.9572118379 | P66: =IF(Operations!$N66=0,0,Operations!$N66*(VLOOKUP(Operations!$D66,ImpDepLookup,2,FALSE)-VLOOKUP(Operations!$D66,ImpDepLookup,3,FALSE)*Operations!$G66^0.5-VLOOKUP(Operations!$D66,ImpDepLookup,4,FALSE)*(Operations!$G66*Operations!$H66/Operations!$I66)^0.5)^2) -> 24877.05931 | Q66: =IF(Operations!$N66=0,0,Operations!$N66*(VLOOKUP(Operations!$D66,ImpDepLookup,2,FALSE)-VLOOKUP(Operations!$D66,ImpDepLookup,3,FALSE)*(Operations!$G66+1)^0.5-VLOOKUP(Operations!$D66,ImpDepLookup,4,FALSE)*(Operations!$G66*Operations!$H66/Operations!$I66)^0.5)^2) -> 23099.17784 | R66: =IF(Operations!$N66=0,0,IF(Operations!$I66*Operations!$H66=0,0,(Operations!$P66-Operations!$Q66)/(Operations!$H66))) -> 0.8889407323 | S66: =IF(Operations!$H66=0,0,Operations!$P66*'General Variables'!$B$9/Operations!$H66) -> 0.2487705931 | T66: =IF(Operations!$H66=0,0,Operations!$P66*'General Variables'!$B$10/Operations!$H66) -> 0.3731558896 | U66: =SUM(Table3[[#This Row],[Depreciation per Unit]:[Opportunity Cost per Unit]]) -> 1.510867215
A67: Till Plant Beets | B67: acre | C67: Planter - Row crop | D67: Planters | E67: 83593 | G67: 5 | H67: 1000 | I67: 6 | J67: 1.1 | K67: Large Tractor | L67: 8.25 | N67: =IF(Operations!$E67>1,Operations!$E67,IF(Operations!$D67=0,0,Operations!$F67/(VLOOKUP(Operations!$D67,ImpDepLookup,2,FALSE)-VLOOKUP(Operations!$D67,ImpDepLookup,3,FALSE)*Operations!$G67^0.5-VLOOKUP(Operations!$D67,ImpDepLookup,4,FALSE)*(Operations!$G67*(Operations!$G67*Operations!$H67/Operations!$I67)^0.5))^2)) -> 83593 | O67: =IF(Operations!$C67="",0,(((Operations!$G67+1)*Operations!$H67/Operations!$I67/1000)^VLOOKUP(Operations!$C67,ImpRepairFac[],4,FALSE)-(Operations!$G67*Operations!$H67/Operations!$I67/1000)^VLOOKUP(Operations!$C67,ImpRepairFac[],4,FALSE))*Operations!$N67*VLOOKUP(Operations!$C67,ImpRepairFac[],3,FALSE)/Operations!$H67) -> 8.509153557 | P67: =IF(Operations!$N67=0,0,Operations!$N67*(VLOOKUP(Operations!$D67,ImpDepLookup,2,FALSE)-VLOOKUP(Operations!$D67,ImpDepLookup,3,FALSE)*Operations!$G67^0.5-VLOOKUP(Operations!$D67,ImpDepLookup,4,FALSE)*(Operations!$G67*Operations!$H67/Operations!$I67)^0.5)^2) -> 41971.63638 | Q67: =IF(Operations!$N67=0,0,Operations!$N67*(VLOOKUP(Operations!$D67,ImpDepLookup,2,FALSE)-VLOOKUP(Operations!$D67,ImpDepLookup,3,FALSE)*(Operations!$G67+1)^0.5-VLOOKUP(Operations!$D67,ImpDepLookup,4,FALSE)*(Operations!$G67*Operations!$H67/Operations!$I67)^0.5)^2) -> 40022.71396 | R67: =IF(Operations!$N67=0,0,IF(Operations!$I67*Operations!$H67=0,0,(Operations!$P67-Operations!$Q67)/(Operations!$H67))) -> 1.948922422 | S67: =IF(Operations!$H67=0,0,Operations!$P67*'General Variables'!$B$9/Operations!$H67) -> 0.8394327277 | T67: =IF(Operations!$H67=0,0,Operations!$P67*'General Variables'!$B$10/Operations!$H67) -> 1.259149091 | U67: =SUM(Table3[[#This Row],[Depreciation per Unit]:[Opportunity Cost per Unit]]) -> 4.047504241
A68: Top Beets | B68: acre | C68: Beet topper | D68: Swathers and all other harvest equipment | E68: 55000 | G68: 5 | H68: 1000 | I68: 5.789473684 | J68: 1 | K68: Medium Tractor | L68: 3.5 | N68: =IF(Operations!$E68>1,Operations!$E68,IF(Operations!$D68=0,0,Operations!$F68/(VLOOKUP(Operations!$D68,ImpDepLookup,2,FALSE)-VLOOKUP(Operations!$D68,ImpDepLookup,3,FALSE)*Operations!$G68^0.5-VLOOKUP(Operations!$D68,ImpDepLookup,4,FALSE)*(Operations!$G68*(Operations!$G68*Operations!$H68/Operations!$I68)^0.5))^2)) -> 55000 | O68: =IF(Operations!$C68="",0,(((Operations!$G68+1)*Operations!$H68/Operations!$I68/1000)^VLOOKUP(Operations!$C68,ImpRepairFac[],4,FALSE)-(Operations!$G68*Operations!$H68/Operations!$I68/1000)^VLOOKUP(Operations!$C68,ImpRepairFac[],4,FALSE))*Operations!$N68*VLOOKUP(Operations!$C68,ImpRepairFac[],3,FALSE)/Operations!$H68) -> 3.64716385 | P68: =IF(Operations!$N68=0,0,Operations!$N68*(VLOOKUP(Operations!$D68,ImpDepLookup,2,FALSE)-VLOOKUP(Operations!$D68,ImpDepLookup,3,FALSE)*Operations!$G68^0.5-VLOOKUP(Operations!$D68,ImpDepLookup,4,FALSE)*(Operations!$G68*Operations!$H68/Operations!$I68)^0.5)^2) -> 18984.745 | Q68: =IF(Operations!$N68=0,0,Operations!$N68*(VLOOKUP(Operations!$D68,ImpDepLookup,2,FALSE)-VLOOKUP(Operations!$D68,ImpDepLookup,3,FALSE)*(Operations!$G68+1)^0.5-VLOOKUP(Operations!$D68,ImpDepLookup,4,FALSE)*(Operations!$G68*Operations!$H68/Operations!$I68)^0.5)^2) -> 17750.34567 | R68: =IF(Operations!$N68=0,0,IF(Operations!$I68*Operations!$H68=0,0,(Operations!$P68-Operations!$Q68)/(Operations!$H68))) -> 1.23439933 | S68: =IF(Operations!$H68=0,0,Operations!$P68*'General Variables'!$B$9/Operations!$H68) -> 0.3796949 | T68: =IF(Operations!$H68=0,0,Operations!$P68*'General Variables'!$B$10/Operations!$H68) -> 0.56954235 | U68: =SUM(Table3[[#This Row],[Depreciation per Unit]:[Opportunity Cost per Unit]]) -> 2.18363658
A69: Truck | B69: Custom | G69: 5 | K69: Large Tractor | N69: =IF(Operations!$E69>1,Operations!$E69,IF(Operations!$D69=0,0,Operations!$F69/(VLOOKUP(Operations!$D69,ImpDepLookup,2,FALSE)-VLOOKUP(Operations!$D69,ImpDepLookup,3,FALSE)*Operations!$G69^0.5-VLOOKUP(Operations!$D69,ImpDepLookup,4,FALSE)*(Operations!$G69*(Operations!$G69*Operations!$H69/Operations!$I69)^0.5))^2)) -> 0 | O69: =IF(Operations!$C69="",0,(((Operations!$G69+1)*Operations!$H69/Operations!$I69/1000)^VLOOKUP(Operations!$C69,ImpRepairFac[],4,FALSE)-(Operations!$G69*Operations!$H69/Operations!$I69/1000)^VLOOKUP(Operations!$C69,ImpRepairFac[],4,FALSE))*Operations!$N69*VLOOKUP(Operations!$C69,ImpRepairFac[],3,FALSE)/Operations!$H69) -> 0 | P69: =IF(Operations!$N69=0,0,Operations!$N69*(VLOOKUP(Operations!$D69,ImpDepLookup,2,FALSE)-VLOOKUP(Operations!$D69,ImpDepLookup,3,FALSE)*Operations!$G69^0.5-VLOOKUP(Operations!$D69,ImpDepLookup,4,FALSE)*(Operations!$G69*Operations!$H69/Operations!$I69)^0.5)^2) -> 0 | Q69: =IF(Operations!$N69=0,0,Operations!$N69*(VLOOKUP(Operations!$D69,ImpDepLookup,2,FALSE)-VLOOKUP(Operations!$D69,ImpDepLookup,3,FALSE)*(Operations!$G69+1)^0.5-VLOOKUP(Operations!$D69,ImpDepLookup,4,FALSE)*(Operations!$G69*Operations!$H69/Operations!$I69)^0.5)^2) -> 0 | R69: =IF(Operations!$N69=0,0,IF(Operations!$I69*Operations!$H69=0,0,(Operations!$P69-Operations!$Q69)/(Operations!$H69))) -> 0 | S69: =IF(Operations!$H69=0,0,Operations!$P69*'General Variables'!$B$9/Operations!$H69) -> 0 | T69: =IF(Operations!$H69=0,0,Operations!$P69*'General Variables'!$B$10/Operations!$H69) -> 0 | U69: =SUM(Table3[[#This Row],[Depreciation per Unit]:[Opportunity Cost per Unit]]) -> 0
A70: Turn Windrows | B70: acre | C70: Rake - Side delivery | D70: Swathers and all other harvest equipment | E70: 11634 | G70: 5 | H70: 1000 | I70: 12 | J70: 1 | K70: Medium Tractor | L70: 2.097196262 | N70: =IF(Operations!$E70>1,Operations!$E70,IF(Operations!$D70=0,0,Operations!$F70/(VLOOKUP(Operations!$D70,ImpDepLookup,2,FALSE)-VLOOKUP(Operations!$D70,ImpDepLookup,3,FALSE)*Operations!$G70^0.5-VLOOKUP(Operations!$D70,ImpDepLookup,4,FALSE)*(Operations!$G70*(Operations!$G70*Operations!$H70/Operations!$I70)^0.5))^2)) -> 11634 | O70: =IF(Operations!$C70="",0,(((Operations!$G70+1)*Operations!$H70/Operations!$I70/1000)^VLOOKUP(Operations!$C70,ImpRepairFac[],4,FALSE)-(Operations!$G70*Operations!$H70/Operations!$I70/1000)^VLOOKUP(Operations!$C70,ImpRepairFac[],4,FALSE))*Operations!$N70*VLOOKUP(Operations!$C70,ImpRepairFac[],3,FALSE)/Operations!$H70) -> 0.1688315113 | P70: =IF(Operations!$N70=0,0,Operations!$N70*(VLOOKUP(Operations!$D70,ImpDepLookup,2,FALSE)-VLOOKUP(Operations!$D70,ImpDepLookup,3,FALSE)*Operations!$G70^0.5-VLOOKUP(Operations!$D70,ImpDepLookup,4,FALSE)*(Operations!$G70*Operations!$H70/Operations!$I70)^0.5)^2) -> 4015.791333 | Q70: =IF(Operations!$N70=0,0,Operations!$N70*(VLOOKUP(Operations!$D70,ImpDepLookup,2,FALSE)-VLOOKUP(Operations!$D70,ImpDepLookup,3,FALSE)*(Operations!$G70+1)^0.5-VLOOKUP(Operations!$D70,ImpDepLookup,4,FALSE)*(Operations!$G70*Operations!$H70/Operations!$I70)^0.5)^2) -> 3754.68221 | R70: =IF(Operations!$N70=0,0,IF(Operations!$I70*Operations!$H70=0,0,(Operations!$P70-Operations!$Q70)/(Operations!$H70))) -> 0.2611091236 | S70: =IF(Operations!$H70=0,0,Operations!$P70*'General Variables'!$B$9/Operations!$H70) -> 0.08031582667 | T70: =IF(Operations!$H70=0,0,Operations!$P70*'General Variables'!$B$10/Operations!$H70) -> 0.12047374 | U70: =SUM(Table3[[#This Row],[Depreciation per Unit]:[Opportunity Cost per Unit]]) -> 0.4618986903
A71: Windrow Grain | B71: acre | C71: Mower-conditioner | D71: Swathers and all other harvest equipment | E71: 0 | G71: 5 | H71: 3000 | I71: 10 | J71: 1 | K71: Windrower | L71: 5 | N71: =IF(Operations!$E71>1,Operations!$E71,IF(Operations!$D71=0,0,Operations!$F71/(VLOOKUP(Operations!$D71,ImpDepLookup,2,FALSE)-VLOOKUP(Operations!$D71,ImpDepLookup,3,FALSE)*Operations!$G71^0.5-VLOOKUP(Operations!$D71,ImpDepLookup,4,FALSE)*(Operations!$G71*(Operations!$G71*Operations!$H71/Operations!$I71)^0.5))^2)) -> 0 | O71: =IF(Operations!$C71="",0,(((Operations!$G71+1)*Operations!$H71/Operations!$I71/1000)^VLOOKUP(Operations!$C71,ImpRepairFac[],4,FALSE)-(Operations!$G71*Operations!$H71/Operations!$I71/1000)^VLOOKUP(Operations!$C71,ImpRepairFac[],4,FALSE))*Operations!$N71*VLOOKUP(Operations!$C71,ImpRepairFac[],3,FALSE)/Operations!$H71) -> 0 | P71: =IF(Operations!$N71=0,0,Operations!$N71*(VLOOKUP(Operations!$D71,ImpDepLookup,2,FALSE)-VLOOKUP(Operations!$D71,ImpDepLookup,3,FALSE)*Operations!$G71^0.5-VLOOKUP(Operations!$D71,ImpDepLookup,4,FALSE)*(Operations!$G71*Operations!$H71/Operations!$I71)^0.5)^2) -> 0 | Q71: =IF(Operations!$N71=0,0,Operations!$N71*(VLOOKUP(Operations!$D71,ImpDepLookup,2,FALSE)-VLOOKUP(Operations!$D71,ImpDepLookup,3,FALSE)*(Operations!$G71+1)^0.5-VLOOKUP(Operations!$D71,ImpDepLookup,4,FALSE)*(Operations!$G71*Operations!$H71/Operations!$I71)^0.5)^2) -> 0 | R71: =IF(Operations!$N71=0,0,IF(Operations!$I71*Operations!$H71=0,0,(Operations!$P71-Operations!$Q71)/(Operations!$H71))) -> 0 | S71: =IF(Operations!$H71=0,0,Operations!$P71*'General Variables'!$B$9/Operations!$H71) -> 0 | T71: =IF(Operations!$H71=0,0,Operations!$P71*'General Variables'!$B$10/Operations!$H71) -> 0 | U71: =SUM(Table3[[#This Row],[Depreciation per Unit]:[Opportunity Cost per Unit]]) -> 0
N72: =IF(Operations!$E72>1,Operations!$E72,IF(Operations!$D72=0,0,Operations!$F72/(VLOOKUP(Operations!$D72,ImpDepLookup,2,FALSE)-VLOOKUP(Operations!$D72,ImpDepLookup,3,FALSE)*Operations!$G72^0.5-VLOOKUP(Operations!$D72,ImpDepLookup,4,FALSE)*(Operations!$G72*(Operations!$G72*Operations!$H72/Operations!$I72)^0.5))^2)) -> 0 | O72: =IF(Operations!$C72="",0,(((Operations!$G72+1)*Operations!$H72/Operations!$I72/1000)^VLOOKUP(Operations!$C72,ImpRepairFac[],4,FALSE)-(Operations!$G72*Operations!$H72/Operations!$I72/1000)^VLOOKUP(Operations!$C72,ImpRepairFac[],4,FALSE))*Operations!$N72*VLOOKUP(Operations!$C72,ImpRepairFac[],3,FALSE)/Operations!$H72) -> 0 | P72: =IF(Operations!$N72=0,0,Operations!$N72*(VLOOKUP(Operations!$D72,ImpDepLookup,2,FALSE)-VLOOKUP(Operations!$D72,ImpDepLookup,3,FALSE)*Operations!$G72^0.5-VLOOKUP(Operations!$D72,ImpDepLookup,4,FALSE)*(Operations!$G72*Operations!$H72/Operations!$I72)^0.5)^2) -> 0 | Q72: =IF(Operations!$N72=0,0,Operations!$N72*(VLOOKUP(Operations!$D72,ImpDepLookup,2,FALSE)-VLOOKUP(Operations!$D72,ImpDepLookup,3,FALSE)*(Operations!$G72+1)^0.5-VLOOKUP(Operations!$D72,ImpDepLookup,4,FALSE)*(Operations!$G72*Operations!$H72/Operations!$I72)^0.5)^2) -> 0 | R72: =IF(Operations!$N72=0,0,IF(Operations!$I72*Operations!$H72=0,0,(Operations!$P72-Operations!$Q72)/(Operations!$H72))) -> 0 | S72: =IF(Operations!$H72=0,0,Operations!$P72*'General Variables'!$B$9/Operations!$H72) -> 0 | T72: =IF(Operations!$H72=0,0,Operations!$P72*'General Variables'!$B$10/Operations!$H72) -> 0 | U72: =SUM(Table3[[#This Row],[Depreciation per Unit]:[Opportunity Cost per Unit]]) -> 0
N73: =IF(Operations!$E73>1,Operations!$E73,IF(Operations!$D73=0,0,Operations!$F73/(VLOOKUP(Operations!$D73,ImpDepLookup,2,FALSE)-VLOOKUP(Operations!$D73,ImpDepLookup,3,FALSE)*Operations!$G73^0.5-VLOOKUP(Operations!$D73,ImpDepLookup,4,FALSE)*(Operations!$G73*(Operations!$G73*Operations!$H73/Operations!$I73)^0.5))^2)) -> 0 | O73: =IF(Operations!$C73="",0,(((Operations!$G73+1)*Operations!$H73/Operations!$I73/1000)^VLOOKUP(Operations!$C73,ImpRepairFac[],4,FALSE)-(Operations!$G73*Operations!$H73/Operations!$I73/1000)^VLOOKUP(Operations!$C73,ImpRepairFac[],4,FALSE))*Operations!$N73*VLOOKUP(Operations!$C73,ImpRepairFac[],3,FALSE)/Operations!$H73) -> 0 | P73: =IF(Operations!$N73=0,0,Operations!$N73*(VLOOKUP(Operations!$D73,ImpDepLookup,2,FALSE)-VLOOKUP(Operations!$D73,ImpDepLookup,3,FALSE)*Operations!$G73^0.5-VLOOKUP(Operations!$D73,ImpDepLookup,4,FALSE)*(Operations!$G73*Operations!$H73/Operations!$I73)^0.5)^2) -> 0 | Q73: =IF(Operations!$N73=0,0,Operations!$N73*(VLOOKUP(Operations!$D73,ImpDepLookup,2,FALSE)-VLOOKUP(Operations!$D73,ImpDepLookup,3,FALSE)*(Operations!$G73+1)^0.5-VLOOKUP(Operations!$D73,ImpDepLookup,4,FALSE)*(Operations!$G73*Operations!$H73/Operations!$I73)^0.5)^2) -> 0 | R73: =IF(Operations!$N73=0,0,IF(Operations!$I73*Operations!$H73=0,0,(Operations!$P73-Operations!$Q73)/(Operations!$H73))) -> 0 | S73: =IF(Operations!$H73=0,0,Operations!$P73*'General Variables'!$B$9/Operations!$H73) -> 0 | T73: =IF(Operations!$H73=0,0,Operations!$P73*'General Variables'!$B$10/Operations!$H73) -> 0 | U73: =SUM(Table3[[#This Row],[Depreciation per Unit]:[Opportunity Cost per Unit]]) -> 0
N74: =IF(Operations!$E74>1,Operations!$E74,IF(Operations!$D74=0,0,Operations!$F74/(VLOOKUP(Operations!$D74,ImpDepLookup,2,FALSE)-VLOOKUP(Operations!$D74,ImpDepLookup,3,FALSE)*Operations!$G74^0.5-VLOOKUP(Operations!$D74,ImpDepLookup,4,FALSE)*(Operations!$G74*(Operations!$G74*Operations!$H74/Operations!$I74)^0.5))^2)) -> 0 | O74: =IF(Operations!$C74="",0,(((Operations!$G74+1)*Operations!$H74/Operations!$I74/1000)^VLOOKUP(Operations!$C74,ImpRepairFac[],4,FALSE)-(Operations!$G74*Operations!$H74/Operations!$I74/1000)^VLOOKUP(Operations!$C74,ImpRepairFac[],4,FALSE))*Operations!$N74*VLOOKUP(Operations!$C74,ImpRepairFac[],3,FALSE)/Operations!$H74) -> 0 | P74: =IF(Operations!$N74=0,0,Operations!$N74*(VLOOKUP(Operations!$D74,ImpDepLookup,2,FALSE)-VLOOKUP(Operations!$D74,ImpDepLookup,3,FALSE)*Operations!$G74^0.5-VLOOKUP(Operations!$D74,ImpDepLookup,4,FALSE)*(Operations!$G74*Operations!$H74/Operations!$I74)^0.5)^2) -> 0 | Q74: =IF(Operations!$N74=0,0,Operations!$N74*(VLOOKUP(Operations!$D74,ImpDepLookup,2,FALSE)-VLOOKUP(Operations!$D74,ImpDepLookup,3,FALSE)*(Operations!$G74+1)^0.5-VLOOKUP(Operations!$D74,ImpDepLookup,4,FALSE)*(Operations!$G74*Operations!$H74/Operations!$I74)^0.5)^2) -> 0 | R74: =IF(Operations!$N74=0,0,IF(Operations!$I74*Operations!$H74=0,0,(Operations!$P74-Operations!$Q74)/(Operations!$H74))) -> 0 | S74: =IF(Operations!$H74=0,0,Operations!$P74*'General Variables'!$B$9/Operations!$H74) -> 0 | T74: =IF(Operations!$H74=0,0,Operations!$P74*'General Variables'!$B$10/Operations!$H74) -> 0 | U74: =SUM(Table3[[#This Row],[Depreciation per Unit]:[Opportunity Cost per Unit]]) -> 0
N75: =IF(Operations!$E75>1,Operations!$E75,IF(Operations!$D75=0,0,Operations!$F75/(VLOOKUP(Operations!$D75,ImpDepLookup,2,FALSE)-VLOOKUP(Operations!$D75,ImpDepLookup,3,FALSE)*Operations!$G75^0.5-VLOOKUP(Operations!$D75,ImpDepLookup,4,FALSE)*(Operations!$G75*(Operations!$G75*Operations!$H75/Operations!$I75)^0.5))^2)) -> 0 | O75: =IF(Operations!$C75="",0,(((Operations!$G75+1)*Operations!$H75/Operations!$I75/1000)^VLOOKUP(Operations!$C75,ImpRepairFac[],4,FALSE)-(Operations!$G75*Operations!$H75/Operations!$I75/1000)^VLOOKUP(Operations!$C75,ImpRepairFac[],4,FALSE))*Operations!$N75*VLOOKUP(Operations!$C75,ImpRepairFac[],3,FALSE)/Operations!$H75) -> 0 | P75: =IF(Operations!$N75=0,0,Operations!$N75*(VLOOKUP(Operations!$D75,ImpDepLookup,2,FALSE)-VLOOKUP(Operations!$D75,ImpDepLookup,3,FALSE)*Operations!$G75^0.5-VLOOKUP(Operations!$D75,ImpDepLookup,4,FALSE)*(Operations!$G75*Operations!$H75/Operations!$I75)^0.5)^2) -> 0 | Q75: =IF(Operations!$N75=0,0,Operations!$N75*(VLOOKUP(Operations!$D75,ImpDepLookup,2,FALSE)-VLOOKUP(Operations!$D75,ImpDepLookup,3,FALSE)*(Operations!$G75+1)^0.5-VLOOKUP(Operations!$D75,ImpDepLookup,4,FALSE)*(Operations!$G75*Operations!$H75/Operations!$I75)^0.5)^2) -> 0 | R75: =IF(Operations!$N75=0,0,IF(Operations!$I75*Operations!$H75=0,0,(Operations!$P75-Operations!$Q75)/(Operations!$H75))) -> 0 | S75: =IF(Operations!$H75=0,0,Operations!$P75*'General Variables'!$B$9/Operations!$H75) -> 0 | T75: =IF(Operations!$H75=0,0,Operations!$P75*'General Variables'!$B$10/Operations!$H75) -> 0 | U75: =SUM(Table3[[#This Row],[Depreciation per Unit]:[Opportunity Cost per Unit]]) -> 0
N76: =IF(Operations!$E76>1,Operations!$E76,IF(Operations!$D76=0,0,Operations!$F76/(VLOOKUP(Operations!$D76,ImpDepLookup,2,FALSE)-VLOOKUP(Operations!$D76,ImpDepLookup,3,FALSE)*Operations!$G76^0.5-VLOOKUP(Operations!$D76,ImpDepLookup,4,FALSE)*(Operations!$G76*(Operations!$G76*Operations!$H76/Operations!$I76)^0.5))^2)) -> 0 | O76: =IF(Operations!$C76="",0,(((Operations!$G76+1)*Operations!$H76/Operations!$I76/1000)^VLOOKUP(Operations!$C76,ImpRepairFac[],4,FALSE)-(Operations!$G76*Operations!$H76/Operations!$I76/1000)^VLOOKUP(Operations!$C76,ImpRepairFac[],4,FALSE))*Operations!$N76*VLOOKUP(Operations!$C76,ImpRepairFac[],3,FALSE)/Operations!$H76) -> 0 | P76: =IF(Operations!$N76=0,0,Operations!$N76*(VLOOKUP(Operations!$D76,ImpDepLookup,2,FALSE)-VLOOKUP(Operations!$D76,ImpDepLookup,3,FALSE)*Operations!$G76^0.5-VLOOKUP(Operations!$D76,ImpDepLookup,4,FALSE)*(Operations!$G76*Operations!$H76/Operations!$I76)^0.5)^2) -> 0 | Q76: =IF(Operations!$N76=0,0,Operations!$N76*(VLOOKUP(Operations!$D76,ImpDepLookup,2,FALSE)-VLOOKUP(Operations!$D76,ImpDepLookup,3,FALSE)*(Operations!$G76+1)^0.5-VLOOKUP(Operations!$D76,ImpDepLookup,4,FALSE)*(Operations!$G76*Operations!$H76/Operations!$I76)^0.5)^2) -> 0 | R76: =IF(Operations!$N76=0,0,IF(Operations!$I76*Operations!$H76=0,0,(Operations!$P76-Operations!$Q76)/(Operations!$H76))) -> 0 | S76: =IF(Operations!$H76=0,0,Operations!$P76*'General Variables'!$B$9/Operations!$H76) -> 0 | T76: =IF(Operations!$H76=0,0,Operations!$P76*'General Variables'!$B$10/Operations!$H76) -> 0 | U76: =SUM(Table3[[#This Row],[Depreciation per Unit]:[Opportunity Cost per Unit]]) -> 0
N77: =IF(Operations!$E77>1,Operations!$E77,IF(Operations!$D77=0,0,Operations!$F77/(VLOOKUP(Operations!$D77,ImpDepLookup,2,FALSE)-VLOOKUP(Operations!$D77,ImpDepLookup,3,FALSE)*Operations!$G77^0.5-VLOOKUP(Operations!$D77,ImpDepLookup,4,FALSE)*(Operations!$G77*(Operations!$G77*Operations!$H77/Operations!$I77)^0.5))^2)) -> 0 | O77: =IF(Operations!$C77="",0,(((Operations!$G77+1)*Operations!$H77/Operations!$I77/1000)^VLOOKUP(Operations!$C77,ImpRepairFac[],4,FALSE)-(Operations!$G77*Operations!$H77/Operations!$I77/1000)^VLOOKUP(Operations!$C77,ImpRepairFac[],4,FALSE))*Operations!$N77*VLOOKUP(Operations!$C77,ImpRepairFac[],3,FALSE)/Operations!$H77) -> 0 | P77: =IF(Operations!$N77=0,0,Operations!$N77*(VLOOKUP(Operations!$D77,ImpDepLookup,2,FALSE)-VLOOKUP(Operations!$D77,ImpDepLookup,3,FALSE)*Operations!$G77^0.5-VLOOKUP(Operations!$D77,ImpDepLookup,4,FALSE)*(Operations!$G77*Operations!$H77/Operations!$I77)^0.5)^2) -> 0 | Q77: =IF(Operations!$N77=0,0,Operations!$N77*(VLOOKUP(Operations!$D77,ImpDepLookup,2,FALSE)-VLOOKUP(Operations!$D77,ImpDepLookup,3,FALSE)*(Operations!$G77+1)^0.5-VLOOKUP(Operations!$D77,ImpDepLookup,4,FALSE)*(Operations!$G77*Operations!$H77/Operations!$I77)^0.5)^2) -> 0 | R77: =IF(Operations!$N77=0,0,IF(Operations!$I77*Operations!$H77=0,0,(Operations!$P77-Operations!$Q77)/(Operations!$H77))) -> 0 | S77: =IF(Operations!$H77=0,0,Operations!$P77*'General Variables'!$B$9/Operations!$H77) -> 0 | T77: =IF(Operations!$H77=0,0,Operations!$P77*'General Variables'!$B$10/Operations!$H77) -> 0 | U77: =SUM(Table3[[#This Row],[Depreciation per Unit]:[Opportunity Cost per Unit]]) -> 0
N78: =IF(Operations!$E78>1,Operations!$E78,IF(Operations!$D78=0,0,Operations!$F78/(VLOOKUP(Operations!$D78,ImpDepLookup,2,FALSE)-VLOOKUP(Operations!$D78,ImpDepLookup,3,FALSE)*Operations!$G78^0.5-VLOOKUP(Operations!$D78,ImpDepLookup,4,FALSE)*(Operations!$G78*(Operations!$G78*Operations!$H78/Operations!$I78)^0.5))^2)) -> 0 | O78: =IF(Operations!$C78="",0,(((Operations!$G78+1)*Operations!$H78/Operations!$I78/1000)^VLOOKUP(Operations!$C78,ImpRepairFac[],4,FALSE)-(Operations!$G78*Operations!$H78/Operations!$I78/1000)^VLOOKUP(Operations!$C78,ImpRepairFac[],4,FALSE))*Operations!$N78*VLOOKUP(Operations!$C78,ImpRepairFac[],3,FALSE)/Operations!$H78) -> 0 | P78: =IF(Operations!$N78=0,0,Operations!$N78*(VLOOKUP(Operations!$D78,ImpDepLookup,2,FALSE)-VLOOKUP(Operations!$D78,ImpDepLookup,3,FALSE)*Operations!$G78^0.5-VLOOKUP(Operations!$D78,ImpDepLookup,4,FALSE)*(Operations!$G78*Operations!$H78/Operations!$I78)^0.5)^2) -> 0 | Q78: =IF(Operations!$N78=0,0,Operations!$N78*(VLOOKUP(Operations!$D78,ImpDepLookup,2,FALSE)-VLOOKUP(Operations!$D78,ImpDepLookup,3,FALSE)*(Operations!$G78+1)^0.5-VLOOKUP(Operations!$D78,ImpDepLookup,4,FALSE)*(Operations!$G78*Operations!$H78/Operations!$I78)^0.5)^2) -> 0 | R78: =IF(Operations!$N78=0,0,IF(Operations!$I78*Operations!$H78=0,0,(Operations!$P78-Operations!$Q78)/(Operations!$H78))) -> 0 | S78: =IF(Operations!$H78=0,0,Operations!$P78*'General Variables'!$B$9/Operations!$H78) -> 0 | T78: =IF(Operations!$H78=0,0,Operations!$P78*'General Variables'!$B$10/Operations!$H78) -> 0 | U78: =SUM(Table3[[#This Row],[Depreciation per Unit]:[Opportunity Cost per Unit]]) -> 0
N79: =IF(Operations!$E79>1,Operations!$E79,IF(Operations!$D79=0,0,Operations!$F79/(VLOOKUP(Operations!$D79,ImpDepLookup,2,FALSE)-VLOOKUP(Operations!$D79,ImpDepLookup,3,FALSE)*Operations!$G79^0.5-VLOOKUP(Operations!$D79,ImpDepLookup,4,FALSE)*(Operations!$G79*(Operations!$G79*Operations!$H79/Operations!$I79)^0.5))^2)) -> 0 | O79: =IF(Operations!$C79="",0,(((Operations!$G79+1)*Operations!$H79/Operations!$I79/1000)^VLOOKUP(Operations!$C79,ImpRepairFac[],4,FALSE)-(Operations!$G79*Operations!$H79/Operations!$I79/1000)^VLOOKUP(Operations!$C79,ImpRepairFac[],4,FALSE))*Operations!$N79*VLOOKUP(Operations!$C79,ImpRepairFac[],3,FALSE)/Operations!$H79) -> 0 | P79: =IF(Operations!$N79=0,0,Operations!$N79*(VLOOKUP(Operations!$D79,ImpDepLookup,2,FALSE)-VLOOKUP(Operations!$D79,ImpDepLookup,3,FALSE)*Operations!$G79^0.5-VLOOKUP(Operations!$D79,ImpDepLookup,4,FALSE)*(Operations!$G79*Operations!$H79/Operations!$I79)^0.5)^2) -> 0 | Q79: =IF(Operations!$N79=0,0,Operations!$N79*(VLOOKUP(Operations!$D79,ImpDepLookup,2,FALSE)-VLOOKUP(Operations!$D79,ImpDepLookup,3,FALSE)*(Operations!$G79+1)^0.5-VLOOKUP(Operations!$D79,ImpDepLookup,4,FALSE)*(Operations!$G79*Operations!$H79/Operations!$I79)^0.5)^2) -> 0 | R79: =IF(Operations!$N79=0,0,IF(Operations!$I79*Operations!$H79=0,0,(Operations!$P79-Operations!$Q79)/(Operations!$H79))) -> 0 | S79: =IF(Operations!$H79=0,0,Operations!$P79*'General Variables'!$B$9/Operations!$H79) -> 0 | T79: =IF(Operations!$H79=0,0,Operations!$P79*'General Variables'!$B$10/Operations!$H79) -> 0 | U79: =SUM(Table3[[#This Row],[Depreciation per Unit]:[Opportunity Cost per Unit]]) -> 0
N80: =IF(Operations!$E80>1,Operations!$E80,IF(Operations!$D80=0,0,Operations!$F80/(VLOOKUP(Operations!$D80,ImpDepLookup,2,FALSE)-VLOOKUP(Operations!$D80,ImpDepLookup,3,FALSE)*Operations!$G80^0.5-VLOOKUP(Operations!$D80,ImpDepLookup,4,FALSE)*(Operations!$G80*(Operations!$G80*Operations!$H80/Operations!$I80)^0.5))^2)) -> 0 | O80: =IF(Operations!$C80="",0,(((Operations!$G80+1)*Operations!$H80/Operations!$I80/1000)^VLOOKUP(Operations!$C80,ImpRepairFac[],4,FALSE)-(Operations!$G80*Operations!$H80/Operations!$I80/1000)^VLOOKUP(Operations!$C80,ImpRepairFac[],4,FALSE))*Operations!$N80*VLOOKUP(Operations!$C80,ImpRepairFac[],3,FALSE)/Operations!$H80) -> 0 | P80: =IF(Operations!$N80=0,0,Operations!$N80*(VLOOKUP(Operations!$D80,ImpDepLookup,2,FALSE)-VLOOKUP(Operations!$D80,ImpDepLookup,3,FALSE)*Operations!$G80^0.5-VLOOKUP(Operations!$D80,ImpDepLookup,4,FALSE)*(Operations!$G80*Operations!$H80/Operations!$I80)^0.5)^2) -> 0 | Q80: =IF(Operations!$N80=0,0,Operations!$N80*(VLOOKUP(Operations!$D80,ImpDepLookup,2,FALSE)-VLOOKUP(Operations!$D80,ImpDepLookup,3,FALSE)*(Operations!$G80+1)^0.5-VLOOKUP(Operations!$D80,ImpDepLookup,4,FALSE)*(Operations!$G80*Operations!$H80/Operations!$I80)^0.5)^2) -> 0 | R80: =IF(Operations!$N80=0,0,IF(Operations!$I80*Operations!$H80=0,0,(Operations!$P80-Operations!$Q80)/(Operations!$H80))) -> 0 | S80: =IF(Operations!$H80=0,0,Operations!$P80*'General Variables'!$B$9/Operations!$H80) -> 0 | T80: =IF(Operations!$H80=0,0,Operations!$P80*'General Variables'!$B$10/Operations!$H80) -> 0 | U80: =SUM(Table3[[#This Row],[Depreciation per Unit]:[Opportunity Cost per Unit]]) -> 0
N81: =IF(Operations!$E81>1,Operations!$E81,IF(Operations!$D81=0,0,Operations!$F81/(VLOOKUP(Operations!$D81,ImpDepLookup,2,FALSE)-VLOOKUP(Operations!$D81,ImpDepLookup,3,FALSE)*Operations!$G81^0.5-VLOOKUP(Operations!$D81,ImpDepLookup,4,FALSE)*(Operations!$G81*(Operations!$G81*Operations!$H81/Operations!$I81)^0.5))^2)) -> 0 | O81: =IF(Operations!$C81="",0,(((Operations!$G81+1)*Operations!$H81/Operations!$I81/1000)^VLOOKUP(Operations!$C81,ImpRepairFac[],4,FALSE)-(Operations!$G81*Operations!$H81/Operations!$I81/1000)^VLOOKUP(Operations!$C81,ImpRepairFac[],4,FALSE))*Operations!$N81*VLOOKUP(Operations!$C81,ImpRepairFac[],3,FALSE)/Operations!$H81) -> 0 | P81: =IF(Operations!$N81=0,0,Operations!$N81*(VLOOKUP(Operations!$D81,ImpDepLookup,2,FALSE)-VLOOKUP(Operations!$D81,ImpDepLookup,3,FALSE)*Operations!$G81^0.5-VLOOKUP(Operations!$D81,ImpDepLookup,4,FALSE)*(Operations!$G81*Operations!$H81/Operations!$I81)^0.5)^2) -> 0 | Q81: =IF(Operations!$N81=0,0,Operations!$N81*(VLOOKUP(Operations!$D81,ImpDepLookup,2,FALSE)-VLOOKUP(Operations!$D81,ImpDepLookup,3,FALSE)*(Operations!$G81+1)^0.5-VLOOKUP(Operations!$D81,ImpDepLookup,4,FALSE)*(Operations!$G81*Operations!$H81/Operations!$I81)^0.5)^2) -> 0 | R81: =IF(Operations!$N81=0,0,IF(Operations!$I81*Operations!$H81=0,0,(Operations!$P81-Operations!$Q81)/(Operations!$H81))) -> 0 | S81: =IF(Operations!$H81=0,0,Operations!$P81*'General Variables'!$B$9/Operations!$H81) -> 0 | T81: =IF(Operations!$H81=0,0,Operations!$P81*'General Variables'!$B$10/Operations!$H81) -> 0 | U81: =SUM(Table3[[#This Row],[Depreciation per Unit]:[Opportunity Cost per Unit]]) -> 0
N82: =IF(Operations!$E82>1,Operations!$E82,IF(Operations!$D82=0,0,Operations!$F82/(VLOOKUP(Operations!$D82,ImpDepLookup,2,FALSE)-VLOOKUP(Operations!$D82,ImpDepLookup,3,FALSE)*Operations!$G82^0.5-VLOOKUP(Operations!$D82,ImpDepLookup,4,FALSE)*(Operations!$G82*(Operations!$G82*Operations!$H82/Operations!$I82)^0.5))^2)) -> 0 | O82: =IF(Operations!$C82="",0,(((Operations!$G82+1)*Operations!$H82/Operations!$I82/1000)^VLOOKUP(Operations!$C82,ImpRepairFac[],4,FALSE)-(Operations!$G82*Operations!$H82/Operations!$I82/1000)^VLOOKUP(Operations!$C82,ImpRepairFac[],4,FALSE))*Operations!$N82*VLOOKUP(Operations!$C82,ImpRepairFac[],3,FALSE)/Operations!$H82) -> 0 | P82: =IF(Operations!$N82=0,0,Operations!$N82*(VLOOKUP(Operations!$D82,ImpDepLookup,2,FALSE)-VLOOKUP(Operations!$D82,ImpDepLookup,3,FALSE)*Operations!$G82^0.5-VLOOKUP(Operations!$D82,ImpDepLookup,4,FALSE)*(Operations!$G82*Operations!$H82/Operations!$I82)^0.5)^2) -> 0 | Q82: =IF(Operations!$N82=0,0,Operations!$N82*(VLOOKUP(Operations!$D82,ImpDepLookup,2,FALSE)-VLOOKUP(Operations!$D82,ImpDepLookup,3,FALSE)*(Operations!$G82+1)^0.5-VLOOKUP(Operations!$D82,ImpDepLookup,4,FALSE)*(Operations!$G82*Operations!$H82/Operations!$I82)^0.5)^2) -> 0 | R82: =IF(Operations!$N82=0,0,IF(Operations!$I82*Operations!$H82=0,0,(Operations!$P82-Operations!$Q82)/(Operations!$H82))) -> 0 | S82: =IF(Operations!$H82=0,0,Operations!$P82*'General Variables'!$B$9/Operations!$H82) -> 0 | T82: =IF(Operations!$H82=0,0,Operations!$P82*'General Variables'!$B$10/Operations!$H82) -> 0 | U82: =SUM(Table3[[#This Row],[Depreciation per Unit]:[Opportunity Cost per Unit]]) -> 0
N83: =IF(Operations!$E83>1,Operations!$E83,IF(Operations!$D83=0,0,Operations!$F83/(VLOOKUP(Operations!$D83,ImpDepLookup,2,FALSE)-VLOOKUP(Operations!$D83,ImpDepLookup,3,FALSE)*Operations!$G83^0.5-VLOOKUP(Operations!$D83,ImpDepLookup,4,FALSE)*(Operations!$G83*(Operations!$G83*Operations!$H83/Operations!$I83)^0.5))^2)) -> 0 | O83: =IF(Operations!$C83="",0,(((Operations!$G83+1)*Operations!$H83/Operations!$I83/1000)^VLOOKUP(Operations!$C83,ImpRepairFac[],4,FALSE)-(Operations!$G83*Operations!$H83/Operations!$I83/1000)^VLOOKUP(Operations!$C83,ImpRepairFac[],4,FALSE))*Operations!$N83*VLOOKUP(Operations!$C83,ImpRepairFac[],3,FALSE)/Operations!$H83) -> 0 | P83: =IF(Operations!$N83=0,0,Operations!$N83*(VLOOKUP(Operations!$D83,ImpDepLookup,2,FALSE)-VLOOKUP(Operations!$D83,ImpDepLookup,3,FALSE)*Operations!$G83^0.5-VLOOKUP(Operations!$D83,ImpDepLookup,4,FALSE)*(Operations!$G83*Operations!$H83/Operations!$I83)^0.5)^2) -> 0 | Q83: =IF(Operations!$N83=0,0,Operations!$N83*(VLOOKUP(Operations!$D83,ImpDepLookup,2,FALSE)-VLOOKUP(Operations!$D83,ImpDepLookup,3,FALSE)*(Operations!$G83+1)^0.5-VLOOKUP(Operations!$D83,ImpDepLookup,4,FALSE)*(Operations!$G83*Operations!$H83/Operations!$I83)^0.5)^2) -> 0 | R83: =IF(Operations!$N83=0,0,IF(Operations!$I83*Operations!$H83=0,0,(Operations!$P83-Operations!$Q83)/(Operations!$H83))) -> 0 | S83: =IF(Operations!$H83=0,0,Operations!$P83*'General Variables'!$B$9/Operations!$H83) -> 0 | T83: =IF(Operations!$H83=0,0,Operations!$P83*'General Variables'!$B$10/Operations!$H83) -> 0 | U83: =SUM(Table3[[#This Row],[Depreciation per Unit]:[Opportunity Cost per Unit]]) -> 0
N84: =IF(Operations!$E84>1,Operations!$E84,IF(Operations!$D84=0,0,Operations!$F84/(VLOOKUP(Operations!$D84,ImpDepLookup,2,FALSE)-VLOOKUP(Operations!$D84,ImpDepLookup,3,FALSE)*Operations!$G84^0.5-VLOOKUP(Operations!$D84,ImpDepLookup,4,FALSE)*(Operations!$G84*(Operations!$G84*Operations!$H84/Operations!$I84)^0.5))^2)) -> 0 | O84: =IF(Operations!$C84="",0,(((Operations!$G84+1)*Operations!$H84/Operations!$I84/1000)^VLOOKUP(Operations!$C84,ImpRepairFac[],4,FALSE)-(Operations!$G84*Operations!$H84/Operations!$I84/1000)^VLOOKUP(Operations!$C84,ImpRepairFac[],4,FALSE))*Operations!$N84*VLOOKUP(Operations!$C84,ImpRepairFac[],3,FALSE)/Operations!$H84) -> 0 | P84: =IF(Operations!$N84=0,0,Operations!$N84*(VLOOKUP(Operations!$D84,ImpDepLookup,2,FALSE)-VLOOKUP(Operations!$D84,ImpDepLookup,3,FALSE)*Operations!$G84^0.5-VLOOKUP(Operations!$D84,ImpDepLookup,4,FALSE)*(Operations!$G84*Operations!$H84/Operations!$I84)^0.5)^2) -> 0 | Q84: =IF(Operations!$N84=0,0,Operations!$N84*(VLOOKUP(Operations!$D84,ImpDepLookup,2,FALSE)-VLOOKUP(Operations!$D84,ImpDepLookup,3,FALSE)*(Operations!$G84+1)^0.5-VLOOKUP(Operations!$D84,ImpDepLookup,4,FALSE)*(Operations!$G84*Operations!$H84/Operations!$I84)^0.5)^2) -> 0 | R84: =IF(Operations!$N84=0,0,IF(Operations!$I84*Operations!$H84=0,0,(Operations!$P84-Operations!$Q84)/(Operations!$H84))) -> 0 | S84: =IF(Operations!$H84=0,0,Operations!$P84*'General Variables'!$B$9/Operations!$H84) -> 0 | T84: =IF(Operations!$H84=0,0,Operations!$P84*'General Variables'!$B$10/Operations!$H84) -> 0 | U84: =SUM(Table3[[#This Row],[Depreciation per Unit]:[Opportunity Cost per Unit]]) -> 0
N85: =IF(Operations!$E85>1,Operations!$E85,IF(Operations!$D85=0,0,Operations!$F85/(VLOOKUP(Operations!$D85,ImpDepLookup,2,FALSE)-VLOOKUP(Operations!$D85,ImpDepLookup,3,FALSE)*Operations!$G85^0.5-VLOOKUP(Operations!$D85,ImpDepLookup,4,FALSE)*(Operations!$G85*(Operations!$G85*Operations!$H85/Operations!$I85)^0.5))^2)) -> 0 | O85: =IF(Operations!$C85="",0,(((Operations!$G85+1)*Operations!$H85/Operations!$I85/1000)^VLOOKUP(Operations!$C85,ImpRepairFac[],4,FALSE)-(Operations!$G85*Operations!$H85/Operations!$I85/1000)^VLOOKUP(Operations!$C85,ImpRepairFac[],4,FALSE))*Operations!$N85*VLOOKUP(Operations!$C85,ImpRepairFac[],3,FALSE)/Operations!$H85) -> 0 | P85: =IF(Operations!$N85=0,0,Operations!$N85*(VLOOKUP(Operations!$D85,ImpDepLookup,2,FALSE)-VLOOKUP(Operations!$D85,ImpDepLookup,3,FALSE)*Operations!$G85^0.5-VLOOKUP(Operations!$D85,ImpDepLookup,4,FALSE)*(Operations!$G85*Operations!$H85/Operations!$I85)^0.5)^2) -> 0 | Q85: =IF(Operations!$N85=0,0,Operations!$N85*(VLOOKUP(Operations!$D85,ImpDepLookup,2,FALSE)-VLOOKUP(Operations!$D85,ImpDepLookup,3,FALSE)*(Operations!$G85+1)^0.5-VLOOKUP(Operations!$D85,ImpDepLookup,4,FALSE)*(Operations!$G85*Operations!$H85/Operations!$I85)^0.5)^2) -> 0 | R85: =IF(Operations!$N85=0,0,IF(Operations!$I85*Operations!$H85=0,0,(Operations!$P85-Operations!$Q85)/(Operations!$H85))) -> 0 | S85: =IF(Operations!$H85=0,0,Operations!$P85*'General Variables'!$B$9/Operations!$H85) -> 0 | T85: =IF(Operations!$H85=0,0,Operations!$P85*'General Variables'!$B$10/Operations!$H85) -> 0 | U85: =SUM(Table3[[#This Row],[Depreciation per Unit]:[Opportunity Cost per Unit]]) -> 0
N86: =IF(Operations!$E86>1,Operations!$E86,IF(Operations!$D86=0,0,Operations!$F86/(VLOOKUP(Operations!$D86,ImpDepLookup,2,FALSE)-VLOOKUP(Operations!$D86,ImpDepLookup,3,FALSE)*Operations!$G86^0.5-VLOOKUP(Operations!$D86,ImpDepLookup,4,FALSE)*(Operations!$G86*(Operations!$G86*Operations!$H86/Operations!$I86)^0.5))^2)) -> 0 | O86: =IF(Operations!$C86="",0,(((Operations!$G86+1)*Operations!$H86/Operations!$I86/1000)^VLOOKUP(Operations!$C86,ImpRepairFac[],4,FALSE)-(Operations!$G86*Operations!$H86/Operations!$I86/1000)^VLOOKUP(Operations!$C86,ImpRepairFac[],4,FALSE))*Operations!$N86*VLOOKUP(Operations!$C86,ImpRepairFac[],3,FALSE)/Operations!$H86) -> 0 | P86: =IF(Operations!$N86=0,0,Operations!$N86*(VLOOKUP(Operations!$D86,ImpDepLookup,2,FALSE)-VLOOKUP(Operations!$D86,ImpDepLookup,3,FALSE)*Operations!$G86^0.5-VLOOKUP(Operations!$D86,ImpDepLookup,4,FALSE)*(Operations!$G86*Operations!$H86/Operations!$I86)^0.5)^2) -> 0 | Q86: =IF(Operations!$N86=0,0,Operations!$N86*(VLOOKUP(Operations!$D86,ImpDepLookup,2,FALSE)-VLOOKUP(Operations!$D86,ImpDepLookup,3,FALSE)*(Operations!$G86+1)^0.5-VLOOKUP(Operations!$D86,ImpDepLookup,4,FALSE)*(Operations!$G86*Operations!$H86/Operations!$I86)^0.5)^2) -> 0 | R86: =IF(Operations!$N86=0,0,IF(Operations!$I86*Operations!$H86=0,0,(Operations!$P86-Operations!$Q86)/(Operations!$H86))) -> 0 | S86: =IF(Operations!$H86=0,0,Operations!$P86*'General Variables'!$B$9/Operations!$H86) -> 0 | T86: =IF(Operations!$H86=0,0,Operations!$P86*'General Variables'!$B$10/Operations!$H86) -> 0 | U86: =SUM(Table3[[#This Row],[Depreciation per Unit]:[Opportunity Cost per Unit]]) -> 0
N87: =IF(Operations!$E87>1,Operations!$E87,IF(Operations!$D87=0,0,Operations!$F87/(VLOOKUP(Operations!$D87,ImpDepLookup,2,FALSE)-VLOOKUP(Operations!$D87,ImpDepLookup,3,FALSE)*Operations!$G87^0.5-VLOOKUP(Operations!$D87,ImpDepLookup,4,FALSE)*(Operations!$G87*(Operations!$G87*Operations!$H87/Operations!$I87)^0.5))^2)) -> 0 | O87: =IF(Operations!$C87="",0,(((Operations!$G87+1)*Operations!$H87/Operations!$I87/1000)^VLOOKUP(Operations!$C87,ImpRepairFac[],4,FALSE)-(Operations!$G87*Operations!$H87/Operations!$I87/1000)^VLOOKUP(Operations!$C87,ImpRepairFac[],4,FALSE))*Operations!$N87*VLOOKUP(Operations!$C87,ImpRepairFac[],3,FALSE)/Operations!$H87) -> 0 | P87: =IF(Operations!$N87=0,0,Operations!$N87*(VLOOKUP(Operations!$D87,ImpDepLookup,2,FALSE)-VLOOKUP(Operations!$D87,ImpDepLookup,3,FALSE)*Operations!$G87^0.5-VLOOKUP(Operations!$D87,ImpDepLookup,4,FALSE)*(Operations!$G87*Operations!$H87/Operations!$I87)^0.5)^2) -> 0 | Q87: =IF(Operations!$N87=0,0,Operations!$N87*(VLOOKUP(Operations!$D87,ImpDepLookup,2,FALSE)-VLOOKUP(Operations!$D87,ImpDepLookup,3,FALSE)*(Operations!$G87+1)^0.5-VLOOKUP(Operations!$D87,ImpDepLookup,4,FALSE)*(Operations!$G87*Operations!$H87/Operations!$I87)^0.5)^2) -> 0 | R87: =IF(Operations!$N87=0,0,IF(Operations!$I87*Operations!$H87=0,0,(Operations!$P87-Operations!$Q87)/(Operations!$H87))) -> 0 | S87: =IF(Operations!$H87=0,0,Operations!$P87*'General Variables'!$B$9/Operations!$H87) -> 0 | T87: =IF(Operations!$H87=0,0,Operations!$P87*'General Variables'!$B$10/Operations!$H87) -> 0 | U87: =SUM(Table3[[#This Row],[Depreciation per Unit]:[Opportunity Cost per Unit]]) -> 0
N88: =IF(Operations!$E88>1,Operations!$E88,IF(Operations!$D88=0,0,Operations!$F88/(VLOOKUP(Operations!$D88,ImpDepLookup,2,FALSE)-VLOOKUP(Operations!$D88,ImpDepLookup,3,FALSE)*Operations!$G88^0.5-VLOOKUP(Operations!$D88,ImpDepLookup,4,FALSE)*(Operations!$G88*(Operations!$G88*Operations!$H88/Operations!$I88)^0.5))^2)) -> 0 | O88: =IF(Operations!$C88="",0,(((Operations!$G88+1)*Operations!$H88/Operations!$I88/1000)^VLOOKUP(Operations!$C88,ImpRepairFac[],4,FALSE)-(Operations!$G88*Operations!$H88/Operations!$I88/1000)^VLOOKUP(Operations!$C88,ImpRepairFac[],4,FALSE))*Operations!$N88*VLOOKUP(Operations!$C88,ImpRepairFac[],3,FALSE)/Operations!$H88) -> 0 | P88: =IF(Operations!$N88=0,0,Operations!$N88*(VLOOKUP(Operations!$D88,ImpDepLookup,2,FALSE)-VLOOKUP(Operations!$D88,ImpDepLookup,3,FALSE)*Operations!$G88^0.5-VLOOKUP(Operations!$D88,ImpDepLookup,4,FALSE)*(Operations!$G88*Operations!$H88/Operations!$I88)^0.5)^2) -> 0 | Q88: =IF(Operations!$N88=0,0,Operations!$N88*(VLOOKUP(Operations!$D88,ImpDepLookup,2,FALSE)-VLOOKUP(Operations!$D88,ImpDepLookup,3,FALSE)*(Operations!$G88+1)^0.5-VLOOKUP(Operations!$D88,ImpDepLookup,4,FALSE)*(Operations!$G88*Operations!$H88/Operations!$I88)^0.5)^2) -> 0 | R88: =IF(Operations!$N88=0,0,IF(Operations!$I88*Operations!$H88=0,0,(Operations!$P88-Operations!$Q88)/(Operations!$H88))) -> 0 | S88: =IF(Operations!$H88=0,0,Operations!$P88*'General Variables'!$B$9/Operations!$H88) -> 0 | T88: =IF(Operations!$H88=0,0,Operations!$P88*'General Variables'!$B$10/Operations!$H88) -> 0 | U88: =SUM(Table3[[#This Row],[Depreciation per Unit]:[Opportunity Cost per Unit]]) -> 0
N89: =IF(Operations!$E89>1,Operations!$E89,IF(Operations!$D89=0,0,Operations!$F89/(VLOOKUP(Operations!$D89,ImpDepLookup,2,FALSE)-VLOOKUP(Operations!$D89,ImpDepLookup,3,FALSE)*Operations!$G89^0.5-VLOOKUP(Operations!$D89,ImpDepLookup,4,FALSE)*(Operations!$G89*(Operations!$G89*Operations!$H89/Operations!$I89)^0.5))^2)) -> 0 | O89: =IF(Operations!$C89="",0,(((Operations!$G89+1)*Operations!$H89/Operations!$I89/1000)^VLOOKUP(Operations!$C89,ImpRepairFac[],4,FALSE)-(Operations!$G89*Operations!$H89/Operations!$I89/1000)^VLOOKUP(Operations!$C89,ImpRepairFac[],4,FALSE))*Operations!$N89*VLOOKUP(Operations!$C89,ImpRepairFac[],3,FALSE)/Operations!$H89) -> 0 | P89: =IF(Operations!$N89=0,0,Operations!$N89*(VLOOKUP(Operations!$D89,ImpDepLookup,2,FALSE)-VLOOKUP(Operations!$D89,ImpDepLookup,3,FALSE)*Operations!$G89^0.5-VLOOKUP(Operations!$D89,ImpDepLookup,4,FALSE)*(Operations!$G89*Operations!$H89/Operations!$I89)^0.5)^2) -> 0 | Q89: =IF(Operations!$N89=0,0,Operations!$N89*(VLOOKUP(Operations!$D89,ImpDepLookup,2,FALSE)-VLOOKUP(Operations!$D89,ImpDepLookup,3,FALSE)*(Operations!$G89+1)^0.5-VLOOKUP(Operations!$D89,ImpDepLookup,4,FALSE)*(Operations!$G89*Operations!$H89/Operations!$I89)^0.5)^2) -> 0 | R89: =IF(Operations!$N89=0,0,IF(Operations!$I89*Operations!$H89=0,0,(Operations!$P89-Operations!$Q89)/(Operations!$H89))) -> 0 | S89: =IF(Operations!$H89=0,0,Operations!$P89*'General Variables'!$B$9/Operations!$H89) -> 0 | T89: =IF(Operations!$H89=0,0,Operations!$P89*'General Variables'!$B$10/Operations!$H89) -> 0 | U89: =SUM(Table3[[#This Row],[Depreciation per Unit]:[Opportunity Cost per Unit]]) -> 0
N90: =IF(Operations!$E90>1,Operations!$E90,IF(Operations!$D90=0,0,Operations!$F90/(VLOOKUP(Operations!$D90,ImpDepLookup,2,FALSE)-VLOOKUP(Operations!$D90,ImpDepLookup,3,FALSE)*Operations!$G90^0.5-VLOOKUP(Operations!$D90,ImpDepLookup,4,FALSE)*(Operations!$G90*(Operations!$G90*Operations!$H90/Operations!$I90)^0.5))^2)) -> 0 | O90: =IF(Operations!$C90="",0,(((Operations!$G90+1)*Operations!$H90/Operations!$I90/1000)^VLOOKUP(Operations!$C90,ImpRepairFac[],4,FALSE)-(Operations!$G90*Operations!$H90/Operations!$I90/1000)^VLOOKUP(Operations!$C90,ImpRepairFac[],4,FALSE))*Operations!$N90*VLOOKUP(Operations!$C90,ImpRepairFac[],3,FALSE)/Operations!$H90) -> 0 | P90: =IF(Operations!$N90=0,0,Operations!$N90*(VLOOKUP(Operations!$D90,ImpDepLookup,2,FALSE)-VLOOKUP(Operations!$D90,ImpDepLookup,3,FALSE)*Operations!$G90^0.5-VLOOKUP(Operations!$D90,ImpDepLookup,4,FALSE)*(Operations!$G90*Operations!$H90/Operations!$I90)^0.5)^2) -> 0 | Q90: =IF(Operations!$N90=0,0,Operations!$N90*(VLOOKUP(Operations!$D90,ImpDepLookup,2,FALSE)-VLOOKUP(Operations!$D90,ImpDepLookup,3,FALSE)*(Operations!$G90+1)^0.5-VLOOKUP(Operations!$D90,ImpDepLookup,4,FALSE)*(Operations!$G90*Operations!$H90/Operations!$I90)^0.5)^2) -> 0 | R90: =IF(Operations!$N90=0,0,IF(Operations!$I90*Operations!$H90=0,0,(Operations!$P90-Operations!$Q90)/(Operations!$H90))) -> 0 | S90: =IF(Operations!$H90=0,0,Operations!$P90*'General Variables'!$B$9/Operations!$H90) -> 0 | T90: =IF(Operations!$H90=0,0,Operations!$P90*'General Variables'!$B$10/Operations!$H90) -> 0 | U90: =SUM(Table3[[#This Row],[Depreciation per Unit]:[Opportunity Cost per Unit]]) -> 0
N91: =IF(Operations!$E91>1,Operations!$E91,IF(Operations!$D91=0,0,Operations!$F91/(VLOOKUP(Operations!$D91,ImpDepLookup,2,FALSE)-VLOOKUP(Operations!$D91,ImpDepLookup,3,FALSE)*Operations!$G91^0.5-VLOOKUP(Operations!$D91,ImpDepLookup,4,FALSE)*(Operations!$G91*(Operations!$G91*Operations!$H91/Operations!$I91)^0.5))^2)) -> 0 | O91: =IF(Operations!$C91="",0,(((Operations!$G91+1)*Operations!$H91/Operations!$I91/1000)^VLOOKUP(Operations!$C91,ImpRepairFac[],4,FALSE)-(Operations!$G91*Operations!$H91/Operations!$I91/1000)^VLOOKUP(Operations!$C91,ImpRepairFac[],4,FALSE))*Operations!$N91*VLOOKUP(Operations!$C91,ImpRepairFac[],3,FALSE)/Operations!$H91) -> 0 | P91: =IF(Operations!$N91=0,0,Operations!$N91*(VLOOKUP(Operations!$D91,ImpDepLookup,2,FALSE)-VLOOKUP(Operations!$D91,ImpDepLookup,3,FALSE)*Operations!$G91^0.5-VLOOKUP(Operations!$D91,ImpDepLookup,4,FALSE)*(Operations!$G91*Operations!$H91/Operations!$I91)^0.5)^2) -> 0 | Q91: =IF(Operations!$N91=0,0,Operations!$N91*(VLOOKUP(Operations!$D91,ImpDepLookup,2,FALSE)-VLOOKUP(Operations!$D91,ImpDepLookup,3,FALSE)*(Operations!$G91+1)^0.5-VLOOKUP(Operations!$D91,ImpDepLookup,4,FALSE)*(Operations!$G91*Operations!$H91/Operations!$I91)^0.5)^2) -> 0 | R91: =IF(Operations!$N91=0,0,IF(Operations!$I91*Operations!$H91=0,0,(Operations!$P91-Operations!$Q91)/(Operations!$H91))) -> 0 | S91: =IF(Operations!$H91=0,0,Operations!$P91*'General Variables'!$B$9/Operations!$H91) -> 0 | T91: =IF(Operations!$H91=0,0,Operations!$P91*'General Variables'!$B$10/Operations!$H91) -> 0 | U91: =SUM(Table3[[#This Row],[Depreciation per Unit]:[Opportunity Cost per Unit]]) -> 0
N92: =IF(Operations!$E92>1,Operations!$E92,IF(Operations!$D92=0,0,Operations!$F92/(VLOOKUP(Operations!$D92,ImpDepLookup,2,FALSE)-VLOOKUP(Operations!$D92,ImpDepLookup,3,FALSE)*Operations!$G92^0.5-VLOOKUP(Operations!$D92,ImpDepLookup,4,FALSE)*(Operations!$G92*(Operations!$G92*Operations!$H92/Operations!$I92)^0.5))^2)) -> 0 | O92: =IF(Operations!$C92="",0,(((Operations!$G92+1)*Operations!$H92/Operations!$I92/1000)^VLOOKUP(Operations!$C92,ImpRepairFac[],4,FALSE)-(Operations!$G92*Operations!$H92/Operations!$I92/1000)^VLOOKUP(Operations!$C92,ImpRepairFac[],4,FALSE))*Operations!$N92*VLOOKUP(Operations!$C92,ImpRepairFac[],3,FALSE)/Operations!$H92) -> 0 | P92: =IF(Operations!$N92=0,0,Operations!$N92*(VLOOKUP(Operations!$D92,ImpDepLookup,2,FALSE)-VLOOKUP(Operations!$D92,ImpDepLookup,3,FALSE)*Operations!$G92^0.5-VLOOKUP(Operations!$D92,ImpDepLookup,4,FALSE)*(Operations!$G92*Operations!$H92/Operations!$I92)^0.5)^2) -> 0 | Q92: =IF(Operations!$N92=0,0,Operations!$N92*(VLOOKUP(Operations!$D92,ImpDepLookup,2,FALSE)-VLOOKUP(Operations!$D92,ImpDepLookup,3,FALSE)*(Operations!$G92+1)^0.5-VLOOKUP(Operations!$D92,ImpDepLookup,4,FALSE)*(Operations!$G92*Operations!$H92/Operations!$I92)^0.5)^2) -> 0 | R92: =IF(Operations!$N92=0,0,IF(Operations!$I92*Operations!$H92=0,0,(Operations!$P92-Operations!$Q92)/(Operations!$H92))) -> 0 | S92: =IF(Operations!$H92=0,0,Operations!$P92*'General Variables'!$B$9/Operations!$H92) -> 0 | T92: =IF(Operations!$H92=0,0,Operations!$P92*'General Variables'!$B$10/Operations!$H92) -> 0 | U92: =SUM(Table3[[#This Row],[Depreciation per Unit]:[Opportunity Cost per Unit]]) -> 0
N93: =IF(Operations!$E93>1,Operations!$E93,IF(Operations!$D93=0,0,Operations!$F93/(VLOOKUP(Operations!$D93,ImpDepLookup,2,FALSE)-VLOOKUP(Operations!$D93,ImpDepLookup,3,FALSE)*Operations!$G93^0.5-VLOOKUP(Operations!$D93,ImpDepLookup,4,FALSE)*(Operations!$G93*(Operations!$G93*Operations!$H93/Operations!$I93)^0.5))^2)) -> 0 | O93: =IF(Operations!$C93="",0,(((Operations!$G93+1)*Operations!$H93/Operations!$I93/1000)^VLOOKUP(Operations!$C93,ImpRepairFac[],4,FALSE)-(Operations!$G93*Operations!$H93/Operations!$I93/1000)^VLOOKUP(Operations!$C93,ImpRepairFac[],4,FALSE))*Operations!$N93*VLOOKUP(Operations!$C93,ImpRepairFac[],3,FALSE)/Operations!$H93) -> 0 | P93: =IF(Operations!$N93=0,0,Operations!$N93*(VLOOKUP(Operations!$D93,ImpDepLookup,2,FALSE)-VLOOKUP(Operations!$D93,ImpDepLookup,3,FALSE)*Operations!$G93^0.5-VLOOKUP(Operations!$D93,ImpDepLookup,4,FALSE)*(Operations!$G93*Operations!$H93/Operations!$I93)^0.5)^2) -> 0 | Q93: =IF(Operations!$N93=0,0,Operations!$N93*(VLOOKUP(Operations!$D93,ImpDepLookup,2,FALSE)-VLOOKUP(Operations!$D93,ImpDepLookup,3,FALSE)*(Operations!$G93+1)^0.5-VLOOKUP(Operations!$D93,ImpDepLookup,4,FALSE)*(Operations!$G93*Operations!$H93/Operations!$I93)^0.5)^2) -> 0 | R93: =IF(Operations!$N93=0,0,IF(Operations!$I93*Operations!$H93=0,0,(Operations!$P93-Operations!$Q93)/(Operations!$H93))) -> 0 | S93: =IF(Operations!$H93=0,0,Operations!$P93*'General Variables'!$B$9/Operations!$H93) -> 0 | T93: =IF(Operations!$H93=0,0,Operations!$P93*'General Variables'!$B$10/Operations!$H93) -> 0 | U93: =SUM(Table3[[#This Row],[Depreciation per Unit]:[Opportunity Cost per Unit]]) -> 0
N94: =IF(Operations!$E94>1,Operations!$E94,IF(Operations!$D94=0,0,Operations!$F94/(VLOOKUP(Operations!$D94,ImpDepLookup,2,FALSE)-VLOOKUP(Operations!$D94,ImpDepLookup,3,FALSE)*Operations!$G94^0.5-VLOOKUP(Operations!$D94,ImpDepLookup,4,FALSE)*(Operations!$G94*(Operations!$G94*Operations!$H94/Operations!$I94)^0.5))^2)) -> 0 | O94: =IF(Operations!$C94="",0,(((Operations!$G94+1)*Operations!$H94/Operations!$I94/1000)^VLOOKUP(Operations!$C94,ImpRepairFac[],4,FALSE)-(Operations!$G94*Operations!$H94/Operations!$I94/1000)^VLOOKUP(Operations!$C94,ImpRepairFac[],4,FALSE))*Operations!$N94*VLOOKUP(Operations!$C94,ImpRepairFac[],3,FALSE)/Operations!$H94) -> 0 | P94: =IF(Operations!$N94=0,0,Operations!$N94*(VLOOKUP(Operations!$D94,ImpDepLookup,2,FALSE)-VLOOKUP(Operations!$D94,ImpDepLookup,3,FALSE)*Operations!$G94^0.5-VLOOKUP(Operations!$D94,ImpDepLookup,4,FALSE)*(Operations!$G94*Operations!$H94/Operations!$I94)^0.5)^2) -> 0 | Q94: =IF(Operations!$N94=0,0,Operations!$N94*(VLOOKUP(Operations!$D94,ImpDepLookup,2,FALSE)-VLOOKUP(Operations!$D94,ImpDepLookup,3,FALSE)*(Operations!$G94+1)^0.5-VLOOKUP(Operations!$D94,ImpDepLookup,4,FALSE)*(Operations!$G94*Operations!$H94/Operations!$I94)^0.5)^2) -> 0 | R94: =IF(Operations!$N94=0,0,IF(Operations!$I94*Operations!$H94=0,0,(Operations!$P94-Operations!$Q94)/(Operations!$H94))) -> 0 | S94: =IF(Operations!$H94=0,0,Operations!$P94*'General Variables'!$B$9/Operations!$H94) -> 0 | T94: =IF(Operations!$H94=0,0,Operations!$P94*'General Variables'!$B$10/Operations!$H94) -> 0 | U94: =SUM(Table3[[#This Row],[Depreciation per Unit]:[Opportunity Cost per Unit]]) -> 0
N95: =IF(Operations!$E95>1,Operations!$E95,IF(Operations!$D95=0,0,Operations!$F95/(VLOOKUP(Operations!$D95,ImpDepLookup,2,FALSE)-VLOOKUP(Operations!$D95,ImpDepLookup,3,FALSE)*Operations!$G95^0.5-VLOOKUP(Operations!$D95,ImpDepLookup,4,FALSE)*(Operations!$G95*(Operations!$G95*Operations!$H95/Operations!$I95)^0.5))^2)) -> 0 | O95: =IF(Operations!$C95="",0,(((Operations!$G95+1)*Operations!$H95/Operations!$I95/1000)^VLOOKUP(Operations!$C95,ImpRepairFac[],4,FALSE)-(Operations!$G95*Operations!$H95/Operations!$I95/1000)^VLOOKUP(Operations!$C95,ImpRepairFac[],4,FALSE))*Operations!$N95*VLOOKUP(Operations!$C95,ImpRepairFac[],3,FALSE)/Operations!$H95) -> 0 | P95: =IF(Operations!$N95=0,0,Operations!$N95*(VLOOKUP(Operations!$D95,ImpDepLookup,2,FALSE)-VLOOKUP(Operations!$D95,ImpDepLookup,3,FALSE)*Operations!$G95^0.5-VLOOKUP(Operations!$D95,ImpDepLookup,4,FALSE)*(Operations!$G95*Operations!$H95/Operations!$I95)^0.5)^2) -> 0 | Q95: =IF(Operations!$N95=0,0,Operations!$N95*(VLOOKUP(Operations!$D95,ImpDepLookup,2,FALSE)-VLOOKUP(Operations!$D95,ImpDepLookup,3,FALSE)*(Operations!$G95+1)^0.5-VLOOKUP(Operations!$D95,ImpDepLookup,4,FALSE)*(Operations!$G95*Operations!$H95/Operations!$I95)^0.5)^2) -> 0 | R95: =IF(Operations!$N95=0,0,IF(Operations!$I95*Operations!$H95=0,0,(Operations!$P95-Operations!$Q95)/(Operations!$H95))) -> 0 | S95: =IF(Operations!$H95=0,0,Operations!$P95*'General Variables'!$B$9/Operations!$H95) -> 0 | T95: =IF(Operations!$H95=0,0,Operations!$P95*'General Variables'!$B$10/Operations!$H95) -> 0 | U95: =SUM(Table3[[#This Row],[Depreciation per Unit]:[Opportunity Cost per Unit]]) -> 0
N96: =IF(Operations!$E96>1,Operations!$E96,IF(Operations!$D96=0,0,Operations!$F96/(VLOOKUP(Operations!$D96,ImpDepLookup,2,FALSE)-VLOOKUP(Operations!$D96,ImpDepLookup,3,FALSE)*Operations!$G96^0.5-VLOOKUP(Operations!$D96,ImpDepLookup,4,FALSE)*(Operations!$G96*(Operations!$G96*Operations!$H96/Operations!$I96)^0.5))^2)) -> 0 | O96: =IF(Operations!$C96="",0,(((Operations!$G96+1)*Operations!$H96/Operations!$I96/1000)^VLOOKUP(Operations!$C96,ImpRepairFac[],4,FALSE)-(Operations!$G96*Operations!$H96/Operations!$I96/1000)^VLOOKUP(Operations!$C96,ImpRepairFac[],4,FALSE))*Operations!$N96*VLOOKUP(Operations!$C96,ImpRepairFac[],3,FALSE)/Operations!$H96) -> 0 | P96: =IF(Operations!$N96=0,0,Operations!$N96*(VLOOKUP(Operations!$D96,ImpDepLookup,2,FALSE)-VLOOKUP(Operations!$D96,ImpDepLookup,3,FALSE)*Operations!$G96^0.5-VLOOKUP(Operations!$D96,ImpDepLookup,4,FALSE)*(Operations!$G96*Operations!$H96/Operations!$I96)^0.5)^2) -> 0 | Q96: =IF(Operations!$N96=0,0,Operations!$N96*(VLOOKUP(Operations!$D96,ImpDepLookup,2,FALSE)-VLOOKUP(Operations!$D96,ImpDepLookup,3,FALSE)*(Operations!$G96+1)^0.5-VLOOKUP(Operations!$D96,ImpDepLookup,4,FALSE)*(Operations!$G96*Operations!$H96/Operations!$I96)^0.5)^2) -> 0 | R96: =IF(Operations!$N96=0,0,IF(Operations!$I96*Operations!$H96=0,0,(Operations!$P96-Operations!$Q96)/(Operations!$H96))) -> 0 | S96: =IF(Operations!$H96=0,0,Operations!$P96*'General Variables'!$B$9/Operations!$H96) -> 0 | T96: =IF(Operations!$H96=0,0,Operations!$P96*'General Variables'!$B$10/Operations!$H96) -> 0 | U96: =SUM(Table3[[#This Row],[Depreciation per Unit]:[Opportunity Cost per Unit]]) -> 0
N97: =IF(Operations!$E97>1,Operations!$E97,IF(Operations!$D97=0,0,Operations!$F97/(VLOOKUP(Operations!$D97,ImpDepLookup,2,FALSE)-VLOOKUP(Operations!$D97,ImpDepLookup,3,FALSE)*Operations!$G97^0.5-VLOOKUP(Operations!$D97,ImpDepLookup,4,FALSE)*(Operations!$G97*(Operations!$G97*Operations!$H97/Operations!$I97)^0.5))^2)) -> 0 | O97: =IF(Operations!$C97="",0,(((Operations!$G97+1)*Operations!$H97/Operations!$I97/1000)^VLOOKUP(Operations!$C97,ImpRepairFac[],4,FALSE)-(Operations!$G97*Operations!$H97/Operations!$I97/1000)^VLOOKUP(Operations!$C97,ImpRepairFac[],4,FALSE))*Operations!$N97*VLOOKUP(Operations!$C97,ImpRepairFac[],3,FALSE)/Operations!$H97) -> 0 | P97: =IF(Operations!$N97=0,0,Operations!$N97*(VLOOKUP(Operations!$D97,ImpDepLookup,2,FALSE)-VLOOKUP(Operations!$D97,ImpDepLookup,3,FALSE)*Operations!$G97^0.5-VLOOKUP(Operations!$D97,ImpDepLookup,4,FALSE)*(Operations!$G97*Operations!$H97/Operations!$I97)^0.5)^2) -> 0 | Q97: =IF(Operations!$N97=0,0,Operations!$N97*(VLOOKUP(Operations!$D97,ImpDepLookup,2,FALSE)-VLOOKUP(Operations!$D97,ImpDepLookup,3,FALSE)*(Operations!$G97+1)^0.5-VLOOKUP(Operations!$D97,ImpDepLookup,4,FALSE)*(Operations!$G97*Operations!$H97/Operations!$I97)^0.5)^2) -> 0 | R97: =IF(Operations!$N97=0,0,IF(Operations!$I97*Operations!$H97=0,0,(Operations!$P97-Operations!$Q97)/(Operations!$H97))) -> 0 | S97: =IF(Operations!$H97=0,0,Operations!$P97*'General Variables'!$B$9/Operations!$H97) -> 0 | T97: =IF(Operations!$H97=0,0,Operations!$P97*'General Variables'!$B$10/Operations!$H97) -> 0 | U97: =SUM(Table3[[#This Row],[Depreciation per Unit]:[Opportunity Cost per Unit]]) -> 0
N98: =IF(Operations!$E98>1,Operations!$E98,IF(Operations!$D98=0,0,Operations!$F98/(VLOOKUP(Operations!$D98,ImpDepLookup,2,FALSE)-VLOOKUP(Operations!$D98,ImpDepLookup,3,FALSE)*Operations!$G98^0.5-VLOOKUP(Operations!$D98,ImpDepLookup,4,FALSE)*(Operations!$G98*(Operations!$G98*Operations!$H98/Operations!$I98)^0.5))^2)) -> 0 | O98: =IF(Operations!$C98="",0,(((Operations!$G98+1)*Operations!$H98/Operations!$I98/1000)^VLOOKUP(Operations!$C98,ImpRepairFac[],4,FALSE)-(Operations!$G98*Operations!$H98/Operations!$I98/1000)^VLOOKUP(Operations!$C98,ImpRepairFac[],4,FALSE))*Operations!$N98*VLOOKUP(Operations!$C98,ImpRepairFac[],3,FALSE)/Operations!$H98) -> 0 | P98: =IF(Operations!$N98=0,0,Operations!$N98*(VLOOKUP(Operations!$D98,ImpDepLookup,2,FALSE)-VLOOKUP(Operations!$D98,ImpDepLookup,3,FALSE)*Operations!$G98^0.5-VLOOKUP(Operations!$D98,ImpDepLookup,4,FALSE)*(Operations!$G98*Operations!$H98/Operations!$I98)^0.5)^2) -> 0 | Q98: =IF(Operations!$N98=0,0,Operations!$N98*(VLOOKUP(Operations!$D98,ImpDepLookup,2,FALSE)-VLOOKUP(Operations!$D98,ImpDepLookup,3,FALSE)*(Operations!$G98+1)^0.5-VLOOKUP(Operations!$D98,ImpDepLookup,4,FALSE)*(Operations!$G98*Operations!$H98/Operations!$I98)^0.5)^2) -> 0 | R98: =IF(Operations!$N98=0,0,IF(Operations!$I98*Operations!$H98=0,0,(Operations!$P98-Operations!$Q98)/(Operations!$H98))) -> 0 | S98: =IF(Operations!$H98=0,0,Operations!$P98*'General Variables'!$B$9/Operations!$H98) -> 0 | T98: =IF(Operations!$H98=0,0,Operations!$P98*'General Variables'!$B$10/Operations!$H98) -> 0 | U98: =SUM(Table3[[#This Row],[Depreciation per Unit]:[Opportunity Cost per Unit]]) -> 0
N99: =IF(Operations!$E99>1,Operations!$E99,IF(Operations!$D99=0,0,Operations!$F99/(VLOOKUP(Operations!$D99,ImpDepLookup,2,FALSE)-VLOOKUP(Operations!$D99,ImpDepLookup,3,FALSE)*Operations!$G99^0.5-VLOOKUP(Operations!$D99,ImpDepLookup,4,FALSE)*(Operations!$G99*(Operations!$G99*Operations!$H99/Operations!$I99)^0.5))^2)) -> 0 | O99: =IF(Operations!$C99="",0,(((Operations!$G99+1)*Operations!$H99/Operations!$I99/1000)^VLOOKUP(Operations!$C99,ImpRepairFac[],4,FALSE)-(Operations!$G99*Operations!$H99/Operations!$I99/1000)^VLOOKUP(Operations!$C99,ImpRepairFac[],4,FALSE))*Operations!$N99*VLOOKUP(Operations!$C99,ImpRepairFac[],3,FALSE)/Operations!$H99) -> 0 | P99: =IF(Operations!$N99=0,0,Operations!$N99*(VLOOKUP(Operations!$D99,ImpDepLookup,2,FALSE)-VLOOKUP(Operations!$D99,ImpDepLookup,3,FALSE)*Operations!$G99^0.5-VLOOKUP(Operations!$D99,ImpDepLookup,4,FALSE)*(Operations!$G99*Operations!$H99/Operations!$I99)^0.5)^2) -> 0 | Q99: =IF(Operations!$N99=0,0,Operations!$N99*(VLOOKUP(Operations!$D99,ImpDepLookup,2,FALSE)-VLOOKUP(Operations!$D99,ImpDepLookup,3,FALSE)*(Operations!$G99+1)^0.5-VLOOKUP(Operations!$D99,ImpDepLookup,4,FALSE)*(Operations!$G99*Operations!$H99/Operations!$I99)^0.5)^2) -> 0 | R99: =IF(Operations!$N99=0,0,IF(Operations!$I99*Operations!$H99=0,0,(Operations!$P99-Operations!$Q99)/(Operations!$H99))) -> 0 | S99: =IF(Operations!$H99=0,0,Operations!$P99*'General Variables'!$B$9/Operations!$H99) -> 0 | T99: =IF(Operations!$H99=0,0,Operations!$P99*'General Variables'!$B$10/Operations!$H99) -> 0 | U99: =SUM(Table3[[#This Row],[Depreciation per Unit]:[Opportunity Cost per Unit]]) -> 0

Sheet Crop Insurance (hidden)
A1: Table 6: | G1: Table 6:
A2: Federal Crop Insurance Premium Estimates based on 75% LP on Dryland and 70% on Irrigated | G2: All Federal Crop Insurance premiums based on 75% LP on Dryland and 70% on Irrigated
A3: Budget | B3: Dryland or Irrigated | C3: Area | D3: Yield | E3: Per Acre Premium | F3: Your Cost | G3: Budget | H3: Dryland or Irrigated | I3: Area | J3: Yield | K3: Per Acre Premium | M3: Budget | N3: Dryland or Irrigated | O3: Area | P3: Yield | Q3: Per Acre Premium
A4: 1-Alfalfa | B4: =INDIRECT(CONCATENATE("'",$A4,"'!")&"K2") -> Dryland | C4: =IF(INDIRECT(CONCATENATE("'",$A4,"'!")&"C2")=0,"State",INDIRECT(CONCATENATE("'",$A4,"'!")&"C2")) -> State | D4: =IF(INDIRECT(CONCATENATE("'",$A4,"'!")&"H3")=0,"N/A",INDIRECT(CONCATENATE("'",$A4,"'!")&"H3")) -> N/A | E4: N/A | G4: =A4 -> 1-Alfalfa | H4: Dryland | I4: State | J4: N/A | K4: N/A | M4: =A56 -> 53-Oats | N4: =B56 -> Dryland | O4: =C56 -> State | P4: =D56 -> 85 bushel | Q4: =E56 -> 10
A5: 2-Alfalfa | B5: =INDIRECT(CONCATENATE("'",A5,"'!")&"K2") -> Dryland | C5: State | D5: N/A | E5: N/A | G5: 2-Alfalfa | H5: Dryland | I5: State | J5: N/A | K5: N/A | M5: =A66 -> 63-Soybeans | N5: =B66 -> Pivot Irrigated Diesel | O5: =C66 -> State | P5: =D66 -> 64 bushel | Q5: =E66 -> 7
A6: 3-Alfalfa | B6: Dryland | C6: State | D6: N/A | E6: N/A | G6: 3-Alfalfa | H6: Dryland | I6: State | J6: N/A | K6: N/A | M6: =A76 -> 73-Sunflower | N6: =B76 -> Pivot Irrigated | O6: =C76 -> Panhandle | P6: =D76 -> 30 cwt | Q6: =E76 -> 10
A7: 4-Alfalfa | B7: Dryland | C7: State | D7: 2.8 ton | E7: N/A
A8: 5-Alfalfa | B8: Dryland | C8: State | D8: 2.8 ton | E8: N/A
A9: 6-Alfalfa | B9: Pivot Irrigated | C9: State | D9: 3.8 ton | E9: N/A
A10: 7-Alfalfa | B10: Pivot Irrigated | C10: State | D10: 4 ton | E10: N/A
A11: 8-Alfalfa | B11: Gravity Irrigated, fed by canal | C11: Panhandle | D11: 2.5 ton | E11: N/A
A12: 9-Alfalfa | B12: Dryland | C12: State | D12: 4.4 ton | E12: N/A
A13: 10-Alfalfa | B13: Pivot Irrigated Electric | C13: State | D13: 6.7 ton | E13: N/A | G13: =A13 -> 10-Alfalfa | H13: =B13 -> Pivot Irrigated Electric | I13: State | J13: 6.7 ton | K13: N/A | M13: =A47 -> 44-Dry Beans | N13: =B47 -> Pivot Irrigated Electric | O13: Panhandle | P13: 27 cwt | Q13: 23
A14: 11-Alfalfa | B14: Pivot Irrigated Electric | C14: State | D14: 6.8 ton | E14: N/A | G14: =A14 -> 11-Alfalfa | H14: =B14 -> Pivot Irrigated Electric | I14: =C14 -> State | J14: =D14 -> 6.8 ton | K14: =E14 -> N/A | M14: 45-Grain Sorghum | N14: =B48 -> Dryland | O14: Southwest | P14: 115 bushel | Q14: 24
A15: 12-Alfalfa | B15: Pivot Irrigated Electric | C15: Panhandle | D15: 6.6 ton | E15: N/A | G15: 12-Alfalfa | H15: Pivot Irrigated Electric | I15: Panhandle | J15: 6.6 ton | K15: N/A | M15: 46-Grain Sorghum | N15: Dryland | O15: State | P15: 135 bushel | Q15: 21
A16: 13-Alfalfa | B16: Gravity Irrigated, fed by canal | C16: State | D16: 6.6 ton | E16: N/A | G16: 13-Alfalfa | H16: Gravity Irrigated, fed by canal | I16: State | J16: 6.6 ton | K16: N/A | M16: 47-Grain Sorghum | N16: Dryland | O16: Southwest | P16: 120 bushel | Q16: 24
A17: 14-Alfalfa | B17: Gravity Irrigated, fed by canal | C17: State | D17: 6.8 ton | E17: N/A | G17: 14-Alfalfa | H17: Gravity Irrigated, fed by canal | I17: State | J17: 6.8 ton | K17: N/A | M17: 48-Grain Sorghum | N17: Limited Irrigation | O17: State | P17: 170 bushel | Q17: 13
A18: 15-Corn | B18: Dryland | C18: State | D18: 100 bushel | E18: 26 | G18: 15-Corn | H18: Dryland | I18: State | J18: 100 bushel | K18: 26 | M18: 49-Grass | N18: Pivot Irrigated Diesel | O18: State | P18: N/A | Q18: N/A
A19: 16-Corn | B19: Dryland | C19: State | D19: 110 bushel | E19: 26 | G19: 16-Corn | H19: Dryland | I19: State | J19: 110 bushel | K19: 26 | M19: =A7 -> 4-Alfalfa | N19: =B7 -> Dryland | O19: =C7 -> State | P19: =D7 -> 2.8 ton | Q19: =E7 -> N/A
A20: 17-Corn | B20: Dryland | C20: Eastern Nebraska | D20: 160 bushel | E20: 6 | G20: 17-Corn | H20: Dryland | I20: Eastern Nebraska | J20: 160 bushel | K20: 6 | M20: =A53 -> 50-Grass Hay | N20: Dryland | O20: State | P20: 2.2 ton | Q20: N/A
A21: 18-Corn | B21: Dryland | C21: Eastern Nebraska | D21: 170 bushel | E21: 6 | G21: 18-Corn | H21: Dryland | I21: Eastern Nebraska | J21: 170 bushel | K21: 6 | M21: 51-Millet | N21: Dryland | O21: Panhandle | P21: 22 cwt | Q21: 7
A22: 19-Corn | B22: Dryland | C22: State | D22: 135 bushel | E22: 28 | G22: 19-Corn | H22: Dryland | I22: State | J22: 135 bushel | K22: 28 | M22: 52-Millet | N22: Dryland | O22: Panhandle | P22: 22 cwt | Q22: 7
A23: 20-Corn | B23: Dryland | C23: Eastern Nebraska | D23: 180 bushel | E23: 6 | G23: 20-Corn | H23: Dryland | I23: Eastern Nebraska | J23: 180 bushel | K23: 6 | M23: =A57 -> 54-Pasture | N23: Pivot Irrigated Diesel | O23: State | P23: 11 AUM | Q23: N/A
A24: 21-Corn | B24: Dryland | C24: State | D24: 140 bushel | E24: 28 | G24: 21-Corn | H24: Dryland | I24: State | J24: 140 bushel | K24: 28 | M24: 55-Peas | N24: Dryland | O24: Panhandle | P24: 35 bushel | Q24: 11
A25: 22-Corn | B25: Dryland | C25: Eastern Nebraska | D25: 185 bushel | E25: 6 | G25: 22-Corn | H25: Dryland | I25: Eastern Nebraska | J25: 185 bushel | K25: 6 | M25: 56-Sorghum-Sudan | N25: Dryland | O25: State | P25: 5 ton | Q25: N/A
A26: 23-Corn | B26: Dryland | C26: State | D26: 145 bushel | E26: 29 | G26: 23-Corn | H26: Dryland | I26: State | J26: 145 bushel | K26: 29 | M26: 57-Soybeans | N26: Dryland | O26: State | P26: 45 bushel | Q26: 25
A27: 24-Corn | B27: Dryland | C27: Eastern Nebraska | D27: 195 bushel | E27: 7 | G27: 24-Corn | H27: Dryland | I27: Eastern Nebraska | J27: 195 bushel | K27: 7 | M27: 58-Soybeans | N27: Dryland | O27: State | P27: 50 bushel | Q27: 25
A28: 25-Corn | B28: Dryland | C28: Southwest | D28: 130 bushel | E28: 26 | G28: 25-Corn | H28: Dryland | I28: Southwest | J28: 130 bushel | K28: 26 | M28: 59-Soybeans | N28: Dryland | O28: State | P28: 45 bushel | Q28: 25
A29: 26-Corn | B29: Gravity Irrigated, fed by a well | C29: State | D29: 245 bushel | E29: 9 | G29: 26-Corn | H29: Gravity Irrigated, fed by a well | I29: State | J29: 245 bushel | K29: 9 | M29: =A8 -> 5-Alfalfa | N29: =B8 -> Dryland | O29: =C8 -> State | P29: =D8 -> 2.8 ton | Q29: =E8 -> N/A
A30: 27-Corn | B30: Gravity Irrigated, fed by a well | C30: State | D30: 255 bushel | E30: 9 | G30: 27-Corn | H30: Gravity Irrigated, fed by a well | I30: State | J30: 255 bushel | K30: 9 | M30: =A63 -> 60-Soybeans | N30: Pivot Irrigated | O30: State | P30: 67 bushel | Q30: 7
A31: 28-Corn | B31: Gravity Irrigated, fed by a well | C31: State | D31: 250 bushel | E31: 9 | G31: 28-Corn | H31: Gravity Irrigated, fed by a well | I31: State | J31: 250 bushel | K31: 9 | M31: 61-Soybeans | N31: Gravity Irrigated, fed by a well | O31: State | P31: 70 bushel | Q31: 7
A32: 29-Corn | B32: Gravity Irrigated, fed by canal | C32: Panhandle | D32: 195 bushel | E32: 15 | G32: 29-Corn | H32: Gravity Irrigated, fed by canal | I32: Panhandle | J32: 195 bushel | K32: 15 | M32: 62-Soybeans | N32: Pivot Irrigated Diesel | O32: State | P32: 75 bushel | Q32: 7
A33: 30-Corn | B33: Pivot Irrigated Electric | C33: State | D33: 245 bushel | E33: 9 | G33: 30-Corn | H33: Pivot Irrigated Electric | I33: State | J33: 245 bushel | K33: 9 | M33: =A67 -> 64-Soybeans | N33: =B67 -> Pivot Irrigated Diesel | O33: =C67 -> State | P33: =D67 -> 78 bushel | Q33: =E67 -> 7
A34: 31-Corn | B34: Pivot Irrigated Electric | C34: State | D34: 250 bushel | E34: 9 | G34: 31-Corn | H34: Pivot Irrigated Electric | I34: State | J34: 250 bushel | K34: 9 | M34: =#REF! ->  | N34: =#REF! ->  | O34: =#REF! ->  | P34: =#REF! ->  | Q34: =#REF! -> 
A35: 32-Corn | B35: Pivot Irrigated Electric | C35: State | D35: 275 bushel | E35: 10 | G35: 32-Corn | H35: Pivot Irrigated Electric | I35: State | J35: 275 bushel | K35: 10 | M35: =A68 -> 65-Soybeans | N35: =B68 -> Pivot Irrigated Diesel | O35: =C68 -> State | P35: =D68 -> 78 bushel | Q35: =E68 -> 7
A36: 33-Corn | B36: Pivot Irrigated Electric | C36: =IF(INDIRECT(CONCATENATE("'",$A36,"'!")&"C2")=0,"State",INDIRECT(CONCATENATE("'",$A36,"'!")&"C2")) -> State | D36: =IF(INDIRECT(CONCATENATE("'",$A36,"'!")&"H3")=0,"N/A",INDIRECT(CONCATENATE("'",$A36,"'!")&"H3")) -> 275 bushel | E36: 10 | G36: 33-Corn | H36: Pivot Irrigated Electric | I36: State | J36: 275 bushel | K36: 10 | M36: =#REF! ->  | N36: =#REF! ->  | O36: =#REF! ->  | P36: =#REF! ->  | Q36: =#REF! -> 
A37: 34-Corn | B37: Pivot Irrigated Electric | C37: State | D37: 275 bushel | E37: 10 | G37: =#REF! ->  | H37: =#REF! ->  | I37: =#REF! ->  | J37: =#REF! ->  | K37: =#REF! ->  | M37: =A69 -> 66-Soybeans | N37: Pivot Irrigated Diesel | O37: State | P37: 78 bushel | Q37: 7
A38: 35-Corn | B38: Pivot Irrigated Diesel | C38: State | D38: 235 bushel | E38: 9 | G38: =A37 -> 34-Corn | H38: =B37 -> Pivot Irrigated Electric | I38: =C37 -> State | J38: =D37 -> 275 bushel | K38: =E37 -> 10 | M38: 67-Sugarbeet | N38: Gravity Irrigated, fed by canal | O38: Panhandle | P38: 26 ton | Q38: 35
A39: 36-Corn | B39: Pivot Irrigated Diesel | C39: State | D39: 245 bushel | E39: 9 | G39: =#REF! ->  | H39: =#REF! ->  | I39: =#REF! ->  | J39: =#REF! ->  | K39: =#REF! ->  | M39: 68-Sugarbeet | N39: Gravity Irrigated, fed by canal | O39: Panhandle | P39: 26 ton | Q39: 35
A40: 37-Corn | B40: Pivot Irrigated Electric | C40: Panhandle | D40: 195 bushel | E40: 15 | G40: =A38 -> 35-Corn | H40: =B38 -> Pivot Irrigated Diesel | I40: =C38 -> State | J40: =D38 -> 235 bushel | K40: =E38 -> 9 | M40: 69-Sugarbeet | N40: Pivot Irrigated Diesel | O40: Panhandle | P40: 26 ton | Q40: 35
A41: 38-Corn | B41: Pivot Irrigated Electric | C41: Panhandle | D41: 205 bushel | E41: 16 | G41: 36-Corn | H41: Pivot Irrigated Diesel | I41: State | J41: 245 bushel | K41: 9 | M41: =A9 -> 6-Alfalfa | N41: =B9 -> Pivot Irrigated | O41: =C9 -> State | P41: =D9 -> 3.8 ton | Q41: =E9 -> N/A
A42: 39-Corn | B42: Pivot Irrigated Diesel | C42: State | D42: 240 bushel | E42: 9 | G42: 37-Corn | H42: Pivot Irrigated Electric | I42: Panhandle | J42: 195 bushel | K42: 15 | M42: =A73 -> 70-Sugarbeet | N42: Pivot Irrigated Diesel | O42: Panhandle | P42: 26 ton | Q42: 35
A43: 40-Corn | B43: Pivot Irrigated Diesel | C43: State | D43: 28 ton | E43: 9 | G43: 38-Corn | H43: Pivot Irrigated Electric | I43: Panhandle | J43: 205 bushel | K43: 16 | M43: 71-Sunflower | N43: Dryland | O43: Panhandle | P43: 13 cwt | Q43: 14
A44: 41-Dry Beans | B44: Pivot Irrigated Electric | C44: Panhandle | D44: 27 cwt | E44: 23 | G44: 39-Corn | H44: Pivot Irrigated Diesel | I44: State | J44: 240 bushel | K44: 9 | M44: 72-Sunflower | N44: Dryland | O44: Panhandle | P44: 16 cwt | Q44: 14
A45: 42-Dry Beans | B45: Gravity Irrigated, fed by canal | C45: Panhandle | D45: 27 cwt | E45: 23 | G45: 40-Corn | H45: Pivot Irrigated Diesel | I45: State | J45: 28 ton | K45: 9 | M45: =A77 -> 74-Wheat | N45: =B77 -> Dryland | O45: =C77 -> Southwest | P45: =D77 -> 55 bushel | Q45: =E77 -> 10
A46: 43-Dry Beans | B46: Pivot Irrigated Electric | C46: Panhandle | D46: 27 cwt | E46: 23 | G46: 41-Dry Beans | H46: Pivot Irrigated Electric | I46: Panhandle | J46: 27 cwt | K46: 23 | M46: 75-Wheat | N46: Dryland | O46: Panhandle | P46: 70 bushel | Q46: 11
A47: 44-Dry Beans | B47: Pivot Irrigated Electric | C47: Panhandle | D47: 27 cwt | E47: 23 | G47: 42-Dry Beans | H47: Gravity Irrigated, fed by canal | I47: Panhandle | J47: 27 cwt | K47: 23 | M47: =A10 -> 7-Alfalfa | N47: =B10 -> Pivot Irrigated | O47: =C10 -> State | P47: =D10 -> 4 ton | Q47: =E10 -> N/A
A48: 45-Grain Sorghum | B48: Dryland | C48: Southwest | D48: 115 bushel | E48: 24 | G48: 43-Dry Beans | H48: Pivot Irrigated Electric | I48: Panhandle | J48: 27 cwt | K48: 23 | M48: =A83 -> 80-Wheat | N48: =B83 -> Pivot Irrigated Electric | O48: =C83 -> Panhandle | P48: =D83 -> 90 bushel | Q48: =E83 -> 9
A49: 46-Grain Sorghum | B49: Dryland | C49: State | D49: 135 bushel | E49: 21
A50: 47-Grain Sorghum | B50: Dryland | C50: Southwest | D50: 120 bushel | E50: 24
A51: 48-Grain Sorghum | B51: Limited Irrigation | C51: State | D51: 170 bushel | E51: 13
A52: 49-Grass | B52: =INDIRECT(CONCATENATE("'",A52,"'!")&"K2") -> Pivot Irrigated Diesel | C52: State | D52: N/A | E52: N/A
A53: 50-Grass Hay | B53: Dryland | C53: State | D53: 2.2 ton | E53: N/A
A54: 51-Millet | B54: =INDIRECT(CONCATENATE("'",A54,"'!")&"K2") -> Dryland | C54: Panhandle | D54: 22 cwt | E54: 7
A55: 52-Millet | B55: Dryland | C55: Panhandle | D55: 22 cwt | E55: 7
A56: 53-Oats | B56: Dryland | C56: State | D56: 85 bushel | E56: 10
A57: 54-Pasture | B57: Pivot Irrigated Diesel | C57: State | D57: 11 AUM | E57: N/A
A58: 55-Peas | B58: Dryland | C58: Panhandle | D58: 35 bushel | E58: 11
A59: 56-Sorghum-Sudan | B59: Dryland | C59: State | D59: 5 ton | E59: N/A
A60: 57-Soybeans | B60: Dryland | C60: State | D60: 45 bushel | E60: 25
A61: 58-Soybeans | B61: Dryland | C61: State | D61: 50 bushel | E61: 25
A62: 59-Soybeans | B62: Dryland | C62: State | D62: 45 bushel | E62: 25
A63: 60-Soybeans | B63: Pivot Irrigated | C63: State | D63: 67 bushel | E63: 7
A64: 61-Soybeans | B64: Gravity Irrigated, fed by a well | C64: State | D64: 70 bushel | E64: 7
A65: 62-Soybeans | B65: Pivot Irrigated Diesel | C65: State | D65: 75 bushel | E65: 7
A66: 63-Soybeans | B66: Pivot Irrigated Diesel | C66: State | D66: 64 bushel | E66: 7
A67: 64-Soybeans | B67: Pivot Irrigated Diesel | C67: State | D67: 78 bushel | E67: 7
A68: 65-Soybeans | B68: Pivot Irrigated Diesel | C68: =IF(INDIRECT(CONCATENATE("'",$A68,"'!")&"C2")=0,"State",INDIRECT(CONCATENATE("'",$A68,"'!")&"C2")) -> State | D68: =IF(INDIRECT(CONCATENATE("'",$A68,"'!")&"H3")=0,"N/A",INDIRECT(CONCATENATE("'",$A68,"'!")&"H3")) -> 78 bushel | E68: 7
A69: 66-Soybeans | B69: Pivot Irrigated Diesel | C69: State | D69: 78 bushel | E69: 7
A70: 67-Sugarbeet | B70: Gravity Irrigated, fed by canal | C70: Panhandle | D70: 26 ton | E70: 35
A71: 68-Sugarbeet | B71: Gravity Irrigated, fed by canal | C71: Panhandle | D71: 26 ton | E71: 35
A72: 69-Sugarbeet | B72: Pivot Irrigated Diesel | C72: Panhandle | D72: 26 ton | E72: 35
A73: 70-Sugarbeet | B73: Pivot Irrigated Diesel | C73: Panhandle | D73: 26 ton | E73: 35
A74: 71-Sunflower | B74: Dryland | C74: Panhandle | D74: 13 cwt | E74: 14
A75: 72-Sunflower | B75: Dryland | C75: Panhandle | D75: 16 cwt | E75: 14
A76: 73-Sunflower | B76: Pivot Irrigated | C76: Panhandle | D76: 30 cwt | E76: 10
A77: 74-Wheat | B77: Dryland | C77: Southwest | D77: 55 bushel | E77: 10
A78: 75-Wheat | B78: Dryland | C78: Panhandle | D78: 70 bushel | E78: 11
A79: 76-Wheat | B79: Dryland | C79: Panhandle | D79: 65 bushel | E79: 10
A80: 77-Wheat | B80: Dryland | C80: Panhandle | D80: 60 bushel | E80: 9
A81: 78-Wheat | B81: Dryland | C81: Southwest | D81: 80 bushel | E81: 13
A82: 79-Wheat | B82: Pivot Irrigated Diesel | C82: Panhandle | D82: 105 bushel | E82: 10
A83: 80-Wheat | B83: Pivot Irrigated Electric | C83: Panhandle | D83: 90 bushel | E83: 9
A84: 81-Cover Crop | B84: Dryland | C84: State | D84: N/A | E84: N/A
A85: 82-Cover Crop Grazing | B85: Dryland | C85: State | D85: N/A | E85: N/A
A86: Master | C86: State | D86: N/A | E86: N/A
A87: Source: Crop insurance rates for various crops were provided by the Farm Credit Services of America -
A88: North Platte NE office based on 2019 federal crop insurance rates. Premiums will vary by location, yield,
A89: and coverage level. Eastern Nebraska budgets are figured using EP (Enterprise Units by Practice).
A90: The estimates in this chart do not include hail insurance premium costs.

Sheet Start (hidden)

Sheet 1-Alfalfa (hidden)
B2: Region | F2: Detail | J2: Water Source | K2: Dryland
B3: Tillage System | C3: Conventional Tillage | G3: Yield | J3: acre/inches
B4: Cropping System | C4: Fall Establishment | G4: =IFERROR(VALUE(LEFT($H$3,FIND(" ",$H$3))),"") ->  | H4: =IFERROR(RIGHT(H3,LEN(H3)-LEN(G4)-1),"") ->  | J4: Follows Legume? | K4: No
B5: Crop Insurance | C5: =MID(CELL("filename",C5),FIND("]",CELL("filename",C5))+1,255) -> 1-Alfalfa | E5: =VLOOKUP($C$5,CropInsurance,5,FALSE) ->  | F5: =VLOOKUP($C$5,CropInsurance,6,FALSE) -> 
A6: =REPLACE(CELL("filename",$A$1),1,FIND("]",CELL("filename",$A$1)),"") & IF($G$2="","", ", " & $G$2 ) & IF($C$2="","",", "&$C$2&"") & IF($C$3="","",", "&$C$3) & IF($C$4="","",", "&$C$4) & IF($H$3="","",", "&$H$3 & " Yield") & IF(K2="","",", " &K2) -> 1-Alfalfa, Conventional Tillage, Fall Establishment, Dryland
B7: ='General Variables'!$B$3 & " Budget " & REPLACE(CELL("filename",$A$1),1,FIND("]",CELL("filename",$A$1)),"") & IF($G$2="","", ", " & $G$2 ) & IF($C$2="","",", "&$C$2) & IF($C$3="","",", "&$C$3) & IF($C$4="","",", "&$C$4) & IF($H$3="","",", "&$H$3 & " Yield") -> 2020 Budget 1-Alfalfa, Conventional Tillage, Fall Establishment
B8: =IF(K2="","",K2)&IF(LEFT(K2,5)="Pivot",", 800 GPM 35 PSI","") & IF(K2="Gravity Irrigated, fed by a well",", 1,000 GPM 10 PSI","") & IF(K3="","",", "& K3&" "&J3) -> Dryland
B10: Field Operations | C10: Times or Qty | E10: ="Labor @ $" &TEXT('General Variables'!B4,"#.00")& " /Hr" -> Labor @ $25.00 /Hr | F10: ="Fuel @ $" & TEXT('General Variables'!B5,"#.00") & " and Lube" -> Fuel @ $2.27 and Lube | G10: Repairs | I10: Ownership | K10: Total | L10: Your Estimate
D11: Unit | G11: Power | H11: Imp. | I11: Power | J11: Imp.
A12: 1 | B12: Spread Fertilizer | C12: 1 | E12: =IF(B12=0,"",IF(C12>9999,"",ROUND('General Variables'!$B$4*VLOOKUP(B12,Operations!$A$2:$U$99,10,FALSE)/VLOOKUP(B12,Operations!$A$2:$U$99,9,FALSE)*C12,2))) -> 1.97 | F12: =IF(B12=0,0,IF(C12>9999,"",ROUND(IF(VLOOKUP(B12,Operations!$A$2:$U$99,12,FALSE)=0,VLOOKUP(B12,Operations!$A$2:$U$99,13,FALSE)*'General Variables'!$B$8,VLOOKUP(B12,Operations!$A$2:$U$99,12,FALSE)*'General Variables'!$B$7)/VLOOKUP(B12,Operations!$A$2:$U$99,9,FALSE)*C12,2))) -> 0.79 | G12: =IF(B12=0,0,IF(C12>9999,"",ROUND(VLOOKUP(VLOOKUP(B12,Operations!$A$2:$U$99,11,FALSE),PowerUnits[],10,FALSE)/VLOOKUP(B12,Operations!$A$2:$U$99,9,FALSE)*C12,2))) -> 0.75 | H12: =IF(B12=0,"",IF(C12>9999,"",ROUND(VLOOKUP($B12,Operations!$A$2:$U$99,15,FALSE)*C12,2))) -> 0 | I12: =IF(B12=0,0,IF(C12>9999,"",ROUND(VLOOKUP(VLOOKUP(B12,Operations!$A$2:$U$99,11,FALSE),PowerUnits[],16,FALSE)/VLOOKUP(B12,Operations!$A$2:$U$99,9,FALSE)*C12,2))) -> 2.33 | J12: =IF(B12=0,"",IF(C12>9999,"",ROUND(VLOOKUP($B12,Operations!$A$2:$U$99,21,FALSE)*$C12,2))) -> 0 | K12: =IF(C12>9999,"",SUM(E12:J12)) -> 5.84
A13: 2 | B13: Disk | C13: 1 | E13: =IF(B13=0,"",IF(C13>9999,"",ROUND('General Variables'!$B$4*VLOOKUP(B13,Operations!$A$2:$U$99,10,FALSE)/VLOOKUP(B13,Operations!$A$2:$U$99,9,FALSE)*C13,2))) -> 2.52 | F13: =IF(B13=0,0,IF(C13>9999,"",ROUND(IF(VLOOKUP(B13,Operations!$A$2:$U$99,12,FALSE)=0,VLOOKUP(B13,Operations!$A$2:$U$99,13,FALSE)*'General Variables'!$B$8,VLOOKUP(B13,Operations!$A$2:$U$99,12,FALSE)*'General Variables'!$B$7)/VLOOKUP(B13,Operations!$A$2:$U$99,9,FALSE)*C13,2))) -> 1.98 | G13: =IF(B13=0,0,IF(C13>9999,"",ROUND(VLOOKUP(VLOOKUP(B13,Operations!$A$2:$U$99,11,FALSE),PowerUnits[],10,FALSE)/VLOOKUP(B13,Operations!$A$2:$U$99,9,FALSE)*C13,2))) -> 0.6 | H13: =IF(B13=0,"",IF(C13>9999,"",ROUND(VLOOKUP($B13,Operations!$A$2:$U$99,15,FALSE)*C13,2))) -> 1.36 | I13: =IF(B13=0,0,IF(C13>9999,"",ROUND(VLOOKUP(VLOOKUP(B13,Operations!$A$2:$U$99,11,FALSE),PowerUnits[],16,FALSE)/VLOOKUP(B13,Operations!$A$2:$U$99,9,FALSE)*C13,2))) -> 5.4 | J13: =IF(B13=0,"",IF(C13>9999,"",ROUND(VLOOKUP($B13,Operations!$A$2:$U$99,21,FALSE)*$C13,2))) -> 1.22 | K13: =IF(C13>9999,"",SUM(E13:J13)) -> 13.08
A14: 3 | B14: Harrow | C14: 1 | E14: =IF(B14=0,"",IF(C14>9999,"",ROUND('General Variables'!$B$4*VLOOKUP(B14,Operations!$A$2:$U$99,10,FALSE)/VLOOKUP(B14,Operations!$A$2:$U$99,9,FALSE)*C14,2))) -> 1.48 | F14: =IF(B14=0,0,IF(C14>9999,"",ROUND(IF(VLOOKUP(B14,Operations!$A$2:$U$99,12,FALSE)=0,VLOOKUP(B14,Operations!$A$2:$U$99,13,FALSE)*'General Variables'!$B$8,VLOOKUP(B14,Operations!$A$2:$U$99,12,FALSE)*'General Variables'!$B$7)/VLOOKUP(B14,Operations!$A$2:$U$99,9,FALSE)*C14,2))) -> 0.29 | G14: =IF(B14=0,0,IF(C14>9999,"",ROUND(VLOOKUP(VLOOKUP(B14,Operations!$A$2:$U$99,11,FALSE),PowerUnits[],10,FALSE)/VLOOKUP(B14,Operations!$A$2:$U$99,9,FALSE)*C14,2))) -> 0.51 | H14: =IF(B14=0,"",IF(C14>9999,"",ROUND(VLOOKUP($B14,Operations!$A$2:$U$99,15,FALSE)*C14,2))) -> 0 | I14: =IF(B14=0,0,IF(C14>9999,"",ROUND(VLOOKUP(VLOOKUP(B14,Operations!$A$2:$U$99,11,FALSE),PowerUnits[],16,FALSE)/VLOOKUP(B14,Operations!$A$2:$U$99,9,FALSE)*C14,2))) -> 1.59 | J14: =IF(B14=0,"",IF(C14>9999,"",ROUND(VLOOKUP($B14,Operations!$A$2:$U$99,21,FALSE)*$C14,2))) -> 0 | K14: 3.87
A15: 4 | B15: Harrow | C15: 1 | E15: =IF(B15=0,"",IF(C15>9999,"",ROUND('General Variables'!$B$4*VLOOKUP(B15,Operations!$A$2:$U$99,10,FALSE)/VLOOKUP(B15,Operations!$A$2:$U$99,9,FALSE)*C15,2))) -> 1.48 | F15: =IF(B15=0,0,IF(C15>9999,"",ROUND(IF(VLOOKUP(B15,Operations!$A$2:$U$99,12,FALSE)=0,VLOOKUP(B15,Operations!$A$2:$U$99,13,FALSE)*'General Variables'!$B$8,VLOOKUP(B15,Operations!$A$2:$U$99,12,FALSE)*'General Variables'!$B$7)/VLOOKUP(B15,Operations!$A$2:$U$99,9,FALSE)*C15,2))) -> 0.29 | G15: =IF(B15=0,0,IF(C15>9999,"",ROUND(VLOOKUP(VLOOKUP(B15,Operations!$A$2:$U$99,11,FALSE),PowerUnits[],10,FALSE)/VLOOKUP(B15,Operations!$A$2:$U$99,9,FALSE)*C15,2))) -> 0.51 | H15: =IF(B15=0,"",IF(C15>9999,"",ROUND(VLOOKUP($B15,Operations!$A$2:$U$99,15,FALSE)*C15,2))) -> 0 | I15: =IF(B15=0,0,IF(C15>9999,"",ROUND(VLOOKUP(VLOOKUP(B15,Operations!$A$2:$U$99,11,FALSE),PowerUnits[],16,FALSE)/VLOOKUP(B15,Operations!$A$2:$U$99,9,FALSE)*C15,2))) -> 1.59 | J15: =IF(B15=0,"",IF(C15>9999,"",ROUND(VLOOKUP($B15,Operations!$A$2:$U$99,21,FALSE)*$C15,2))) -> 0 | K15: 3.87
A16: 5 | B16: Drill | C16: 1 | E16: =IF(B16=0,"",IF(C16>9999,"",ROUND('General Variables'!$B$4*VLOOKUP(B16,Operations!$A$2:$U$99,10,FALSE)/VLOOKUP(B16,Operations!$A$2:$U$99,9,FALSE)*C16,2))) -> 2.2 | F16: =IF(B16=0,0,IF(C16>9999,"",ROUND(IF(VLOOKUP(B16,Operations!$A$2:$U$99,12,FALSE)=0,VLOOKUP(B16,Operations!$A$2:$U$99,13,FALSE)*'General Variables'!$B$8,VLOOKUP(B16,Operations!$A$2:$U$99,12,FALSE)*'General Variables'!$B$7)/VLOOKUP(B16,Operations!$A$2:$U$99,9,FALSE)*C16,2))) -> 1.04 | G16: =IF(B16=0,0,IF(C16>9999,"",ROUND(VLOOKUP(VLOOKUP(B16,Operations!$A$2:$U$99,11,FALSE),PowerUnits[],10,FALSE)/VLOOKUP(B16,Operations!$A$2:$U$99,9,FALSE)*C16,2))) -> 0.76 | H16: =IF(B16=0,"",IF(C16>9999,"",ROUND(VLOOKUP($B16,Operations!$A$2:$U$99,15,FALSE)*C16,2))) -> 3.29 | I16: =IF(B16=0,0,IF(C16>9999,"",ROUND(VLOOKUP(VLOOKUP(B16,Operations!$A$2:$U$99,11,FALSE),PowerUnits[],16,FALSE)/VLOOKUP(B16,Operations!$A$2:$U$99,9,FALSE)*C16,2))) -> 2.37 | J16: =IF(B16=0,"",IF(C16>9999,"",ROUND(VLOOKUP($B16,Operations!$A$2:$U$99,21,FALSE)*$C16,2))) -> 2.63 | K16: 12.29
A17: 6 | B17: Roll | C17: 1 | E17: =IF(B17=0,"",IF(C17>9999,"",ROUND('General Variables'!$B$4*VLOOKUP(B17,Operations!$A$2:$U$99,10,FALSE)/VLOOKUP(B17,Operations!$A$2:$U$99,9,FALSE)*C17,2))) -> 2.78 | F17: =IF(B17=0,0,IF(C17>9999,"",ROUND(IF(VLOOKUP(B17,Operations!$A$2:$U$99,12,FALSE)=0,VLOOKUP(B17,Operations!$A$2:$U$99,13,FALSE)*'General Variables'!$B$8,VLOOKUP(B17,Operations!$A$2:$U$99,12,FALSE)*'General Variables'!$B$7)/VLOOKUP(B17,Operations!$A$2:$U$99,9,FALSE)*C17,2))) -> 1.58 | G17: =IF(B17=0,0,IF(C17>9999,"",ROUND(VLOOKUP(VLOOKUP(B17,Operations!$A$2:$U$99,11,FALSE),PowerUnits[],10,FALSE)/VLOOKUP(B17,Operations!$A$2:$U$99,9,FALSE)*C17,2))) -> 1.05 | H17: =IF(B17=0,"",IF(C17>9999,"",ROUND(VLOOKUP($B17,Operations!$A$2:$U$99,15,FALSE)*C17,2))) -> 0 | I17: =IF(B17=0,0,IF(C17>9999,"",ROUND(VLOOKUP(VLOOKUP(B17,Operations!$A$2:$U$99,11,FALSE),PowerUnits[],16,FALSE)/VLOOKUP(B17,Operations!$A$2:$U$99,9,FALSE)*C17,2))) -> 3.29 | J17: =IF(B17=0,"",IF(C17>9999,"",ROUND(VLOOKUP($B17,Operations!$A$2:$U$99,21,FALSE)*$C17,2))) -> 0 | K17: =IF(C17>9999,"",SUM(E17:J17)) -> 8.7
A18: 7 | B18: Spray Herbicide | C18: 1 | E18: =IF(B18=0,"",IF(C18>9999,"",ROUND('General Variables'!$B$4*VLOOKUP(B18,Operations!$A$2:$U$99,10,FALSE)/VLOOKUP(B18,Operations!$A$2:$U$99,9,FALSE)*C18,2))) -> 0.95 | F18: =IF(B18=0,0,IF(C18>9999,"",ROUND(IF(VLOOKUP(B18,Operations!$A$2:$U$99,12,FALSE)=0,VLOOKUP(B18,Operations!$A$2:$U$99,13,FALSE)*'General Variables'!$B$8,VLOOKUP(B18,Operations!$A$2:$U$99,12,FALSE)*'General Variables'!$B$7)/VLOOKUP(B18,Operations!$A$2:$U$99,9,FALSE)*C18,2))) -> 0.21 | G18: =IF(B18=0,0,IF(C18>9999,"",ROUND(VLOOKUP(VLOOKUP(B18,Operations!$A$2:$U$99,11,FALSE),PowerUnits[],10,FALSE)/VLOOKUP(B18,Operations!$A$2:$U$99,9,FALSE)*C18,2))) -> 0.29 | H18: =IF(B18=0,"",IF(C18>9999,"",ROUND(VLOOKUP($B18,Operations!$A$2:$U$99,15,FALSE)*C18,2))) -> 0.6 | I18: =IF(B18=0,0,IF(C18>9999,"",ROUND(VLOOKUP(VLOOKUP(B18,Operations!$A$2:$U$99,11,FALSE),PowerUnits[],16,FALSE)/VLOOKUP(B18,Operations!$A$2:$U$99,9,FALSE)*C18,2))) -> 0.9 | J18: =IF(B18=0,"",IF(C18>9999,"",ROUND(VLOOKUP($B18,Operations!$A$2:$U$99,21,FALSE)*$C18,2))) -> 1.08 | K18: =IF(C18>9999,"",SUM(E18:J18)) -> 4.03
A19: 8 | B19: Spray Insecticide | C19: 0.2 | E19: =IF(B19=0,"",IF(C19>9999,"",ROUND('General Variables'!$B$4*VLOOKUP(B19,Operations!$A$2:$U$99,10,FALSE)/VLOOKUP(B19,Operations!$A$2:$U$99,9,FALSE)*C19,2))) -> 0.19 | F19: =IF(B19=0,0,IF(C19>9999,"",ROUND(IF(VLOOKUP(B19,Operations!$A$2:$U$99,12,FALSE)=0,VLOOKUP(B19,Operations!$A$2:$U$99,13,FALSE)*'General Variables'!$B$8,VLOOKUP(B19,Operations!$A$2:$U$99,12,FALSE)*'General Variables'!$B$7)/VLOOKUP(B19,Operations!$A$2:$U$99,9,FALSE)*C19,2))) -> 0.04 | G19: =IF(B19=0,0,IF(C19>9999,"",ROUND(VLOOKUP(VLOOKUP(B19,Operations!$A$2:$U$99,11,FALSE),PowerUnits[],10,FALSE)/VLOOKUP(B19,Operations!$A$2:$U$99,9,FALSE)*C19,2))) -> 0.06 | H19: =IF(B19=0,"",IF(C19>9999,"",ROUND(VLOOKUP($B19,Operations!$A$2:$U$99,15,FALSE)*C19,2))) -> 0.12 | I19: =IF(B19=0,0,IF(C19>9999,"",ROUND(VLOOKUP(VLOOKUP(B19,Operations!$A$2:$U$99,11,FALSE),PowerUnits[],16,FALSE)/VLOOKUP(B19,Operations!$A$2:$U$99,9,FALSE)*C19,2))) -> 0.18 | J19: =IF(B19=0,"",IF(C19>9999,"",ROUND(VLOOKUP($B19,Operations!$A$2:$U$99,21,FALSE)*$C19,2))) -> 0.22 | K19: 0.81
A20: 9 | E20: =IF(B20=0,"",IF(C20>9999,"",ROUND('General Variables'!$B$4*VLOOKUP(B20,Operations!$A$2:$U$99,10,FALSE)/VLOOKUP(B20,Operations!$A$2:$U$99,9,FALSE)*C20,2))) ->  | F20: =IF(B20=0,0,IF(C20>9999,"",ROUND(IF(VLOOKUP(B20,Operations!$A$2:$U$99,12,FALSE)=0,VLOOKUP(B20,Operations!$A$2:$U$99,13,FALSE)*'General Variables'!$B$8,VLOOKUP(B20,Operations!$A$2:$U$99,12,FALSE)*'General Variables'!$B$7)/VLOOKUP(B20,Operations!$A$2:$U$99,9,FALSE)*C20,2))) -> 0 | G20: =IF(B20=0,0,IF(C20>9999,"",ROUND(VLOOKUP(VLOOKUP(B20,Operations!$A$2:$U$99,11,FALSE),PowerUnits[],10,FALSE)/VLOOKUP(B20,Operations!$A$2:$U$99,9,FALSE)*C20,2))) -> 0 | H20: =IF(B20=0,"",IF(C20>9999,"",ROUND(VLOOKUP($B20,Operations!$A$2:$U$99,15,FALSE)*C20,2))) ->  | I20: =IF(B20=0,0,IF(C20>9999,"",ROUND(VLOOKUP(VLOOKUP(B20,Operations!$A$2:$U$99,11,FALSE),PowerUnits[],16,FALSE)/VLOOKUP(B20,Operations!$A$2:$U$99,9,FALSE)*C20,2))) -> 0 | J20: =IF(B20=0,"",IF(C20>9999,"",ROUND(VLOOKUP($B20,Operations!$A$2:$U$99,21,FALSE)*$C20,2))) ->  | K20: 0
A21: 10 | E21: =IF(B21=0,"",IF(C21>9999,"",ROUND('General Variables'!$B$4*VLOOKUP(B21,Operations!$A$2:$U$99,10,FALSE)/VLOOKUP(B21,Operations!$A$2:$U$99,9,FALSE)*C21,2))) ->  | F21: =IF(B21=0,0,IF(C21>9999,"",ROUND(IF(VLOOKUP(B21,Operations!$A$2:$U$99,12,FALSE)=0,VLOOKUP(B21,Operations!$A$2:$U$99,13,FALSE)*'General Variables'!$B$8,VLOOKUP(B21,Operations!$A$2:$U$99,12,FALSE)*'General Variables'!$B$7)/VLOOKUP(B21,Operations!$A$2:$U$99,9,FALSE)*C21,2))) -> 0 | G21: =IF(B21=0,0,IF(C21>9999,"",ROUND(VLOOKUP(VLOOKUP(B21,Operations!$A$2:$U$99,11,FALSE),PowerUnits[],10,FALSE)/VLOOKUP(B21,Operations!$A$2:$U$99,9,FALSE)*C21,2))) -> 0 | H21: =IF(B21=0,"",IF(C21>9999,"",ROUND(VLOOKUP($B21,Operations!$A$2:$U$99,15,FALSE)*C21,2))) ->  | I21: =IF(B21=0,0,IF(C21>9999,"",ROUND(VLOOKUP(VLOOKUP(B21,Operations!$A$2:$U$99,11,FALSE),PowerUnits[],16,FALSE)/VLOOKUP(B21,Operations!$A$2:$U$99,9,FALSE)*C21,2))) -> 0 | J21: =IF(B21=0,"",IF(C21>9999,"",ROUND(VLOOKUP($B21,Operations!$A$2:$U$99,21,FALSE)*$C21,2))) ->  | K21: 0
A22: 11 | E22: =IF(B22=0,"",IF(C22>9999,"",ROUND('General Variables'!$B$4*VLOOKUP(B22,Operations!$A$2:$U$99,10,FALSE)/VLOOKUP(B22,Operations!$A$2:$U$99,9,FALSE)*C22,2))) ->  | F22: =IF(B22=0,0,IF(C22>9999,"",ROUND(IF(VLOOKUP(B22,Operations!$A$2:$U$99,12,FALSE)=0,VLOOKUP(B22,Operations!$A$2:$U$99,13,FALSE)*'General Variables'!$B$8,VLOOKUP(B22,Operations!$A$2:$U$99,12,FALSE)*'General Variables'!$B$7)/VLOOKUP(B22,Operations!$A$2:$U$99,9,FALSE)*C22,2))) -> 0 | G22: =IF(B22=0,0,IF(C22>9999,"",ROUND(VLOOKUP(VLOOKUP(B22,Operations!$A$2:$U$99,11,FALSE),PowerUnits[],10,FALSE)/VLOOKUP(B22,Operations!$A$2:$U$99,9,FALSE)*C22,2))) -> 0 | H22: =IF(B22=0,"",IF(C22>9999,"",ROUND(VLOOKUP($B22,Operations!$A$2:$U$99,15,FALSE)*C22,2))) ->  | I22: =IF(B22=0,0,IF(C22>9999,"",ROUND(VLOOKUP(VLOOKUP(B22,Operations!$A$2:$U$99,11,FALSE),PowerUnits[],16,FALSE)/VLOOKUP(B22,Operations!$A$2:$U$99,9,FALSE)*C22,2))) -> 0 | J22: =IF(B22=0,"",IF(C22>9999,"",ROUND(VLOOKUP($B22,Operations!$A$2:$U$99,21,FALSE)*$C22,2))) ->  | K22: 0
A23: 12 | E23: =IF(B23=0,"",IF(C23>9999,"",ROUND('General Variables'!$B$4*VLOOKUP(B23,Operations!$A$2:$U$99,10,FALSE)/VLOOKUP(B23,Operations!$A$2:$U$99,9,FALSE)*C23,2))) ->  | F23: =IF(B23=0,0,IF(C23>9999,"",ROUND(IF(VLOOKUP(B23,Operations!$A$2:$U$99,12,FALSE)=0,VLOOKUP(B23,Operations!$A$2:$U$99,13,FALSE)*'General Variables'!$B$8,VLOOKUP(B23,Operations!$A$2:$U$99,12,FALSE)*'General Variables'!$B$7)/VLOOKUP(B23,Operations!$A$2:$U$99,9,FALSE)*C23,2))) -> 0 | G23: =IF(B23=0,0,IF(C23>9999,"",ROUND(VLOOKUP(VLOOKUP(B23,Operations!$A$2:$U$99,11,FALSE),PowerUnits[],10,FALSE)/VLOOKUP(B23,Operations!$A$2:$U$99,9,FALSE)*C23,2))) -> 0 | H23: =IF(B23=0,"",IF(C23>9999,"",ROUND(VLOOKUP($B23,Operations!$A$2:$U$99,15,FALSE)*C23,2))) ->  | I23: =IF(B23=0,0,IF(C23>9999,"",ROUND(VLOOKUP(VLOOKUP(B23,Operations!$A$2:$U$99,11,FALSE),PowerUnits[],16,FALSE)/VLOOKUP(B23,Operations!$A$2:$U$99,9,FALSE)*C23,2))) -> 0 | J23: =IF(B23=0,"",IF(C23>9999,"",ROUND(VLOOKUP($B23,Operations!$A$2:$U$99,21,FALSE)*$C23,2))) ->  | K23: 0
A24: 13 | E24: =IF(B24=0,"",IF(C24>9999,"",ROUND('General Variables'!$B$4*VLOOKUP(B24,Operations!$A$2:$U$99,10,FALSE)/VLOOKUP(B24,Operations!$A$2:$U$99,9,FALSE)*C24,2))) ->  | F24: =IF(B24=0,0,IF(C24>9999,"",ROUND(IF(VLOOKUP(B24,Operations!$A$2:$U$99,12,FALSE)=0,VLOOKUP(B24,Operations!$A$2:$U$99,13,FALSE)*'General Variables'!$B$8,VLOOKUP(B24,Operations!$A$2:$U$99,12,FALSE)*'General Variables'!$B$7)/VLOOKUP(B24,Operations!$A$2:$U$99,9,FALSE)*C24,2))) -> 0 | G24: =IF(B24=0,0,IF(C24>9999,"",ROUND(VLOOKUP(VLOOKUP(B24,Operations!$A$2:$U$99,11,FALSE),PowerUnits[],10,FALSE)/VLOOKUP(B24,Operations!$A$2:$U$99,9,FALSE)*C24,2))) -> 0 | H24: =IF(B24=0,"",IF(C24>9999,"",ROUND(VLOOKUP($B24,Operations!$A$2:$U$99,15,FALSE)*C24,2))) ->  | I24: =IF(B24=0,0,IF(C24>9999,"",ROUND(VLOOKUP(VLOOKUP(B24,Operations!$A$2:$U$99,11,FALSE),PowerUnits[],16,FALSE)/VLOOKUP(B24,Operations!$A$2:$U$99,9,FALSE)*C24,2))) -> 0 | J24: =IF(B24=0,"",IF(C24>9999,"",ROUND(VLOOKUP($B24,Operations!$A$2:$U$99,21,FALSE)*$C24,2))) ->  | K24: 0
A25: 14 | E25: =IF(B25=0,"",IF(C25>9999,"",ROUND('General Variables'!$B$4*VLOOKUP(B25,Operations!$A$2:$U$99,10,FALSE)/VLOOKUP(B25,Operations!$A$2:$U$99,9,FALSE)*C25,2))) ->  | F25: =IF(B25=0,0,IF(C25>9999,"",ROUND(IF(VLOOKUP(B25,Operations!$A$2:$U$99,12,FALSE)=0,VLOOKUP(B25,Operations!$A$2:$U$99,13,FALSE)*'General Variables'!$B$8,VLOOKUP(B25,Operations!$A$2:$U$99,12,FALSE)*'General Variables'!$B$7)/VLOOKUP(B25,Operations!$A$2:$U$99,9,FALSE)*C25,2))) -> 0 | G25: =IF(B25=0,0,IF(C25>9999,"",ROUND(VLOOKUP(VLOOKUP(B25,Operations!$A$2:$U$99,11,FALSE),PowerUnits[],10,FALSE)/VLOOKUP(B25,Operations!$A$2:$U$99,9,FALSE)*C25,2))) -> 0 | H25: =IF(B25=0,"",IF(C25>9999,"",ROUND(VLOOKUP($B25,Operations!$A$2:$U$99,15,FALSE)*C25,2))) ->  | I25: =IF(B25=0,0,IF(C25>9999,"",ROUND(VLOOKUP(VLOOKUP(B25,Operations!$A$2:$U$99,11,FALSE),PowerUnits[],16,FALSE)/VLOOKUP(B25,Operations!$A$2:$U$99,9,FALSE)*C25,2))) -> 0 | J25: =IF(B25=0,"",IF(C25>9999,"",ROUND(VLOOKUP($B25,Operations!$A$2:$U$99,21,FALSE)*$C25,2))) ->  | K25: 0
A26: 15 | E26: =IF(B26=0,"",IF(C26>9999,"",ROUND('General Variables'!$B$4*VLOOKUP(B26,Operations!$A$2:$U$99,10,FALSE)/VLOOKUP(B26,Operations!$A$2:$U$99,9,FALSE)*C26,2))) ->  | F26: =IF(B26=0,0,IF(C26>9999,"",ROUND(IF(VLOOKUP(B26,Operations!$A$2:$U$99,12,FALSE)=0,VLOOKUP(B26,Operations!$A$2:$U$99,13,FALSE)*'General Variables'!$B$8,VLOOKUP(B26,Operations!$A$2:$U$99,12,FALSE)*'General Variables'!$B$7)/VLOOKUP(B26,Operations!$A$2:$U$99,9,FALSE)*C26,2))) -> 0 | G26: =IF(B26=0,0,IF(C26>9999,"",ROUND(VLOOKUP(VLOOKUP(B26,Operations!$A$2:$U$99,11,FALSE),PowerUnits[],10,FALSE)/VLOOKUP(B26,Operations!$A$2:$U$99,9,FALSE)*C26,2))) -> 0 | H26: =IF(B26=0,"",IF(C26>9999,"",ROUND(VLOOKUP($B26,Operations!$A$2:$U$99,15,FALSE)*C26,2))) ->  | I26: =IF(B26=0,0,IF(C26>9999,"",ROUND(VLOOKUP(VLOOKUP(B26,Operations!$A$2:$U$99,11,FALSE),PowerUnits[],16,FALSE)/VLOOKUP(B26,Operations!$A$2:$U$99,9,FALSE)*C26,2))) -> 0 | J26: =IF(B26=0,"",IF(C26>9999,"",ROUND(VLOOKUP($B26,Operations!$A$2:$U$99,21,FALSE)*$C26,2))) ->  | K26: 0
A27: 16 | E27: =IF(B27=0,"",IF(C27>9999,"",ROUND('General Variables'!$B$4*VLOOKUP(B27,Operations!$A$2:$U$99,10,FALSE)/VLOOKUP(B27,Operations!$A$2:$U$99,9,FALSE)*C27,2))) ->  | F27: =IF(B27=0,0,IF(C27>9999,"",ROUND(IF(VLOOKUP(B27,Operations!$A$2:$U$99,12,FALSE)=0,VLOOKUP(B27,Operations!$A$2:$U$99,13,FALSE)*'General Variables'!$B$8,VLOOKUP(B27,Operations!$A$2:$U$99,12,FALSE)*'General Variables'!$B$7)/VLOOKUP(B27,Operations!$A$2:$U$99,9,FALSE)*C27,2))) -> 0 | G27: =IF(B27=0,0,IF(C27>9999,"",ROUND(VLOOKUP(VLOOKUP(B27,Operations!$A$2:$U$99,11,FALSE),PowerUnits[],10,FALSE)/VLOOKUP(B27,Operations!$A$2:$U$99,9,FALSE)*C27,2))) -> 0 | H27: =IF(B27=0,"",IF(C27>9999,"",ROUND(VLOOKUP($B27,Operations!$A$2:$U$99,15,FALSE)*C27,2))) ->  | I27: =IF(B27=0,0,IF(C27>9999,"",ROUND(VLOOKUP(VLOOKUP(B27,Operations!$A$2:$U$99,11,FALSE),PowerUnits[],16,FALSE)/VLOOKUP(B27,Operations!$A$2:$U$99,9,FALSE)*C27,2))) -> 0 | J27: =IF(B27=0,"",IF(C27>9999,"",ROUND(VLOOKUP($B27,Operations!$A$2:$U$99,21,FALSE)*$C27,2))) ->  | K27: 0
A28: 17 | E28: =IF(B28=0,"",IF(C28>9999,"",ROUND('General Variables'!$B$4*VLOOKUP(B28,Operations!$A$2:$U$99,10,FALSE)/VLOOKUP(B28,Operations!$A$2:$U$99,9,FALSE)*C28,2))) ->  | F28: =IF(B28=0,0,IF(C28>9999,"",ROUND(IF(VLOOKUP(B28,Operations!$A$2:$U$99,12,FALSE)=0,VLOOKUP(B28,Operations!$A$2:$U$99,13,FALSE)*'General Variables'!$B$8,VLOOKUP(B28,Operations!$A$2:$U$99,12,FALSE)*'General Variables'!$B$7)/VLOOKUP(B28,Operations!$A$2:$U$99,9,FALSE)*C28,2))) -> 0 | G28: =IF(B28=0,0,IF(C28>9999,"",ROUND(VLOOKUP(VLOOKUP(B28,Operations!$A$2:$U$99,11,FALSE),PowerUnits[],10,FALSE)/VLOOKUP(B28,Operations!$A$2:$U$99,9,FALSE)*C28,2))) -> 0 | H28: =IF(B28=0,"",IF(C28>9999,"",ROUND(VLOOKUP($B28,Operations!$A$2:$U$99,15,FALSE)*C28,2))) ->  | I28: =IF(B28=0,0,IF(C28>9999,"",ROUND(VLOOKUP(VLOOKUP(B28,Operations!$A$2:$U$99,11,FALSE),PowerUnits[],16,FALSE)/VLOOKUP(B28,Operations!$A$2:$U$99,9,FALSE)*C28,2))) -> 0 | J28: =IF(B28=0,"",IF(C28>9999,"",ROUND(VLOOKUP($B28,Operations!$A$2:$U$99,21,FALSE)*$C28,2))) ->  | K28: 0
A29: 18 | E29: =IF(B29=0,"",IF(C29>9999,"",ROUND('General Variables'!$B$4*VLOOKUP(B29,Operations!$A$2:$U$99,10,FALSE)/VLOOKUP(B29,Operations!$A$2:$U$99,9,FALSE)*C29,2))) ->  | F29: =IF(B29=0,0,IF(C29>9999,"",ROUND(IF(VLOOKUP(B29,Operations!$A$2:$U$99,12,FALSE)=0,VLOOKUP(B29,Operations!$A$2:$U$99,13,FALSE)*'General Variables'!$B$8,VLOOKUP(B29,Operations!$A$2:$U$99,12,FALSE)*'General Variables'!$B$7)/VLOOKUP(B29,Operations!$A$2:$U$99,9,FALSE)*C29,2))) -> 0 | G29: =IF(B29=0,0,IF(C29>9999,"",ROUND(VLOOKUP(VLOOKUP(B29,Operations!$A$2:$U$99,11,FALSE),PowerUnits[],10,FALSE)/VLOOKUP(B29,Operations!$A$2:$U$99,9,FALSE)*C29,2))) -> 0 | H29: =IF(B29=0,"",IF(C29>9999,"",ROUND(VLOOKUP($B29,Operations!$A$2:$U$99,15,FALSE)*C29,2))) ->  | I29: =IF(B29=0,0,IF(C29>9999,"",ROUND(VLOOKUP(VLOOKUP(B29,Operations!$A$2:$U$99,11,FALSE),PowerUnits[],16,FALSE)/VLOOKUP(B29,Operations!$A$2:$U$99,9,FALSE)*C29,2))) -> 0 | J29: =IF(B29=0,"",IF(C29>9999,"",ROUND(VLOOKUP($B29,Operations!$A$2:$U$99,21,FALSE)*$C29,2))) ->  | K29: 0
A30: 19 | E30: =IF(B30=0,"",IF(C30>9999,"",ROUND('General Variables'!$B$4*VLOOKUP(B30,Operations!$A$2:$U$99,10,FALSE)/VLOOKUP(B30,Operations!$A$2:$U$99,9,FALSE)*C30,2))) ->  | F30: =IF(B30=0,0,IF(C30>9999,"",ROUND(IF(VLOOKUP(B30,Operations!$A$2:$U$99,12,FALSE)=0,VLOOKUP(B30,Operations!$A$2:$U$99,13,FALSE)*'General Variables'!$B$8,VLOOKUP(B30,Operations!$A$2:$U$99,12,FALSE)*'General Variables'!$B$7)/VLOOKUP(B30,Operations!$A$2:$U$99,9,FALSE)*C30,2))) -> 0 | G30: =IF(B30=0,0,IF(C30>9999,"",ROUND(VLOOKUP(VLOOKUP(B30,Operations!$A$2:$U$99,11,FALSE),PowerUnits[],10,FALSE)/VLOOKUP(B30,Operations!$A$2:$U$99,9,FALSE)*C30,2))) -> 0 | H30: =IF(B30=0,"",IF(C30>9999,"",ROUND(VLOOKUP($B30,Operations!$A$2:$U$99,15,FALSE)*C30,2))) ->  | I30: =IF(B30=0,0,IF(C30>9999,"",ROUND(VLOOKUP(VLOOKUP(B30,Operations!$A$2:$U$99,11,FALSE),PowerUnits[],16,FALSE)/VLOOKUP(B30,Operations!$A$2:$U$99,9,FALSE)*C30,2))) -> 0 | J30: =IF(B30=0,"",IF(C30>9999,"",ROUND(VLOOKUP($B30,Operations!$A$2:$U$99,21,FALSE)*$C30,2))) ->  | K30: 0
A31: 20 | E31: =IF(B31=0,"",IF(C31>9999,"",ROUND('General Variables'!$B$4*VLOOKUP(B31,Operations!$A$2:$U$99,10,FALSE)/VLOOKUP(B31,Operations!$A$2:$U$99,9,FALSE)*C31,2))) ->  | F31: =IF(B31=0,0,IF(C31>9999,"",ROUND(IF(VLOOKUP(B31,Operations!$A$2:$U$99,12,FALSE)=0,VLOOKUP(B31,Operations!$A$2:$U$99,13,FALSE)*'General Variables'!$B$8,VLOOKUP(B31,Operations!$A$2:$U$99,12,FALSE)*'General Variables'!$B$7)/VLOOKUP(B31,Operations!$A$2:$U$99,9,FALSE)*C31,2))) -> 0 | G31: =IF(B31=0,0,IF(C31>9999,"",ROUND(VLOOKUP(VLOOKUP(B31,Operations!$A$2:$U$99,11,FALSE),PowerUnits[],10,FALSE)/VLOOKUP(B31,Operations!$A$2:$U$99,9,FALSE)*C31,2))) -> 0 | H31: =IF(B31=0,"",IF(C31>9999,"",ROUND(VLOOKUP($B31,Operations!$A$2:$U$99,15,FALSE)*C31,2))) ->  | I31: =IF(B31=0,0,IF(C31>9999,"",ROUND(VLOOKUP(VLOOKUP(B31,Operations!$A$2:$U$99,11,FALSE),PowerUnits[],16,FALSE)/VLOOKUP(B31,Operations!$A$2:$U$99,9,FALSE)*C31,2))) -> 0 | J31: =IF(B31=0,"",IF(C31>9999,"",ROUND(VLOOKUP($B31,Operations!$A$2:$U$99,21,FALSE)*$C31,2))) ->  | K31: 0
C33: Total for Field Operations | E33: =SUM(E12:E31) -> 13.57 | F33: =SUM(F12:F31) -> 6.22 | G33: 4.53 | H33: 5.37 | I33: 17.65 | J33: 5.15 | K33: 52.49
F35: Operation Index | G35: Percent Acres Applied | H35: Application | J35: Applied Price | L35: Your Estimate
B36: Materials & Services | H36: Rate | I36: Unit | K36: Total
B37: 11-52-0 | C37: =IF(B37=0,"",VLOOKUP($B37,Table2[],2,FALSE)) -> Fertilizer | F37: 1 | G37: 1 | H37: 100 | I37: =IF($B37=0,"",VLOOKUP($B37,Table2[],5,FALSE)) -> pound | J37: =IF($B37=0,"",VLOOKUP($B37,Table2[],7,FALSE)) -> 0.23 | K37: =IF(B37=0,0,ROUND(G37*H37*J37,2)) -> 23
B38: Alfalfa w/Inoculant | C38: =IF(B38=0,"",VLOOKUP($B38,Table2[],2,FALSE)) -> Seed | F38: 5 | G38: 1 | H38: 12 | I38: =IF($B38=0,"",VLOOKUP($B38,Table2[],5,FALSE)) -> pound | J38: =IF($B38=0,"",VLOOKUP($B38,Table2[],7,FALSE)) -> 6 | K38: =IF(B38=0,0,ROUND(G38*H38*J38,2)) -> 72
B39: Pursuit | C39: =IF(B39=0,"",VLOOKUP($B39,Table2[],2,FALSE)) -> Herbicide | F39: 7 | G39: 1 | H39: 3 | I39: =IF($B39=0,"",VLOOKUP($B39,Table2[],5,FALSE)) -> ounce | J39: =IF($B39=0,"",VLOOKUP($B39,Table2[],7,FALSE)) -> 3.75 | K39: =IF(B39=0,0,ROUND(G39*H39*J39,2)) -> 11.25
B40: Crop Oil Concentrate | C40: =IF(B40=0,"",VLOOKUP($B40,Table2[],2,FALSE)) -> Additive | F40: 7 | G40: 1 | H40: 1.6 | I40: =IF($B40=0,"",VLOOKUP($B40,Table2[],5,FALSE)) -> pint | J40: =IF($B40=0,"",VLOOKUP($B40,Table2[],7,FALSE)) -> 1.25 | K40: =IF(B40=0,0,ROUND(G40*H40*J40,2)) -> 2
B41: UAN | C41: =IF(B41=0,"",VLOOKUP($B41,Table2[],2,FALSE)) -> Additive | F41: 7 | G41: 1 | H41: 2 | I41: =IF($B41=0,"",VLOOKUP($B41,Table2[],5,FALSE)) -> pint | J41: =IF($B41=0,"",VLOOKUP($B41,Table2[],7,FALSE)) -> 0.1875 | K41: 0.38
B42: Mustang Maxx | C42: =IF(B42=0,"",VLOOKUP($B42,Table2[],2,FALSE)) -> Insecticide | F42: 8 | G42: 0.2 | H42: 3 | I42: =IF($B42=0,"",VLOOKUP($B42,Table2[],5,FALSE)) -> ounce | J42: =IF($B42=0,"",VLOOKUP($B42,Table2[],7,FALSE)) -> 1.40625 | K42: 0.84
C43: =IF(B43=0,"",VLOOKUP($B43,Table2[],2,FALSE)) ->  | I43: =IF($B43=0,"",VLOOKUP($B43,Table2[],5,FALSE)) ->  | J43: =IF($B43=0,"",VLOOKUP($B43,Table2[],7,FALSE)) ->  | K43: 0
C44: =IF(B44=0,"",VLOOKUP($B44,Table2[],2,FALSE)) ->  | I44: =IF($B44=0,"",VLOOKUP($B44,Table2[],5,FALSE)) ->  | J44: =IF($B44=0,"",VLOOKUP($B44,Table2[],7,FALSE)) ->  | K44: 0
C45: =IF(B45=0,"",VLOOKUP($B45,Table2[],2,FALSE)) ->  | I45: =IF($B45=0,"",VLOOKUP($B45,Table2[],5,FALSE)) ->  | J45: =IF($B45=0,"",VLOOKUP($B45,Table2[],7,FALSE)) ->  | K45: 0
C46: =IF(B46=0,"",VLOOKUP($B46,Table2[],2,FALSE)) ->  | I46: =IF($B46=0,"",VLOOKUP($B46,Table2[],5,FALSE)) ->  | J46: =IF($B46=0,"",VLOOKUP($B46,Table2[],7,FALSE)) ->  | K46: 0
C47: =IF(B47=0,"",VLOOKUP($B47,Table2[],2,FALSE)) ->  | I47: =IF($B47=0,"",VLOOKUP($B47,Table2[],5,FALSE)) ->  | J47: =IF($B47=0,"",VLOOKUP($B47,Table2[],7,FALSE)) ->  | K47: 0
C48: =IF(B48=0,"",VLOOKUP($B48,Table2[],2,FALSE)) ->  | I48: =IF($B48=0,"",VLOOKUP($B48,Table2[],5,FALSE)) ->  | J48: =IF($B48=0,"",VLOOKUP($B48,Table2[],7,FALSE)) ->  | K48: 0
C49: =IF(B49=0,"",VLOOKUP($B49,Table2[],2,FALSE)) ->  | I49: =IF($B49=0,"",VLOOKUP($B49,Table2[],5,FALSE)) ->  | J49: =IF($B49=0,"",VLOOKUP($B49,Table2[],7,FALSE)) ->  | K49: 0
C50: =IF(B50=0,"",VLOOKUP($B50,Table2[],2,FALSE)) ->  | I50: =IF($B50=0,"",VLOOKUP($B50,Table2[],5,FALSE)) ->  | J50: =IF($B50=0,"",VLOOKUP($B50,Table2[],7,FALSE)) ->  | K50: 0
C51: =IF(B51=0,"",VLOOKUP($B51,Table2[],2,FALSE)) ->  | I51: =IF($B51=0,"",VLOOKUP($B51,Table2[],5,FALSE)) ->  | J51: =IF($B51=0,"",VLOOKUP($B51,Table2[],7,FALSE)) ->  | K51: 0
C52: =IF(B52=0,"",VLOOKUP($B52,Table2[],2,FALSE)) ->  | G52: 0.1 | I52: =IF($B52=0,"",VLOOKUP($B52,Table2[],5,FALSE)) ->  | J52: =IF($B52=0,"",VLOOKUP($B52,Table2[],7,FALSE)) ->  | K52: 0
C53: =IF(B53=0,"",VLOOKUP($B53,Table2[],2,FALSE)) ->  | G53: 0.2 | I53: =IF($B53=0,"",VLOOKUP($B53,Table2[],5,FALSE)) ->  | J53: =IF($B53=0,"",VLOOKUP($B53,Table2[],7,FALSE)) ->  | K53: 0
C54: =IF(B54=0,"",VLOOKUP($B54,Table2[],2,FALSE)) ->  | G54: 0.3 | I54: =IF($B54=0,"",VLOOKUP($B54,Table2[],5,FALSE)) ->  | J54: =IF($B54=0,"",VLOOKUP($B54,Table2[],7,FALSE)) ->  | K54: 0
C55: =IF(B55=0,"",VLOOKUP($B55,Table2[],2,FALSE)) ->  | I55: =IF($B55=0,"",VLOOKUP($B55,Table2[],5,FALSE)) ->  | J55: =IF($B55=0,"",VLOOKUP($B55,Table2[],7,FALSE)) ->  | K55: 0
C56: =IF(B56=0,"",VLOOKUP($B56,Table2[],2,FALSE)) ->  | I56: =IF($B56=0,"",VLOOKUP($B56,Table2[],5,FALSE)) ->  | J56: =IF($B56=0,"",VLOOKUP($B56,Table2[],7,FALSE)) ->  | K56: =IF(B56=0,0,ROUND(G56*H56*J56,2)) -> 0
C57: =IF(B57=0,"",VLOOKUP($B57,Table2[],2,FALSE)) ->  | I57: =IF($B57=0,"",VLOOKUP($B57,Table2[],5,FALSE)) ->  | J57: =IF($B57=0,"",VLOOKUP($B57,Table2[],7,FALSE)) ->  | K57: =IF(B57=0,0,ROUND(G57*H57*J57,2)) -> 0
C58: =IF(B58=0,"",VLOOKUP($B58,Table2[],2,FALSE)) ->  | I58: =IF($B58=0,"",VLOOKUP($B58,Table2[],5,FALSE)) ->  | J58: =IF($B58=0,"",VLOOKUP($B58,Table2[],7,FALSE)) ->  | K58: =IF(B58=0,0,ROUND(G58*H58*J58,2)) -> 0
C59: =IF(B59=0,"",VLOOKUP($B59,Table2[],2,FALSE)) ->  | I59: =IF($B59=0,"",VLOOKUP($B59,Table2[],5,FALSE)) ->  | J59: =IF($B59=0,"",VLOOKUP($B59,Table2[],7,FALSE)) ->  | K59: =IF(B59=0,0,ROUND(G59*H59*J59,2)) -> 0
C60: =IF(B60=0,"",VLOOKUP($B60,Table2[],2,FALSE)) ->  | I60: =IF($B60=0,"",VLOOKUP($B60,Table2[],5,FALSE)) ->  | J60: =IF($B60=0,"",VLOOKUP($B60,Table2[],7,FALSE)) ->  | K60: =IF(B60=0,0,ROUND(G60*H60*J60,2)) -> 0
C61: Crop Insurance | J61: =IF(F5=0,E5,F5) ->  | K61: 0
C63: Total Materials & Services | K63: =SUM(K37:K61) -> 109.47
B65: Total listed costs for Field Operations and Materials and Services | K65: =K33+K63 -> 161.96
D66: Interest on Operations Capital | E66: =ROUND(SUM($E$33:$H$33)+$K$63,2) -> 139.16 | F66: cash expense @ | H66: ='General Variables'!$B$11 -> 0.055 | I66: =CONCATENATE("for ",TEXT('General Variables'!$B$12,"0.0")," mo.") -> for 6.0 mo. | K66: =E66*H66*'General Variables'!$B$12/12 -> 3.8269
B67: Total Operating and Use Related Ownership Costs | K67: =SUM(K65:K66) -> 165.7869
B69: Overhead (accounting, liability insurance, vehicle cost, office expense) | K69: ='General Variables'!B14 -> 20
B70: Real Estate Opportunity | C70: Fall Establishment | F70: =IF(C70=0,0,VLOOKUP(C70,RETable,2,FALSE)) -> 0 | G70: per acre @ | I70: ='General Variables'!$B$10 -> 0.03 | K70: =ROUND(F70*I70,2) -> 0
B71: Real Estate Taxes | F71: =IF(C70=0,0,VLOOKUP(C70,RETable,2,FALSE)) -> 0 | G71: per acre @ | I71: ='General Variables'!$B$13 -> 0.0135 | K71: =ROUND(F71*I71,2) -> 0
B72: Total Cost per Acre Including Overhead | K72: =SUM(K67:K71) -> 185.7869
B75: =IF(G4="","","Cost of production per "&H4) ->  | K75: =IF(G4="","",K72/G4) -> 
K112: Yes
K113: No
B241: =IF(Operations!A130="","",Operations!A130) ->  | C241: =IF(Materials!B132="","",Materials!B132) -> Corn Bt, ECB, RW, & RIB
B242: =IF(Operations!A131="","",Operations!A131) ->  | C242: =IF(Materials!B133="","",Materials!B133) -> Corn Bt, ECB, RW, RR2, LL, & RIB
B243: =IF(Operations!A132="","",Operations!A132) ->  | C243: =IF(Materials!B134="","",Materials!B134) -> Corn Enlist, Bt, ECB, & RIB
B244: =IF(Operations!A133="","",Operations!A133) ->  | C244: =IF(Materials!B135="","",Materials!B135) -> Corn RR2, LL
B245: =IF(Operations!A134="","",Operations!A134) ->  | C245: =IF(Materials!B136="","",Materials!B136) -> Corn SmartStax RIB Complete

Sheet 2-Alfalfa (hidden)
B2: Region | F2: Detail | G2: Roundup Ready® | J2: Water Source | K2: Dryland
B3: Tillage System | C3: No Till | G3: Yield | J3: acre/inches
B4: Cropping System | C4: Fall Establishment | G4: =IFERROR(VALUE(LEFT($H$3,FIND(" ",$H$3))),"") ->  | H4: =IFERROR(RIGHT(H3,LEN(H3)-LEN(G4)-1),"") ->  | J4: Follows Legume?
B5: Crop Insurance | C5: =MID(CELL("filename",C5),FIND("]",CELL("filename",C5))+1,255) -> 2-Alfalfa | E5: =VLOOKUP($C$5,CropInsurance,5,FALSE) ->  | F5: =VLOOKUP($C$5,CropInsurance,6,FALSE) -> 
A6: =REPLACE(CELL("filename",$A$1),1,FIND("]",CELL("filename",$A$1)),"") & IF($G$2="","", ", " & $G$2 ) & IF($C$2="","",", "&$C$2&"") & IF($C$3="","",", "&$C$3) & IF($C$4="","",", "&$C$4) & IF($H$3="","",", "&$H$3 & " Yield") & IF(K2="","",", " &K2) -> 2-Alfalfa, Roundup Ready®, No Till, Fall Establishment, Dryland
B7: ='General Variables'!$B$3 & " Budget " & REPLACE(CELL("filename",$A$1),1,FIND("]",CELL("filename",$A$1)),"") & IF($G$2="","", ", " & $G$2 ) & IF($C$2="","",", "&$C$2) & IF($C$3="","",", "&$C$3) & IF($C$4="","",", "&$C$4) & IF($H$3="","",", "&$H$3 & " Yield") -> 2020 Budget 2-Alfalfa, Roundup Ready®, No Till, Fall Establishment
B8: =IF(K2="","",K2)&IF(LEFT(K2,5)="Pivot",", 800 GPM 35 PSI","") & IF(K3="","",", "& K3&" "&J3) -> Dryland
B10: Field Operations | C10: Times or Qty | E10: ="Labor @ $" &TEXT('General Variables'!B4,"#.00")& " /Hr" -> Labor @ $25.00 /Hr | F10: ="Fuel @ $" & TEXT('General Variables'!B5,"#.00") & " and Lube" -> Fuel @ $2.27 and Lube | G10: Repairs | I10: Ownership | K10: Total | L10: Your Estimate
D11: Unit | G11: Power | H11: Imp. | I11: Power | J11: Imp.
A12: 1 | B12: Spray Herbicide | C12: 1 | E12: =IF(B12=0,"",IF(C12>9999,"",ROUND('General Variables'!$B$4*VLOOKUP(B12,Operations!$A$2:$U$99,10,FALSE)/VLOOKUP(B12,Operations!$A$2:$U$99,9,FALSE)*C12,2))) -> 0.95 | F12: =IF(B12=0,0,IF(C12>9999,"",ROUND(IF(VLOOKUP(B12,Operations!$A$2:$U$99,12,FALSE)=0,VLOOKUP(B12,Operations!$A$2:$U$99,13,FALSE)*'General Variables'!$B$8,VLOOKUP(B12,Operations!$A$2:$U$99,12,FALSE)*'General Variables'!$B$7)/VLOOKUP(B12,Operations!$A$2:$U$99,9,FALSE)*C12,2))) -> 0.21 | G12: =IF(B12=0,0,IF(C12>9999,"",ROUND(VLOOKUP(VLOOKUP(B12,Operations!$A$2:$U$99,11,FALSE),PowerUnits[],10,FALSE)/VLOOKUP(B12,Operations!$A$2:$U$99,9,FALSE)*C12,2))) -> 0.29 | H12: =IF(B12=0,"",IF(C12>9999,"",ROUND(VLOOKUP($B12,Operations!$A$2:$U$99,15,FALSE)*C12,2))) -> 0.6 | I12: =IF(B12=0,0,IF(C12>9999,"",ROUND(VLOOKUP(VLOOKUP(B12,Operations!$A$2:$U$99,11,FALSE),PowerUnits[],16,FALSE)/VLOOKUP(B12,Operations!$A$2:$U$99,9,FALSE)*C12,2))) -> 0.9 | J12: =IF(B12=0,"",IF(C12>9999,"",ROUND(VLOOKUP($B12,Operations!$A$2:$U$99,21,FALSE)*$C12,2))) -> 1.08 | K12: =IF(C12>9999,"",SUM(E12:J12)) -> 4.03
A13: 2 | B13: Drill w/ Fertilizer | C13: 1 | E13: =IF(B13=0,"",IF(C13>9999,"",ROUND('General Variables'!$B$4*VLOOKUP(B13,Operations!$A$2:$U$99,10,FALSE)/VLOOKUP(B13,Operations!$A$2:$U$99,9,FALSE)*C13,2))) -> 2.73 | F13: =IF(B13=0,0,IF(C13>9999,"",ROUND(IF(VLOOKUP(B13,Operations!$A$2:$U$99,12,FALSE)=0,VLOOKUP(B13,Operations!$A$2:$U$99,13,FALSE)*'General Variables'!$B$8,VLOOKUP(B13,Operations!$A$2:$U$99,12,FALSE)*'General Variables'!$B$7)/VLOOKUP(B13,Operations!$A$2:$U$99,9,FALSE)*C13,2))) -> 1.19 | G13: =IF(B13=0,0,IF(C13>9999,"",ROUND(VLOOKUP(VLOOKUP(B13,Operations!$A$2:$U$99,11,FALSE),PowerUnits[],10,FALSE)/VLOOKUP(B13,Operations!$A$2:$U$99,9,FALSE)*C13,2))) -> 0.86 | H13: =IF(B13=0,"",IF(C13>9999,"",ROUND(VLOOKUP($B13,Operations!$A$2:$U$99,15,FALSE)*C13,2))) -> 4.31 | I13: =IF(B13=0,0,IF(C13>9999,"",ROUND(VLOOKUP(VLOOKUP(B13,Operations!$A$2:$U$99,11,FALSE),PowerUnits[],16,FALSE)/VLOOKUP(B13,Operations!$A$2:$U$99,9,FALSE)*C13,2))) -> 2.69 | J13: =IF(B13=0,"",IF(C13>9999,"",ROUND(VLOOKUP($B13,Operations!$A$2:$U$99,21,FALSE)*$C13,2))) -> 2.63 | K13: =IF(C13>9999,"",SUM(E13:J13)) -> 14.41
A14: 3 | B14: Spray Herbicide | C14: 1 | E14: =IF(B14=0,"",IF(C14>9999,"",ROUND('General Variables'!$B$4*VLOOKUP(B14,Operations!$A$2:$U$99,10,FALSE)/VLOOKUP(B14,Operations!$A$2:$U$99,9,FALSE)*C14,2))) -> 0.95 | F14: =IF(B14=0,0,IF(C14>9999,"",ROUND(IF(VLOOKUP(B14,Operations!$A$2:$U$99,12,FALSE)=0,VLOOKUP(B14,Operations!$A$2:$U$99,13,FALSE)*'General Variables'!$B$8,VLOOKUP(B14,Operations!$A$2:$U$99,12,FALSE)*'General Variables'!$B$7)/VLOOKUP(B14,Operations!$A$2:$U$99,9,FALSE)*C14,2))) -> 0.21 | G14: =IF(B14=0,0,IF(C14>9999,"",ROUND(VLOOKUP(VLOOKUP(B14,Operations!$A$2:$U$99,11,FALSE),PowerUnits[],10,FALSE)/VLOOKUP(B14,Operations!$A$2:$U$99,9,FALSE)*C14,2))) -> 0.29 | H14: =IF(B14=0,"",IF(C14>9999,"",ROUND(VLOOKUP($B14,Operations!$A$2:$U$99,15,FALSE)*C14,2))) -> 0.6 | I14: =IF(B14=0,0,IF(C14>9999,"",ROUND(VLOOKUP(VLOOKUP(B14,Operations!$A$2:$U$99,11,FALSE),PowerUnits[],16,FALSE)/VLOOKUP(B14,Operations!$A$2:$U$99,9,FALSE)*C14,2))) -> 0.9 | J14: =IF(B14=0,"",IF(C14>9999,"",ROUND(VLOOKUP($B14,Operations!$A$2:$U$99,21,FALSE)*$C14,2))) -> 1.08 | K14: 4.03
A15: 4 | B15: Spray Insecticide | C15: 0.2 | E15: =IF(B15=0,"",IF(C15>9999,"",ROUND('General Variables'!$B$4*VLOOKUP(B15,Operations!$A$2:$U$99,10,FALSE)/VLOOKUP(B15,Operations!$A$2:$U$99,9,FALSE)*C15,2))) -> 0.19 | F15: =IF(B15=0,0,IF(C15>9999,"",ROUND(IF(VLOOKUP(B15,Operations!$A$2:$U$99,12,FALSE)=0,VLOOKUP(B15,Operations!$A$2:$U$99,13,FALSE)*'General Variables'!$B$8,VLOOKUP(B15,Operations!$A$2:$U$99,12,FALSE)*'General Variables'!$B$7)/VLOOKUP(B15,Operations!$A$2:$U$99,9,FALSE)*C15,2))) -> 0.04 | G15: =IF(B15=0,0,IF(C15>9999,"",ROUND(VLOOKUP(VLOOKUP(B15,Operations!$A$2:$U$99,11,FALSE),PowerUnits[],10,FALSE)/VLOOKUP(B15,Operations!$A$2:$U$99,9,FALSE)*C15,2))) -> 0.06 | H15: =IF(B15=0,"",IF(C15>9999,"",ROUND(VLOOKUP($B15,Operations!$A$2:$U$99,15,FALSE)*C15,2))) -> 0.12 | I15: =IF(B15=0,0,IF(C15>9999,"",ROUND(VLOOKUP(VLOOKUP(B15,Operations!$A$2:$U$99,11,FALSE),PowerUnits[],16,FALSE)/VLOOKUP(B15,Operations!$A$2:$U$99,9,FALSE)*C15,2))) -> 0.18 | J15: =IF(B15=0,"",IF(C15>9999,"",ROUND(VLOOKUP($B15,Operations!$A$2:$U$99,21,FALSE)*$C15,2))) -> 0.22 | K15: 0.81
A16: 5 | E16: =IF(B16=0,"",IF(C16>9999,"",ROUND('General Variables'!$B$4*VLOOKUP(B16,Operations!$A$2:$U$99,10,FALSE)/VLOOKUP(B16,Operations!$A$2:$U$99,9,FALSE)*C16,2))) ->  | F16: =IF(B16=0,0,IF(C16>9999,"",ROUND(IF(VLOOKUP(B16,Operations!$A$2:$U$99,12,FALSE)=0,VLOOKUP(B16,Operations!$A$2:$U$99,13,FALSE)*'General Variables'!$B$8,VLOOKUP(B16,Operations!$A$2:$U$99,12,FALSE)*'General Variables'!$B$7)/VLOOKUP(B16,Operations!$A$2:$U$99,9,FALSE)*C16,2))) -> 0 | G16: =IF(B16=0,0,IF(C16>9999,"",ROUND(VLOOKUP(VLOOKUP(B16,Operations!$A$2:$U$99,11,FALSE),PowerUnits[],10,FALSE)/VLOOKUP(B16,Operations!$A$2:$U$99,9,FALSE)*C16,2))) -> 0 | H16: =IF(B16=0,"",IF(C16>9999,"",ROUND(VLOOKUP($B16,Operations!$A$2:$U$99,15,FALSE)*C16,2))) ->  | I16: =IF(B16=0,0,IF(C16>9999,"",ROUND(VLOOKUP(VLOOKUP(B16,Operations!$A$2:$U$99,11,FALSE),PowerUnits[],16,FALSE)/VLOOKUP(B16,Operations!$A$2:$U$99,9,FALSE)*C16,2))) -> 0 | J16: =IF(B16=0,"",IF(C16>9999,"",ROUND(VLOOKUP($B16,Operations!$A$2:$U$99,21,FALSE)*$C16,2))) ->  | K16: 0
A17: 6 | E17: =IF(B17=0,"",IF(C17>9999,"",ROUND('General Variables'!$B$4*VLOOKUP(B17,Operations!$A$2:$U$99,10,FALSE)/VLOOKUP(B17,Operations!$A$2:$U$99,9,FALSE)*C17,2))) ->  | F17: =IF(B17=0,0,IF(C17>9999,"",ROUND(IF(VLOOKUP(B17,Operations!$A$2:$U$99,12,FALSE)=0,VLOOKUP(B17,Operations!$A$2:$U$99,13,FALSE)*'General Variables'!$B$8,VLOOKUP(B17,Operations!$A$2:$U$99,12,FALSE)*'General Variables'!$B$7)/VLOOKUP(B17,Operations!$A$2:$U$99,9,FALSE)*C17,2))) -> 0 | G17: =IF(B17=0,0,IF(C17>9999,"",ROUND(VLOOKUP(VLOOKUP(B17,Operations!$A$2:$U$99,11,FALSE),PowerUnits[],10,FALSE)/VLOOKUP(B17,Operations!$A$2:$U$99,9,FALSE)*C17,2))) -> 0 | H17: =IF(B17=0,"",IF(C17>9999,"",ROUND(VLOOKUP($B17,Operations!$A$2:$U$99,15,FALSE)*C17,2))) ->  | I17: =IF(B17=0,0,IF(C17>9999,"",ROUND(VLOOKUP(VLOOKUP(B17,Operations!$A$2:$U$99,11,FALSE),PowerUnits[],16,FALSE)/VLOOKUP(B17,Operations!$A$2:$U$99,9,FALSE)*C17,2))) -> 0 | J17: =IF(B17=0,"",IF(C17>9999,"",ROUND(VLOOKUP($B17,Operations!$A$2:$U$99,21,FALSE)*$C17,2))) ->  | K17: 0
A18: 7 | E18: =IF(B18=0,"",IF(C18>9999,"",ROUND('General Variables'!$B$4*VLOOKUP(B18,Operations!$A$2:$U$99,10,FALSE)/VLOOKUP(B18,Operations!$A$2:$U$99,9,FALSE)*C18,2))) ->  | F18: =IF(B18=0,0,IF(C18>9999,"",ROUND(IF(VLOOKUP(B18,Operations!$A$2:$U$99,12,FALSE)=0,VLOOKUP(B18,Operations!$A$2:$U$99,13,FALSE)*'General Variables'!$B$8,VLOOKUP(B18,Operations!$A$2:$U$99,12,FALSE)*'General Variables'!$B$7)/VLOOKUP(B18,Operations!$A$2:$U$99,9,FALSE)*C18,2))) -> 0 | G18: =IF(B18=0,0,IF(C18>9999,"",ROUND(VLOOKUP(VLOOKUP(B18,Operations!$A$2:$U$99,11,FALSE),PowerUnits[],10,FALSE)/VLOOKUP(B18,Operations!$A$2:$U$99,9,FALSE)*C18,2))) -> 0 | H18: =IF(B18=0,"",IF(C18>9999,"",ROUND(VLOOKUP($B18,Operations!$A$2:$U$99,15,FALSE)*C18,2))) ->  | I18: =IF(B18=0,0,IF(C18>9999,"",ROUND(VLOOKUP(VLOOKUP(B18,Operations!$A$2:$U$99,11,FALSE),PowerUnits[],16,FALSE)/VLOOKUP(B18,Operations!$A$2:$U$99,9,FALSE)*C18,2))) -> 0 | J18: =IF(B18=0,"",IF(C18>9999,"",ROUND(VLOOKUP($B18,Operations!$A$2:$U$99,21,FALSE)*$C18,2))) ->  | K18: 0
A19: 8 | E19: =IF(B19=0,"",IF(C19>9999,"",ROUND('General Variables'!$B$4*VLOOKUP(B19,Operations!$A$2:$U$99,10,FALSE)/VLOOKUP(B19,Operations!$A$2:$U$99,9,FALSE)*C19,2))) ->  | F19: =IF(B19=0,0,IF(C19>9999,"",ROUND(IF(VLOOKUP(B19,Operations!$A$2:$U$99,12,FALSE)=0,VLOOKUP(B19,Operations!$A$2:$U$99,13,FALSE)*'General Variables'!$B$8,VLOOKUP(B19,Operations!$A$2:$U$99,12,FALSE)*'General Variables'!$B$7)/VLOOKUP(B19,Operations!$A$2:$U$99,9,FALSE)*C19,2))) -> 0 | G19: =IF(B19=0,0,IF(C19>9999,"",ROUND(VLOOKUP(VLOOKUP(B19,Operations!$A$2:$U$99,11,FALSE),PowerUnits[],10,FALSE)/VLOOKUP(B19,Operations!$A$2:$U$99,9,FALSE)*C19,2))) -> 0 | H19: =IF(B19=0,"",IF(C19>9999,"",ROUND(VLOOKUP($B19,Operations!$A$2:$U$99,15,FALSE)*C19,2))) ->  | I19: =IF(B19=0,0,IF(C19>9999,"",ROUND(VLOOKUP(VLOOKUP(B19,Operations!$A$2:$U$99,11,FALSE),PowerUnits[],16,FALSE)/VLOOKUP(B19,Operations!$A$2:$U$99,9,FALSE)*C19,2))) -> 0 | J19: =IF(B19=0,"",IF(C19>9999,"",ROUND(VLOOKUP($B19,Operations!$A$2:$U$99,21,FALSE)*$C19,2))) ->  | K19: 0
A20: 9 | E20: =IF(B20=0,"",IF(C20>9999,"",ROUND('General Variables'!$B$4*VLOOKUP(B20,Operations!$A$2:$U$99,10,FALSE)/VLOOKUP(B20,Operations!$A$2:$U$99,9,FALSE)*C20,2))) ->  | F20: =IF(B20=0,0,IF(C20>9999,"",ROUND(IF(VLOOKUP(B20,Operations!$A$2:$U$99,12,FALSE)=0,VLOOKUP(B20,Operations!$A$2:$U$99,13,FALSE)*'General Variables'!$B$8,VLOOKUP(B20,Operations!$A$2:$U$99,12,FALSE)*'General Variables'!$B$7)/VLOOKUP(B20,Operations!$A$2:$U$99,9,FALSE)*C20,2))) -> 0 | G20: =IF(B20=0,0,IF(C20>9999,"",ROUND(VLOOKUP(VLOOKUP(B20,Operations!$A$2:$U$99,11,FALSE),PowerUnits[],10,FALSE)/VLOOKUP(B20,Operations!$A$2:$U$99,9,FALSE)*C20,2))) -> 0 | H20: =IF(B20=0,"",IF(C20>9999,"",ROUND(VLOOKUP($B20,Operations!$A$2:$U$99,15,FALSE)*C20,2))) ->  | I20: =IF(B20=0,0,IF(C20>9999,"",ROUND(VLOOKUP(VLOOKUP(B20,Operations!$A$2:$U$99,11,FALSE),PowerUnits[],16,FALSE)/VLOOKUP(B20,Operations!$A$2:$U$99,9,FALSE)*C20,2))) -> 0 | J20: =IF(B20=0,"",IF(C20>9999,"",ROUND(VLOOKUP($B20,Operations!$A$2:$U$99,21,FALSE)*$C20,2))) ->  | K20: 0
A21: 10 | E21: =IF(B21=0,"",IF(C21>9999,"",ROUND('General Variables'!$B$4*VLOOKUP(B21,Operations!$A$2:$U$99,10,FALSE)/VLOOKUP(B21,Operations!$A$2:$U$99,9,FALSE)*C21,2))) ->  | F21: =IF(B21=0,0,IF(C21>9999,"",ROUND(IF(VLOOKUP(B21,Operations!$A$2:$U$99,12,FALSE)=0,VLOOKUP(B21,Operations!$A$2:$U$99,13,FALSE)*'General Variables'!$B$8,VLOOKUP(B21,Operations!$A$2:$U$99,12,FALSE)*'General Variables'!$B$7)/VLOOKUP(B21,Operations!$A$2:$U$99,9,FALSE)*C21,2))) -> 0 | G21: =IF(B21=0,0,IF(C21>9999,"",ROUND(VLOOKUP(VLOOKUP(B21,Operations!$A$2:$U$99,11,FALSE),PowerUnits[],10,FALSE)/VLOOKUP(B21,Operations!$A$2:$U$99,9,FALSE)*C21,2))) -> 0 | H21: =IF(B21=0,"",IF(C21>9999,"",ROUND(VLOOKUP($B21,Operations!$A$2:$U$99,15,FALSE)*C21,2))) ->  | I21: =IF(B21=0,0,IF(C21>9999,"",ROUND(VLOOKUP(VLOOKUP(B21,Operations!$A$2:$U$99,11,FALSE),PowerUnits[],16,FALSE)/VLOOKUP(B21,Operations!$A$2:$U$99,9,FALSE)*C21,2))) -> 0 | J21: =IF(B21=0,"",IF(C21>9999,"",ROUND(VLOOKUP($B21,Operations!$A$2:$U$99,21,FALSE)*$C21,2))) ->  | K21: 0
A22: 11 | E22: =IF(B22=0,"",IF(C22>9999,"",ROUND('General Variables'!$B$4*VLOOKUP(B22,Operations!$A$2:$U$99,10,FALSE)/VLOOKUP(B22,Operations!$A$2:$U$99,9,FALSE)*C22,2))) ->  | F22: =IF(B22=0,0,IF(C22>9999,"",ROUND(IF(VLOOKUP(B22,Operations!$A$2:$U$99,12,FALSE)=0,VLOOKUP(B22,Operations!$A$2:$U$99,13,FALSE)*'General Variables'!$B$8,VLOOKUP(B22,Operations!$A$2:$U$99,12,FALSE)*'General Variables'!$B$7)/VLOOKUP(B22,Operations!$A$2:$U$99,9,FALSE)*C22,2))) -> 0 | G22: =IF(B22=0,0,IF(C22>9999,"",ROUND(VLOOKUP(VLOOKUP(B22,Operations!$A$2:$U$99,11,FALSE),PowerUnits[],10,FALSE)/VLOOKUP(B22,Operations!$A$2:$U$99,9,FALSE)*C22,2))) -> 0 | H22: =IF(B22=0,"",IF(C22>9999,"",ROUND(VLOOKUP($B22,Operations!$A$2:$U$99,15,FALSE)*C22,2))) ->  | I22: =IF(B22=0,0,IF(C22>9999,"",ROUND(VLOOKUP(VLOOKUP(B22,Operations!$A$2:$U$99,11,FALSE),PowerUnits[],16,FALSE)/VLOOKUP(B22,Operations!$A$2:$U$99,9,FALSE)*C22,2))) -> 0 | J22: =IF(B22=0,"",IF(C22>9999,"",ROUND(VLOOKUP($B22,Operations!$A$2:$U$99,21,FALSE)*$C22,2))) ->  | K22: 0
A23: 12 | E23: =IF(B23=0,"",IF(C23>9999,"",ROUND('General Variables'!$B$4*VLOOKUP(B23,Operations!$A$2:$U$99,10,FALSE)/VLOOKUP(B23,Operations!$A$2:$U$99,9,FALSE)*C23,2))) ->  | F23: =IF(B23=0,0,IF(C23>9999,"",ROUND(IF(VLOOKUP(B23,Operations!$A$2:$U$99,12,FALSE)=0,VLOOKUP(B23,Operations!$A$2:$U$99,13,FALSE)*'General Variables'!$B$8,VLOOKUP(B23,Operations!$A$2:$U$99,12,FALSE)*'General Variables'!$B$7)/VLOOKUP(B23,Operations!$A$2:$U$99,9,FALSE)*C23,2))) -> 0 | G23: =IF(B23=0,0,IF(C23>9999,"",ROUND(VLOOKUP(VLOOKUP(B23,Operations!$A$2:$U$99,11,FALSE),PowerUnits[],10,FALSE)/VLOOKUP(B23,Operations!$A$2:$U$99,9,FALSE)*C23,2))) -> 0 | H23: =IF(B23=0,"",IF(C23>9999,"",ROUND(VLOOKUP($B23,Operations!$A$2:$U$99,15,FALSE)*C23,2))) ->  | I23: =IF(B23=0,0,IF(C23>9999,"",ROUND(VLOOKUP(VLOOKUP(B23,Operations!$A$2:$U$99,11,FALSE),PowerUnits[],16,FALSE)/VLOOKUP(B23,Operations!$A$2:$U$99,9,FALSE)*C23,2))) -> 0 | J23: =IF(B23=0,"",IF(C23>9999,"",ROUND(VLOOKUP($B23,Operations!$A$2:$U$99,21,FALSE)*$C23,2))) ->  | K23: 0
A24: 13 | E24: =IF(B24=0,"",IF(C24>9999,"",ROUND('General Variables'!$B$4*VLOOKUP(B24,Operations!$A$2:$U$99,10,FALSE)/VLOOKUP(B24,Operations!$A$2:$U$99,9,FALSE)*C24,2))) ->  | F24: =IF(B24=0,0,IF(C24>9999,"",ROUND(IF(VLOOKUP(B24,Operations!$A$2:$U$99,12,FALSE)=0,VLOOKUP(B24,Operations!$A$2:$U$99,13,FALSE)*'General Variables'!$B$8,VLOOKUP(B24,Operations!$A$2:$U$99,12,FALSE)*'General Variables'!$B$7)/VLOOKUP(B24,Operations!$A$2:$U$99,9,FALSE)*C24,2))) -> 0 | G24: =IF(B24=0,0,IF(C24>9999,"",ROUND(VLOOKUP(VLOOKUP(B24,Operations!$A$2:$U$99,11,FALSE),PowerUnits[],10,FALSE)/VLOOKUP(B24,Operations!$A$2:$U$99,9,FALSE)*C24,2))) -> 0 | H24: =IF(B24=0,"",IF(C24>9999,"",ROUND(VLOOKUP($B24,Operations!$A$2:$U$99,15,FALSE)*C24,2))) ->  | I24: =IF(B24=0,0,IF(C24>9999,"",ROUND(VLOOKUP(VLOOKUP(B24,Operations!$A$2:$U$99,11,FALSE),PowerUnits[],16,FALSE)/VLOOKUP(B24,Operations!$A$2:$U$99,9,FALSE)*C24,2))) -> 0 | J24: =IF(B24=0,"",IF(C24>9999,"",ROUND(VLOOKUP($B24,Operations!$A$2:$U$99,21,FALSE)*$C24,2))) ->  | K24: 0
A25: 14 | E25: =IF(B25=0,"",IF(C25>9999,"",ROUND('General Variables'!$B$4*VLOOKUP(B25,Operations!$A$2:$U$99,10,FALSE)/VLOOKUP(B25,Operations!$A$2:$U$99,9,FALSE)*C25,2))) ->  | F25: =IF(B25=0,0,IF(C25>9999,"",ROUND(IF(VLOOKUP(B25,Operations!$A$2:$U$99,12,FALSE)=0,VLOOKUP(B25,Operations!$A$2:$U$99,13,FALSE)*'General Variables'!$B$8,VLOOKUP(B25,Operations!$A$2:$U$99,12,FALSE)*'General Variables'!$B$7)/VLOOKUP(B25,Operations!$A$2:$U$99,9,FALSE)*C25,2))) -> 0 | G25: =IF(B25=0,0,IF(C25>9999,"",ROUND(VLOOKUP(VLOOKUP(B25,Operations!$A$2:$U$99,11,FALSE),PowerUnits[],10,FALSE)/VLOOKUP(B25,Operations!$A$2:$U$99,9,FALSE)*C25,2))) -> 0 | H25: =IF(B25=0,"",IF(C25>9999,"",ROUND(VLOOKUP($B25,Operations!$A$2:$U$99,15,FALSE)*C25,2))) ->  | I25: =IF(B25=0,0,IF(C25>9999,"",ROUND(VLOOKUP(VLOOKUP(B25,Operations!$A$2:$U$99,11,FALSE),PowerUnits[],16,FALSE)/VLOOKUP(B25,Operations!$A$2:$U$99,9,FALSE)*C25,2))) -> 0 | J25: =IF(B25=0,"",IF(C25>9999,"",ROUND(VLOOKUP($B25,Operations!$A$2:$U$99,21,FALSE)*$C25,2))) ->  | K25: 0
A26: 15 | E26: =IF(B26=0,"",IF(C26>9999,"",ROUND('General Variables'!$B$4*VLOOKUP(B26,Operations!$A$2:$U$99,10,FALSE)/VLOOKUP(B26,Operations!$A$2:$U$99,9,FALSE)*C26,2))) ->  | F26: =IF(B26=0,0,IF(C26>9999,"",ROUND(IF(VLOOKUP(B26,Operations!$A$2:$U$99,12,FALSE)=0,VLOOKUP(B26,Operations!$A$2:$U$99,13,FALSE)*'General Variables'!$B$8,VLOOKUP(B26,Operations!$A$2:$U$99,12,FALSE)*'General Variables'!$B$7)/VLOOKUP(B26,Operations!$A$2:$U$99,9,FALSE)*C26,2))) -> 0 | G26: =IF(B26=0,0,IF(C26>9999,"",ROUND(VLOOKUP(VLOOKUP(B26,Operations!$A$2:$U$99,11,FALSE),PowerUnits[],10,FALSE)/VLOOKUP(B26,Operations!$A$2:$U$99,9,FALSE)*C26,2))) -> 0 | H26: =IF(B26=0,"",IF(C26>9999,"",ROUND(VLOOKUP($B26,Operations!$A$2:$U$99,15,FALSE)*C26,2))) ->  | I26: =IF(B26=0,0,IF(C26>9999,"",ROUND(VLOOKUP(VLOOKUP(B26,Operations!$A$2:$U$99,11,FALSE),PowerUnits[],16,FALSE)/VLOOKUP(B26,Operations!$A$2:$U$99,9,FALSE)*C26,2))) -> 0 | J26: =IF(B26=0,"",IF(C26>9999,"",ROUND(VLOOKUP($B26,Operations!$A$2:$U$99,21,FALSE)*$C26,2))) ->  | K26: 0
A27: 16 | E27: =IF(B27=0,"",IF(C27>9999,"",ROUND('General Variables'!$B$4*VLOOKUP(B27,Operations!$A$2:$U$99,10,FALSE)/VLOOKUP(B27,Operations!$A$2:$U$99,9,FALSE)*C27,2))) ->  | F27: =IF(B27=0,0,IF(C27>9999,"",ROUND(IF(VLOOKUP(B27,Operations!$A$2:$U$99,12,FALSE)=0,VLOOKUP(B27,Operations!$A$2:$U$99,13,FALSE)*'General Variables'!$B$8,VLOOKUP(B27,Operations!$A$2:$U$99,12,FALSE)*'General Variables'!$B$7)/VLOOKUP(B27,Operations!$A$2:$U$99,9,FALSE)*C27,2))) -> 0 | G27: =IF(B27=0,0,IF(C27>9999,"",ROUND(VLOOKUP(VLOOKUP(B27,Operations!$A$2:$U$99,11,FALSE),PowerUnits[],10,FALSE)/VLOOKUP(B27,Operations!$A$2:$U$99,9,FALSE)*C27,2))) -> 0 | H27: =IF(B27=0,"",IF(C27>9999,"",ROUND(VLOOKUP($B27,Operations!$A$2:$U$99,15,FALSE)*C27,2))) ->  | I27: =IF(B27=0,0,IF(C27>9999,"",ROUND(VLOOKUP(VLOOKUP(B27,Operations!$A$2:$U$99,11,FALSE),PowerUnits[],16,FALSE)/VLOOKUP(B27,Operations!$A$2:$U$99,9,FALSE)*C27,2))) -> 0 | J27: =IF(B27=0,"",IF(C27>9999,"",ROUND(VLOOKUP($B27,Operations!$A$2:$U$99,21,FALSE)*$C27,2))) ->  | K27: 0
A28: 17 | E28: =IF(B28=0,"",IF(C28>9999,"",ROUND('General Variables'!$B$4*VLOOKUP(B28,Operations!$A$2:$U$99,10,FALSE)/VLOOKUP(B28,Operations!$A$2:$U$99,9,FALSE)*C28,2))) ->  | F28: =IF(B28=0,0,IF(C28>9999,"",ROUND(IF(VLOOKUP(B28,Operations!$A$2:$U$99,12,FALSE)=0,VLOOKUP(B28,Operations!$A$2:$U$99,13,FALSE)*'General Variables'!$B$8,VLOOKUP(B28,Operations!$A$2:$U$99,12,FALSE)*'General Variables'!$B$7)/VLOOKUP(B28,Operations!$A$2:$U$99,9,FALSE)*C28,2))) -> 0 | G28: =IF(B28=0,0,IF(C28>9999,"",ROUND(VLOOKUP(VLOOKUP(B28,Operations!$A$2:$U$99,11,FALSE),PowerUnits[],10,FALSE)/VLOOKUP(B28,Operations!$A$2:$U$99,9,FALSE)*C28,2))) -> 0 | H28: =IF(B28=0,"",IF(C28>9999,"",ROUND(VLOOKUP($B28,Operations!$A$2:$U$99,15,FALSE)*C28,2))) ->  | I28: =IF(B28=0,0,IF(C28>9999,"",ROUND(VLOOKUP(VLOOKUP(B28,Operations!$A$2:$U$99,11,FALSE),PowerUnits[],16,FALSE)/VLOOKUP(B28,Operations!$A$2:$U$99,9,FALSE)*C28,2))) -> 0 | J28: =IF(B28=0,"",IF(C28>9999,"",ROUND(VLOOKUP($B28,Operations!$A$2:$U$99,21,FALSE)*$C28,2))) ->  | K28: 0
A29: 18 | E29: =IF(B29=0,"",IF(C29>9999,"",ROUND('General Variables'!$B$4*VLOOKUP(B29,Operations!$A$2:$U$99,10,FALSE)/VLOOKUP(B29,Operations!$A$2:$U$99,9,FALSE)*C29,2))) ->  | F29: =IF(B29=0,0,IF(C29>9999,"",ROUND(IF(VLOOKUP(B29,Operations!$A$2:$U$99,12,FALSE)=0,VLOOKUP(B29,Operations!$A$2:$U$99,13,FALSE)*'General Variables'!$B$8,VLOOKUP(B29,Operations!$A$2:$U$99,12,FALSE)*'General Variables'!$B$7)/VLOOKUP(B29,Operations!$A$2:$U$99,9,FALSE)*C29,2))) -> 0 | G29: =IF(B29=0,0,IF(C29>9999,"",ROUND(VLOOKUP(VLOOKUP(B29,Operations!$A$2:$U$99,11,FALSE),PowerUnits[],10,FALSE)/VLOOKUP(B29,Operations!$A$2:$U$99,9,FALSE)*C29,2))) -> 0 | H29: =IF(B29=0,"",IF(C29>9999,"",ROUND(VLOOKUP($B29,Operations!$A$2:$U$99,15,FALSE)*C29,2))) ->  | I29: =IF(B29=0,0,IF(C29>9999,"",ROUND(VLOOKUP(VLOOKUP(B29,Operations!$A$2:$U$99,11,FALSE),PowerUnits[],16,FALSE)/VLOOKUP(B29,Operations!$A$2:$U$99,9,FALSE)*C29,2))) -> 0 | J29: =IF(B29=0,"",IF(C29>9999,"",ROUND(VLOOKUP($B29,Operations!$A$2:$U$99,21,FALSE)*$C29,2))) ->  | K29: 0
A30: 19 | E30: =IF(B30=0,"",IF(C30>9999,"",ROUND('General Variables'!$B$4*VLOOKUP(B30,Operations!$A$2:$U$99,10,FALSE)/VLOOKUP(B30,Operations!$A$2:$U$99,9,FALSE)*C30,2))) ->  | F30: =IF(B30=0,0,IF(C30>9999,"",ROUND(IF(VLOOKUP(B30,Operations!$A$2:$U$99,12,FALSE)=0,VLOOKUP(B30,Operations!$A$2:$U$99,13,FALSE)*'General Variables'!$B$8,VLOOKUP(B30,Operations!$A$2:$U$99,12,FALSE)*'General Variables'!$B$7)/VLOOKUP(B30,Operations!$A$2:$U$99,9,FALSE)*C30,2))) -> 0 | G30: =IF(B30=0,0,IF(C30>9999,"",ROUND(VLOOKUP(VLOOKUP(B30,Operations!$A$2:$U$99,11,FALSE),PowerUnits[],10,FALSE)/VLOOKUP(B30,Operations!$A$2:$U$99,9,FALSE)*C30,2))) -> 0 | H30: =IF(B30=0,"",IF(C30>9999,"",ROUND(VLOOKUP($B30,Operations!$A$2:$U$99,15,FALSE)*C30,2))) ->  | I30: =IF(B30=0,0,IF(C30>9999,"",ROUND(VLOOKUP(VLOOKUP(B30,Operations!$A$2:$U$99,11,FALSE),PowerUnits[],16,FALSE)/VLOOKUP(B30,Operations!$A$2:$U$99,9,FALSE)*C30,2))) -> 0 | J30: =IF(B30=0,"",IF(C30>9999,"",ROUND(VLOOKUP($B30,Operations!$A$2:$U$99,21,FALSE)*$C30,2))) ->  | K30: 0
A31: 20 | E31: =IF(B31=0,"",IF(C31>9999,"",ROUND('General Variables'!$B$4*VLOOKUP(B31,Operations!$A$2:$U$99,10,FALSE)/VLOOKUP(B31,Operations!$A$2:$U$99,9,FALSE)*C31,2))) ->  | F31: =IF(B31=0,0,IF(C31>9999,"",ROUND(IF(VLOOKUP(B31,Operations!$A$2:$U$99,12,FALSE)=0,VLOOKUP(B31,Operations!$A$2:$U$99,13,FALSE)*'General Variables'!$B$8,VLOOKUP(B31,Operations!$A$2:$U$99,12,FALSE)*'General Variables'!$B$7)/VLOOKUP(B31,Operations!$A$2:$U$99,9,FALSE)*C31,2))) -> 0 | G31: =IF(B31=0,0,IF(C31>9999,"",ROUND(VLOOKUP(VLOOKUP(B31,Operations!$A$2:$U$99,11,FALSE),PowerUnits[],10,FALSE)/VLOOKUP(B31,Operations!$A$2:$U$99,9,FALSE)*C31,2))) -> 0 | H31: =IF(B31=0,"",IF(C31>9999,"",ROUND(VLOOKUP($B31,Operations!$A$2:$U$99,15,FALSE)*C31,2))) ->  | I31: =IF(B31=0,0,IF(C31>9999,"",ROUND(VLOOKUP(VLOOKUP(B31,Operations!$A$2:$U$99,11,FALSE),PowerUnits[],16,FALSE)/VLOOKUP(B31,Operations!$A$2:$U$99,9,FALSE)*C31,2))) -> 0 | J31: =IF(B31=0,"",IF(C31>9999,"",ROUND(VLOOKUP($B31,Operations!$A$2:$U$99,21,FALSE)*$C31,2))) ->  | K31: 0
C33: Total for Field Operations | E33: =SUM(E12:E31) -> 4.82 | F33: =SUM(F12:F31) -> 1.65 | G33: 1.5 | H33: 5.63 | I33: 4.67 | J33: 5.01 | K33: 23.28
F35: Operation Index | G35: Percent Acres Applied | H35: Application | J35: Applied Price | L35: Your Estimate
B36: Materials & Services | H36: Rate | I36: Unit | K36: Total
B37: Gramoxone SL 2.0 | C37: =IF(B37=0,"",VLOOKUP($B37,Table2[],2,FALSE)) -> Herbicide | F37: 1 | G37: 1 | H37: 2 | I37: =IF($B37=0,"",VLOOKUP($B37,Table2[],5,FALSE)) -> pint | J37: =IF($B37=0,"",VLOOKUP($B37,Table2[],7,FALSE)) -> 3.375 | K37: =IF(B37=0,0,ROUND(G37*H37*J37,2)) -> 6.75
B38: 11-52-0 | C38: =IF(B38=0,"",VLOOKUP($B38,Table2[],2,FALSE)) -> Fertilizer | F38: 2 | G38: 1 | H38: 100 | I38: =IF($B38=0,"",VLOOKUP($B38,Table2[],5,FALSE)) -> pound | J38: =IF($B38=0,"",VLOOKUP($B38,Table2[],7,FALSE)) -> 0.23 | K38: =IF(B38=0,0,ROUND(G38*H38*J38,2)) -> 23
B39: Alfalfa RR w/Inoculant | C39: =IF(B39=0,"",VLOOKUP($B39,Table2[],2,FALSE)) -> Seed | F39: 2 | G39: 1 | H39: 12 | I39: =IF($B39=0,"",VLOOKUP($B39,Table2[],5,FALSE)) -> pound | J39: =IF($B39=0,"",VLOOKUP($B39,Table2[],7,FALSE)) -> 9 | K39: 108
B40: Roundup WeatherMax | C40: =IF(B40=0,"",VLOOKUP($B40,Table2[],2,FALSE)) -> Herbicide | F40: 3 | G40: 1 | H40: 44 | I40: =IF($B40=0,"",VLOOKUP($B40,Table2[],5,FALSE)) -> ounce | J40: =IF($B40=0,"",VLOOKUP($B40,Table2[],7,FALSE)) -> 0.2578125 | K40: 11.34
B41: 21-0-0-24S | C41: =IF(B41=0,"",VLOOKUP($B41,Table2[],2,FALSE)) -> Additive | F41: 3 | G41: 1 | H41: 1.7 | I41: =IF($B41=0,"",VLOOKUP($B41,Table2[],5,FALSE)) -> pound | J41: =IF($B41=0,"",VLOOKUP($B41,Table2[],7,FALSE)) -> 0.35 | K41: 0.6
B42: Mustang Maxx | C42: =IF(B42=0,"",VLOOKUP($B42,Table2[],2,FALSE)) -> Insecticide | F42: 4 | G42: 0.2 | H42: 3 | I42: =IF($B42=0,"",VLOOKUP($B42,Table2[],5,FALSE)) -> ounce | J42: =IF($B42=0,"",VLOOKUP($B42,Table2[],7,FALSE)) -> 1.40625 | K42: 0.84
C43: =IF(B43=0,"",VLOOKUP($B43,Table2[],2,FALSE)) ->  | I43: =IF($B43=0,"",VLOOKUP($B43,Table2[],5,FALSE)) ->  | J43: =IF($B43=0,"",VLOOKUP($B43,Table2[],7,FALSE)) ->  | K43: 0
C44: =IF(B44=0,"",VLOOKUP($B44,Table2[],2,FALSE)) ->  | I44: =IF($B44=0,"",VLOOKUP($B44,Table2[],5,FALSE)) ->  | J44: =IF($B44=0,"",VLOOKUP($B44,Table2[],7,FALSE)) ->  | K44: 0
C45: =IF(B45=0,"",VLOOKUP($B45,Table2[],2,FALSE)) ->  | I45: =IF($B45=0,"",VLOOKUP($B45,Table2[],5,FALSE)) ->  | J45: =IF($B45=0,"",VLOOKUP($B45,Table2[],7,FALSE)) ->  | K45: 0
C46: =IF(B46=0,"",VLOOKUP($B46,Table2[],2,FALSE)) ->  | I46: =IF($B46=0,"",VLOOKUP($B46,Table2[],5,FALSE)) ->  | J46: =IF($B46=0,"",VLOOKUP($B46,Table2[],7,FALSE)) ->  | K46: 0
C47: =IF(B47=0,"",VLOOKUP($B47,Table2[],2,FALSE)) ->  | I47: =IF($B47=0,"",VLOOKUP($B47,Table2[],5,FALSE)) ->  | J47: =IF($B47=0,"",VLOOKUP($B47,Table2[],7,FALSE)) ->  | K47: 0
C48: =IF(B48=0,"",VLOOKUP($B48,Table2[],2,FALSE)) ->  | I48: =IF($B48=0,"",VLOOKUP($B48,Table2[],5,FALSE)) ->  | J48: =IF($B48=0,"",VLOOKUP($B48,Table2[],7,FALSE)) ->  | K48: 0
C49: =IF(B49=0,"",VLOOKUP($B49,Table2[],2,FALSE)) ->  | I49: =IF($B49=0,"",VLOOKUP($B49,Table2[],5,FALSE)) ->  | J49: =IF($B49=0,"",VLOOKUP($B49,Table2[],7,FALSE)) ->  | K49: 0
C50: =IF(B50=0,"",VLOOKUP($B50,Table2[],2,FALSE)) ->  | I50: =IF($B50=0,"",VLOOKUP($B50,Table2[],5,FALSE)) ->  | J50: =IF($B50=0,"",VLOOKUP($B50,Table2[],7,FALSE)) ->  | K50: 0
C51: =IF(B51=0,"",VLOOKUP($B51,Table2[],2,FALSE)) ->  | I51: =IF($B51=0,"",VLOOKUP($B51,Table2[],5,FALSE)) ->  | J51: =IF($B51=0,"",VLOOKUP($B51,Table2[],7,FALSE)) ->  | K51: 0
C52: =IF(B52=0,"",VLOOKUP($B52,Table2[],2,FALSE)) ->  | G52: 0.1 | I52: =IF($B52=0,"",VLOOKUP($B52,Table2[],5,FALSE)) ->  | J52: =IF($B52=0,"",VLOOKUP($B52,Table2[],7,FALSE)) ->  | K52: 0
C53: =IF(B53=0,"",VLOOKUP($B53,Table2[],2,FALSE)) ->  | G53: 0.2 | I53: =IF($B53=0,"",VLOOKUP($B53,Table2[],5,FALSE)) ->  | J53: =IF($B53=0,"",VLOOKUP($B53,Table2[],7,FALSE)) ->  | K53: 0
C54: =IF(B54=0,"",VLOOKUP($B54,Table2[],2,FALSE)) ->  | G54: 0.3 | I54: =IF($B54=0,"",VLOOKUP($B54,Table2[],5,FALSE)) ->  | J54: =IF($B54=0,"",VLOOKUP($B54,Table2[],7,FALSE)) ->  | K54: 0
C55: =IF(B55=0,"",VLOOKUP($B55,Table2[],2,FALSE)) ->  | I55: =IF($B55=0,"",VLOOKUP($B55,Table2[],5,FALSE)) ->  | J55: =IF($B55=0,"",VLOOKUP($B55,Table2[],7,FALSE)) ->  | K55: 0
C56: =IF(B56=0,"",VLOOKUP($B56,Table2[],2,FALSE)) ->  | I56: =IF($B56=0,"",VLOOKUP($B56,Table2[],5,FALSE)) ->  | J56: =IF($B56=0,"",VLOOKUP($B56,Table2[],7,FALSE)) ->  | K56: =IF(B56=0,0,ROUND(G56*H56*J56,2)) -> 0
C57: =IF(B57=0,"",VLOOKUP($B57,Table2[],2,FALSE)) ->  | I57: =IF($B57=0,"",VLOOKUP($B57,Table2[],5,FALSE)) ->  | J57: =IF($B57=0,"",VLOOKUP($B57,Table2[],7,FALSE)) ->  | K57: =IF(B57=0,0,ROUND(G57*H57*J57,2)) -> 0
C58: =IF(B58=0,"",VLOOKUP($B58,Table2[],2,FALSE)) ->  | I58: =IF($B58=0,"",VLOOKUP($B58,Table2[],5,FALSE)) ->  | J58: =IF($B58=0,"",VLOOKUP($B58,Table2[],7,FALSE)) ->  | K58: =IF(B58=0,0,ROUND(G58*H58*J58,2)) -> 0
C59: =IF(B59=0,"",VLOOKUP($B59,Table2[],2,FALSE)) ->  | I59: =IF($B59=0,"",VLOOKUP($B59,Table2[],5,FALSE)) ->  | J59: =IF($B59=0,"",VLOOKUP($B59,Table2[],7,FALSE)) ->  | K59: =IF(B59=0,0,ROUND(G59*H59*J59,2)) -> 0
C60: =IF(B60=0,"",VLOOKUP($B60,Table2[],2,FALSE)) ->  | I60: =IF($B60=0,"",VLOOKUP($B60,Table2[],5,FALSE)) ->  | J60: =IF($B60=0,"",VLOOKUP($B60,Table2[],7,FALSE)) ->  | K60: =IF(B60=0,0,ROUND(G60*H60*J60,2)) -> 0
C61: Crop Insurance | J61: =IF(F5=0,E5,F5) ->  | K61: 0
C63: Total Materials & Services | K63: =SUM(K37:K61) -> 150.53
B65: Total listed costs for Field Operations and Materials and Services | K65: =K33+K63 -> 173.81
D66: Interest on Operations Capital | E66: =ROUND(SUM($E$33:$H$33)+$K$63,2) -> 164.13 | F66: cash expense @ | H66: ='General Variables'!$B$11 -> 0.055 | I66: =CONCATENATE("for ",TEXT('General Variables'!$B$12,"0.0")," mo.") -> for 6.0 mo. | K66: =E66*H66*'General Variables'!$B$12/12 -> 4.513575
B67: Total Operating and Use Related Ownership Costs | K67: =SUM(K65:K66) -> 178.323575
B69: Overhead (accounting, liability insurance, vehicle cost, office expense) | K69: ='General Variables'!B14 -> 20
B70: Real Estate Opportunity | C70: Fall Establishment | F70: =IF(C70=0,0,VLOOKUP(C70,RETable,2,FALSE)) -> 0 | G70: per acre @ | I70: ='General Variables'!$B$10 -> 0.03 | K70: =ROUND(F70*I70,2) -> 0
B71: Real Estate Taxes | F71: =IF(C70=0,0,VLOOKUP(C70,RETable,2,FALSE)) -> 0 | G71: per acre @ | I71: ='General Variables'!$B$13 -> 0.0135 | K71: =ROUND(F71*I71,2) -> 0
B72: Total Cost per Acre Including Overhead | K72: =SUM(K67:K71) -> 198.323575
B75: =IF(G4="","","Cost of production per "&H4) ->  | K75: =IF(G4="","",K72/G4) -> 
K112: Yes
K113: No
B241: =IF(Operations!A130="","",Operations!A130) ->  | C241: =IF(Materials!B132="","",Materials!B132) -> Corn Bt, ECB, RW, & RIB
B242: =IF(Operations!A131="","",Operations!A131) ->  | C242: =IF(Materials!B133="","",Materials!B133) -> Corn Bt, ECB, RW, RR2, LL, & RIB
B243: =IF(Operations!A132="","",Operations!A132) ->  | C243: =IF(Materials!B134="","",Materials!B134) -> Corn Enlist, Bt, ECB, & RIB
B244: =IF(Operations!A133="","",Operations!A133) ->  | C244: =IF(Materials!B135="","",Materials!B135) -> Corn RR2, LL
